Workbook

Sheet Deal Summary (LP Equity)
B2: GOLDEN HILL FINANCE SUMMARY
AI3: Timing Summary
B5: Timing | H5: Construction Loan | N5: Total Project Cash Flow Summary | AJ5: Start Date | AK5: End Date | AL5: Duration (months) | AM5: Percent Complete
B6: Schedule | E6: Month | F6: Date | H6: Total Commitment | L6: =+E56 -> 33928543.49 | AI6: Construction Period | AJ6: =EDATE((EOMONTH(F8,0)+1),-1) -> 2023-08-01 | AK6: =(EOMONTH(F10,0)) -> 2025-05-31 | AL6: =ROUNDDOWN(DAYS360(AJ6,AK6)+30,0) -> 690 | AM6: =IF($AJ$28>AK6,1,IF($AJ$28<AJ6,0,($AJ$28-AJ6)/(AK6-AJ6))) -> 0
B7: Land Close | E7: =Assumptions!F32 -> 1 | F7: =Assumptions!E32 -> 2023-06-15 | H7: Interest rate | L7: =+Assumptions!$F$281 -> 0.09 | O7: Total | Q7: 1 | R7: 2 | S7: 3 | T7: 4 | U7: 5 | V7: 6 | W7: 7 | X7: 8 | Y7: 9 | Z7: 10 | AI7: Lease Up | AJ7: =EDATE((EOMONTH(F9,0)+1),-1) -> 2025-05-01 | AK7: =(EOMONTH(F10,0)) -> 2025-05-31 | AL7: =ROUNDDOWN(DAYS360(AJ7,AK7)+30,0) -> 60 | AM7: =IF($AJ$28>AK7,1,IF($AJ$28<AJ7,0,($AJ$28-AJ7)/(AK7-AJ7))) -> 0
B8: Construction Start Date | E8: =Assumptions!F34 -> 2 | F8: =Assumptions!E34 -> 2023-08-15 | H8: Term (years) | L8: 5 | N8: Operations Summary | AI8: Stabilization to Sale | AJ8: =EDATE((EOMONTH(F11,0)+1),-1) -> 2025-08-01 | AK8: =EOMONTH(F13,0) -> 2033-06-30 | AL8: =ROUNDDOWN(DAYS360(AJ8,AK8)+30,0) -> 2879 | AM8: =IF($AJ$28>AK8,1,IF($AJ$28<AJ8,0,($AJ$28-AJ8)/(AK8-AJ8))) -> 0
B9: First Unit Delivered | E9: =Assumptions!F35 -> 23 | F9: =Assumptions!E35 -> 2025-05-15 | H9: Structure | L9: Amortized | N9: Total Revenues | Q9: =SUMIF('Trended Cash Flow'!$E$421:$EF$421,Q$7,'Trended Cash Flow'!$E$31:$EF$31) -> 0 | R9: =SUMIF('Trended Cash Flow'!$E$421:$EF$421,R$7,'Trended Cash Flow'!$E$31:$EF$31) -> 0 | S9: =SUMIF('Trended Cash Flow'!$E$421:$EF$421,S$7,'Trended Cash Flow'!$E$31:$EF$31) -> 4405934.812 | T9: =SUMIF('Trended Cash Flow'!$E$421:$EF$421,T$7,'Trended Cash Flow'!$E$31:$EF$31) -> 5181246.532 | U9: =SUMIF('Trended Cash Flow'!$E$421:$EF$421,U$7,'Trended Cash Flow'!$E$31:$EF$31) -> 5350885.917 | V9: =SUMIF('Trended Cash Flow'!$E$421:$EF$421,V$7,'Trended Cash Flow'!$E$31:$EF$31) -> 5526082.811 | W9: =SUMIF('Trended Cash Flow'!$E$421:$EF$421,W$7,'Trended Cash Flow'!$E$31:$EF$31) -> 5707019.381 | X9: =SUMIF('Trended Cash Flow'!$E$421:$EF$421,X$7,'Trended Cash Flow'!$E$31:$EF$31) -> 5893883.773 | Y9: =SUMIF('Trended Cash Flow'!$E$421:$EF$421,Y$7,'Trended Cash Flow'!$E$31:$EF$31) -> 6086870.3 | Z9: =SUMIF('Trended Cash Flow'!$E$421:$EF$421,Z$7,'Trended Cash Flow'!$E$31:$EF$31) -> 6286179.65
B10: Last Unit Delivered | E10: =Assumptions!F35 -> 23 | F10: =Assumptions!E35 -> 2025-05-15 | N10: Operating Expenses | Q10: =-SUMIF('Trended Cash Flow'!$E$421:$EF$421,Q$7,'Trended Cash Flow'!$E$34:$EF$34) -> 0 | R10: =-SUMIF('Trended Cash Flow'!$E$421:$EF$421,R$7,'Trended Cash Flow'!$E$34:$EF$34) -> -107888.8664 | S10: =-SUMIF('Trended Cash Flow'!$E$421:$EF$421,S$7,'Trended Cash Flow'!$E$34:$EF$34) -> -313593.2867 | T10: =-SUMIF('Trended Cash Flow'!$E$421:$EF$421,T$7,'Trended Cash Flow'!$E$34:$EF$34) -> -1175148.316 | U10: =-SUMIF('Trended Cash Flow'!$E$421:$EF$421,U$7,'Trended Cash Flow'!$E$34:$EF$34) -> -1210891.576 | V10: =-SUMIF('Trended Cash Flow'!$E$421:$EF$421,V$7,'Trended Cash Flow'!$E$34:$EF$34) -> -1247722.002 | W10: =-SUMIF('Trended Cash Flow'!$E$421:$EF$421,W$7,'Trended Cash Flow'!$E$34:$EF$34) -> -1285672.661 | X10: =-SUMIF('Trended Cash Flow'!$E$421:$EF$421,X$7,'Trended Cash Flow'!$E$34:$EF$34) -> -1324777.625 | Y10: =-SUMIF('Trended Cash Flow'!$E$421:$EF$421,Y$7,'Trended Cash Flow'!$E$34:$EF$34) -> -1365072.004 | Z10: =-SUMIF('Trended Cash Flow'!$E$421:$EF$421,Z$7,'Trended Cash Flow'!$E$34:$EF$34) -> -1406591.976
B11: Stabilized | E11: =Assumptions!F36 -> 26.86785714 | F11: =Assumptions!E36 -> 2025-08-15 | H11: Refinance Debt Terms | N11: Project Net Operating Income | Q11: =SUMIF('Trended Cash Flow'!$E$421:$EF$421,Q$7,'Trended Cash Flow'!$E$35:$EF$35) -> 0 | R11: =SUMIF('Trended Cash Flow'!$E$421:$EF$421,R$7,'Trended Cash Flow'!$E$35:$EF$35) -> -107888.8664 | S11: =SUMIF('Trended Cash Flow'!$E$421:$EF$421,S$7,'Trended Cash Flow'!$E$35:$EF$35) -> 4092341.525 | T11: =SUMIF('Trended Cash Flow'!$E$421:$EF$421,T$7,'Trended Cash Flow'!$E$35:$EF$35) -> 4006098.216 | U11: =SUMIF('Trended Cash Flow'!$E$421:$EF$421,U$7,'Trended Cash Flow'!$E$35:$EF$35) -> 4139994.341 | V11: =SUMIF('Trended Cash Flow'!$E$421:$EF$421,V$7,'Trended Cash Flow'!$E$35:$EF$35) -> 4278360.808 | W11: =SUMIF('Trended Cash Flow'!$E$421:$EF$421,W$7,'Trended Cash Flow'!$E$35:$EF$35) -> 4421346.72 | X11: =SUMIF('Trended Cash Flow'!$E$421:$EF$421,X$7,'Trended Cash Flow'!$E$35:$EF$35) -> 4569106.148 | Y11: =SUMIF('Trended Cash Flow'!$E$421:$EF$421,Y$7,'Trended Cash Flow'!$E$35:$EF$35) -> 4721798.296 | Z11: =SUMIF('Trended Cash Flow'!$E$421:$EF$421,Z$7,'Trended Cash Flow'!$E$35:$EF$35) -> 4879587.674
B12: Refinance | D12: Sale Year | E12: =Assumptions!AH13 -> 35 | F12: =Assumptions!AI13 -> 2026-04-15 | H12: Refi Date | K12: =Assumptions!AH13 -> 35 | L12: =Assumptions!AI13 -> 2026-04-15
B13: Sale Date | D13: =INDEX('Trended Cash Flow'!$E$421:$EF$421,,MATCH($E$13,'Trended Cash Flow'!$E$11:$EF$11,0)) -> 10 | E13: =Assumptions!F38 -> 120 | F13: =Assumptions!E38 -> 2033-06-15 | H13: Closing Costs | L13: =Assumptions!AI14 -> 0.0075 | N13: Preleasing and Leaseup Operating Deficit | Q13: =SUMIF('Trended Cash Flow'!$E$421:$EF$421,Q$7,'Trended Cash Flow'!$E$51:$EF$51) -> 0 | R13: =SUMIF('Trended Cash Flow'!$E$421:$EF$421,R$7,'Trended Cash Flow'!$E$51:$EF$51) -> 40000 | S13: =SUMIF('Trended Cash Flow'!$E$421:$EF$421,S$7,'Trended Cash Flow'!$E$51:$EF$51) -> 0 | T13: =SUMIF('Trended Cash Flow'!$E$421:$EF$421,T$7,'Trended Cash Flow'!$E$51:$EF$51) -> 0 | U13: =SUMIF('Trended Cash Flow'!$E$421:$EF$421,U$7,'Trended Cash Flow'!$E$51:$EF$51) -> 0 | V13: =SUMIF('Trended Cash Flow'!$E$421:$EF$421,V$7,'Trended Cash Flow'!$E$51:$EF$51) -> 0 | W13: =SUMIF('Trended Cash Flow'!$E$421:$EF$421,W$7,'Trended Cash Flow'!$E$51:$EF$51) -> 0 | X13: =SUMIF('Trended Cash Flow'!$E$421:$EF$421,X$7,'Trended Cash Flow'!$E$51:$EF$51) -> 0 | Y13: =SUMIF('Trended Cash Flow'!$E$421:$EF$421,Y$7,'Trended Cash Flow'!$E$51:$EF$51) -> 0 | Z13: =SUMIF('Trended Cash Flow'!$E$421:$EF$421,Z$7,'Trended Cash Flow'!$E$51:$EF$51) -> 0
B15: Project Summary | H15: Forward 12 NOI at Refi | L15: =Assumptions!AG17 -> 4613391.709 | N15: Debt Service
B16: Total Number of Units | F16: =Assumptions!$J$197 -> 114 | H16: Cap Rate | L16: =Assumptions!AG19 -> 0.045 | N16: Interest Payments | Q16: =-(-SUMIF('Trended Cash Flow'!$E$421:$EF$421,Q$7,'Trended Cash Flow'!$E$59:$EF$59)-SUMIF('Trended Cash Flow'!$E$421:$EF$421,Q$7,'Trended Cash Flow'!$E$367:$EF$367)-SUMIF('Trended Cash Flow'!$E$421:$EF$421,Q$7,'Trended Cash Flow'!$E$368:$EF$368)-SUMIF('Trended Cash Flow'!$E$421:$EF$421,Q$7,'Trended Cash Flow'!$E$386:$EF$386)-SUMIF('Trended Cash Flow'!$E$421:$EF$421,Q$7,'Trended Cash Flow'!$E$396:$EF$396)) -> 0 | R16: =-(-SUMIF('Trended Cash Flow'!$E$421:$EF$421,R$7,'Trended Cash Flow'!$E$59:$EF$59)-SUMIF('Trended Cash Flow'!$E$421:$EF$421,R$7,'Trended Cash Flow'!$E$367:$EF$367)-SUMIF('Trended Cash Flow'!$E$421:$EF$421,R$7,'Trended Cash Flow'!$E$368:$EF$368)-SUMIF('Trended Cash Flow'!$E$421:$EF$421,R$7,'Trended Cash Flow'!$E$386:$EF$386)-SUMIF('Trended Cash Flow'!$E$421:$EF$421,R$7,'Trended Cash Flow'!$E$396:$EF$396)) -> 0 | S16: =-(-SUMIF('Trended Cash Flow'!$E$421:$EF$421,S$7,'Trended Cash Flow'!$E$59:$EF$59)-SUMIF('Trended Cash Flow'!$E$421:$EF$421,S$7,'Trended Cash Flow'!$E$367:$EF$367)-SUMIF('Trended Cash Flow'!$E$421:$EF$421,S$7,'Trended Cash Flow'!$E$368:$EF$368)-SUMIF('Trended Cash Flow'!$E$421:$EF$421,S$7,'Trended Cash Flow'!$E$386:$EF$386)-SUMIF('Trended Cash Flow'!$E$421:$EF$421,S$7,'Trended Cash Flow'!$E$396:$EF$396)) -> -2688045.256 | T16: =-(-SUMIF('Trended Cash Flow'!$E$421:$EF$421,T$7,'Trended Cash Flow'!$E$59:$EF$59)-SUMIF('Trended Cash Flow'!$E$421:$EF$421,T$7,'Trended Cash Flow'!$E$367:$EF$367)-SUMIF('Trended Cash Flow'!$E$421:$EF$421,T$7,'Trended Cash Flow'!$E$368:$EF$368)-SUMIF('Trended Cash Flow'!$E$421:$EF$421,T$7,'Trended Cash Flow'!$E$386:$EF$386)-SUMIF('Trended Cash Flow'!$E$421:$EF$421,T$7,'Trended Cash Flow'!$E$396:$EF$396)) -> -2796855.518 | U16: =-(-SUMIF('Trended Cash Flow'!$E$421:$EF$421,U$7,'Trended Cash Flow'!$E$59:$EF$59)-SUMIF('Trended Cash Flow'!$E$421:$EF$421,U$7,'Trended Cash Flow'!$E$367:$EF$367)-SUMIF('Trended Cash Flow'!$E$421:$EF$421,U$7,'Trended Cash Flow'!$E$368:$EF$368)-SUMIF('Trended Cash Flow'!$E$421:$EF$421,U$7,'Trended Cash Flow'!$E$386:$EF$386)-SUMIF('Trended Cash Flow'!$E$421:$EF$421,U$7,'Trended Cash Flow'!$E$396:$EF$396)) -> -2796855.518 | V16: =-(-SUMIF('Trended Cash Flow'!$E$421:$EF$421,V$7,'Trended Cash Flow'!$E$59:$EF$59)-SUMIF('Trended Cash Flow'!$E$421:$EF$421,V$7,'Trended Cash Flow'!$E$367:$EF$367)-SUMIF('Trended Cash Flow'!$E$421:$EF$421,V$7,'Trended Cash Flow'!$E$368:$EF$368)-SUMIF('Trended Cash Flow'!$E$421:$EF$421,V$7,'Trended Cash Flow'!$E$386:$EF$386)-SUMIF('Trended Cash Flow'!$E$421:$EF$421,V$7,'Trended Cash Flow'!$E$396:$EF$396)) -> -2796855.518 | W16: =-(-SUMIF('Trended Cash Flow'!$E$421:$EF$421,W$7,'Trended Cash Flow'!$E$59:$EF$59)-SUMIF('Trended Cash Flow'!$E$421:$EF$421,W$7,'Trended Cash Flow'!$E$367:$EF$367)-SUMIF('Trended Cash Flow'!$E$421:$EF$421,W$7,'Trended Cash Flow'!$E$368:$EF$368)-SUMIF('Trended Cash Flow'!$E$421:$EF$421,W$7,'Trended Cash Flow'!$E$386:$EF$386)-SUMIF('Trended Cash Flow'!$E$421:$EF$421,W$7,'Trended Cash Flow'!$E$396:$EF$396)) -> 1416084.02 | X16: =-(-SUMIF('Trended Cash Flow'!$E$421:$EF$421,X$7,'Trended Cash Flow'!$E$59:$EF$59)-SUMIF('Trended Cash Flow'!$E$421:$EF$421,X$7,'Trended Cash Flow'!$E$367:$EF$367)-SUMIF('Trended Cash Flow'!$E$421:$EF$421,X$7,'Trended Cash Flow'!$E$368:$EF$368)-SUMIF('Trended Cash Flow'!$E$421:$EF$421,X$7,'Trended Cash Flow'!$E$386:$EF$386)-SUMIF('Trended Cash Flow'!$E$421:$EF$421,X$7,'Trended Cash Flow'!$E$396:$EF$396)) -> 1775285.669 | Y16: =-(-SUMIF('Trended Cash Flow'!$E$421:$EF$421,Y$7,'Trended Cash Flow'!$E$59:$EF$59)-SUMIF('Trended Cash Flow'!$E$421:$EF$421,Y$7,'Trended Cash Flow'!$E$367:$EF$367)-SUMIF('Trended Cash Flow'!$E$421:$EF$421,Y$7,'Trended Cash Flow'!$E$368:$EF$368)-SUMIF('Trended Cash Flow'!$E$421:$EF$421,Y$7,'Trended Cash Flow'!$E$386:$EF$386)-SUMIF('Trended Cash Flow'!$E$421:$EF$421,Y$7,'Trended Cash Flow'!$E$396:$EF$396)) -> 1750458.344 | Z16: =-(-SUMIF('Trended Cash Flow'!$E$421:$EF$421,Z$7,'Trended Cash Flow'!$E$59:$EF$59)-SUMIF('Trended Cash Flow'!$E$421:$EF$421,Z$7,'Trended Cash Flow'!$E$367:$EF$367)-SUMIF('Trended Cash Flow'!$E$421:$EF$421,Z$7,'Trended Cash Flow'!$E$368:$EF$368)-SUMIF('Trended Cash Flow'!$E$421:$EF$421,Z$7,'Trended Cash Flow'!$E$386:$EF$386)-SUMIF('Trended Cash Flow'!$E$421:$EF$421,Z$7,'Trended Cash Flow'!$E$396:$EF$396)) -> 1725200.067
B17: Total Rentable Square Feet | F17: =Assumptions!$H$197 -> 78585 | H17: LTV | L17: =Assumptions!AG20 -> 0.8 | N17: Principal Payments | Q17: =SUMIF('Trended Cash Flow'!$E$421:$EF$421,Q$7,'Trended Cash Flow'!$E$387:$EF$387)+SUMIF('Trended Cash Flow'!$E$421:$EF$421,Q$7,'Trended Cash Flow'!$E$397:$EF$397) -> 0 | R17: =SUMIF('Trended Cash Flow'!$E$421:$EF$421,R$7,'Trended Cash Flow'!$E$387:$EF$387)+SUMIF('Trended Cash Flow'!$E$421:$EF$421,R$7,'Trended Cash Flow'!$E$397:$EF$397) -> 0 | S17: =SUMIF('Trended Cash Flow'!$E$421:$EF$421,S$7,'Trended Cash Flow'!$E$387:$EF$387)+SUMIF('Trended Cash Flow'!$E$421:$EF$421,S$7,'Trended Cash Flow'!$E$397:$EF$397) -> 0 | T17: =SUMIF('Trended Cash Flow'!$E$421:$EF$421,T$7,'Trended Cash Flow'!$E$387:$EF$387)+SUMIF('Trended Cash Flow'!$E$421:$EF$421,T$7,'Trended Cash Flow'!$E$397:$EF$397) -> 0 | U17: =SUMIF('Trended Cash Flow'!$E$421:$EF$421,U$7,'Trended Cash Flow'!$E$387:$EF$387)+SUMIF('Trended Cash Flow'!$E$421:$EF$421,U$7,'Trended Cash Flow'!$E$397:$EF$397) -> 0 | V17: =SUMIF('Trended Cash Flow'!$E$421:$EF$421,V$7,'Trended Cash Flow'!$E$387:$EF$387)+SUMIF('Trended Cash Flow'!$E$421:$EF$421,V$7,'Trended Cash Flow'!$E$397:$EF$397) -> 0 | W17: =SUMIF('Trended Cash Flow'!$E$421:$EF$421,W$7,'Trended Cash Flow'!$E$387:$EF$387)+SUMIF('Trended Cash Flow'!$E$421:$EF$421,W$7,'Trended Cash Flow'!$E$397:$EF$397) -> -700257.8998 | X17: =SUMIF('Trended Cash Flow'!$E$421:$EF$421,X$7,'Trended Cash Flow'!$E$387:$EF$387)+SUMIF('Trended Cash Flow'!$E$421:$EF$421,X$7,'Trended Cash Flow'!$E$397:$EF$397) -> -763917.7088 | Y17: =SUMIF('Trended Cash Flow'!$E$421:$EF$421,Y$7,'Trended Cash Flow'!$E$387:$EF$387)+SUMIF('Trended Cash Flow'!$E$421:$EF$421,Y$7,'Trended Cash Flow'!$E$397:$EF$397) -> -763917.7088 | Z17: =SUMIF('Trended Cash Flow'!$E$421:$EF$421,Z$7,'Trended Cash Flow'!$E$387:$EF$387)+SUMIF('Trended Cash Flow'!$E$421:$EF$421,Z$7,'Trended Cash Flow'!$E$397:$EF$397) -> -763917.7088
B18: Average Unit Size | F18: =Assumptions!$H$198 -> 689.3421053 | N18: Total Debt Service | Q18: =SUMIF('Trended Cash Flow'!$E$421:$EF$421,Q$7,'Trended Cash Flow'!$E$59:$EF$59)+SUMIF('Trended Cash Flow'!$E$421:$EF$421,Q$7,'Trended Cash Flow'!$E$60:$EF$60)+SUMIF('Trended Cash Flow'!$E$421:$EF$421,Q$7,'Trended Cash Flow'!$E$61:$EF$61)+SUMIF('Trended Cash Flow'!$E$421:$EF$421,Q$7,'Trended Cash Flow'!$E$62:$EF$62) -> 0 | R18: =SUMIF('Trended Cash Flow'!$E$421:$EF$421,R$7,'Trended Cash Flow'!$E$59:$EF$59)+SUMIF('Trended Cash Flow'!$E$421:$EF$421,R$7,'Trended Cash Flow'!$E$60:$EF$60)+SUMIF('Trended Cash Flow'!$E$421:$EF$421,R$7,'Trended Cash Flow'!$E$61:$EF$61)+SUMIF('Trended Cash Flow'!$E$421:$EF$421,R$7,'Trended Cash Flow'!$E$62:$EF$62) -> 0 | S18: =SUMIF('Trended Cash Flow'!$E$421:$EF$421,S$7,'Trended Cash Flow'!$E$59:$EF$59)+SUMIF('Trended Cash Flow'!$E$421:$EF$421,S$7,'Trended Cash Flow'!$E$60:$EF$60)+SUMIF('Trended Cash Flow'!$E$421:$EF$421,S$7,'Trended Cash Flow'!$E$61:$EF$61)+SUMIF('Trended Cash Flow'!$E$421:$EF$421,S$7,'Trended Cash Flow'!$E$62:$EF$62) -> -2688045.256 | T18: =SUMIF('Trended Cash Flow'!$E$421:$EF$421,T$7,'Trended Cash Flow'!$E$59:$EF$59)+SUMIF('Trended Cash Flow'!$E$421:$EF$421,T$7,'Trended Cash Flow'!$E$60:$EF$60)+SUMIF('Trended Cash Flow'!$E$421:$EF$421,T$7,'Trended Cash Flow'!$E$61:$EF$61)+SUMIF('Trended Cash Flow'!$E$421:$EF$421,T$7,'Trended Cash Flow'!$E$62:$EF$62) -> -2796855.518 | U18: =SUMIF('Trended Cash Flow'!$E$421:$EF$421,U$7,'Trended Cash Flow'!$E$59:$EF$59)+SUMIF('Trended Cash Flow'!$E$421:$EF$421,U$7,'Trended Cash Flow'!$E$60:$EF$60)+SUMIF('Trended Cash Flow'!$E$421:$EF$421,U$7,'Trended Cash Flow'!$E$61:$EF$61)+SUMIF('Trended Cash Flow'!$E$421:$EF$421,U$7,'Trended Cash Flow'!$E$62:$EF$62) -> -2796855.518 | V18: =SUMIF('Trended Cash Flow'!$E$421:$EF$421,V$7,'Trended Cash Flow'!$E$59:$EF$59)+SUMIF('Trended Cash Flow'!$E$421:$EF$421,V$7,'Trended Cash Flow'!$E$60:$EF$60)+SUMIF('Trended Cash Flow'!$E$421:$EF$421,V$7,'Trended Cash Flow'!$E$61:$EF$61)+SUMIF('Trended Cash Flow'!$E$421:$EF$421,V$7,'Trended Cash Flow'!$E$62:$EF$62) -> -2796855.518 | W18: =SUMIF('Trended Cash Flow'!$E$421:$EF$421,W$7,'Trended Cash Flow'!$E$59:$EF$59)+SUMIF('Trended Cash Flow'!$E$421:$EF$421,W$7,'Trended Cash Flow'!$E$60:$EF$60)+SUMIF('Trended Cash Flow'!$E$421:$EF$421,W$7,'Trended Cash Flow'!$E$61:$EF$61)+SUMIF('Trended Cash Flow'!$E$421:$EF$421,W$7,'Trended Cash Flow'!$E$62:$EF$62) -> -2591965.444 | X18: =SUMIF('Trended Cash Flow'!$E$421:$EF$421,X$7,'Trended Cash Flow'!$E$59:$EF$59)+SUMIF('Trended Cash Flow'!$E$421:$EF$421,X$7,'Trended Cash Flow'!$E$60:$EF$60)+SUMIF('Trended Cash Flow'!$E$421:$EF$421,X$7,'Trended Cash Flow'!$E$61:$EF$61)+SUMIF('Trended Cash Flow'!$E$421:$EF$421,X$7,'Trended Cash Flow'!$E$62:$EF$62) -> -2549546.22 | Y18: =SUMIF('Trended Cash Flow'!$E$421:$EF$421,Y$7,'Trended Cash Flow'!$E$59:$EF$59)+SUMIF('Trended Cash Flow'!$E$421:$EF$421,Y$7,'Trended Cash Flow'!$E$60:$EF$60)+SUMIF('Trended Cash Flow'!$E$421:$EF$421,Y$7,'Trended Cash Flow'!$E$61:$EF$61)+SUMIF('Trended Cash Flow'!$E$421:$EF$421,Y$7,'Trended Cash Flow'!$E$62:$EF$62) -> -2524718.894 | Z18: =SUMIF('Trended Cash Flow'!$E$421:$EF$421,Z$7,'Trended Cash Flow'!$E$59:$EF$59)+SUMIF('Trended Cash Flow'!$E$421:$EF$421,Z$7,'Trended Cash Flow'!$E$60:$EF$60)+SUMIF('Trended Cash Flow'!$E$421:$EF$421,Z$7,'Trended Cash Flow'!$E$61:$EF$61)+SUMIF('Trended Cash Flow'!$E$421:$EF$421,Z$7,'Trended Cash Flow'!$E$62:$EF$62) -> -2500322.521
B19: Average Rent / Unit (today) | F19: =Assumptions!$K$198 -> 3341.710526 | H19: Total Commitment | L19: =Assumptions!AI21 -> 55833681.93
B20: Average Rent / SF (today) | F20: =Assumptions!$L$198 -> 4.847680855 | H20: Term | L20: =Assumptions!AI23 -> 35 | N20: Cash Flow after Debt Service | Q20: =SUMIF('Trended Cash Flow'!$E$421:$EF$421,Q$7,'Trended Cash Flow'!$E$63:$EF$63) -> 0 | R20: =SUMIF('Trended Cash Flow'!$E$421:$EF$421,R$7,'Trended Cash Flow'!$E$63:$EF$63) -> -67888.86636 | S20: =SUMIF('Trended Cash Flow'!$E$421:$EF$421,S$7,'Trended Cash Flow'!$E$63:$EF$63) -> 1404296.269 | T20: =SUMIF('Trended Cash Flow'!$E$421:$EF$421,T$7,'Trended Cash Flow'!$E$63:$EF$63) -> 1209242.699 | U20: =SUMIF('Trended Cash Flow'!$E$421:$EF$421,U$7,'Trended Cash Flow'!$E$63:$EF$63) -> 1343138.823 | V20: =SUMIF('Trended Cash Flow'!$E$421:$EF$421,V$7,'Trended Cash Flow'!$E$63:$EF$63) -> 1481505.291 | W20: =SUMIF('Trended Cash Flow'!$E$421:$EF$421,W$7,'Trended Cash Flow'!$E$63:$EF$63) -> 1829381.276 | X20: =SUMIF('Trended Cash Flow'!$E$421:$EF$421,X$7,'Trended Cash Flow'!$E$63:$EF$63) -> 2019559.928 | Y20: =SUMIF('Trended Cash Flow'!$E$421:$EF$421,Y$7,'Trended Cash Flow'!$E$63:$EF$63) -> 2197079.401 | Z20: =SUMIF('Trended Cash Flow'!$E$421:$EF$421,Z$7,'Trended Cash Flow'!$E$63:$EF$63) -> 2379265.153
H21: Debt Structure | J21: =Assumptions!AG24 -> Index | K21: =Assumptions!AH24 -> Spread | L21: =Assumptions!AI24 -> IO
B22: Unit Mix Summary | C22: % of Project | D22: Avg. SF | E22: Rent / Unit | F22: Rent / SF | H22: Interest Rate | J22: =Assumptions!AG25 -> 0.025 | K22: =Assumptions!AH25 -> 0.025 | L22: =Assumptions!AI25 -> 0.05 | N22: Sources Summary
B23: =Assumptions!C201 -> Studio | C23: =Assumptions!F201 -> 0.2368421053 | D23: ='Deal Summary'!D23 -> 380.7777778 | E23: =+'Deal Summary'!E23 -> 2213.851852 | F23: ='Deal Summary'!F23 -> 5.814025873 | H23: Amortization Period | L23: =Assumptions!AI26 -> 35 | O23: =SUM(Q23:AB23) -> 60803841.06 | Q23: =SUMIF('Trended Cash Flow'!$E$421:$EF$421,Q$7,'Trended Cash Flow'!$E$57:$EF$57) -> 33887191.38 | R23: =SUMIF('Trended Cash Flow'!$E$421:$EF$421,R$7,'Trended Cash Flow'!$E$57:$EF$57) -> 26036256.22 | S23: =SUMIF('Trended Cash Flow'!$E$421:$EF$421,S$7,'Trended Cash Flow'!$E$57:$EF$57) -> 880393.4616 | T23: =SUMIF('Trended Cash Flow'!$E$421:$EF$421,T$7,'Trended Cash Flow'!$E$57:$EF$57) -> 0 | U23: =SUMIF('Trended Cash Flow'!$E$421:$EF$421,U$7,'Trended Cash Flow'!$E$57:$EF$57) -> 0 | V23: =SUMIF('Trended Cash Flow'!$E$421:$EF$421,V$7,'Trended Cash Flow'!$E$57:$EF$57) -> 0 | W23: =SUMIF('Trended Cash Flow'!$E$421:$EF$421,W$7,'Trended Cash Flow'!$E$57:$EF$57) -> 0 | X23: =SUMIF('Trended Cash Flow'!$E$421:$EF$421,X$7,'Trended Cash Flow'!$E$57:$EF$57) -> 0 | Y23: =SUMIF('Trended Cash Flow'!$E$421:$EF$421,Y$7,'Trended Cash Flow'!$E$57:$EF$57) -> 0 | Z23: =SUMIF('Trended Cash Flow'!$E$421:$EF$421,Z$7,'Trended Cash Flow'!$E$57:$EF$57) -> 0
B24: =Assumptions!C202 -> 1 bed | C24: =Assumptions!F202 -> 0.1754385965 | D24: =+'Deal Summary'!D24 -> 558.55 | E24: =+'Deal Summary'!E24 -> 2767.65 | F24: ='Deal Summary'!F24 -> 4.955062215 | N24: Equity | O24: =SUM(Q24:AB24) -> 26875297.89 | Q24: =SUMIF('Trended Cash Flow'!$E$421:$EF$421,Q$7,'Trended Cash Flow'!$E$66:$EF$66) -> 26875297.89 | R24: =SUMIF('Trended Cash Flow'!$E$421:$EF$421,R$7,'Trended Cash Flow'!$E$66:$EF$66) -> 0 | S24: =SUMIF('Trended Cash Flow'!$E$421:$EF$421,S$7,'Trended Cash Flow'!$E$66:$EF$66) -> 0 | T24: =SUMIF('Trended Cash Flow'!$E$421:$EF$421,T$7,'Trended Cash Flow'!$E$66:$EF$66) -> 0 | U24: =SUMIF('Trended Cash Flow'!$E$421:$EF$421,U$7,'Trended Cash Flow'!$E$66:$EF$66) -> 0 | V24: =SUMIF('Trended Cash Flow'!$E$421:$EF$421,V$7,'Trended Cash Flow'!$E$66:$EF$66) -> 0 | W24: =SUMIF('Trended Cash Flow'!$E$421:$EF$421,W$7,'Trended Cash Flow'!$E$66:$EF$66) -> 0 | X24: =SUMIF('Trended Cash Flow'!$E$421:$EF$421,X$7,'Trended Cash Flow'!$E$66:$EF$66) -> 0 | Y24: =SUMIF('Trended Cash Flow'!$E$421:$EF$421,Y$7,'Trended Cash Flow'!$E$66:$EF$66) -> 0 | Z24: =SUMIF('Trended Cash Flow'!$E$421:$EF$421,Z$7,'Trended Cash Flow'!$E$66:$EF$66) -> 0
B25: =Assumptions!C203 -> 1 Bed + den | C25: =Assumptions!F203 -> 0.149122807 | D25: =+'Deal Summary'!D25 -> 712.6470588 | E25: =+'Deal Summary'!E25 -> 3231.764706 | F25: ='Deal Summary'!F25 -> 4.534874123 | H25: Switches to AMO | K25: =Assumptions!AH28 -> 73 | L25: =Assumptions!AI28 -> 2029-07-15 | N25: Debt | O25: =SUM(Q25:AB25) -> 33928244.58 | Q25: =SUMIF('Trended Cash Flow'!$E$421:$EF$421,Q$7,'Trended Cash Flow'!$E$67:$EF$67) -> 7011893.491 | R25: =SUMIF('Trended Cash Flow'!$E$421:$EF$421,R$7,'Trended Cash Flow'!$E$67:$EF$67) -> 26036256.22 | S25: =SUMIF('Trended Cash Flow'!$E$421:$EF$421,S$7,'Trended Cash Flow'!$E$67:$EF$67) -> 880094.8709 | T25: =SUMIF('Trended Cash Flow'!$E$421:$EF$421,T$7,'Trended Cash Flow'!$E$67:$EF$67) -> 0 | U25: =SUMIF('Trended Cash Flow'!$E$421:$EF$421,U$7,'Trended Cash Flow'!$E$67:$EF$67) -> 0 | V25: =SUMIF('Trended Cash Flow'!$E$421:$EF$421,V$7,'Trended Cash Flow'!$E$67:$EF$67) -> 0 | W25: =SUMIF('Trended Cash Flow'!$E$421:$EF$421,W$7,'Trended Cash Flow'!$E$67:$EF$67) -> 0 | X25: =SUMIF('Trended Cash Flow'!$E$421:$EF$421,X$7,'Trended Cash Flow'!$E$67:$EF$67) -> 0 | Y25: =SUMIF('Trended Cash Flow'!$E$421:$EF$421,Y$7,'Trended Cash Flow'!$E$67:$EF$67) -> 0 | Z25: =SUMIF('Trended Cash Flow'!$E$421:$EF$421,Z$7,'Trended Cash Flow'!$E$67:$EF$67) -> 0
B26: =Assumptions!C204 -> 2 Bed | C26: =Assumptions!F204 -> 0.3684210526 | D26: ='Deal Summary'!D26 -> 867.2142857 | E26: ='Deal Summary'!E26 -> 3701.619048 | F26: ='Deal Summary'!F26 -> 4.268401834 | H26: Debt Structure | J26: =Assumptions!AG29 -> 0 | K26: =Assumptions!AH29 -> 0 | L26: =Assumptions!AI29 -> AMO | N26: Mezzanine | O26: =SUM(Q26:AB26) -> 0 | Q26: =SUMIF('Trended Cash Flow'!$E$421:$EF$421,Q$7,'Trended Cash Flow'!$E$68:$EF$68) -> 0 | R26: =SUMIF('Trended Cash Flow'!$E$421:$EF$421,R$7,'Trended Cash Flow'!$E$68:$EF$68) -> 0 | S26: =SUMIF('Trended Cash Flow'!$E$421:$EF$421,S$7,'Trended Cash Flow'!$E$68:$EF$68) -> 0 | T26: =SUMIF('Trended Cash Flow'!$E$421:$EF$421,T$7,'Trended Cash Flow'!$E$68:$EF$68) -> 0 | U26: =SUMIF('Trended Cash Flow'!$E$421:$EF$421,U$7,'Trended Cash Flow'!$E$68:$EF$68) -> 0 | V26: =SUMIF('Trended Cash Flow'!$E$421:$EF$421,V$7,'Trended Cash Flow'!$E$68:$EF$68) -> 0 | W26: =SUMIF('Trended Cash Flow'!$E$421:$EF$421,W$7,'Trended Cash Flow'!$E$68:$EF$68) -> 0 | X26: =SUMIF('Trended Cash Flow'!$E$421:$EF$421,X$7,'Trended Cash Flow'!$E$68:$EF$68) -> 0 | Y26: =SUMIF('Trended Cash Flow'!$E$421:$EF$421,Y$7,'Trended Cash Flow'!$E$68:$EF$68) -> 0 | Z26: =SUMIF('Trended Cash Flow'!$E$421:$EF$421,Z$7,'Trended Cash Flow'!$E$68:$EF$68) -> 0
B27: =Assumptions!C205 -> PH | C27: =Assumptions!F205 -> 0.0701754386 | D27: ='Deal Summary'!D27 -> 1074.375 | E27: =Assumptions!K205 -> 6927.5 | F27: ='Deal Summary'!F27 -> 6.447934846 | H27: Interest Rate | J27: =Assumptions!AG30 -> 0 | K27: =Assumptions!AH30 -> Fixed | L27: =Assumptions!AI30 -> 0.0325 | AI27: Todays Month Number | AJ27: =ROUNDUP(DAYS360(AJ62,AJ28)/30+1,0) -> -112
H28: Amortization Period | J28: =Assumptions!AG31 -> 0 | K28: =Assumptions!AH31 -> 0 | L28: =Assumptions!AI31 -> 35 | N28: Sale Summary | AI28: Todays Date | AJ28: 2014-02-01
B29: Project Cost | J29: =Assumptions!AG32 -> 0 | K29: =Assumptions!AH32 -> 0 | L29: =Assumptions!AI32 -> 0 | N29: Capped Forward NOI | Q29: =+SUMIF('Trended Cash Flow'!$E$421:$EF$421,Q$7,'Trended Cash Flow'!$E$73:$EF$73) -> 0 | R29: =+SUMIF('Trended Cash Flow'!$E$421:$EF$421,R$7,'Trended Cash Flow'!$E$73:$EF$73) -> 0 | S29: =+SUMIF('Trended Cash Flow'!$E$421:$EF$421,S$7,'Trended Cash Flow'!$E$73:$EF$73) -> 0 | T29: =+SUMIF('Trended Cash Flow'!$E$421:$EF$421,T$7,'Trended Cash Flow'!$E$73:$EF$73) -> 0 | U29: =+SUMIF('Trended Cash Flow'!$E$421:$EF$421,U$7,'Trended Cash Flow'!$E$73:$EF$73) -> 0 | V29: =+SUMIF('Trended Cash Flow'!$E$421:$EF$421,V$7,'Trended Cash Flow'!$E$73:$EF$73) -> 0 | W29: =+SUMIF('Trended Cash Flow'!$E$421:$EF$421,W$7,'Trended Cash Flow'!$E$73:$EF$73) -> 0 | X29: =+SUMIF('Trended Cash Flow'!$E$421:$EF$421,X$7,'Trended Cash Flow'!$E$73:$EF$73) -> 0 | Y29: =+SUMIF('Trended Cash Flow'!$E$421:$EF$421,Y$7,'Trended Cash Flow'!$E$73:$EF$73) -> 0 | Z29: =+SUMIF('Trended Cash Flow'!$E$421:$EF$421,Z$7,'Trended Cash Flow'!$E$73:$EF$73) -> 4689003.43 | AI29: Development Completion | AJ29: Projected Costs | AK29: Spent To-Date | AM29: Outstanding Costs
B30: Detail | E30: Total | F30: Per Unit | H30: Fixed Principal | L30: =Assumptions!AI33 -> On | N30: RE Tax Adjustment at Sale | Q30: =+SUMIF('Trended Cash Flow'!$E$421:$EF$421,Q$7,'Trended Cash Flow'!$E$74:$EF$74) -> 0 | R30: =+SUMIF('Trended Cash Flow'!$E$421:$EF$421,R$7,'Trended Cash Flow'!$E$74:$EF$74) -> 0 | S30: =+SUMIF('Trended Cash Flow'!$E$421:$EF$421,S$7,'Trended Cash Flow'!$E$74:$EF$74) -> 0 | T30: =+SUMIF('Trended Cash Flow'!$E$421:$EF$421,T$7,'Trended Cash Flow'!$E$74:$EF$74) -> 0 | U30: =+SUMIF('Trended Cash Flow'!$E$421:$EF$421,U$7,'Trended Cash Flow'!$E$74:$EF$74) -> 0 | V30: =+SUMIF('Trended Cash Flow'!$E$421:$EF$421,V$7,'Trended Cash Flow'!$E$74:$EF$74) -> 0 | W30: =+SUMIF('Trended Cash Flow'!$E$421:$EF$421,W$7,'Trended Cash Flow'!$E$74:$EF$74) -> 0 | X30: =+SUMIF('Trended Cash Flow'!$E$421:$EF$421,X$7,'Trended Cash Flow'!$E$74:$EF$74) -> 0 | Y30: =+SUMIF('Trended Cash Flow'!$E$421:$EF$421,Y$7,'Trended Cash Flow'!$E$74:$EF$74) -> 0 | Z30: =+SUMIF('Trended Cash Flow'!$E$421:$EF$421,Z$7,'Trended Cash Flow'!$E$74:$EF$74) -> 764421.4552 | AI30: =AI64 -> Land | AJ30: =SUM($AJ64:$CS64) -> 5075000 | AK30: =SUMIF($AJ$61:$CS$61,"<="&$AJ$27,$AJ64:$CS64) -> 0 | AL30: =AK30/AJ30 -> 0 | AM30: =AJ30-AK30 -> 5075000 | AN30: =AM30/AJ30 -> 1
B31: =+Assumptions!H18 -> Total Hard Costs | E31: =+Assumptions!J18 -> 40014195 | F31: =+E31/$F$16 -> 351001.7105 | H31: Amortization Rate | L31: =Assumptions!AI34 -> 0.03 | N31: Sale Price | Q31: =SUMIF('Trended Cash Flow'!$E$421:$EF$421,Q$7,'Trended Cash Flow'!$E$75:$EF$75) -> 0 | R31: =SUMIF('Trended Cash Flow'!$E$421:$EF$421,R$7,'Trended Cash Flow'!$E$75:$EF$75) -> 0 | S31: =SUMIF('Trended Cash Flow'!$E$421:$EF$421,S$7,'Trended Cash Flow'!$E$75:$EF$75) -> 0 | T31: =SUMIF('Trended Cash Flow'!$E$421:$EF$421,T$7,'Trended Cash Flow'!$E$75:$EF$75) -> 0 | U31: =SUMIF('Trended Cash Flow'!$E$421:$EF$421,U$7,'Trended Cash Flow'!$E$75:$EF$75) -> 0 | V31: =SUMIF('Trended Cash Flow'!$E$421:$EF$421,V$7,'Trended Cash Flow'!$E$75:$EF$75) -> 0 | W31: =SUMIF('Trended Cash Flow'!$E$421:$EF$421,W$7,'Trended Cash Flow'!$E$75:$EF$75) -> 0 | X31: =SUMIF('Trended Cash Flow'!$E$421:$EF$421,X$7,'Trended Cash Flow'!$E$75:$EF$75) -> 0 | Y31: =SUMIF('Trended Cash Flow'!$E$421:$EF$421,Y$7,'Trended Cash Flow'!$E$75:$EF$75) -> 0 | Z31: =SUMIF('Trended Cash Flow'!$E$421:$EF$421,Z$7,'Trended Cash Flow'!$E$75:$EF$75) -> 95506565.41 | AI31: =AI65 -> Legal, Closing Costs & Financing | AJ31: =SUM($AJ65:$CS65) -> 1123571 | AK31: =SUMIF($AJ$61:$CS$61,"<="&$AJ$27,$AJ65:$CS65) -> 0 | AL31: =AK31/AJ31 -> 0 | AM31: =AJ31-AK31 -> 1123571 | AN31: 1
B32: =+Assumptions!H19 -> General Contractor (GC) Fee | E32: =+Assumptions!J19 -> 1600568 | F32: =+E32/$F$16 -> 14040.07018 | H32: Principal | L32: =Assumptions!AI35 -> 63659.80907 | N32: Closing Costs | Q32: =+SUMIF('Trended Cash Flow'!$E$421:$EF$421,Q$7,'Trended Cash Flow'!$E$78:$EF$78) -> 0 | R32: =+SUMIF('Trended Cash Flow'!$E$421:$EF$421,R$7,'Trended Cash Flow'!$E$78:$EF$78) -> 0 | S32: =+SUMIF('Trended Cash Flow'!$E$421:$EF$421,S$7,'Trended Cash Flow'!$E$78:$EF$78) -> 0 | T32: =+SUMIF('Trended Cash Flow'!$E$421:$EF$421,T$7,'Trended Cash Flow'!$E$78:$EF$78) -> 0 | U32: =+SUMIF('Trended Cash Flow'!$E$421:$EF$421,U$7,'Trended Cash Flow'!$E$78:$EF$78) -> 0 | V32: =+SUMIF('Trended Cash Flow'!$E$421:$EF$421,V$7,'Trended Cash Flow'!$E$78:$EF$78) -> 0 | W32: =+SUMIF('Trended Cash Flow'!$E$421:$EF$421,W$7,'Trended Cash Flow'!$E$78:$EF$78) -> 0 | X32: =+SUMIF('Trended Cash Flow'!$E$421:$EF$421,X$7,'Trended Cash Flow'!$E$78:$EF$78) -> 0 | Y32: =+SUMIF('Trended Cash Flow'!$E$421:$EF$421,Y$7,'Trended Cash Flow'!$E$78:$EF$78) -> 0 | Z32: =+SUMIF('Trended Cash Flow'!$E$421:$EF$421,Z$7,'Trended Cash Flow'!$E$78:$EF$78) -> -772137.2685 | AI32: =AI66 -> Construction Hard Costs | AJ32: =SUM($AJ66:$CS66) -> 41614763 | AK32: =SUMIF($AJ$61:$CS$61,"<="&$AJ$27,$AJ66:$CS66) -> 0 | AL32: 0 | AM32: 41614763 | AN32: 1
B33: =+Assumptions!H20 -> Land | E33: =+Assumptions!J20 -> 5075000 | F33: 44517.54386 | N33: Debt Repayment | Q33: =SUMIF('Trended Cash Flow'!$E$421:$EF$421,Q$7,'Trended Cash Flow'!$E$80:$EF$80) -> 0 | R33: =SUMIF('Trended Cash Flow'!$E$421:$EF$421,R$7,'Trended Cash Flow'!$E$80:$EF$80) -> 0 | S33: =SUMIF('Trended Cash Flow'!$E$421:$EF$421,S$7,'Trended Cash Flow'!$E$80:$EF$80) -> 0 | T33: =SUMIF('Trended Cash Flow'!$E$421:$EF$421,T$7,'Trended Cash Flow'!$E$80:$EF$80) -> 0 | U33: =SUMIF('Trended Cash Flow'!$E$421:$EF$421,U$7,'Trended Cash Flow'!$E$80:$EF$80) -> 0 | V33: =SUMIF('Trended Cash Flow'!$E$421:$EF$421,V$7,'Trended Cash Flow'!$E$80:$EF$80) -> 0 | W33: =SUMIF('Trended Cash Flow'!$E$421:$EF$421,W$7,'Trended Cash Flow'!$E$80:$EF$80) -> 0 | X33: =SUMIF('Trended Cash Flow'!$E$421:$EF$421,X$7,'Trended Cash Flow'!$E$80:$EF$80) -> 0 | Y33: =SUMIF('Trended Cash Flow'!$E$421:$EF$421,Y$7,'Trended Cash Flow'!$E$80:$EF$80) -> 0 | Z33: =SUMIF('Trended Cash Flow'!$E$421:$EF$421,Z$7,'Trended Cash Flow'!$E$80:$EF$80) -> -52841670.91 | AI33: =AI68 -> Architect, Engineering and Surveying | AJ33: =SUM($AJ68:$CS68) -> 1530800 | AK33: =SUMIF($AJ$61:$CS$61,"<="&$AJ$27,$AJ68:$CS68) -> 0 | AL33: 0 | AM33: 1530800 | AN33: 1
B34: =+Assumptions!H21 -> Taxes | E34: =+Assumptions!J21 -> 270369.5498 | F34: 2371.662717 | H34: Promote Structure | N34: Net Sale Proceeds | Q34: =+Q31+Q32+Q33 -> 0 | R34: =+R31+R32+R33 -> 0 | S34: 0 | T34: 0 | U34: 0 | V34: 0 | W34: 0 | X34: 0 | Y34: 0 | Z34: 41892757.23 | AI34: Taxes | AJ34: 270369.5498 | AK34: 0 | AL34: 0 | AM34: 270369.5498 | AN34: 1
B35: =+Assumptions!H22 -> Legal & Closing Costs | E35: =+Assumptions!J22 -> 50000 | F35: 438.5964912 | H35: Total Profit | L35: =+'Trended Cash Flow'!$B$84+E58+E59 -> 85265787.29 | AI35: Soft Cost Contingency | AJ35: 1414083.035 | AK35: 0 | AL35: 0 | AM35: 1414083.035 | AN35: 1
B36: =+Assumptions!H23 -> Insurance | E36: =+Assumptions!J23 -> 395000 | F36: 3464.912281 | H36: Preference (pari passu) | L36: =+SUM('Trended Cash Flow'!$E$100:$EF$100) -> 8979657.446 | N36: Total Equity | Q36: =-SUMIF('Trended Cash Flow'!$E$421:$EF$421,Q$7,'Trended Cash Flow'!$E$66:$EF$66) -> -26875297.89 | R36: =-SUMIF('Trended Cash Flow'!$E$421:$EF$421,R$7,'Trended Cash Flow'!$E$66:$EF$66) -> 0 | S36: =-SUMIF('Trended Cash Flow'!$E$421:$EF$421,S$7,'Trended Cash Flow'!$E$66:$EF$66) -> 0 | T36: =-SUMIF('Trended Cash Flow'!$E$421:$EF$421,T$7,'Trended Cash Flow'!$E$66:$EF$66) -> 0 | U36: =-SUMIF('Trended Cash Flow'!$E$421:$EF$421,U$7,'Trended Cash Flow'!$E$66:$EF$66) -> 0 | V36: =-SUMIF('Trended Cash Flow'!$E$421:$EF$421,V$7,'Trended Cash Flow'!$E$66:$EF$66) -> 0 | W36: =-SUMIF('Trended Cash Flow'!$E$421:$EF$421,W$7,'Trended Cash Flow'!$E$66:$EF$66) -> 0 | X36: =-SUMIF('Trended Cash Flow'!$E$421:$EF$421,X$7,'Trended Cash Flow'!$E$66:$EF$66) -> 0 | Y36: =-SUMIF('Trended Cash Flow'!$E$421:$EF$421,Y$7,'Trended Cash Flow'!$E$66:$EF$66) -> 0 | Z36: =-SUMIF('Trended Cash Flow'!$E$421:$EF$421,Z$7,'Trended Cash Flow'!$E$66:$EF$66) -> 0 | AI36: Overhead | AJ36: 2269165 | AK36: 0 | AL36: 0 | AM36: 2269165 | AN36: 1
B37: =+Assumptions!H24 -> Financing | E37: =+Assumptions!J24 -> 678571 | F37: 5952.377193 | H37: Equity Partner | K37: =+$D$58 -> 0.9 | L37: =+K37*$L$36 -> 8081691.702 | N37: Refinance Proceeds | Q37: =SUMIF('Trended Cash Flow'!$E$421:$EF$421,Q$7,'Trended Cash Flow'!$E$72:$EF$72) -> 0 | R37: =SUMIF('Trended Cash Flow'!$E$421:$EF$421,R$7,'Trended Cash Flow'!$E$72:$EF$72) -> 0 | S37: =SUMIF('Trended Cash Flow'!$E$421:$EF$421,S$7,'Trended Cash Flow'!$E$72:$EF$72) -> 21962897.58 | T37: =SUMIF('Trended Cash Flow'!$E$421:$EF$421,T$7,'Trended Cash Flow'!$E$72:$EF$72) -> 0 | U37: =SUMIF('Trended Cash Flow'!$E$421:$EF$421,U$7,'Trended Cash Flow'!$E$72:$EF$72) -> 0 | V37: =SUMIF('Trended Cash Flow'!$E$421:$EF$421,V$7,'Trended Cash Flow'!$E$72:$EF$72) -> 0 | W37: =SUMIF('Trended Cash Flow'!$E$421:$EF$421,W$7,'Trended Cash Flow'!$E$72:$EF$72) -> 0 | X37: =SUMIF('Trended Cash Flow'!$E$421:$EF$421,X$7,'Trended Cash Flow'!$E$72:$EF$72) -> 0 | Y37: =SUMIF('Trended Cash Flow'!$E$421:$EF$421,Y$7,'Trended Cash Flow'!$E$72:$EF$72) -> 0 | Z37: =SUMIF('Trended Cash Flow'!$E$421:$EF$421,Z$7,'Trended Cash Flow'!$E$72:$EF$72) -> 0 | AI37: Marketing | AJ37: 750000 | AK37: 0 | AL37: 0 | AM37: 750000 | AN37: 1
B38: =+Assumptions!H25 -> Municipal Fees | E38: =+Assumptions!J25 -> 2272219.801 | F38: 19931.75264 | H38: CAST | K38: =+$D$59 -> 0.1 | L38: =+K38*$L$36 -> 897965.7446 | N38: Sale Proceeds | Q38: =SUMIF('Trended Cash Flow'!$E$421:$EF$421,Q$7,'Trended Cash Flow'!$E$75:$EF$75)+SUMIF('Trended Cash Flow'!$E$421:$EF$421,Q$7,'Trended Cash Flow'!$E$78:$EF$78) -> 0 | R38: =SUMIF('Trended Cash Flow'!$E$421:$EF$421,R$7,'Trended Cash Flow'!$E$75:$EF$75)+SUMIF('Trended Cash Flow'!$E$421:$EF$421,R$7,'Trended Cash Flow'!$E$78:$EF$78) -> 0 | S38: =SUMIF('Trended Cash Flow'!$E$421:$EF$421,S$7,'Trended Cash Flow'!$E$75:$EF$75)+SUMIF('Trended Cash Flow'!$E$421:$EF$421,S$7,'Trended Cash Flow'!$E$78:$EF$78) -> 0 | T38: =SUMIF('Trended Cash Flow'!$E$421:$EF$421,T$7,'Trended Cash Flow'!$E$75:$EF$75)+SUMIF('Trended Cash Flow'!$E$421:$EF$421,T$7,'Trended Cash Flow'!$E$78:$EF$78) -> 0 | U38: =SUMIF('Trended Cash Flow'!$E$421:$EF$421,U$7,'Trended Cash Flow'!$E$75:$EF$75)+SUMIF('Trended Cash Flow'!$E$421:$EF$421,U$7,'Trended Cash Flow'!$E$78:$EF$78) -> 0 | V38: =SUMIF('Trended Cash Flow'!$E$421:$EF$421,V$7,'Trended Cash Flow'!$E$75:$EF$75)+SUMIF('Trended Cash Flow'!$E$421:$EF$421,V$7,'Trended Cash Flow'!$E$78:$EF$78) -> 0 | W38: =SUMIF('Trended Cash Flow'!$E$421:$EF$421,W$7,'Trended Cash Flow'!$E$75:$EF$75)+SUMIF('Trended Cash Flow'!$E$421:$EF$421,W$7,'Trended Cash Flow'!$E$78:$EF$78) -> 0 | X38: =SUMIF('Trended Cash Flow'!$E$421:$EF$421,X$7,'Trended Cash Flow'!$E$75:$EF$75)+SUMIF('Trended Cash Flow'!$E$421:$EF$421,X$7,'Trended Cash Flow'!$E$78:$EF$78) -> 0 | Y38: =SUMIF('Trended Cash Flow'!$E$421:$EF$421,Y$7,'Trended Cash Flow'!$E$75:$EF$75)+SUMIF('Trended Cash Flow'!$E$421:$EF$421,Y$7,'Trended Cash Flow'!$E$78:$EF$78) -> 0 | Z38: =SUMIF('Trended Cash Flow'!$E$421:$EF$421,Z$7,'Trended Cash Flow'!$E$75:$EF$75)+SUMIF('Trended Cash Flow'!$E$421:$EF$421,Z$7,'Trended Cash Flow'!$E$78:$EF$78) -> 94734428.14 | AI38: Construction Interest | AJ38: 4782379.029 | AK38: 0 | AL38: 0 | AM38: 4782379.029 | AN38: 1
B39: =+Assumptions!H26 -> Architect | E39: =+Assumptions!J26 -> 250000 | F39: 2192.982456 | N39: Debt Repayment | Q39: =SUMIF('Trended Cash Flow'!$E$421:$EF$421,Q$7,'Trended Cash Flow'!$E$80:$EF$80) -> 0 | R39: =SUMIF('Trended Cash Flow'!$E$421:$EF$421,R$7,'Trended Cash Flow'!$E$80:$EF$80) -> 0 | S39: =SUMIF('Trended Cash Flow'!$E$421:$EF$421,S$7,'Trended Cash Flow'!$E$80:$EF$80) -> 0 | T39: =SUMIF('Trended Cash Flow'!$E$421:$EF$421,T$7,'Trended Cash Flow'!$E$80:$EF$80) -> 0 | U39: =SUMIF('Trended Cash Flow'!$E$421:$EF$421,U$7,'Trended Cash Flow'!$E$80:$EF$80) -> 0 | V39: =SUMIF('Trended Cash Flow'!$E$421:$EF$421,V$7,'Trended Cash Flow'!$E$80:$EF$80) -> 0 | W39: =SUMIF('Trended Cash Flow'!$E$421:$EF$421,W$7,'Trended Cash Flow'!$E$80:$EF$80) -> 0 | X39: =SUMIF('Trended Cash Flow'!$E$421:$EF$421,X$7,'Trended Cash Flow'!$E$80:$EF$80) -> 0 | Y39: =SUMIF('Trended Cash Flow'!$E$421:$EF$421,Y$7,'Trended Cash Flow'!$E$80:$EF$80) -> 0 | Z39: =SUMIF('Trended Cash Flow'!$E$421:$EF$421,Z$7,'Trended Cash Flow'!$E$80:$EF$80) -> -52841670.91 | AI39: Preleasing and Leaseup Operating Deficit | AJ39: 40000 | AK39: 0 | AL39: 0 | AM39: 40000 | AN39: 1
B40: =+Assumptions!H27 -> Engineering & Surveying | E40: =+Assumptions!J27 -> 1280800 | F40: 11235.08772 | H40: Capital (pari passu) | L40: =+-SUM('Trended Cash Flow'!E97:EF97) -> 26875297.89 | N40: Total Distributions | Q40: =SUMIF('Trended Cash Flow'!$E$421:$EF$421,Q$7,'Trended Cash Flow'!$E$63:$EF$63) -> 0 | R40: =SUMIF('Trended Cash Flow'!$E$421:$EF$421,R$7,'Trended Cash Flow'!$E$63:$EF$63) -> -67888.86636 | S40: =SUMIF('Trended Cash Flow'!$E$421:$EF$421,S$7,'Trended Cash Flow'!$E$63:$EF$63) -> 1404296.269 | T40: =SUMIF('Trended Cash Flow'!$E$421:$EF$421,T$7,'Trended Cash Flow'!$E$63:$EF$63) -> 1209242.699 | U40: =SUMIF('Trended Cash Flow'!$E$421:$EF$421,U$7,'Trended Cash Flow'!$E$63:$EF$63) -> 1343138.823 | V40: =SUMIF('Trended Cash Flow'!$E$421:$EF$421,V$7,'Trended Cash Flow'!$E$63:$EF$63) -> 1481505.291 | W40: =SUMIF('Trended Cash Flow'!$E$421:$EF$421,W$7,'Trended Cash Flow'!$E$63:$EF$63) -> 1829381.276 | X40: =SUMIF('Trended Cash Flow'!$E$421:$EF$421,X$7,'Trended Cash Flow'!$E$63:$EF$63) -> 2019559.928 | Y40: =SUMIF('Trended Cash Flow'!$E$421:$EF$421,Y$7,'Trended Cash Flow'!$E$63:$EF$63) -> 2197079.401 | Z40: =SUMIF('Trended Cash Flow'!$E$421:$EF$421,Z$7,'Trended Cash Flow'!$E$63:$EF$63) -> 2379265.153 | AI40: =AI76 -> Retail TIs | AJ40: =SUM($AJ76:$CS76) -> 440550 | AK40: =SUMIF($AJ$61:$CS$61,"<="&$AJ$27,$AJ76:$CS76) -> 0 | AL40: 0 | AM40: 440550 | AN40: 1
B41: =+Assumptions!H28 -> Owner Purchased Items | E41: =+Assumptions!J28 -> 750000 | F41: 6578.947368 | H41: Equity Partner | K41: =+$D$58 -> 0.9 | L41: =+K41*$L$40 -> 24187768.1 | N41: Total Project Distributions | O41: =SUM(Q41:AB41) -> 58390489.4 | Q41: =SUMIF('Trended Cash Flow'!$E$421:$EF$421,Q$7,'Trended Cash Flow'!$E$84:$EF$84) -> -26875297.89 | R41: =SUMIF('Trended Cash Flow'!$E$421:$EF$421,R$7,'Trended Cash Flow'!$E$84:$EF$84) -> 0 | S41: =SUMIF('Trended Cash Flow'!$E$421:$EF$421,S$7,'Trended Cash Flow'!$E$84:$EF$84) -> 23468787.09 | T41: =SUMIF('Trended Cash Flow'!$E$421:$EF$421,T$7,'Trended Cash Flow'!$E$84:$EF$84) -> 1209242.699 | U41: =SUMIF('Trended Cash Flow'!$E$421:$EF$421,U$7,'Trended Cash Flow'!$E$84:$EF$84) -> 1343138.823 | V41: =SUMIF('Trended Cash Flow'!$E$421:$EF$421,V$7,'Trended Cash Flow'!$E$84:$EF$84) -> 1481505.291 | W41: =SUMIF('Trended Cash Flow'!$E$421:$EF$421,W$7,'Trended Cash Flow'!$E$84:$EF$84) -> 1829381.276 | X41: =SUMIF('Trended Cash Flow'!$E$421:$EF$421,X$7,'Trended Cash Flow'!$E$84:$EF$84) -> 2019559.928 | Y41: =SUMIF('Trended Cash Flow'!$E$421:$EF$421,Y$7,'Trended Cash Flow'!$E$84:$EF$84) -> 2197079.401 | Z41: =SUMIF('Trended Cash Flow'!$E$421:$EF$421,Z$7,'Trended Cash Flow'!$E$84:$EF$84) -> 51717092.78 | AI41: Total Costs | AJ41: =SUM($AJ77:$CS77) -> 62947900.42 | AK41: =SUMIF($AJ$61:$CS$61,"<="&$AJ$27,$AJ77:$CS77) -> 0 | AL41: 0 | AM41: 62947900.42 | AN41: 1
B42: =+Assumptions!H29 -> Construction Interest | E42: =+Assumptions!J29 -> 2638320 | F42: 23143.15789 | H42: CAST | K42: =+$D$59 -> 0.1 | L42: =+K42*$L$40 -> 2687529.789
B43: =+Assumptions!H35 -> Retail TIs | E43: =+Assumptions!J35 -> 440550 | F43: 3864.473684 | N43: Deal Returns
B44: =+Assumptions!H30 -> Preleasing & Marketing | E44: =+Assumptions!J30 -> 40000 | F44: 350.877193 | H44: Profit | L44: =+'Trended Cash Flow'!B344+'Trended Cash Flow'!B329 -> 49410831.96 | N44: Cumulative Return on Equity | Q44: =IF(Q7>$D$13,"",(SUM($Q$40:Q40)/(-SUM($Q$36:Q$36)-SUM($Q$37:Q$37)))) -> 0 | R44: =IF(R7>$D$13,"",(SUM($Q$40:R40)/(-SUM($Q$36:R$36)-SUM($Q$37:R$37)))) -> -0.002526069353 | S44: =IF(S7>$D$13,"",(SUM($Q$40:S40)/(-SUM($Q$36:S$36)-SUM($Q$37:S$37)))) -> 0.2720477401 | T44: =IF(T7>$D$13,"",(SUM($Q$40:T40)/(-SUM($Q$36:T$36)-SUM($Q$37:T$37)))) -> 0.5182090101 | U44: =IF(U7>$D$13,"",(SUM($Q$40:U40)/(-SUM($Q$36:U$36)-SUM($Q$37:U$37)))) -> 0.7916270418 | V44: =IF(V7>$D$13,"",(SUM($Q$40:V40)/(-SUM($Q$36:V$36)-SUM($Q$37:V$37)))) -> 1.093211847 | W44: =IF(W7>$D$13,"",(SUM($Q$40:W40)/(-SUM($Q$36:W$36)-SUM($Q$37:W$37)))) -> 1.46561254 | X44: =IF(X7>$D$13,"",(SUM($Q$40:X40)/(-SUM($Q$36:X$36)-SUM($Q$37:X$37)))) -> 1.876727229 | Y44: =IF(Y7>$D$13,"",(SUM($Q$40:Y40)/(-SUM($Q$36:Y$36)-SUM($Q$37:Y$37)))) -> 2.323978932 | Z44: =IF(Z7>$D$13,"",(SUM($Q$40:Z40)/(-SUM($Q$36:Z$36)-SUM($Q$37:Z$37)))) -> 2.808317545
B45: =+Assumptions!H31 -> Leaseup Operating Deficit | E45: =+Assumptions!J31 -> 0 | F45: 0 | H45: Equity Partner | K45: =+L45/L44 -> 0.6082834532 | L45: =+'Trended Cash Flow'!B344 -> 30055791.49 | N45: Annual Return on Equity | Q45: =IF(Q$40=0,"",(Q$40)/(-SUM($Q$36:Q$36)-SUM($Q$37:Q$37))) ->  | R45: =IF(R$40=0,"",(R$40)/(-SUM($Q$36:R$36)-SUM($Q$37:R$37))) -> -0.002526069353 | S45: =IF(S$40=0,"",(S$40)/(-SUM($Q$36:S$36)-SUM($Q$37:S$37))) -> 0.2858676371 | T45: =IF(T$40=0,"",(T$40)/(-SUM($Q$36:T$36)-SUM($Q$37:T$37))) -> 0.24616127 | U45: =IF(U$40=0,"",(U$40)/(-SUM($Q$36:U$36)-SUM($Q$37:U$37))) -> 0.2734180317 | V45: =IF(V$40=0,"",(V$40)/(-SUM($Q$36:V$36)-SUM($Q$37:V$37))) -> 0.3015848053 | W45: =IF(W$40=0,"",(W$40)/(-SUM($Q$36:W$36)-SUM($Q$37:W$37))) -> 0.3724006925 | X45: =IF(X$40=0,"",(X$40)/(-SUM($Q$36:X$36)-SUM($Q$37:X$37))) -> 0.4111146896 | Y45: =IF(Y$40=0,"",(Y$40)/(-SUM($Q$36:Y$36)-SUM($Q$37:Y$37))) -> 0.4472517026 | Z45: =IF(Z$40=0,"",(Z$40)/(-SUM($Q$36:Z$36)-SUM($Q$37:Z$37))) -> 0.4843386133
B46: =+Assumptions!H32 -> Developer Fee | E46: =+Assumptions!J32 -> 2269165 | F46: 19904.95614 | H46: CAST | K46: =+L46/L44 -> 0.3917165468 | L46: =+'Trended Cash Flow'!B329 -> 19355040.47 | N46: Yield on Cost | O46: Stabilized YOC | P46: =SUMIFS('Trended Cash Flow'!$E$35:$EF$35,'Trended Cash Flow'!$E$11:$EF$11,">="&$E$11,'Trended Cash Flow'!$E$11:$EF$11,"<"&$E$11+12)/$O$23 -> 0.07540686521 | R46: =+IF(R41>0,R11/$E$52,"") ->  | S46: 0.06730399645 | T46: 0.06588561059 | U46: 0.06808771036 | V46: 0.07036333085 | W46: 0.07271492425 | X46: 0.07514502445 | Y46: 0.07765624981 | Z46: 0.08025130588
B47: =+Assumptions!H33 -> Development Contingency | E47: =+Assumptions!J33 -> 1414083.035 | F47: 12404.23715 | N47: Capital Returned | Q47: =IF(Q40=0,"",(SUM($Q$41:Q41)-SUM($Q$36:Q36))/-SUM($Q$36:Q36)) ->  | R47: =IF(R40=0,"",(SUM($Q$41:R41)-SUM($Q$36:R36))/-SUM($Q$36:R36)) -> 0 | S47: =IF(S40=0,"",(SUM($Q$41:S41)-SUM($Q$36:S36))/-SUM($Q$36:S36)) -> 0.8732475148 | T47: =IF(T40=0,"",(SUM($Q$41:T41)-SUM($Q$36:T36))/-SUM($Q$36:T36)) -> 0.9182420932 | U47: =IF(U40=0,"",(SUM($Q$41:U41)-SUM($Q$36:U36))/-SUM($Q$36:U36)) -> 0.9682187978 | V47: =IF(V40=0,"",(SUM($Q$41:V41)-SUM($Q$36:V36))/-SUM($Q$36:V36)) -> 1.023343965 | W47: =IF(W40=0,"",(SUM($Q$41:W41)-SUM($Q$36:W36))/-SUM($Q$36:W36)) -> 1.091413212 | X47: =IF(X40=0,"",(SUM($Q$41:X41)-SUM($Q$36:X36))/-SUM($Q$36:X36)) -> 1.166558794 | Y47: =IF(Y40=0,"",(SUM($Q$41:Y41)-SUM($Q$36:Y36))/-SUM($Q$36:Y36)) -> 1.24830968 | Z47: =IF(Z40=0,"",(SUM($Q$41:Z41)-SUM($Q$36:Z36))/-SUM($Q$36:Z36)) -> 3.172645291
B48: =+Assumptions!H36 -> Retail LCs | E48: =+Assumptions!J36 -> 0 | F48: =+E48/$F$16 -> 0 | H48: Sale Assumptions | N48: IRR & Multiple | O48: IRR | P48: ='Trended Cash Flow'!$B$90 -> 0.2038463056 | Y48: Multiple | Z48: =(SUM($Q$41:AB41)-SUM($Q$36:AB36))/-SUM($Q$36:AB36) -> 3.172645291
B49: =+Assumptions!H37 -> Broker Commission / Other Costs | E49: =+Assumptions!J37 -> 715000 | F49: =+E49/$F$16 -> 6271.929825 | H49: Disposition Date | K49: =+Assumptions!F38 -> 120 | L49: =+Assumptions!E38 -> 2033-06-15
B50: GP Land Lift | E50: =+Assumptions!J38 -> 650000 | F50: =+E50/$F$16 -> 5701.754386 | N50: Equity Partner Returns
B51: =+Assumptions!H34 -> Non-Accrual Interest Reserve | E51: =+Assumptions!J34 -> 0 | F51: 0 | H51: Estimate of Today's Mkt Cap-Rate | L51: =+Assumptions!F312 -> 0.0425 | N51: Total Equity | Q51: =-SUMIF('Trended Cash Flow'!$E$421:$EF$421,Q$7,'Trended Cash Flow'!$E$362:$EF$362) -> -24187768.1 | R51: =-SUMIF('Trended Cash Flow'!$E$421:$EF$421,R$7,'Trended Cash Flow'!$E$362:$EF$362) -> 0 | S51: =-SUMIF('Trended Cash Flow'!$E$421:$EF$421,S$7,'Trended Cash Flow'!$E$362:$EF$362) -> 0 | T51: =-SUMIF('Trended Cash Flow'!$E$421:$EF$421,T$7,'Trended Cash Flow'!$E$362:$EF$362) -> 0 | U51: =-SUMIF('Trended Cash Flow'!$E$421:$EF$421,U$7,'Trended Cash Flow'!$E$362:$EF$362) -> 0 | V51: =-SUMIF('Trended Cash Flow'!$E$421:$EF$421,V$7,'Trended Cash Flow'!$E$362:$EF$362) -> 0 | W51: =-SUMIF('Trended Cash Flow'!$E$421:$EF$421,W$7,'Trended Cash Flow'!$E$362:$EF$362) -> 0 | X51: =-SUMIF('Trended Cash Flow'!$E$421:$EF$421,X$7,'Trended Cash Flow'!$E$362:$EF$362) -> 0 | Y51: =-SUMIF('Trended Cash Flow'!$E$421:$EF$421,Y$7,'Trended Cash Flow'!$E$362:$EF$362) -> 0 | Z51: =-SUMIF('Trended Cash Flow'!$E$421:$EF$421,Z$7,'Trended Cash Flow'!$E$362:$EF$362) -> 0
B52: =+Assumptions!H39 -> Total Project Cost: | E52: =+Assumptions!J39 -> 60803841.39 | F52: 533367.0297 | H52: Buffer to exit cap-rate | L52: =Assumptions!F313 -> 0.0025 | N52: Total Investor Distributions | O52: =SUM(Q52:AB52) -> 38137483.19 | Q52: =SUMIF('Trended Cash Flow'!$E$421:$EF$421,Q$7,'Trended Cash Flow'!$E$347:$EF$347) -> -24187768.1 | R52: =SUMIF('Trended Cash Flow'!$E$421:$EF$421,R$7,'Trended Cash Flow'!$E$347:$EF$347) -> 0 | S52: =SUMIF('Trended Cash Flow'!$E$421:$EF$421,S$7,'Trended Cash Flow'!$E$347:$EF$347) -> 21121908.39 | T52: =SUMIF('Trended Cash Flow'!$E$421:$EF$421,T$7,'Trended Cash Flow'!$E$347:$EF$347) -> 1088318.429 | U52: =SUMIF('Trended Cash Flow'!$E$421:$EF$421,U$7,'Trended Cash Flow'!$E$347:$EF$347) -> 1208824.941 | V52: =SUMIF('Trended Cash Flow'!$E$421:$EF$421,V$7,'Trended Cash Flow'!$E$347:$EF$347) -> 1333354.762 | W52: =SUMIF('Trended Cash Flow'!$E$421:$EF$421,W$7,'Trended Cash Flow'!$E$347:$EF$347) -> 1646443.149 | X52: =SUMIF('Trended Cash Flow'!$E$421:$EF$421,X$7,'Trended Cash Flow'!$E$347:$EF$347) -> 1817603.935 | Y52: =SUMIF('Trended Cash Flow'!$E$421:$EF$421,Y$7,'Trended Cash Flow'!$E$347:$EF$347) -> 1977371.461 | Z52: =SUMIF('Trended Cash Flow'!$E$421:$EF$421,Z$7,'Trended Cash Flow'!$E$347:$EF$347) -> 32131426.23
H53: Exit cap-rate | L53: =+Assumptions!F314 -> 0.045 | N53: Yield on Equity (Leveraged) | Q53: =+IF(Q52>0,Q52/-($Q$51+$R$51+$S$51),"") ->  | S53: 0.8732475148 | T53: 0.04499457842 | U53: 0.04997670458 | V53: 0.05512516723 | W53: 0.06806924648 | X53: 0.07514558298 | Y53: 0.08175088552 | Z53: 1.328416334
B54: Capitalization Summary
B55: Source | E55: Total | F55: Per Unit | H55: Total RE Tax Adjusted Cap Rate | L55: =+Assumptions!S35/100+L53 -> 0.0571 | N55: IRR & Multiple | O55: IRR | P55: ='Trended Cash Flow'!$B$351 -> 0.1779204976 | Y55: Multiple | Z55: =(SUM($Q$52:$AB$52)-SUM($Q$51:$AB$51))/-SUM($Q$51:$AB$51) -> 2.576726014
B56: Bank Loan Construction (% of Capital) | D56: =+Capitalization!J11 -> 0.558 | E56: =+Capitalization!H11 -> 33928543.49 | F56: =+E56/$F$16 -> 297618.8026 | H56: Taxable Value as a % of Sale Price | L56: =+Assumptions!F316 -> 1
B57: =Assumptions!H8 -> Pref Equity | D57: =+Capitalization!F14 -> 0 | E57: =+Capitalization!H14 -> 0 | F57: =+E57/$F$16 -> 0 | H57: Closing Cost at Sale | L57: =+Assumptions!F317 -> 0.0075
B58: Investor Equity (% of Equity) | D58: =+Capitalization!F15 -> 0.9 | E58: =+Capitalization!H15 -> 24187768.1 | F58: =+E58/$F$16 -> 212173.4044
B59: CAST Equity (% of Equity) | D59: =+Capitalization!F16 -> 0.1 | E59: =+Capitalization!H16 -> 2687529.789 | F59: =+E59/$F$16 -> 23574.82271 | H59: Gross Sales Proceeds | L59: =MAX(Q38:Z38) -> 94734428.14
B60: Total Capitalization | E60: =+E52 -> 60803841.39 | F60: =+E60/$F$16 -> 533367.0297 | H60: Gross Sales Proceeds / Unit | L60: =L59/F16 -> 831003.7556
AJ61: ='Cash Flow'!E11 -> 1 | AK61: ='Cash Flow'!F11 -> 2 | AM61: ='Cash Flow'!G11 -> 3 | AO61: ='Cash Flow'!H11 -> 4 | AP61: ='Cash Flow'!I11 -> 5 | AQ61: ='Cash Flow'!J11 -> 6 | AR61: ='Cash Flow'!K11 -> 7 | AS61: ='Cash Flow'!L11 -> 8 | AT61: ='Cash Flow'!M11 -> 9 | AU61: ='Cash Flow'!N11 -> 10 | AV61: ='Cash Flow'!O11 -> 11 | AW61: ='Cash Flow'!P11 -> 12 | AX61: ='Cash Flow'!Q11 -> 13 | AY61: ='Cash Flow'!R11 -> 14 | AZ61: ='Cash Flow'!S11 -> 15 | BA61: ='Cash Flow'!T11 -> 16 | BB61: ='Cash Flow'!U11 -> 17 | BC61: ='Cash Flow'!V11 -> 18 | BD61: ='Cash Flow'!W11 -> 19 | BE61: ='Cash Flow'!X11 -> 20 | BF61: ='Cash Flow'!Y11 -> 21 | BG61: ='Cash Flow'!Z11 -> 22 | BH61: ='Cash Flow'!AA11 -> 23 | BI61: ='Cash Flow'!AB11 -> 24 | BJ61: ='Cash Flow'!AC11 -> 25 | BK61: ='Cash Flow'!AD11 -> 26 | BL61: ='Cash Flow'!AE11 -> 27 | BM61: ='Cash Flow'!AF11 -> 28 | BN61: ='Cash Flow'!AG11 -> 29 | BO61: ='Cash Flow'!AH11 -> 30 | BP61: ='Cash Flow'!AI11 -> 31 | BQ61: ='Cash Flow'!AJ11 -> 32 | BR61: ='Cash Flow'!AK11 -> 33 | BS61: ='Cash Flow'!AL11 -> 34 | BT61: ='Cash Flow'!AM11 -> 35 | BU61: ='Cash Flow'!AN11 -> 36 | BV61: ='Cash Flow'!AO11 -> 37 | BW61: ='Cash Flow'!AP11 -> 38 | BX61: ='Cash Flow'!AQ11 -> 39 | BY61: ='Cash Flow'!AR11 -> 40 | BZ61: ='Cash Flow'!AS11 -> 41 | CA61: ='Cash Flow'!AT11 -> 42 | CB61: ='Cash Flow'!AU11 -> 43 | CC61: ='Cash Flow'!AV11 -> 44 | CD61: ='Cash Flow'!AW11 -> 45 | CE61: ='Cash Flow'!AX11 -> 46 | CF61: ='Cash Flow'!AY11 -> 47 | CG61: ='Cash Flow'!AZ11 -> 48 | CH61: ='Cash Flow'!BA11 -> 49 | CI61: ='Cash Flow'!BB11 -> 50 | CJ61: ='Cash Flow'!BC11 -> 51 | CK61: ='Cash Flow'!BD11 -> 52 | CL61: ='Cash Flow'!BE11 -> 53 | CM61: ='Cash Flow'!BF11 -> 54 | CN61: ='Cash Flow'!BG11 -> 55 | CO61: ='Cash Flow'!BH11 -> 56 | CP61: ='Cash Flow'!BI11 -> 57 | CQ61: ='Cash Flow'!BJ11 -> 58 | CR61: ='Cash Flow'!BK11 -> 59 | CS61: ='Cash Flow'!BL11 -> 60
AJ62: ='Cash Flow'!E12 -> 2023-06-15 | AK62: ='Cash Flow'!F12 -> 2023-07-15 | AM62: ='Cash Flow'!G12 -> 2023-08-15 | AO62: ='Cash Flow'!H12 -> 2023-09-15 | AP62: ='Cash Flow'!I12 -> 2023-10-15 | AQ62: ='Cash Flow'!J12 -> 2023-11-15 | AR62: ='Cash Flow'!K12 -> 2023-12-15 | AS62: ='Cash Flow'!L12 -> 2024-01-15 | AT62: ='Cash Flow'!M12 -> 2024-02-15 | AU62: ='Cash Flow'!N12 -> 2024-03-15 | AV62: ='Cash Flow'!O12 -> 2024-04-15 | AW62: ='Cash Flow'!P12 -> 2024-05-15 | AX62: ='Cash Flow'!Q12 -> 2024-06-15 | AY62: ='Cash Flow'!R12 -> 2024-07-15 | AZ62: ='Cash Flow'!S12 -> 2024-08-15 | BA62: ='Cash Flow'!T12 -> 2024-09-15 | BB62: ='Cash Flow'!U12 -> 2024-10-15 | BC62: ='Cash Flow'!V12 -> 2024-11-15 | BD62: ='Cash Flow'!W12 -> 2024-12-15 | BE62: ='Cash Flow'!X12 -> 2025-01-15 | BF62: ='Cash Flow'!Y12 -> 2025-02-15 | BG62: ='Cash Flow'!Z12 -> 2025-03-15 | BH62: ='Cash Flow'!AA12 -> 2025-04-15 | BI62: ='Cash Flow'!AB12 -> 2025-05-15 | BJ62: ='Cash Flow'!AC12 -> 2025-06-15 | BK62: ='Cash Flow'!AD12 -> 2025-07-15 | BL62: ='Cash Flow'!AE12 -> 2025-08-15 | BM62: ='Cash Flow'!AF12 -> 2025-09-15 | BN62: ='Cash Flow'!AG12 -> 2025-10-15 | BO62: ='Cash Flow'!AH12 -> 2025-11-15 | BP62: ='Cash Flow'!AI12 -> 2025-12-15 | BQ62: ='Cash Flow'!AJ12 -> 2026-01-15 | BR62: ='Cash Flow'!AK12 -> 2026-02-15 | BS62: ='Cash Flow'!AL12 -> 2026-03-15 | BT62: ='Cash Flow'!AM12 -> 2026-04-15 | BU62: ='Cash Flow'!AN12 -> 2026-05-15 | BV62: ='Cash Flow'!AO12 -> 2026-06-15 | BW62: ='Cash Flow'!AP12 -> 2026-07-15 | BX62: ='Cash Flow'!AQ12 -> 2026-08-15 | BY62: ='Cash Flow'!AR12 -> 2026-09-15 | BZ62: ='Cash Flow'!AS12 -> 2026-10-15 | CA62: ='Cash Flow'!AT12 -> 2026-11-15 | CB62: ='Cash Flow'!AU12 -> 2026-12-15 | CC62: ='Cash Flow'!AV12 -> 2027-01-15 | CD62: ='Cash Flow'!AW12 -> 2027-02-15 | CE62: ='Cash Flow'!AX12 -> 2027-03-15 | CF62: ='Cash Flow'!AY12 -> 2027-04-15 | CG62: ='Cash Flow'!AZ12 -> 2027-05-15 | CH62: ='Cash Flow'!BA12 -> 2027-06-15 | CI62: ='Cash Flow'!BB12 -> 2027-07-15 | CJ62: ='Cash Flow'!BC12 -> 2027-08-15 | CK62: ='Cash Flow'!BD12 -> 2027-09-15 | CL62: ='Cash Flow'!BE12 -> 2027-10-15 | CM62: ='Cash Flow'!BF12 -> 2027-11-15 | CN62: ='Cash Flow'!BG12 -> 2027-12-15 | CO62: ='Cash Flow'!BH12 -> 2028-01-15 | CP62: ='Cash Flow'!BI12 -> 2028-02-15 | CQ62: ='Cash Flow'!BJ12 -> 2028-03-15 | CR62: ='Cash Flow'!BK12 -> 2028-04-15 | CS62: ='Cash Flow'!BL12 -> 2028-05-15
AI63: Funding Requirements
AI64: ='Cash Flow'!$A41 -> Land | AJ64: ='Cash Flow'!E41 -> 5075000 | AK64: ='Cash Flow'!F41 -> 0 | AM64: ='Cash Flow'!G41 -> 0 | AO64: ='Cash Flow'!H41 -> 0 | AP64: ='Cash Flow'!I41 -> 0 | AQ64: ='Cash Flow'!J41 -> 0 | AR64: ='Cash Flow'!K41 -> 0 | AS64: ='Cash Flow'!L41 -> 0 | AT64: ='Cash Flow'!M41 -> 0 | AU64: ='Cash Flow'!N41 -> 0 | AV64: ='Cash Flow'!O41 -> 0 | AW64: ='Cash Flow'!P41 -> 0 | AX64: ='Cash Flow'!Q41 -> 0 | AY64: ='Cash Flow'!R41 -> 0 | AZ64: ='Cash Flow'!S41 -> 0 | BA64: ='Cash Flow'!T41 -> 0 | BB64: ='Cash Flow'!U41 -> 0 | BC64: ='Cash Flow'!V41 -> 0 | BD64: ='Cash Flow'!W41 -> 0 | BE64: ='Cash Flow'!X41 -> 0 | BF64: ='Cash Flow'!Y41 -> 0 | BG64: ='Cash Flow'!Z41 -> 0 | BH64: ='Cash Flow'!AA41 -> 0 | BI64: ='Cash Flow'!AB41 -> 0 | BJ64: ='Cash Flow'!AC41 -> 0 | BK64: ='Cash Flow'!AD41 -> 0 | BL64: ='Cash Flow'!AE41 -> 0 | BM64: ='Cash Flow'!AF41 -> 0 | BN64: ='Cash Flow'!AG41 -> 0 | BO64: ='Cash Flow'!AH41 -> 0 | BP64: ='Cash Flow'!AI41 -> 0 | BQ64: ='Cash Flow'!AJ41 -> 0 | BR64: ='Cash Flow'!AK41 -> 0 | BS64: ='Cash Flow'!AL41 -> 0 | BT64: ='Cash Flow'!AM41 -> 0 | BU64: ='Cash Flow'!AN41 -> 0 | BV64: ='Cash Flow'!AO41 -> 0 | BW64: ='Cash Flow'!AP41 -> 0 | BX64: ='Cash Flow'!AQ41 -> 0 | BY64: ='Cash Flow'!AR41 -> 0 | BZ64: ='Cash Flow'!AS41 -> 0 | CA64: ='Cash Flow'!AT41 -> 0 | CB64: ='Cash Flow'!AU41 -> 0 | CC64: ='Cash Flow'!AV41 -> 0 | CD64: ='Cash Flow'!AW41 -> 0 | CE64: ='Cash Flow'!AX41 -> 0 | CF64: ='Cash Flow'!AY41 -> 0 | CG64: ='Cash Flow'!AZ41 -> 0 | CH64: ='Cash Flow'!BA41 -> 0 | CI64: ='Cash Flow'!BB41 -> 0 | CJ64: ='Cash Flow'!BC41 -> 0 | CK64: ='Cash Flow'!BD41 -> 0 | CL64: ='Cash Flow'!BE41 -> 0 | CM64: ='Cash Flow'!BF41 -> 0 | CN64: ='Cash Flow'!BG41 -> 0 | CO64: ='Cash Flow'!BH41 -> 0 | CP64: ='Cash Flow'!BI41 -> 0 | CQ64: ='Cash Flow'!BJ41 -> 0 | CR64: ='Cash Flow'!BK41 -> 0 | CS64: ='Cash Flow'!BL41 -> 0
AI65: ='Cash Flow'!$A42 -> Legal, Closing Costs & Financing | AJ65: ='Cash Flow'!E42 -> 1123571 | AK65: ='Cash Flow'!F42 -> 0 | AM65: ='Cash Flow'!G42 -> 0 | AO65: ='Cash Flow'!H42 -> 0 | AP65: ='Cash Flow'!I42 -> 0 | AQ65: ='Cash Flow'!J42 -> 0 | AR65: ='Cash Flow'!K42 -> 0 | AS65: ='Cash Flow'!L42 -> 0 | AT65: ='Cash Flow'!M42 -> 0 | AU65: ='Cash Flow'!N42 -> 0 | AV65: ='Cash Flow'!O42 -> 0 | AW65: ='Cash Flow'!P42 -> 0 | AX65: ='Cash Flow'!Q42 -> 0 | AY65: ='Cash Flow'!R42 -> 0 | AZ65: ='Cash Flow'!S42 -> 0 | BA65: ='Cash Flow'!T42 -> 0 | BB65: ='Cash Flow'!U42 -> 0 | BC65: ='Cash Flow'!V42 -> 0 | BD65: ='Cash Flow'!W42 -> 0 | BE65: ='Cash Flow'!X42 -> 0 | BF65: ='Cash Flow'!Y42 -> 0 | BG65: ='Cash Flow'!Z42 -> 0 | BH65: ='Cash Flow'!AA42 -> 0 | BI65: ='Cash Flow'!AB42 -> 0 | BJ65: ='Cash Flow'!AC42 -> 0 | BK65: ='Cash Flow'!AD42 -> 0 | BL65: ='Cash Flow'!AE42 -> 0 | BM65: ='Cash Flow'!AF42 -> 0 | BN65: ='Cash Flow'!AG42 -> 0 | BO65: ='Cash Flow'!AH42 -> 0 | BP65: ='Cash Flow'!AI42 -> 0 | BQ65: ='Cash Flow'!AJ42 -> 0 | BR65: ='Cash Flow'!AK42 -> 0 | BS65: ='Cash Flow'!AL42 -> 0 | BT65: ='Cash Flow'!AM42 -> 0 | BU65: ='Cash Flow'!AN42 -> 0 | BV65: ='Cash Flow'!AO42 -> 0 | BW65: ='Cash Flow'!AP42 -> 0 | BX65: ='Cash Flow'!AQ42 -> 0 | BY65: ='Cash Flow'!AR42 -> 0 | BZ65: ='Cash Flow'!AS42 -> 0 | CA65: ='Cash Flow'!AT42 -> 0 | CB65: ='Cash Flow'!AU42 -> 0 | CC65: ='Cash Flow'!AV42 -> 0 | CD65: ='Cash Flow'!AW42 -> 0 | CE65: ='Cash Flow'!AX42 -> 0 | CF65: ='Cash Flow'!AY42 -> 0 | CG65: ='Cash Flow'!AZ42 -> 0 | CH65: ='Cash Flow'!BA42 -> 0 | CI65: ='Cash Flow'!BB42 -> 0 | CJ65: ='Cash Flow'!BC42 -> 0 | CK65: ='Cash Flow'!BD42 -> 0 | CL65: ='Cash Flow'!BE42 -> 0 | CM65: ='Cash Flow'!BF42 -> 0 | CN65: ='Cash Flow'!BG42 -> 0 | CO65: ='Cash Flow'!BH42 -> 0 | CP65: ='Cash Flow'!BI42 -> 0 | CQ65: ='Cash Flow'!BJ42 -> 0 | CR65: ='Cash Flow'!BK42 -> 0 | CS65: ='Cash Flow'!BL42 -> 0
AI66: ='Cash Flow'!$A43 -> Construction Hard Costs | AJ66: ='Cash Flow'!E43 -> 0 | AK66: ='Cash Flow'!F43 -> 828000.008 | AM66: ='Cash Flow'!G43 -> 1051388.043 | AO66: ='Cash Flow'!H43 -> 1301896.497 | AP66: ='Cash Flow'!I43 -> 1572065.466 | AQ66: ='Cash Flow'!J43 -> 1851166.798 | AR66: ='Cash Flow'!K43 -> 2125696.423 | AS66: ='Cash Flow'!L43 -> 2380332.926 | AT66: ='Cash Flow'!M43 -> 2599291.256 | AU66: ='Cash Flow'!N43 -> 2767916.419 | AV66: ='Cash Flow'!O43 -> 2874297.957 | AW66: ='Cash Flow'!P43 -> 2910659.417 | AX66: ='Cash Flow'!Q43 -> 2874297.957 | AY66: ='Cash Flow'!R43 -> 2767916.419 | AZ66: ='Cash Flow'!S43 -> 2599291.256 | BA66: ='Cash Flow'!T43 -> 2380332.926 | BB66: ='Cash Flow'!U43 -> 2125696.423 | BC66: ='Cash Flow'!V43 -> 1851166.798 | BD66: ='Cash Flow'!W43 -> 1572065.466 | BE66: ='Cash Flow'!X43 -> 1301896.497 | BF66: ='Cash Flow'!Y43 -> 1051388.043 | BG66: ='Cash Flow'!Z43 -> 828000.008 | BH66: ='Cash Flow'!AA43 -> 0 | BI66: ='Cash Flow'!AB43 -> 0 | BJ66: ='Cash Flow'!AC43 -> 0 | BK66: ='Cash Flow'!AD43 -> 0 | BL66: ='Cash Flow'!AE43 -> 0 | BM66: ='Cash Flow'!AF43 -> 0 | BN66: ='Cash Flow'!AG43 -> 0 | BO66: ='Cash Flow'!AH43 -> 0 | BP66: ='Cash Flow'!AI43 -> 0 | BQ66: ='Cash Flow'!AJ43 -> 0 | BR66: ='Cash Flow'!AK43 -> 0 | BS66: ='Cash Flow'!AL43 -> 0 | BT66: ='Cash Flow'!AM43 -> 0 | BU66: ='Cash Flow'!AN43 -> 0 | BV66: ='Cash Flow'!AO43 -> 0 | BW66: ='Cash Flow'!AP43 -> 0 | BX66: ='Cash Flow'!AQ43 -> 0 | BY66: ='Cash Flow'!AR43 -> 0 | BZ66: ='Cash Flow'!AS43 -> 0 | CA66: ='Cash Flow'!AT43 -> 0 | CB66: ='Cash Flow'!AU43 -> 0 | CC66: ='Cash Flow'!AV43 -> 0 | CD66: ='Cash Flow'!AW43 -> 0 | CE66: ='Cash Flow'!AX43 -> 0 | CF66: ='Cash Flow'!AY43 -> 0 | CG66: ='Cash Flow'!AZ43 -> 0 | CH66: ='Cash Flow'!BA43 -> 0 | CI66: ='Cash Flow'!BB43 -> 0 | CJ66: ='Cash Flow'!BC43 -> 0 | CK66: ='Cash Flow'!BD43 -> 0 | CL66: ='Cash Flow'!BE43 -> 0 | CM66: ='Cash Flow'!BF43 -> 0 | CN66: ='Cash Flow'!BG43 -> 0 | CO66: ='Cash Flow'!BH43 -> 0 | CP66: ='Cash Flow'!BI43 -> 0 | CQ66: ='Cash Flow'!BJ43 -> 0 | CR66: ='Cash Flow'!BK43 -> 0 | CS66: ='Cash Flow'!BL43 -> 0
AI67: ='Cash Flow'!$A44 -> Municipal Fees | AJ67: ='Cash Flow'!E44 -> 2272219.801 | AK67: ='Cash Flow'!F44 -> 0 | AM67: ='Cash Flow'!G44 -> 0 | AO67: ='Cash Flow'!H44 -> 0 | AP67: ='Cash Flow'!I44 -> 0 | AQ67: ='Cash Flow'!J44 -> 0 | AR67: ='Cash Flow'!K44 -> 0 | AS67: ='Cash Flow'!L44 -> 0 | AT67: ='Cash Flow'!M44 -> 0 | AU67: ='Cash Flow'!N44 -> 0 | AV67: ='Cash Flow'!O44 -> 0 | AW67: ='Cash Flow'!P44 -> 0 | AX67: ='Cash Flow'!Q44 -> 0 | AY67: ='Cash Flow'!R44 -> 0 | AZ67: ='Cash Flow'!S44 -> 0 | BA67: ='Cash Flow'!T44 -> 0 | BB67: ='Cash Flow'!U44 -> 0 | BC67: ='Cash Flow'!V44 -> 0 | BD67: ='Cash Flow'!W44 -> 0 | BE67: ='Cash Flow'!X44 -> 0 | BF67: ='Cash Flow'!Y44 -> 0 | BG67: ='Cash Flow'!Z44 -> 0 | BH67: ='Cash Flow'!AA44 -> 0 | BI67: ='Cash Flow'!AB44 -> 0 | BJ67: ='Cash Flow'!AC44 -> 0 | BK67: ='Cash Flow'!AD44 -> 0 | BL67: ='Cash Flow'!AE44 -> 0 | BM67: ='Cash Flow'!AF44 -> 0 | BN67: ='Cash Flow'!AG44 -> 0 | BO67: ='Cash Flow'!AH44 -> 0 | BP67: ='Cash Flow'!AI44 -> 0 | BQ67: ='Cash Flow'!AJ44 -> 0 | BR67: ='Cash Flow'!AK44 -> 0 | BS67: ='Cash Flow'!AL44 -> 0 | BT67: ='Cash Flow'!AM44 -> 0 | BU67: ='Cash Flow'!AN44 -> 0 | BV67: ='Cash Flow'!AO44 -> 0 | BW67: ='Cash Flow'!AP44 -> 0 | BX67: ='Cash Flow'!AQ44 -> 0 | BY67: ='Cash Flow'!AR44 -> 0 | BZ67: ='Cash Flow'!AS44 -> 0 | CA67: ='Cash Flow'!AT44 -> 0 | CB67: ='Cash Flow'!AU44 -> 0 | CC67: ='Cash Flow'!AV44 -> 0 | CD67: ='Cash Flow'!AW44 -> 0 | CE67: ='Cash Flow'!AX44 -> 0 | CF67: ='Cash Flow'!AY44 -> 0 | CG67: ='Cash Flow'!AZ44 -> 0 | CH67: ='Cash Flow'!BA44 -> 0 | CI67: ='Cash Flow'!BB44 -> 0 | CJ67: ='Cash Flow'!BC44 -> 0 | CK67: ='Cash Flow'!BD44 -> 0 | CL67: ='Cash Flow'!BE44 -> 0 | CM67: ='Cash Flow'!BF44 -> 0 | CN67: ='Cash Flow'!BG44 -> 0 | CO67: ='Cash Flow'!BH44 -> 0 | CP67: ='Cash Flow'!BI44 -> 0 | CQ67: ='Cash Flow'!BJ44 -> 0 | CR67: ='Cash Flow'!BK44 -> 0 | CS67: ='Cash Flow'!BL44 -> 0
AI68: ='Cash Flow'!$A45 -> Architect, Engineering and Surveying | AJ68: ='Cash Flow'!E45 -> 1530800 | AK68: ='Cash Flow'!F45 -> 0 | AM68: ='Cash Flow'!G45 -> 0 | AO68: ='Cash Flow'!H45 -> 0 | AP68: ='Cash Flow'!I45 -> 0 | AQ68: ='Cash Flow'!J45 -> 0 | AR68: ='Cash Flow'!K45 -> 0 | AS68: ='Cash Flow'!L45 -> 0 | AT68: ='Cash Flow'!M45 -> 0 | AU68: ='Cash Flow'!N45 -> 0 | AV68: ='Cash Flow'!O45 -> 0 | AW68: ='Cash Flow'!P45 -> 0 | AX68: ='Cash Flow'!Q45 -> 0 | AY68: ='Cash Flow'!R45 -> 0 | AZ68: ='Cash Flow'!S45 -> 0 | BA68: ='Cash Flow'!T45 -> 0 | BB68: ='Cash Flow'!U45 -> 0 | BC68: ='Cash Flow'!V45 -> 0 | BD68: ='Cash Flow'!W45 -> 0 | BE68: ='Cash Flow'!X45 -> 0 | BF68: ='Cash Flow'!Y45 -> 0 | BG68: ='Cash Flow'!Z45 -> 0 | BH68: ='Cash Flow'!AA45 -> 0 | BI68: ='Cash Flow'!AB45 -> 0 | BJ68: ='Cash Flow'!AC45 -> 0 | BK68: ='Cash Flow'!AD45 -> 0 | BL68: ='Cash Flow'!AE45 -> 0 | BM68: ='Cash Flow'!AF45 -> 0 | BN68: ='Cash Flow'!AG45 -> 0 | BO68: ='Cash Flow'!AH45 -> 0 | BP68: ='Cash Flow'!AI45 -> 0 | BQ68: ='Cash Flow'!AJ45 -> 0 | BR68: ='Cash Flow'!AK45 -> 0 | BS68: ='Cash Flow'!AL45 -> 0 | BT68: ='Cash Flow'!AM45 -> 0 | BU68: ='Cash Flow'!AN45 -> 0 | BV68: ='Cash Flow'!AO45 -> 0 | BW68: ='Cash Flow'!AP45 -> 0 | BX68: ='Cash Flow'!AQ45 -> 0 | BY68: ='Cash Flow'!AR45 -> 0 | BZ68: ='Cash Flow'!AS45 -> 0 | CA68: ='Cash Flow'!AT45 -> 0 | CB68: ='Cash Flow'!AU45 -> 0 | CC68: ='Cash Flow'!AV45 -> 0 | CD68: ='Cash Flow'!AW45 -> 0 | CE68: ='Cash Flow'!AX45 -> 0 | CF68: ='Cash Flow'!AY45 -> 0 | CG68: ='Cash Flow'!AZ45 -> 0 | CH68: ='Cash Flow'!BA45 -> 0 | CI68: ='Cash Flow'!BB45 -> 0 | CJ68: ='Cash Flow'!BC45 -> 0 | CK68: ='Cash Flow'!BD45 -> 0 | CL68: ='Cash Flow'!BE45 -> 0 | CM68: ='Cash Flow'!BF45 -> 0 | CN68: ='Cash Flow'!BG45 -> 0 | CO68: ='Cash Flow'!BH45 -> 0 | CP68: ='Cash Flow'!BI45 -> 0 | CQ68: ='Cash Flow'!BJ45 -> 0 | CR68: ='Cash Flow'!BK45 -> 0 | CS68: ='Cash Flow'!BL45 -> 0
AI69: ='Cash Flow'!$A46 -> Taxes | AJ69: ='Cash Flow'!E46 -> 270369.5498 | AK69: ='Cash Flow'!F46 -> 0 | AM69: ='Cash Flow'!G46 -> 0 | AO69: ='Cash Flow'!H46 -> 0 | AP69: ='Cash Flow'!I46 -> 0 | AQ69: ='Cash Flow'!J46 -> 0 | AR69: ='Cash Flow'!K46 -> 0 | AS69: ='Cash Flow'!L46 -> 0 | AT69: ='Cash Flow'!M46 -> 0 | AU69: ='Cash Flow'!N46 -> 0 | AV69: ='Cash Flow'!O46 -> 0 | AW69: ='Cash Flow'!P46 -> 0 | AX69: ='Cash Flow'!Q46 -> 0 | AY69: ='Cash Flow'!R46 -> 0 | AZ69: ='Cash Flow'!S46 -> 0 | BA69: ='Cash Flow'!T46 -> 0 | BB69: ='Cash Flow'!U46 -> 0 | BC69: ='Cash Flow'!V46 -> 0 | BD69: ='Cash Flow'!W46 -> 0 | BE69: ='Cash Flow'!X46 -> 0 | BF69: ='Cash Flow'!Y46 -> 0 | BG69: ='Cash Flow'!Z46 -> 0 | BH69: ='Cash Flow'!AA46 -> 0 | BI69: ='Cash Flow'!AB46 -> 0 | BJ69: ='Cash Flow'!AC46 -> 0 | BK69: ='Cash Flow'!AD46 -> 0 | BL69: ='Cash Flow'!AE46 -> 0 | BM69: ='Cash Flow'!AF46 -> 0 | BN69: ='Cash Flow'!AG46 -> 0 | BO69: ='Cash Flow'!AH46 -> 0 | BP69: ='Cash Flow'!AI46 -> 0 | BQ69: ='Cash Flow'!AJ46 -> 0 | BR69: ='Cash Flow'!AK46 -> 0 | BS69: ='Cash Flow'!AL46 -> 0 | BT69: ='Cash Flow'!AM46 -> 0 | BU69: ='Cash Flow'!AN46 -> 0 | BV69: ='Cash Flow'!AO46 -> 0 | BW69: ='Cash Flow'!AP46 -> 0 | BX69: ='Cash Flow'!AQ46 -> 0 | BY69: ='Cash Flow'!AR46 -> 0 | BZ69: ='Cash Flow'!AS46 -> 0 | CA69: ='Cash Flow'!AT46 -> 0 | CB69: ='Cash Flow'!AU46 -> 0 | CC69: ='Cash Flow'!AV46 -> 0 | CD69: ='Cash Flow'!AW46 -> 0 | CE69: ='Cash Flow'!AX46 -> 0 | CF69: ='Cash Flow'!AY46 -> 0 | CG69: ='Cash Flow'!AZ46 -> 0 | CH69: ='Cash Flow'!BA46 -> 0 | CI69: ='Cash Flow'!BB46 -> 0 | CJ69: ='Cash Flow'!BC46 -> 0 | CK69: ='Cash Flow'!BD46 -> 0 | CL69: ='Cash Flow'!BE46 -> 0 | CM69: ='Cash Flow'!BF46 -> 0 | CN69: ='Cash Flow'!BG46 -> 0 | CO69: ='Cash Flow'!BH46 -> 0 | CP69: ='Cash Flow'!BI46 -> 0 | CQ69: ='Cash Flow'!BJ46 -> 0 | CR69: ='Cash Flow'!BK46 -> 0 | CS69: ='Cash Flow'!BL46 -> 0
AI70: ='Cash Flow'!$A47 -> Soft Cost Contingency | AJ70: ='Cash Flow'!E47 -> 0 | AK70: ='Cash Flow'!F47 -> 0 | AM70: ='Cash Flow'!G47 -> 0 | AO70: ='Cash Flow'!H47 -> 282816.607 | AP70: ='Cash Flow'!I47 -> 282816.607 | AQ70: ='Cash Flow'!J47 -> 282816.607 | AR70: ='Cash Flow'!K47 -> 282816.607 | AS70: ='Cash Flow'!L47 -> 282816.607 | AT70: ='Cash Flow'!M47 -> 0 | AU70: ='Cash Flow'!N47 -> 0 | AV70: ='Cash Flow'!O47 -> 0 | AW70: ='Cash Flow'!P47 -> 0 | AX70: ='Cash Flow'!Q47 -> 0 | AY70: ='Cash Flow'!R47 -> 0 | AZ70: ='Cash Flow'!S47 -> 0 | BA70: ='Cash Flow'!T47 -> 0 | BB70: ='Cash Flow'!U47 -> 0 | BC70: ='Cash Flow'!V47 -> 0 | BD70: ='Cash Flow'!W47 -> 0 | BE70: ='Cash Flow'!X47 -> 0 | BF70: ='Cash Flow'!Y47 -> 0 | BG70: ='Cash Flow'!Z47 -> 0 | BH70: ='Cash Flow'!AA47 -> 0 | BI70: ='Cash Flow'!AB47 -> 0 | BJ70: ='Cash Flow'!AC47 -> 0 | BK70: ='Cash Flow'!AD47 -> 0 | BL70: ='Cash Flow'!AE47 -> 0 | BM70: ='Cash Flow'!AF47 -> 0 | BN70: ='Cash Flow'!AG47 -> 0 | BO70: ='Cash Flow'!AH47 -> 0 | BP70: ='Cash Flow'!AI47 -> 0 | BQ70: ='Cash Flow'!AJ47 -> 0 | BR70: ='Cash Flow'!AK47 -> 0 | BS70: ='Cash Flow'!AL47 -> 0 | BT70: ='Cash Flow'!AM47 -> 0 | BU70: ='Cash Flow'!AN47 -> 0 | BV70: ='Cash Flow'!AO47 -> 0 | BW70: ='Cash Flow'!AP47 -> 0 | BX70: ='Cash Flow'!AQ47 -> 0 | BY70: ='Cash Flow'!AR47 -> 0 | BZ70: ='Cash Flow'!AS47 -> 0 | CA70: ='Cash Flow'!AT47 -> 0 | CB70: ='Cash Flow'!AU47 -> 0 | CC70: ='Cash Flow'!AV47 -> 0 | CD70: ='Cash Flow'!AW47 -> 0 | CE70: ='Cash Flow'!AX47 -> 0 | CF70: ='Cash Flow'!AY47 -> 0 | CG70: ='Cash Flow'!AZ47 -> 0 | CH70: ='Cash Flow'!BA47 -> 0 | CI70: ='Cash Flow'!BB47 -> 0 | CJ70: ='Cash Flow'!BC47 -> 0 | CK70: ='Cash Flow'!BD47 -> 0 | CL70: ='Cash Flow'!BE47 -> 0 | CM70: ='Cash Flow'!BF47 -> 0 | CN70: ='Cash Flow'!BG47 -> 0 | CO70: ='Cash Flow'!BH47 -> 0 | CP70: ='Cash Flow'!BI47 -> 0 | CQ70: ='Cash Flow'!BJ47 -> 0 | CR70: ='Cash Flow'!BK47 -> 0 | CS70: ='Cash Flow'!BL47 -> 0
AI71: ='Cash Flow'!$A48 -> Overhead | AJ71: ='Cash Flow'!E48 -> 567291.25 | AK71: ='Cash Flow'!F48 -> 0 | AM71: ='Cash Flow'!G48 -> 0 | AO71: ='Cash Flow'!H48 -> 56729.125 | AP71: ='Cash Flow'!I48 -> 56729.125 | AQ71: ='Cash Flow'!J48 -> 56729.125 | AR71: ='Cash Flow'!K48 -> 56729.125 | AS71: ='Cash Flow'!L48 -> 56729.125 | AT71: ='Cash Flow'!M48 -> 56729.125 | AU71: ='Cash Flow'!N48 -> 56729.125 | AV71: ='Cash Flow'!O48 -> 56729.125 | AW71: ='Cash Flow'!P48 -> 56729.125 | AX71: ='Cash Flow'!Q48 -> 56729.125 | AY71: ='Cash Flow'!R48 -> 56729.125 | AZ71: ='Cash Flow'!S48 -> 56729.125 | BA71: ='Cash Flow'!T48 -> 56729.125 | BB71: ='Cash Flow'!U48 -> 56729.125 | BC71: ='Cash Flow'!V48 -> 56729.125 | BD71: ='Cash Flow'!W48 -> 56729.125 | BE71: ='Cash Flow'!X48 -> 56729.125 | BF71: ='Cash Flow'!Y48 -> 56729.125 | BG71: ='Cash Flow'!Z48 -> 56729.125 | BH71: ='Cash Flow'!AA48 -> 56729.125 | BI71: ='Cash Flow'!AB48 -> 567291.25 | BJ71: ='Cash Flow'!AC48 -> 0 | BK71: ='Cash Flow'!AD48 -> 0 | BL71: ='Cash Flow'!AE48 -> 0 | BM71: ='Cash Flow'!AF48 -> 0 | BN71: ='Cash Flow'!AG48 -> 0 | BO71: ='Cash Flow'!AH48 -> 0 | BP71: ='Cash Flow'!AI48 -> 0 | BQ71: ='Cash Flow'!AJ48 -> 0 | BR71: ='Cash Flow'!AK48 -> 0 | BS71: ='Cash Flow'!AL48 -> 0 | BT71: ='Cash Flow'!AM48 -> 0 | BU71: ='Cash Flow'!AN48 -> 0 | BV71: ='Cash Flow'!AO48 -> 0 | BW71: ='Cash Flow'!AP48 -> 0 | BX71: ='Cash Flow'!AQ48 -> 0 | BY71: ='Cash Flow'!AR48 -> 0 | BZ71: ='Cash Flow'!AS48 -> 0 | CA71: ='Cash Flow'!AT48 -> 0 | CB71: ='Cash Flow'!AU48 -> 0 | CC71: ='Cash Flow'!AV48 -> 0 | CD71: ='Cash Flow'!AW48 -> 0 | CE71: ='Cash Flow'!AX48 -> 0 | CF71: ='Cash Flow'!AY48 -> 0 | CG71: ='Cash Flow'!AZ48 -> 0 | CH71: ='Cash Flow'!BA48 -> 0 | CI71: ='Cash Flow'!BB48 -> 0 | CJ71: ='Cash Flow'!BC48 -> 0 | CK71: ='Cash Flow'!BD48 -> 0 | CL71: ='Cash Flow'!BE48 -> 0 | CM71: ='Cash Flow'!BF48 -> 0 | CN71: ='Cash Flow'!BG48 -> 0 | CO71: ='Cash Flow'!BH48 -> 0 | CP71: ='Cash Flow'!BI48 -> 0 | CQ71: ='Cash Flow'!BJ48 -> 0 | CR71: ='Cash Flow'!BK48 -> 0 | CS71: ='Cash Flow'!BL48 -> 0
AI72: ='Cash Flow'!$A49 -> Marketing | AJ72: ='Cash Flow'!E49 -> 0 | AK72: ='Cash Flow'!F49 -> 0 | AM72: ='Cash Flow'!G49 -> 0 | AO72: ='Cash Flow'!H49 -> 0 | AP72: ='Cash Flow'!I49 -> 0 | AQ72: ='Cash Flow'!J49 -> 0 | AR72: ='Cash Flow'!K49 -> 0 | AS72: ='Cash Flow'!L49 -> 0 | AT72: ='Cash Flow'!M49 -> 0 | AU72: ='Cash Flow'!N49 -> 0 | AV72: ='Cash Flow'!O49 -> 0 | AW72: ='Cash Flow'!P49 -> 0 | AX72: ='Cash Flow'!Q49 -> 0 | AY72: ='Cash Flow'!R49 -> 0 | AZ72: ='Cash Flow'!S49 -> 0 | BA72: ='Cash Flow'!T49 -> 0 | BB72: ='Cash Flow'!U49 -> 0 | BC72: ='Cash Flow'!V49 -> 0 | BD72: ='Cash Flow'!W49 -> 0 | BE72: ='Cash Flow'!X49 -> 0 | BF72: ='Cash Flow'!Y49 -> 0 | BG72: ='Cash Flow'!Z49 -> 187500 | BH72: ='Cash Flow'!AA49 -> 187500 | BI72: ='Cash Flow'!AB49 -> 187500 | BJ72: ='Cash Flow'!AC49 -> 187500 | BK72: ='Cash Flow'!AD49 -> 0 | BL72: ='Cash Flow'!AE49 -> 0 | BM72: ='Cash Flow'!AF49 -> 0 | BN72: ='Cash Flow'!AG49 -> 0 | BO72: ='Cash Flow'!AH49 -> 0 | BP72: ='Cash Flow'!AI49 -> 0 | BQ72: ='Cash Flow'!AJ49 -> 0 | BR72: ='Cash Flow'!AK49 -> 0 | BS72: ='Cash Flow'!AL49 -> 0 | BT72: ='Cash Flow'!AM49 -> 0 | BU72: ='Cash Flow'!AN49 -> 0 | BV72: ='Cash Flow'!AO49 -> 0 | BW72: ='Cash Flow'!AP49 -> 0 | BX72: ='Cash Flow'!AQ49 -> 0 | BY72: ='Cash Flow'!AR49 -> 0 | BZ72: ='Cash Flow'!AS49 -> 0 | CA72: ='Cash Flow'!AT49 -> 0 | CB72: ='Cash Flow'!AU49 -> 0 | CC72: ='Cash Flow'!AV49 -> 0 | CD72: ='Cash Flow'!AW49 -> 0 | CE72: ='Cash Flow'!AX49 -> 0 | CF72: ='Cash Flow'!AY49 -> 0 | CG72: ='Cash Flow'!AZ49 -> 0 | CH72: ='Cash Flow'!BA49 -> 0 | CI72: ='Cash Flow'!BB49 -> 0 | CJ72: ='Cash Flow'!BC49 -> 0 | CK72: ='Cash Flow'!BD49 -> 0 | CL72: ='Cash Flow'!BE49 -> 0 | CM72: ='Cash Flow'!BF49 -> 0 | CN72: ='Cash Flow'!BG49 -> 0 | CO72: ='Cash Flow'!BH49 -> 0 | CP72: ='Cash Flow'!BI49 -> 0 | CQ72: ='Cash Flow'!BJ49 -> 0 | CR72: ='Cash Flow'!BK49 -> 0 | CS72: ='Cash Flow'!BL49 -> 0
AI73: ='Cash Flow'!$A50 -> Construction Interest | AJ73: ='Cash Flow'!E50 -> 0 | AK73: ='Cash Flow'!F50 -> 0 | AM73: ='Cash Flow'!G50 -> 0 | AO73: ='Cash Flow'!H50 -> 0 | AP73: ='Cash Flow'!I50 -> 0 | AQ73: ='Cash Flow'!J50 -> 0 | AR73: ='Cash Flow'!K50 -> 0 | AS73: ='Cash Flow'!L50 -> 0 | AT73: ='Cash Flow'!M50 -> 0 | AU73: ='Cash Flow'!N50 -> 5949.36682 | AV73: ='Cash Flow'!O50 -> 27178.82865 | AW73: ='Cash Flow'!P50 -> 49365.37298 | AX73: ='Cash Flow'!Q50 -> 71991.02734 | AY73: ='Cash Flow'!R50 -> 94513.66316 | AZ73: ='Cash Flow'!S50 -> 116407.3572 | BA73: ='Cash Flow'!T50 -> 137200.5652 | BB73: ='Cash Flow'!U50 -> 156507.5349 | BC73: ='Cash Flow'!V50 -> 174049.533 | BD73: ='Cash Flow'!W50 -> 189664.1239 | BE73: ='Cash Flow'!X50 -> 203715.5799 | BF73: ='Cash Flow'!Y50 -> 215846.1545 | BG73: ='Cash Flow'!Z50 -> 226288.8951 | BH73: ='Cash Flow'!AA50 -> 236540.7959 | BI73: ='Cash Flow'!AB50 -> 240659.5859 | BJ73: ='Cash Flow'!AC50 -> 231166.7921 | BK73: ='Cash Flow'!AD50 -> 176614.7982 | BL73: ='Cash Flow'!AE50 -> 115236.9782 | BM73: ='Cash Flow'!AF50 -> 16794.42335 | BN73: ='Cash Flow'!AG50 -> 16920.38152 | BO73: ='Cash Flow'!AH50 -> 17047.28439 | BP73: ='Cash Flow'!AI50 -> 17175.13902 | BQ73: ='Cash Flow'!AJ50 -> 17303.95256 | BR73: ='Cash Flow'!AK50 -> 17433.73221 | BS73: ='Cash Flow'!AL50 -> 17564.4852 | BT73: ='Cash Flow'!AM50 -> 17696.21884 | BU73: ='Cash Flow'!AN50 -> 72140.03356 | BV73: ='Cash Flow'!AO50 -> 72681.08381 | BW73: ='Cash Flow'!AP50 -> 73226.19194 | BX73: ='Cash Flow'!AQ50 -> 73775.38838 | BY73: ='Cash Flow'!AR50 -> 74328.7038 | BZ73: ='Cash Flow'!AS50 -> 74886.16907 | CA73: ='Cash Flow'!AT50 -> 75447.81534 | CB73: ='Cash Flow'!AU50 -> 76013.67396 | CC73: ='Cash Flow'!AV50 -> 76583.77651 | CD73: ='Cash Flow'!AW50 -> 77158.15484 | CE73: ='Cash Flow'!AX50 -> 77736.841 | CF73: ='Cash Flow'!AY50 -> 78319.8673 | CG73: ='Cash Flow'!AZ50 -> 78907.26631 | CH73: ='Cash Flow'!BA50 -> 79499.07081 | CI73: ='Cash Flow'!BB50 -> 80095.31384 | CJ73: ='Cash Flow'!BC50 -> 80696.02869 | CK73: ='Cash Flow'!BD50 -> 81301.24891 | CL73: ='Cash Flow'!BE50 -> 81911.00827 | CM73: ='Cash Flow'!BF50 -> 82525.34084 | CN73: ='Cash Flow'!BG50 -> 83144.28089 | CO73: ='Cash Flow'!BH50 -> 83767.863 | CP73: ='Cash Flow'!BI50 -> 84396.12197 | CQ73: ='Cash Flow'!BJ50 -> 85029.09289 | CR73: ='Cash Flow'!BK50 -> 85666.81108 | CS73: ='Cash Flow'!BL50 -> 86309.31217
AI74: ='Cash Flow'!$A51 -> Preleasing and Leaseup Operating Deficit | AJ74: ='Cash Flow'!E51 -> 0 | AK74: ='Cash Flow'!F51 -> 0 | AM74: ='Cash Flow'!G51 -> 0 | AO74: ='Cash Flow'!H51 -> 0 | AP74: ='Cash Flow'!I51 -> 0 | AQ74: ='Cash Flow'!J51 -> 0 | AR74: ='Cash Flow'!K51 -> 0 | AS74: ='Cash Flow'!L51 -> 0 | AT74: ='Cash Flow'!M51 -> 0 | AU74: ='Cash Flow'!N51 -> 0 | AV74: ='Cash Flow'!O51 -> 0 | AW74: ='Cash Flow'!P51 -> 0 | AX74: ='Cash Flow'!Q51 -> 0 | AY74: ='Cash Flow'!R51 -> 0 | AZ74: ='Cash Flow'!S51 -> 0 | BA74: ='Cash Flow'!T51 -> 0 | BB74: ='Cash Flow'!U51 -> 0 | BC74: ='Cash Flow'!V51 -> 0 | BD74: ='Cash Flow'!W51 -> 0 | BE74: ='Cash Flow'!X51 -> 0 | BF74: ='Cash Flow'!Y51 -> 13333.33333 | BG74: ='Cash Flow'!Z51 -> 13333.33333 | BH74: ='Cash Flow'!AA51 -> 13333.33333 | BI74: ='Cash Flow'!AB51 -> 0 | BJ74: ='Cash Flow'!AC51 -> 0 | BK74: ='Cash Flow'!AD51 -> 0 | BL74: ='Cash Flow'!AE51 -> 0 | BM74: ='Cash Flow'!AF51 -> 0 | BN74: ='Cash Flow'!AG51 -> 0 | BO74: ='Cash Flow'!AH51 -> 0 | BP74: ='Cash Flow'!AI51 -> 0 | BQ74: ='Cash Flow'!AJ51 -> 0 | BR74: ='Cash Flow'!AK51 -> 0 | BS74: ='Cash Flow'!AL51 -> 0 | BT74: ='Cash Flow'!AM51 -> 0 | BU74: ='Cash Flow'!AN51 -> 0 | BV74: ='Cash Flow'!AO51 -> 0 | BW74: ='Cash Flow'!AP51 -> 0 | BX74: ='Cash Flow'!AQ51 -> 0 | BY74: ='Cash Flow'!AR51 -> 0 | BZ74: ='Cash Flow'!AS51 -> 0 | CA74: ='Cash Flow'!AT51 -> 0 | CB74: ='Cash Flow'!AU51 -> 0 | CC74: ='Cash Flow'!AV51 -> 0 | CD74: ='Cash Flow'!AW51 -> 0 | CE74: ='Cash Flow'!AX51 -> 0 | CF74: ='Cash Flow'!AY51 -> 0 | CG74: ='Cash Flow'!AZ51 -> 0 | CH74: ='Cash Flow'!BA51 -> 0 | CI74: ='Cash Flow'!BB51 -> 0 | CJ74: ='Cash Flow'!BC51 -> 0 | CK74: ='Cash Flow'!BD51 -> 0 | CL74: ='Cash Flow'!BE51 -> 0 | CM74: ='Cash Flow'!BF51 -> 0 | CN74: ='Cash Flow'!BG51 -> 0 | CO74: ='Cash Flow'!BH51 -> 0 | CP74: ='Cash Flow'!BI51 -> 0 | CQ74: ='Cash Flow'!BJ51 -> 0 | CR74: ='Cash Flow'!BK51 -> 0 | CS74: ='Cash Flow'!BL51 -> 0
AI75: ='Cash Flow'!$A52 -> Non-Accrual Interest Reserve | AJ75: ='Cash Flow'!E52 -> 0 | AK75: ='Cash Flow'!F52 -> 0 | AM75: ='Cash Flow'!G52 -> 0 | AO75: ='Cash Flow'!H52 -> 0 | AP75: ='Cash Flow'!I52 -> 0 | AQ75: ='Cash Flow'!J52 -> 0 | AR75: ='Cash Flow'!K52 -> 0 | AS75: ='Cash Flow'!L52 -> 0 | AT75: ='Cash Flow'!M52 -> 0 | AU75: ='Cash Flow'!N52 -> 0 | AV75: ='Cash Flow'!O52 -> 0 | AW75: ='Cash Flow'!P52 -> 0 | AX75: ='Cash Flow'!Q52 -> 0 | AY75: ='Cash Flow'!R52 -> 0 | AZ75: ='Cash Flow'!S52 -> 0 | BA75: ='Cash Flow'!T52 -> 0 | BB75: ='Cash Flow'!U52 -> 0 | BC75: ='Cash Flow'!V52 -> 0 | BD75: ='Cash Flow'!W52 -> 0 | BE75: ='Cash Flow'!X52 -> 0 | BF75: ='Cash Flow'!Y52 -> 0 | BG75: ='Cash Flow'!Z52 -> 0 | BH75: ='Cash Flow'!AA52 -> 0 | BI75: ='Cash Flow'!AB52 -> 0 | BJ75: ='Cash Flow'!AC52 -> 0 | BK75: ='Cash Flow'!AD52 -> 0 | BL75: ='Cash Flow'!AE52 -> 0 | BM75: ='Cash Flow'!AF52 -> 0 | BN75: ='Cash Flow'!AG52 -> 0 | BO75: ='Cash Flow'!AH52 -> 0 | BP75: ='Cash Flow'!AI52 -> 0 | BQ75: ='Cash Flow'!AJ52 -> 0 | BR75: ='Cash Flow'!AK52 -> 0 | BS75: ='Cash Flow'!AL52 -> 0 | BT75: ='Cash Flow'!AM52 -> 0 | BU75: ='Cash Flow'!AN52 -> 0 | BV75: ='Cash Flow'!AO52 -> 0 | BW75: ='Cash Flow'!AP52 -> 0 | BX75: ='Cash Flow'!AQ52 -> 0 | BY75: ='Cash Flow'!AR52 -> 0 | BZ75: ='Cash Flow'!AS52 -> 0 | CA75: ='Cash Flow'!AT52 -> 0 | CB75: ='Cash Flow'!AU52 -> 0 | CC75: ='Cash Flow'!AV52 -> 0 | CD75: ='Cash Flow'!AW52 -> 0 | CE75: ='Cash Flow'!AX52 -> 0 | CF75: ='Cash Flow'!AY52 -> 0 | CG75: ='Cash Flow'!AZ52 -> 0 | CH75: ='Cash Flow'!BA52 -> 0 | CI75: ='Cash Flow'!BB52 -> 0 | CJ75: ='Cash Flow'!BC52 -> 0 | CK75: ='Cash Flow'!BD52 -> 0 | CL75: ='Cash Flow'!BE52 -> 0 | CM75: ='Cash Flow'!BF52 -> 0 | CN75: ='Cash Flow'!BG52 -> 0 | CO75: ='Cash Flow'!BH52 -> 0 | CP75: ='Cash Flow'!BI52 -> 0 | CQ75: ='Cash Flow'!BJ52 -> 0 | CR75: ='Cash Flow'!BK52 -> 0 | CS75: ='Cash Flow'!BL52 -> 0
AI76: ='Cash Flow'!$A53 -> Retail TIs | AJ76: ='Cash Flow'!E53 -> 0 | AK76: ='Cash Flow'!F53 -> 0 | AM76: ='Cash Flow'!G53 -> 0 | AO76: ='Cash Flow'!H53 -> 0 | AP76: ='Cash Flow'!I53 -> 0 | AQ76: ='Cash Flow'!J53 -> 0 | AR76: ='Cash Flow'!K53 -> 0 | AS76: ='Cash Flow'!L53 -> 0 | AT76: ='Cash Flow'!M53 -> 0 | AU76: ='Cash Flow'!N53 -> 0 | AV76: ='Cash Flow'!O53 -> 0 | AW76: ='Cash Flow'!P53 -> 0 | AX76: ='Cash Flow'!Q53 -> 0 | AY76: ='Cash Flow'!R53 -> 0 | AZ76: ='Cash Flow'!S53 -> 0 | BA76: ='Cash Flow'!T53 -> 0 | BB76: ='Cash Flow'!U53 -> 0 | BC76: ='Cash Flow'!V53 -> 0 | BD76: ='Cash Flow'!W53 -> 55068.75 | BE76: ='Cash Flow'!X53 -> 55068.75 | BF76: ='Cash Flow'!Y53 -> 55068.75 | BG76: ='Cash Flow'!Z53 -> 55068.75 | BH76: ='Cash Flow'!AA53 -> 55068.75 | BI76: ='Cash Flow'!AB53 -> 55068.75 | BJ76: ='Cash Flow'!AC53 -> 55068.75 | BK76: ='Cash Flow'!AD53 -> 55068.75 | BL76: ='Cash Flow'!AE53 -> 0 | BM76: ='Cash Flow'!AF53 -> 0 | BN76: ='Cash Flow'!AG53 -> 0 | BO76: ='Cash Flow'!AH53 -> 0 | BP76: ='Cash Flow'!AI53 -> 0 | BQ76: ='Cash Flow'!AJ53 -> 0 | BR76: ='Cash Flow'!AK53 -> 0 | BS76: ='Cash Flow'!AL53 -> 0 | BT76: ='Cash Flow'!AM53 -> 0 | BU76: ='Cash Flow'!AN53 -> 0 | BV76: ='Cash Flow'!AO53 -> 0 | BW76: ='Cash Flow'!AP53 -> 0 | BX76: ='Cash Flow'!AQ53 -> 0 | BY76: ='Cash Flow'!AR53 -> 0 | BZ76: ='Cash Flow'!AS53 -> 0 | CA76: ='Cash Flow'!AT53 -> 0 | CB76: ='Cash Flow'!AU53 -> 0 | CC76: ='Cash Flow'!AV53 -> 0 | CD76: ='Cash Flow'!AW53 -> 0 | CE76: ='Cash Flow'!AX53 -> 0 | CF76: ='Cash Flow'!AY53 -> 0 | CG76: ='Cash Flow'!AZ53 -> 0 | CH76: ='Cash Flow'!BA53 -> 0 | CI76: ='Cash Flow'!BB53 -> 0 | CJ76: ='Cash Flow'!BC53 -> 0 | CK76: ='Cash Flow'!BD53 -> 0 | CL76: ='Cash Flow'!BE53 -> 0 | CM76: ='Cash Flow'!BF53 -> 0 | CN76: ='Cash Flow'!BG53 -> 0 | CO76: ='Cash Flow'!BH53 -> 0 | CP76: ='Cash Flow'!BI53 -> 0 | CQ76: ='Cash Flow'!BJ53 -> 0 | CR76: ='Cash Flow'!BK53 -> 0 | CS76: ='Cash Flow'!BL53 -> 0
AI77: ='Cash Flow'!$A57 -> Monthly Funding Requirements | AJ77: ='Cash Flow'!E57 -> 12204251.6 | AK77: ='Cash Flow'!F57 -> 828000.008 | AM77: ='Cash Flow'!G57 -> 1051388.043 | AO77: ='Cash Flow'!H57 -> 1641442.229 | AP77: ='Cash Flow'!I57 -> 1911611.198 | AQ77: ='Cash Flow'!J57 -> 2190712.53 | AR77: ='Cash Flow'!K57 -> 2465242.155 | AS77: ='Cash Flow'!L57 -> 2719878.658 | AT77: ='Cash Flow'!M57 -> 2656020.381 | AU77: ='Cash Flow'!N57 -> 2830594.911 | AV77: ='Cash Flow'!O57 -> 2958205.91 | AW77: ='Cash Flow'!P57 -> 3016753.915 | AX77: ='Cash Flow'!Q57 -> 3003018.109 | AY77: ='Cash Flow'!R57 -> 2919159.207 | AZ77: ='Cash Flow'!S57 -> 2772427.738 | BA77: ='Cash Flow'!T57 -> 2574262.616 | BB77: ='Cash Flow'!U57 -> 2338933.083 | BC77: ='Cash Flow'!V57 -> 2081945.456 | BD77: ='Cash Flow'!W57 -> 1873527.465 | BE77: ='Cash Flow'!X57 -> 1617409.951 | BF77: ='Cash Flow'!Y57 -> 1392365.406 | BG77: ='Cash Flow'!Z57 -> 1366920.111 | BH77: ='Cash Flow'!AA57 -> 549172.0042 | BI77: ='Cash Flow'!AB57 -> 1050519.586 | BJ77: ='Cash Flow'!AC57 -> 473735.5421 | BK77: ='Cash Flow'!AD57 -> 231683.5482 | BL77: ='Cash Flow'!AE57 -> 115236.9782 | BM77: ='Cash Flow'!AF57 -> 16794.42335 | BN77: ='Cash Flow'!AG57 -> 16920.38152 | BO77: ='Cash Flow'!AH57 -> 17047.28439 | BP77: ='Cash Flow'!AI57 -> 17175.13902 | BQ77: ='Cash Flow'!AJ57 -> 17303.95256 | BR77: ='Cash Flow'!AK57 -> 17433.73221 | BS77: ='Cash Flow'!AL57 -> 17564.4852 | BT77: ='Cash Flow'!AM57 -> 17696.21884 | BU77: ='Cash Flow'!AN57 -> 72140.03356 | BV77: ='Cash Flow'!AO57 -> 72681.08381 | BW77: ='Cash Flow'!AP57 -> 73226.19194 | BX77: ='Cash Flow'!AQ57 -> 73775.38838 | BY77: ='Cash Flow'!AR57 -> 74328.7038 | BZ77: ='Cash Flow'!AS57 -> 74886.16907 | CA77: ='Cash Flow'!AT57 -> 75447.81534 | CB77: ='Cash Flow'!AU57 -> 76013.67396 | CC77: ='Cash Flow'!AV57 -> 76583.77651 | CD77: ='Cash Flow'!AW57 -> 77158.15484 | CE77: ='Cash Flow'!AX57 -> 77736.841 | CF77: ='Cash Flow'!AY57 -> 78319.8673 | CG77: ='Cash Flow'!AZ57 -> 78907.26631 | CH77: ='Cash Flow'!BA57 -> 79499.07081 | CI77: ='Cash Flow'!BB57 -> 80095.31384 | CJ77: ='Cash Flow'!BC57 -> 80696.02869 | CK77: ='Cash Flow'!BD57 -> 81301.24891 | CL77: ='Cash Flow'!BE57 -> 81911.00827 | CM77: ='Cash Flow'!BF57 -> 82525.34084 | CN77: ='Cash Flow'!BG57 -> 83144.28089 | CO77: ='Cash Flow'!BH57 -> 83767.863 | CP77: ='Cash Flow'!BI57 -> 84396.12197 | CQ77: ='Cash Flow'!BJ57 -> 85029.09289 | CR77: ='Cash Flow'!BK57 -> 85666.81108 | CS77: ='Cash Flow'!BL57 -> 86309.31217
AI79: Total Development Costs | AJ79: =SUM(AJ77:AJ77) -> 12204251.6 | AK79: =SUM(AK77:AK77) -> 828000.008 | AM79: 1051388.043 | AO79: 1641442.229 | AP79: 1911611.198 | AQ79: 2190712.53 | AR79: 2465242.155 | AS79: 2719878.658 | AT79: 2656020.381 | AU79: 2830594.911 | AV79: 2958205.91 | AW79: 3016753.915 | AX79: 3003018.109 | AY79: 2919159.207 | AZ79: 2772427.738 | BA79: 2574262.616 | BB79: 2338933.083 | BC79: 2081945.456 | BD79: 1873527.465 | BE79: 1617409.951 | BF79: 1392365.406 | BG79: 1366920.111 | BH79: 549172.0042 | BI79: 1050519.586 | BJ79: 473735.5421 | BK79: 231683.5482 | BL79: 115236.9782 | BM79: 16794.42335 | BN79: 16920.38152 | BO79: 17047.28439 | BP79: 17175.13902 | BQ79: 17303.95256 | BR79: 17433.73221 | BS79: 17564.4852 | BT79: 17696.21884 | BU79: 72140.03356 | BV79: 72681.08381 | BW79: 73226.19194 | BX79: 73775.38838 | BY79: 74328.7038 | BZ79: 74886.16907 | CA79: 75447.81534 | CB79: 76013.67396 | CC79: 76583.77651 | CD79: 77158.15484 | CE79: 77736.841 | CF79: 78319.8673 | CG79: 78907.26631 | CH79: 79499.07081 | CI79: 80095.31384 | CJ79: 80696.02869 | CK79: 81301.24891 | CL79: 81911.00827 | CM79: 82525.34084 | CN79: 83144.28089 | CO79: 83767.863 | CP79: =SUM(CP77:CP77) -> 84396.12197 | CQ79: =SUM(CQ77:CQ77) -> 85029.09289 | CR79: =SUM(CR77:CR77) -> 85666.81108 | CS79: =SUM(CS77:CS77) -> 86309.31217
AJ80: =SUM(AJ77:CO77) -> 62606499.08

Sheet Deal Summary (GP) (hidden)
B2: ='Deal Summary (LP Equity)'!B2 -> GOLDEN HILL FINANCE SUMMARY
AH3: Timing Summary
B5: Timing | H5: Construction Loan | N5: Total Project Cash Flow Summary | AI5: Start Date | AJ5: End Date | AK5: Duration (months) | AL5: Percent Complete
B6: Schedule | E6: Month | F6: Date | H6: Total Commitment | L6: =+E55 -> 33928543.49 | AH6: Construction Period | AI6: =EDATE((EOMONTH(F8,0)+1),-1) -> 2023-08-01 | AJ6: =(EOMONTH(F10,0)) -> 2025-08-31 | AK6: =ROUNDDOWN(DAYS360(AI6,AJ6)+30,0) -> 780 | AL6: =IF($AI$28>AJ6,1,IF($AI$28<AI6,0,($AI$28-AI6)/(AJ6-AI6))) -> 0
B7: Land Close | E7: =Assumptions!F32 -> 1 | F7: =Assumptions!E32 -> 2023-06-15 | H7: Interest rate | L7: =+Assumptions!$F$281 -> 0.09 | O7: Total | Q7: 1 | R7: 2 | S7: 3 | T7: 4 | U7: 5 | V7: 6 | W7: 7 | X7: 8 | Y7: 9 | Z7: 10 | AH7: Lease Up | AI7: =EDATE((EOMONTH(F9,0)+1),-1) -> 2025-05-01 | AJ7: =(EOMONTH(F10,0)) -> 2025-08-31 | AK7: =ROUNDDOWN(DAYS360(AI7,AJ7)+30,0) -> 150 | AL7: =IF($AI$28>AJ7,1,IF($AI$28<AI7,0,($AI$28-AI7)/(AJ7-AI7))) -> 0
B8: Construction Start Date | E8: =Assumptions!F34 -> 2 | F8: =Assumptions!E34 -> 2023-08-15 | H8: Term (years) | L8: 5 | N8: Operations Summary | AH8: Stabilization to Sale | AI8: =EDATE((EOMONTH(F11,0)+1),-1) -> 2026-05-01 | AJ8: =EOMONTH(F13,0) -> 2033-06-30 | AK8: =ROUNDDOWN(DAYS360(AI8,AJ8)+30,0) -> 2609 | AL8: =IF($AI$28>AJ8,1,IF($AI$28<AI8,0,($AI$28-AI8)/(AJ8-AI8))) -> 0
B9: First Unit Delivered | E9: =Assumptions!F35 -> 23 | F9: =Assumptions!E35 -> 2025-05-15 | H9: Structure | L9: Amortized | N9: Total Revenues | Q9: =SUMIF('Trended Cash Flow'!$E$421:$EF$421,Q$7,'Trended Cash Flow'!$E$31:$EF$31) -> 0 | R9: =SUMIF('Trended Cash Flow'!$E$421:$EF$421,R$7,'Trended Cash Flow'!$E$31:$EF$31) -> 0 | S9: =SUMIF('Trended Cash Flow'!$E$421:$EF$421,S$7,'Trended Cash Flow'!$E$31:$EF$31) -> 4405934.812 | T9: =SUMIF('Trended Cash Flow'!$E$421:$EF$421,T$7,'Trended Cash Flow'!$E$31:$EF$31) -> 5181246.532 | U9: =SUMIF('Trended Cash Flow'!$E$421:$EF$421,U$7,'Trended Cash Flow'!$E$31:$EF$31) -> 5350885.917 | V9: =SUMIF('Trended Cash Flow'!$E$421:$EF$421,V$7,'Trended Cash Flow'!$E$31:$EF$31) -> 5526082.811 | W9: =SUMIF('Trended Cash Flow'!$E$421:$EF$421,W$7,'Trended Cash Flow'!$E$31:$EF$31) -> 5707019.381 | X9: =SUMIF('Trended Cash Flow'!$E$421:$EF$421,X$7,'Trended Cash Flow'!$E$31:$EF$31) -> 5893883.773 | Y9: =SUMIF('Trended Cash Flow'!$E$421:$EF$421,Y$7,'Trended Cash Flow'!$E$31:$EF$31) -> 6086870.3 | Z9: =SUMIF('Trended Cash Flow'!$E$421:$EF$421,Z$7,'Trended Cash Flow'!$E$31:$EF$31) -> 6286179.65 | AA9: =SUMIF('Trended Cash Flow'!$E$421:$EF$421,AA$7,'Trended Cash Flow'!$E$31:$EF$31) -> 0
B10: Last Unit Delivered | E10: =Assumptions!F36 -> 26.86785714 | F10: =+Assumptions!E36 -> 2025-08-15 | N10: Operating Expenses | Q10: =-SUMIF('Trended Cash Flow'!$E$421:$EF$421,Q$7,'Trended Cash Flow'!$E$34:$EF$34) -> 0 | R10: =-SUMIF('Trended Cash Flow'!$E$421:$EF$421,R$7,'Trended Cash Flow'!$E$34:$EF$34) -> -107888.8664 | S10: =-SUMIF('Trended Cash Flow'!$E$421:$EF$421,S$7,'Trended Cash Flow'!$E$34:$EF$34) -> -313593.2867 | T10: =-SUMIF('Trended Cash Flow'!$E$421:$EF$421,T$7,'Trended Cash Flow'!$E$34:$EF$34) -> -1175148.316 | U10: =-SUMIF('Trended Cash Flow'!$E$421:$EF$421,U$7,'Trended Cash Flow'!$E$34:$EF$34) -> -1210891.576 | V10: =-SUMIF('Trended Cash Flow'!$E$421:$EF$421,V$7,'Trended Cash Flow'!$E$34:$EF$34) -> -1247722.002 | W10: =-SUMIF('Trended Cash Flow'!$E$421:$EF$421,W$7,'Trended Cash Flow'!$E$34:$EF$34) -> -1285672.661 | X10: =-SUMIF('Trended Cash Flow'!$E$421:$EF$421,X$7,'Trended Cash Flow'!$E$34:$EF$34) -> -1324777.625 | Y10: =-SUMIF('Trended Cash Flow'!$E$421:$EF$421,Y$7,'Trended Cash Flow'!$E$34:$EF$34) -> -1365072.004 | Z10: =-SUMIF('Trended Cash Flow'!$E$421:$EF$421,Z$7,'Trended Cash Flow'!$E$34:$EF$34) -> -1406591.976 | AA10: =-SUMIF('Trended Cash Flow'!$E$421:$EF$421,AA$7,'Trended Cash Flow'!$E$34:$EF$34) -> 0
B11: Stabilized | E11: =Assumptions!F37 -> 35 | F11: =+Assumptions!E37 -> 2026-05-15 | H11: Refinance Debt Terms | N11: Project Net Operating Income | Q11: =SUMIF('Trended Cash Flow'!$E$421:$EF$421,Q$7,'Trended Cash Flow'!$E$35:$EF$35) -> 0 | R11: =SUMIF('Trended Cash Flow'!$E$421:$EF$421,R$7,'Trended Cash Flow'!$E$35:$EF$35) -> -107888.8664 | S11: =SUMIF('Trended Cash Flow'!$E$421:$EF$421,S$7,'Trended Cash Flow'!$E$35:$EF$35) -> 4092341.525 | T11: =SUMIF('Trended Cash Flow'!$E$421:$EF$421,T$7,'Trended Cash Flow'!$E$35:$EF$35) -> 4006098.216 | U11: =SUMIF('Trended Cash Flow'!$E$421:$EF$421,U$7,'Trended Cash Flow'!$E$35:$EF$35) -> 4139994.341 | V11: =SUMIF('Trended Cash Flow'!$E$421:$EF$421,V$7,'Trended Cash Flow'!$E$35:$EF$35) -> 4278360.808 | W11: =SUMIF('Trended Cash Flow'!$E$421:$EF$421,W$7,'Trended Cash Flow'!$E$35:$EF$35) -> 4421346.72 | X11: =SUMIF('Trended Cash Flow'!$E$421:$EF$421,X$7,'Trended Cash Flow'!$E$35:$EF$35) -> 4569106.148 | Y11: =SUMIF('Trended Cash Flow'!$E$421:$EF$421,Y$7,'Trended Cash Flow'!$E$35:$EF$35) -> 4721798.296 | Z11: =SUMIF('Trended Cash Flow'!$E$421:$EF$421,Z$7,'Trended Cash Flow'!$E$35:$EF$35) -> 4879587.674 | AA11: =SUMIF('Trended Cash Flow'!$E$421:$EF$421,AA$7,'Trended Cash Flow'!$E$35:$EF$35) -> 0
B12: Refinance | D12: Sale Year | E12: =Assumptions!AH13 -> 35 | F12: =Assumptions!AI13 -> 2026-04-15 | H12: Refi Date | K12: =Assumptions!AH13 -> 35 | L12: =Assumptions!AI13 -> 2026-04-15
B13: Sale Date | D13: =INDEX('Trended Cash Flow'!$E$421:$EF$421,,MATCH($E$13,'Trended Cash Flow'!$E$11:$EF$11,0)) -> 10 | E13: =Assumptions!F38 -> 120 | F13: =Assumptions!E38 -> 2033-06-15 | H13: Closing Costs | L13: =Assumptions!AI14 -> 0.0075 | N13: Preleasing and Leaseup Operating Deficit | Q13: =SUMIF('Trended Cash Flow'!$E$421:$EF$421,Q$7,'Trended Cash Flow'!$E$51:$EF$51) -> 0 | R13: =SUMIF('Trended Cash Flow'!$E$421:$EF$421,R$7,'Trended Cash Flow'!$E$51:$EF$51) -> 40000 | S13: =SUMIF('Trended Cash Flow'!$E$421:$EF$421,S$7,'Trended Cash Flow'!$E$51:$EF$51) -> 0 | T13: =SUMIF('Trended Cash Flow'!$E$421:$EF$421,T$7,'Trended Cash Flow'!$E$51:$EF$51) -> 0 | U13: =SUMIF('Trended Cash Flow'!$E$421:$EF$421,U$7,'Trended Cash Flow'!$E$51:$EF$51) -> 0 | V13: =SUMIF('Trended Cash Flow'!$E$421:$EF$421,V$7,'Trended Cash Flow'!$E$51:$EF$51) -> 0 | W13: =SUMIF('Trended Cash Flow'!$E$421:$EF$421,W$7,'Trended Cash Flow'!$E$51:$EF$51) -> 0 | X13: =SUMIF('Trended Cash Flow'!$E$421:$EF$421,X$7,'Trended Cash Flow'!$E$51:$EF$51) -> 0 | Y13: =SUMIF('Trended Cash Flow'!$E$421:$EF$421,Y$7,'Trended Cash Flow'!$E$51:$EF$51) -> 0 | Z13: =SUMIF('Trended Cash Flow'!$E$421:$EF$421,Z$7,'Trended Cash Flow'!$E$51:$EF$51) -> 0 | AA13: =SUMIF('Trended Cash Flow'!$E$421:$EF$421,AA$7,'Trended Cash Flow'!$E$51:$EF$51) -> 0
B15: Project Summary | H15: Forward 12 NOI at Refi | L15: =Assumptions!AG17 -> 4613391.709 | N15: Debt Service
B16: Total Number of Units | F16: =Assumptions!$J$197 -> 114 | H16: Cap Rate | L16: =Assumptions!AG19 -> 0.045 | N16: Interest Payments | Q16: =-(-SUMIF('Trended Cash Flow'!$E$421:$EF$421,Q$7,'Trended Cash Flow'!$E$59:$EF$59)-SUMIF('Trended Cash Flow'!$E$421:$EF$421,Q$7,'Trended Cash Flow'!$E$367:$EF$367)-SUMIF('Trended Cash Flow'!$E$421:$EF$421,Q$7,'Trended Cash Flow'!$E$368:$EF$368)-SUMIF('Trended Cash Flow'!$E$421:$EF$421,Q$7,'Trended Cash Flow'!$E$386:$EF$386)-SUMIF('Trended Cash Flow'!$E$421:$EF$421,Q$7,'Trended Cash Flow'!$E$396:$EF$396)) -> 0 | R16: =-(-SUMIF('Trended Cash Flow'!$E$421:$EF$421,R$7,'Trended Cash Flow'!$E$59:$EF$59)-SUMIF('Trended Cash Flow'!$E$421:$EF$421,R$7,'Trended Cash Flow'!$E$367:$EF$367)-SUMIF('Trended Cash Flow'!$E$421:$EF$421,R$7,'Trended Cash Flow'!$E$368:$EF$368)-SUMIF('Trended Cash Flow'!$E$421:$EF$421,R$7,'Trended Cash Flow'!$E$386:$EF$386)-SUMIF('Trended Cash Flow'!$E$421:$EF$421,R$7,'Trended Cash Flow'!$E$396:$EF$396)) -> 0 | S16: =-(-SUMIF('Trended Cash Flow'!$E$421:$EF$421,S$7,'Trended Cash Flow'!$E$59:$EF$59)-SUMIF('Trended Cash Flow'!$E$421:$EF$421,S$7,'Trended Cash Flow'!$E$367:$EF$367)-SUMIF('Trended Cash Flow'!$E$421:$EF$421,S$7,'Trended Cash Flow'!$E$368:$EF$368)-SUMIF('Trended Cash Flow'!$E$421:$EF$421,S$7,'Trended Cash Flow'!$E$386:$EF$386)-SUMIF('Trended Cash Flow'!$E$421:$EF$421,S$7,'Trended Cash Flow'!$E$396:$EF$396)) -> -2688045.256 | T16: =-(-SUMIF('Trended Cash Flow'!$E$421:$EF$421,T$7,'Trended Cash Flow'!$E$59:$EF$59)-SUMIF('Trended Cash Flow'!$E$421:$EF$421,T$7,'Trended Cash Flow'!$E$367:$EF$367)-SUMIF('Trended Cash Flow'!$E$421:$EF$421,T$7,'Trended Cash Flow'!$E$368:$EF$368)-SUMIF('Trended Cash Flow'!$E$421:$EF$421,T$7,'Trended Cash Flow'!$E$386:$EF$386)-SUMIF('Trended Cash Flow'!$E$421:$EF$421,T$7,'Trended Cash Flow'!$E$396:$EF$396)) -> -2796855.518 | U16: =-(-SUMIF('Trended Cash Flow'!$E$421:$EF$421,U$7,'Trended Cash Flow'!$E$59:$EF$59)-SUMIF('Trended Cash Flow'!$E$421:$EF$421,U$7,'Trended Cash Flow'!$E$367:$EF$367)-SUMIF('Trended Cash Flow'!$E$421:$EF$421,U$7,'Trended Cash Flow'!$E$368:$EF$368)-SUMIF('Trended Cash Flow'!$E$421:$EF$421,U$7,'Trended Cash Flow'!$E$386:$EF$386)-SUMIF('Trended Cash Flow'!$E$421:$EF$421,U$7,'Trended Cash Flow'!$E$396:$EF$396)) -> -2796855.518 | V16: =-(-SUMIF('Trended Cash Flow'!$E$421:$EF$421,V$7,'Trended Cash Flow'!$E$59:$EF$59)-SUMIF('Trended Cash Flow'!$E$421:$EF$421,V$7,'Trended Cash Flow'!$E$367:$EF$367)-SUMIF('Trended Cash Flow'!$E$421:$EF$421,V$7,'Trended Cash Flow'!$E$368:$EF$368)-SUMIF('Trended Cash Flow'!$E$421:$EF$421,V$7,'Trended Cash Flow'!$E$386:$EF$386)-SUMIF('Trended Cash Flow'!$E$421:$EF$421,V$7,'Trended Cash Flow'!$E$396:$EF$396)) -> -2796855.518 | W16: =-(-SUMIF('Trended Cash Flow'!$E$421:$EF$421,W$7,'Trended Cash Flow'!$E$59:$EF$59)-SUMIF('Trended Cash Flow'!$E$421:$EF$421,W$7,'Trended Cash Flow'!$E$367:$EF$367)-SUMIF('Trended Cash Flow'!$E$421:$EF$421,W$7,'Trended Cash Flow'!$E$368:$EF$368)-SUMIF('Trended Cash Flow'!$E$421:$EF$421,W$7,'Trended Cash Flow'!$E$386:$EF$386)-SUMIF('Trended Cash Flow'!$E$421:$EF$421,W$7,'Trended Cash Flow'!$E$396:$EF$396)) -> 1416084.02 | X16: =-(-SUMIF('Trended Cash Flow'!$E$421:$EF$421,X$7,'Trended Cash Flow'!$E$59:$EF$59)-SUMIF('Trended Cash Flow'!$E$421:$EF$421,X$7,'Trended Cash Flow'!$E$367:$EF$367)-SUMIF('Trended Cash Flow'!$E$421:$EF$421,X$7,'Trended Cash Flow'!$E$368:$EF$368)-SUMIF('Trended Cash Flow'!$E$421:$EF$421,X$7,'Trended Cash Flow'!$E$386:$EF$386)-SUMIF('Trended Cash Flow'!$E$421:$EF$421,X$7,'Trended Cash Flow'!$E$396:$EF$396)) -> 1775285.669 | Y16: =-(-SUMIF('Trended Cash Flow'!$E$421:$EF$421,Y$7,'Trended Cash Flow'!$E$59:$EF$59)-SUMIF('Trended Cash Flow'!$E$421:$EF$421,Y$7,'Trended Cash Flow'!$E$367:$EF$367)-SUMIF('Trended Cash Flow'!$E$421:$EF$421,Y$7,'Trended Cash Flow'!$E$368:$EF$368)-SUMIF('Trended Cash Flow'!$E$421:$EF$421,Y$7,'Trended Cash Flow'!$E$386:$EF$386)-SUMIF('Trended Cash Flow'!$E$421:$EF$421,Y$7,'Trended Cash Flow'!$E$396:$EF$396)) -> 1750458.344 | Z16: =-(-SUMIF('Trended Cash Flow'!$E$421:$EF$421,Z$7,'Trended Cash Flow'!$E$59:$EF$59)-SUMIF('Trended Cash Flow'!$E$421:$EF$421,Z$7,'Trended Cash Flow'!$E$367:$EF$367)-SUMIF('Trended Cash Flow'!$E$421:$EF$421,Z$7,'Trended Cash Flow'!$E$368:$EF$368)-SUMIF('Trended Cash Flow'!$E$421:$EF$421,Z$7,'Trended Cash Flow'!$E$386:$EF$386)-SUMIF('Trended Cash Flow'!$E$421:$EF$421,Z$7,'Trended Cash Flow'!$E$396:$EF$396)) -> 1725200.067 | AA16: =-(-SUMIF('Trended Cash Flow'!$E$421:$EF$421,AA$7,'Trended Cash Flow'!$E$59:$EF$59)-SUMIF('Trended Cash Flow'!$E$421:$EF$421,AA$7,'Trended Cash Flow'!$E$367:$EF$367)-SUMIF('Trended Cash Flow'!$E$421:$EF$421,AA$7,'Trended Cash Flow'!$E$368:$EF$368)-SUMIF('Trended Cash Flow'!$E$421:$EF$421,AA$7,'Trended Cash Flow'!$E$386:$EF$386)-SUMIF('Trended Cash Flow'!$E$421:$EF$421,AA$7,'Trended Cash Flow'!$E$396:$EF$396)) -> 0
B17: Total Rentable Square Feet | F17: =Assumptions!$H$197 -> 78585 | H17: LTV | L17: =Assumptions!AG20 -> 0.8 | N17: Principal Payments | Q17: =SUMIF('Trended Cash Flow'!$E$421:$EF$421,Q$7,'Trended Cash Flow'!$E$387:$EF$387)+SUMIF('Trended Cash Flow'!$E$421:$EF$421,Q$7,'Trended Cash Flow'!$E$397:$EF$397) -> 0 | R17: =SUMIF('Trended Cash Flow'!$E$421:$EF$421,R$7,'Trended Cash Flow'!$E$387:$EF$387)+SUMIF('Trended Cash Flow'!$E$421:$EF$421,R$7,'Trended Cash Flow'!$E$397:$EF$397) -> 0 | S17: =SUMIF('Trended Cash Flow'!$E$421:$EF$421,S$7,'Trended Cash Flow'!$E$387:$EF$387)+SUMIF('Trended Cash Flow'!$E$421:$EF$421,S$7,'Trended Cash Flow'!$E$397:$EF$397) -> 0 | T17: =SUMIF('Trended Cash Flow'!$E$421:$EF$421,T$7,'Trended Cash Flow'!$E$387:$EF$387)+SUMIF('Trended Cash Flow'!$E$421:$EF$421,T$7,'Trended Cash Flow'!$E$397:$EF$397) -> 0 | U17: =SUMIF('Trended Cash Flow'!$E$421:$EF$421,U$7,'Trended Cash Flow'!$E$387:$EF$387)+SUMIF('Trended Cash Flow'!$E$421:$EF$421,U$7,'Trended Cash Flow'!$E$397:$EF$397) -> 0 | V17: =SUMIF('Trended Cash Flow'!$E$421:$EF$421,V$7,'Trended Cash Flow'!$E$387:$EF$387)+SUMIF('Trended Cash Flow'!$E$421:$EF$421,V$7,'Trended Cash Flow'!$E$397:$EF$397) -> 0 | W17: =SUMIF('Trended Cash Flow'!$E$421:$EF$421,W$7,'Trended Cash Flow'!$E$387:$EF$387)+SUMIF('Trended Cash Flow'!$E$421:$EF$421,W$7,'Trended Cash Flow'!$E$397:$EF$397) -> -700257.8998 | X17: =SUMIF('Trended Cash Flow'!$E$421:$EF$421,X$7,'Trended Cash Flow'!$E$387:$EF$387)+SUMIF('Trended Cash Flow'!$E$421:$EF$421,X$7,'Trended Cash Flow'!$E$397:$EF$397) -> -763917.7088 | Y17: =SUMIF('Trended Cash Flow'!$E$421:$EF$421,Y$7,'Trended Cash Flow'!$E$387:$EF$387)+SUMIF('Trended Cash Flow'!$E$421:$EF$421,Y$7,'Trended Cash Flow'!$E$397:$EF$397) -> -763917.7088 | Z17: =SUMIF('Trended Cash Flow'!$E$421:$EF$421,Z$7,'Trended Cash Flow'!$E$387:$EF$387)+SUMIF('Trended Cash Flow'!$E$421:$EF$421,Z$7,'Trended Cash Flow'!$E$397:$EF$397) -> -763917.7088 | AA17: =SUMIF('Trended Cash Flow'!$E$421:$EF$421,AA$7,'Trended Cash Flow'!$E$387:$EF$387)+SUMIF('Trended Cash Flow'!$E$421:$EF$421,AA$7,'Trended Cash Flow'!$E$397:$EF$397) -> 0
B18: Average Unit Size | F18: =Assumptions!$H$198 -> 689.3421053 | N18: Total Debt Service | Q18: =SUMIF('Trended Cash Flow'!$E$421:$EF$421,Q$7,'Trended Cash Flow'!$E$59:$EF$59)+SUMIF('Trended Cash Flow'!$E$421:$EF$421,Q$7,'Trended Cash Flow'!$E$60:$EF$60)+SUMIF('Trended Cash Flow'!$E$421:$EF$421,Q$7,'Trended Cash Flow'!$E$61:$EF$61)+SUMIF('Trended Cash Flow'!$E$421:$EF$421,Q$7,'Trended Cash Flow'!$E$62:$EF$62) -> 0 | R18: =SUMIF('Trended Cash Flow'!$E$421:$EF$421,R$7,'Trended Cash Flow'!$E$59:$EF$59)+SUMIF('Trended Cash Flow'!$E$421:$EF$421,R$7,'Trended Cash Flow'!$E$60:$EF$60)+SUMIF('Trended Cash Flow'!$E$421:$EF$421,R$7,'Trended Cash Flow'!$E$61:$EF$61)+SUMIF('Trended Cash Flow'!$E$421:$EF$421,R$7,'Trended Cash Flow'!$E$62:$EF$62) -> 0 | S18: =SUMIF('Trended Cash Flow'!$E$421:$EF$421,S$7,'Trended Cash Flow'!$E$59:$EF$59)+SUMIF('Trended Cash Flow'!$E$421:$EF$421,S$7,'Trended Cash Flow'!$E$60:$EF$60)+SUMIF('Trended Cash Flow'!$E$421:$EF$421,S$7,'Trended Cash Flow'!$E$61:$EF$61)+SUMIF('Trended Cash Flow'!$E$421:$EF$421,S$7,'Trended Cash Flow'!$E$62:$EF$62) -> -2688045.256 | T18: =SUMIF('Trended Cash Flow'!$E$421:$EF$421,T$7,'Trended Cash Flow'!$E$59:$EF$59)+SUMIF('Trended Cash Flow'!$E$421:$EF$421,T$7,'Trended Cash Flow'!$E$60:$EF$60)+SUMIF('Trended Cash Flow'!$E$421:$EF$421,T$7,'Trended Cash Flow'!$E$61:$EF$61)+SUMIF('Trended Cash Flow'!$E$421:$EF$421,T$7,'Trended Cash Flow'!$E$62:$EF$62) -> -2796855.518 | U18: =SUMIF('Trended Cash Flow'!$E$421:$EF$421,U$7,'Trended Cash Flow'!$E$59:$EF$59)+SUMIF('Trended Cash Flow'!$E$421:$EF$421,U$7,'Trended Cash Flow'!$E$60:$EF$60)+SUMIF('Trended Cash Flow'!$E$421:$EF$421,U$7,'Trended Cash Flow'!$E$61:$EF$61)+SUMIF('Trended Cash Flow'!$E$421:$EF$421,U$7,'Trended Cash Flow'!$E$62:$EF$62) -> -2796855.518 | V18: =SUMIF('Trended Cash Flow'!$E$421:$EF$421,V$7,'Trended Cash Flow'!$E$59:$EF$59)+SUMIF('Trended Cash Flow'!$E$421:$EF$421,V$7,'Trended Cash Flow'!$E$60:$EF$60)+SUMIF('Trended Cash Flow'!$E$421:$EF$421,V$7,'Trended Cash Flow'!$E$61:$EF$61)+SUMIF('Trended Cash Flow'!$E$421:$EF$421,V$7,'Trended Cash Flow'!$E$62:$EF$62) -> -2796855.518 | W18: =SUMIF('Trended Cash Flow'!$E$421:$EF$421,W$7,'Trended Cash Flow'!$E$59:$EF$59)+SUMIF('Trended Cash Flow'!$E$421:$EF$421,W$7,'Trended Cash Flow'!$E$60:$EF$60)+SUMIF('Trended Cash Flow'!$E$421:$EF$421,W$7,'Trended Cash Flow'!$E$61:$EF$61)+SUMIF('Trended Cash Flow'!$E$421:$EF$421,W$7,'Trended Cash Flow'!$E$62:$EF$62) -> -2591965.444 | X18: =SUMIF('Trended Cash Flow'!$E$421:$EF$421,X$7,'Trended Cash Flow'!$E$59:$EF$59)+SUMIF('Trended Cash Flow'!$E$421:$EF$421,X$7,'Trended Cash Flow'!$E$60:$EF$60)+SUMIF('Trended Cash Flow'!$E$421:$EF$421,X$7,'Trended Cash Flow'!$E$61:$EF$61)+SUMIF('Trended Cash Flow'!$E$421:$EF$421,X$7,'Trended Cash Flow'!$E$62:$EF$62) -> -2549546.22 | Y18: =SUMIF('Trended Cash Flow'!$E$421:$EF$421,Y$7,'Trended Cash Flow'!$E$59:$EF$59)+SUMIF('Trended Cash Flow'!$E$421:$EF$421,Y$7,'Trended Cash Flow'!$E$60:$EF$60)+SUMIF('Trended Cash Flow'!$E$421:$EF$421,Y$7,'Trended Cash Flow'!$E$61:$EF$61)+SUMIF('Trended Cash Flow'!$E$421:$EF$421,Y$7,'Trended Cash Flow'!$E$62:$EF$62) -> -2524718.894 | Z18: =SUMIF('Trended Cash Flow'!$E$421:$EF$421,Z$7,'Trended Cash Flow'!$E$59:$EF$59)+SUMIF('Trended Cash Flow'!$E$421:$EF$421,Z$7,'Trended Cash Flow'!$E$60:$EF$60)+SUMIF('Trended Cash Flow'!$E$421:$EF$421,Z$7,'Trended Cash Flow'!$E$61:$EF$61)+SUMIF('Trended Cash Flow'!$E$421:$EF$421,Z$7,'Trended Cash Flow'!$E$62:$EF$62) -> -2500322.521 | AA18: =SUMIF('Trended Cash Flow'!$E$421:$EF$421,AA$7,'Trended Cash Flow'!$E$59:$EF$59)+SUMIF('Trended Cash Flow'!$E$421:$EF$421,AA$7,'Trended Cash Flow'!$E$60:$EF$60)+SUMIF('Trended Cash Flow'!$E$421:$EF$421,AA$7,'Trended Cash Flow'!$E$61:$EF$61)+SUMIF('Trended Cash Flow'!$E$421:$EF$421,AA$7,'Trended Cash Flow'!$E$62:$EF$62) -> 0
B19: Average Rent / Unit (today) | F19: =Assumptions!$K$198 -> 3341.710526 | H19: Total Commitment | L19: =Assumptions!AI21 -> 55833681.93
B20: Average Rent / SF (today) | F20: =Assumptions!$L$198 -> 4.847680855 | H20: Term | L20: =Assumptions!AI23 -> 35 | N20: Cash Flow after Debt Service | Q20: =SUMIF('Trended Cash Flow'!$E$421:$EF$421,Q$7,'Trended Cash Flow'!$E$63:$EF$63) -> 0 | R20: =SUMIF('Trended Cash Flow'!$E$421:$EF$421,R$7,'Trended Cash Flow'!$E$63:$EF$63) -> -67888.86636 | S20: =SUMIF('Trended Cash Flow'!$E$421:$EF$421,S$7,'Trended Cash Flow'!$E$63:$EF$63) -> 1404296.269 | T20: =SUMIF('Trended Cash Flow'!$E$421:$EF$421,T$7,'Trended Cash Flow'!$E$63:$EF$63) -> 1209242.699 | U20: =SUMIF('Trended Cash Flow'!$E$421:$EF$421,U$7,'Trended Cash Flow'!$E$63:$EF$63) -> 1343138.823 | V20: =SUMIF('Trended Cash Flow'!$E$421:$EF$421,V$7,'Trended Cash Flow'!$E$63:$EF$63) -> 1481505.291 | W20: =SUMIF('Trended Cash Flow'!$E$421:$EF$421,W$7,'Trended Cash Flow'!$E$63:$EF$63) -> 1829381.276 | X20: =SUMIF('Trended Cash Flow'!$E$421:$EF$421,X$7,'Trended Cash Flow'!$E$63:$EF$63) -> 2019559.928 | Y20: =SUMIF('Trended Cash Flow'!$E$421:$EF$421,Y$7,'Trended Cash Flow'!$E$63:$EF$63) -> 2197079.401 | Z20: =SUMIF('Trended Cash Flow'!$E$421:$EF$421,Z$7,'Trended Cash Flow'!$E$63:$EF$63) -> 2379265.153 | AA20: =SUMIF('Trended Cash Flow'!$E$421:$EF$421,AA$7,'Trended Cash Flow'!$E$63:$EF$63) -> 0
H21: Debt Structure | J21: =Assumptions!AG24 -> Index | K21: =Assumptions!AH24 -> Spread | L21: =Assumptions!AI24 -> IO | T21: =T20*Assumptions!$M$11 -> 0 | U21: =U20*Assumptions!$M$11 -> 0 | V21: =V20*Assumptions!$M$11 -> 0 | W21: =W20*Assumptions!$M$11 -> 0 | X21: =X20*Assumptions!$M$11 -> 0 | Y21: =Y20*Assumptions!$M$11 -> 0 | Z21: =Z20*Assumptions!$M$11 -> 0
B22: Unit Mix Summary | C22: % of Project | D22: Avg. SF | E22: Rent / Unit | F22: Rent / SF | H22: Interest Rate | J22: =Assumptions!AG25 -> 0.025 | K22: =Assumptions!AH25 -> 0.025 | L22: =Assumptions!AI25 -> 0.05 | T22: =T20*Assumptions!$M$12 -> 0 | U22: =U20*Assumptions!$M$12 -> 0 | V22: =V20*Assumptions!$M$12 -> 0 | W22: =W20*Assumptions!$M$12 -> 0 | X22: =X20*Assumptions!$M$12 -> 0 | Y22: =Y20*Assumptions!$M$12 -> 0 | Z22: =Z20*Assumptions!$M$12 -> 0
B23: =Assumptions!C201 -> Studio | C23: =Assumptions!F201 -> 0.2368421053 | D23: =+'Deal Summary'!D23 -> 380.7777778 | E23: =+'Deal Summary'!E23 -> 2213.851852 | F23: =+'Deal Summary'!F23 -> 5.814025873 | H23: Amortization Period | L23: =Assumptions!AI26 -> 35 | T23: =T20*Assumptions!$M$13 -> 0 | U23: =U20*Assumptions!$M$13 -> 0 | V23: =V20*Assumptions!$M$13 -> 0 | W23: =W20*Assumptions!$M$13 -> 0 | X23: =X20*Assumptions!$M$13 -> 0 | Y23: =Y20*Assumptions!$M$13 -> 0 | Z23: =Z20*Assumptions!$M$13 -> 0 | AA23: =SUMIF('Trended Cash Flow'!$E$421:$EF$421,AA$7,'Trended Cash Flow'!$E$57:$EF$57) -> 0
B24: =Assumptions!C202 -> 1 bed | C24: =Assumptions!F202 -> 0.1754385965 | D24: =+'Deal Summary'!D24 -> 558.55 | E24: =+'Deal Summary'!E24 -> 2767.65 | F24: =+'Deal Summary'!F24 -> 4.955062215 | N24: Sources Summary | AA24: =SUMIF('Trended Cash Flow'!$E$421:$EF$421,AA$7,'Trended Cash Flow'!$E$66:$EF$66) -> 0
B25: =Assumptions!C203 -> 1 Bed + den | C25: =Assumptions!F203 -> 0.149122807 | D25: =+'Deal Summary'!D25 -> 712.6470588 | E25: =+'Deal Summary'!E25 -> 3231.764706 | F25: =+'Deal Summary'!F25 -> 4.534874123 | H25: Switches to AMO | K25: =Assumptions!AH28 -> 73 | L25: =Assumptions!AI28 -> 2029-07-15 | O25: =SUM(Q25:AA25) -> 60803841.06 | Q25: =SUMIF('Trended Cash Flow'!$E$421:$EF$421,Q$7,'Trended Cash Flow'!$E$57:$EF$57) -> 33887191.38 | R25: =SUMIF('Trended Cash Flow'!$E$421:$EF$421,R$7,'Trended Cash Flow'!$E$57:$EF$57) -> 26036256.22 | S25: =SUMIF('Trended Cash Flow'!$E$421:$EF$421,S$7,'Trended Cash Flow'!$E$57:$EF$57) -> 880393.4616 | T25: =SUMIF('Trended Cash Flow'!$E$421:$EF$421,T$7,'Trended Cash Flow'!$E$57:$EF$57) -> 0 | U25: =SUMIF('Trended Cash Flow'!$E$421:$EF$421,U$7,'Trended Cash Flow'!$E$57:$EF$57) -> 0 | V25: =SUMIF('Trended Cash Flow'!$E$421:$EF$421,V$7,'Trended Cash Flow'!$E$57:$EF$57) -> 0 | W25: =SUMIF('Trended Cash Flow'!$E$421:$EF$421,W$7,'Trended Cash Flow'!$E$57:$EF$57) -> 0 | X25: =SUMIF('Trended Cash Flow'!$E$421:$EF$421,X$7,'Trended Cash Flow'!$E$57:$EF$57) -> 0 | Y25: =SUMIF('Trended Cash Flow'!$E$421:$EF$421,Y$7,'Trended Cash Flow'!$E$57:$EF$57) -> 0 | Z25: =SUMIF('Trended Cash Flow'!$E$421:$EF$421,Z$7,'Trended Cash Flow'!$E$57:$EF$57) -> 0 | AA25: =SUMIF('Trended Cash Flow'!$E$421:$EF$421,AA$7,'Trended Cash Flow'!$E$67:$EF$67) -> 0
B26: =Assumptions!C204 -> 2 Bed | C26: =Assumptions!F204 -> 0.3684210526 | D26: =+'Deal Summary'!D27 -> 1074.375 | E26: =+'Deal Summary'!E27 -> 6927.5 | F26: =+'Deal Summary'!F27 -> 6.447934846 | H26: Debt Structure | J26: =Assumptions!AG29 -> 0 | K26: =Assumptions!AH29 -> 0 | L26: =Assumptions!AI29 -> AMO | N26: Equity | O26: =SUM(Q24:AA24) -> 0 | Q26: =SUMIF('Trended Cash Flow'!$E$421:$EF$421,Q$7,'Trended Cash Flow'!$E$66:$EF$66) -> 26875297.89 | R26: =SUMIF('Trended Cash Flow'!$E$421:$EF$421,R$7,'Trended Cash Flow'!$E$66:$EF$66) -> 0 | S26: =SUMIF('Trended Cash Flow'!$E$421:$EF$421,S$7,'Trended Cash Flow'!$E$66:$EF$66) -> 0 | T26: =SUMIF('Trended Cash Flow'!$E$421:$EF$421,T$7,'Trended Cash Flow'!$E$66:$EF$66) -> 0 | U26: =SUMIF('Trended Cash Flow'!$E$421:$EF$421,U$7,'Trended Cash Flow'!$E$66:$EF$66) -> 0 | V26: =SUMIF('Trended Cash Flow'!$E$421:$EF$421,V$7,'Trended Cash Flow'!$E$66:$EF$66) -> 0 | W26: =SUMIF('Trended Cash Flow'!$E$421:$EF$421,W$7,'Trended Cash Flow'!$E$66:$EF$66) -> 0 | X26: =SUMIF('Trended Cash Flow'!$E$421:$EF$421,X$7,'Trended Cash Flow'!$E$66:$EF$66) -> 0 | Y26: =SUMIF('Trended Cash Flow'!$E$421:$EF$421,Y$7,'Trended Cash Flow'!$E$66:$EF$66) -> 0 | Z26: =SUMIF('Trended Cash Flow'!$E$421:$EF$421,Z$7,'Trended Cash Flow'!$E$66:$EF$66) -> 0 | AA26: =SUMIF('Trended Cash Flow'!$E$421:$EF$421,AA$7,'Trended Cash Flow'!$E$68:$EF$68) -> 0
H27: Interest Rate | J27: =Assumptions!AG30 -> 0 | K27: =Assumptions!AH30 -> Fixed | L27: =Assumptions!AI30 -> 0.0325 | N27: Debt | O27: =SUM(Q25:AA25) -> 60803841.06 | Q27: =SUMIF('Trended Cash Flow'!$E$421:$EF$421,Q$7,'Trended Cash Flow'!$E$67:$EF$67) -> 7011893.491 | R27: =SUMIF('Trended Cash Flow'!$E$421:$EF$421,R$7,'Trended Cash Flow'!$E$67:$EF$67) -> 26036256.22 | S27: =SUMIF('Trended Cash Flow'!$E$421:$EF$421,S$7,'Trended Cash Flow'!$E$67:$EF$67) -> 880094.8709 | T27: =SUMIF('Trended Cash Flow'!$E$421:$EF$421,T$7,'Trended Cash Flow'!$E$67:$EF$67) -> 0 | U27: =SUMIF('Trended Cash Flow'!$E$421:$EF$421,U$7,'Trended Cash Flow'!$E$67:$EF$67) -> 0 | V27: =SUMIF('Trended Cash Flow'!$E$421:$EF$421,V$7,'Trended Cash Flow'!$E$67:$EF$67) -> 0 | W27: =SUMIF('Trended Cash Flow'!$E$421:$EF$421,W$7,'Trended Cash Flow'!$E$67:$EF$67) -> 0 | X27: =SUMIF('Trended Cash Flow'!$E$421:$EF$421,X$7,'Trended Cash Flow'!$E$67:$EF$67) -> 0 | Y27: =SUMIF('Trended Cash Flow'!$E$421:$EF$421,Y$7,'Trended Cash Flow'!$E$67:$EF$67) -> 0 | Z27: =SUMIF('Trended Cash Flow'!$E$421:$EF$421,Z$7,'Trended Cash Flow'!$E$67:$EF$67) -> 0 | AH27: Todays Month Number | AI27: =ROUNDUP(DAYS360(AI62,AI28)/30+1,0) -> -112
B28: Project Cost | H28: Amortization Period | J28: =Assumptions!AG31 -> 0 | K28: =Assumptions!AH31 -> 0 | L28: =Assumptions!AI31 -> 35 | N28: Mezzanine | O28: =SUM(Q26:AA26) -> 26875297.89 | Q28: =SUMIF('Trended Cash Flow'!$E$421:$EF$421,Q$7,'Trended Cash Flow'!$E$68:$EF$68) -> 0 | R28: =SUMIF('Trended Cash Flow'!$E$421:$EF$421,R$7,'Trended Cash Flow'!$E$68:$EF$68) -> 0 | S28: =SUMIF('Trended Cash Flow'!$E$421:$EF$421,S$7,'Trended Cash Flow'!$E$68:$EF$68) -> 0 | T28: =SUMIF('Trended Cash Flow'!$E$421:$EF$421,T$7,'Trended Cash Flow'!$E$68:$EF$68) -> 0 | U28: =SUMIF('Trended Cash Flow'!$E$421:$EF$421,U$7,'Trended Cash Flow'!$E$68:$EF$68) -> 0 | V28: =SUMIF('Trended Cash Flow'!$E$421:$EF$421,V$7,'Trended Cash Flow'!$E$68:$EF$68) -> 0 | W28: =SUMIF('Trended Cash Flow'!$E$421:$EF$421,W$7,'Trended Cash Flow'!$E$68:$EF$68) -> 0 | X28: =SUMIF('Trended Cash Flow'!$E$421:$EF$421,X$7,'Trended Cash Flow'!$E$68:$EF$68) -> 0 | Y28: =SUMIF('Trended Cash Flow'!$E$421:$EF$421,Y$7,'Trended Cash Flow'!$E$68:$EF$68) -> 0 | Z28: =SUMIF('Trended Cash Flow'!$E$421:$EF$421,Z$7,'Trended Cash Flow'!$E$68:$EF$68) -> 0 | AH28: Todays Date | AI28: 2014-02-01
B29: Detail | E29: Total | F29: Per Unit | J29: =Assumptions!AG32 -> 0 | K29: =Assumptions!AH32 -> 0 | L29: =Assumptions!AI32 -> 0 | AA29: =+SUMIF('Trended Cash Flow'!$E$421:$EF$421,AA$7,'Trended Cash Flow'!$E$73:$EF$73) -> 0 | AH29: Development Completion | AI29: Projected Costs | AJ29: Spent To-Date | AL29: Outstanding Costs
B30: =+Assumptions!H18 -> Total Hard Costs | E30: =+Assumptions!J18 -> 40014195 | F30: =+E30/$F$16 -> 351001.7105 | H30: Fixed Principal | L30: =Assumptions!AI33 -> On | N30: Sale Summary | AA30: =+SUMIF('Trended Cash Flow'!$E$421:$EF$421,AA$7,'Trended Cash Flow'!$E$74:$EF$74) -> 0 | AH30: =AH64 -> Land | AI30: =SUM($AI64:$CR64) -> 5075000 | AJ30: =SUMIF($AI$61:$CR$61,"<="&$AI$27,$AI64:$CR64) -> 0 | AK30: =AJ30/AI30 -> 0 | AL30: =AI30-AJ30 -> 5075000 | AM30: =AL30/AI30 -> 1
B31: =+Assumptions!H19 -> General Contractor (GC) Fee | E31: =+Assumptions!J19 -> 1600568 | F31: =+E31/$F$16 -> 14040.07018 | H31: Amortization Rate | L31: =Assumptions!AI34 -> 0.03 | N31: Capped Forward NOI | Q31: =+SUMIF('Trended Cash Flow'!$E$421:$EF$421,Q$7,'Trended Cash Flow'!$E$73:$EF$73) -> 0 | R31: =+SUMIF('Trended Cash Flow'!$E$421:$EF$421,R$7,'Trended Cash Flow'!$E$73:$EF$73) -> 0 | S31: =+SUMIF('Trended Cash Flow'!$E$421:$EF$421,S$7,'Trended Cash Flow'!$E$73:$EF$73) -> 0 | T31: =+SUMIF('Trended Cash Flow'!$E$421:$EF$421,T$7,'Trended Cash Flow'!$E$73:$EF$73) -> 0 | U31: =+SUMIF('Trended Cash Flow'!$E$421:$EF$421,U$7,'Trended Cash Flow'!$E$73:$EF$73) -> 0 | V31: =+SUMIF('Trended Cash Flow'!$E$421:$EF$421,V$7,'Trended Cash Flow'!$E$73:$EF$73) -> 0 | W31: =+SUMIF('Trended Cash Flow'!$E$421:$EF$421,W$7,'Trended Cash Flow'!$E$73:$EF$73) -> 0 | X31: =+SUMIF('Trended Cash Flow'!$E$421:$EF$421,X$7,'Trended Cash Flow'!$E$73:$EF$73) -> 0 | Y31: =+SUMIF('Trended Cash Flow'!$E$421:$EF$421,Y$7,'Trended Cash Flow'!$E$73:$EF$73) -> 0 | Z31: =+SUMIF('Trended Cash Flow'!$E$421:$EF$421,Z$7,'Trended Cash Flow'!$E$73:$EF$73) -> 4689003.43 | AA31: =SUMIF('Trended Cash Flow'!$E$421:$EF$421,AA$7,'Trended Cash Flow'!$E$75:$EF$75) -> 0 | AH31: =AH65 -> Legal, Closing Costs & Financing | AI31: =SUM($AI65:$CR65) -> 1123571 | AJ31: =SUMIF($AI$61:$CR$61,"<="&$AI$27,$AI65:$CR65) -> 0 | AK31: =AJ31/AI31 -> 0 | AL31: =AI31-AJ31 -> 1123571 | AM31: 1
B32: =+Assumptions!H20 -> Land | E32: =+Assumptions!J20 -> 5075000 | F32: 44517.54386 | H32: Principal | L32: =Assumptions!AI35 -> 63659.80907 | N32: RE Tax Adjustment at Sale | Q32: =+SUMIF('Trended Cash Flow'!$E$421:$EF$421,Q$7,'Trended Cash Flow'!$E$74:$EF$74) -> 0 | R32: =+SUMIF('Trended Cash Flow'!$E$421:$EF$421,R$7,'Trended Cash Flow'!$E$74:$EF$74) -> 0 | S32: =+SUMIF('Trended Cash Flow'!$E$421:$EF$421,S$7,'Trended Cash Flow'!$E$74:$EF$74) -> 0 | T32: =+SUMIF('Trended Cash Flow'!$E$421:$EF$421,T$7,'Trended Cash Flow'!$E$74:$EF$74) -> 0 | U32: =+SUMIF('Trended Cash Flow'!$E$421:$EF$421,U$7,'Trended Cash Flow'!$E$74:$EF$74) -> 0 | V32: =+SUMIF('Trended Cash Flow'!$E$421:$EF$421,V$7,'Trended Cash Flow'!$E$74:$EF$74) -> 0 | W32: =+SUMIF('Trended Cash Flow'!$E$421:$EF$421,W$7,'Trended Cash Flow'!$E$74:$EF$74) -> 0 | X32: =+SUMIF('Trended Cash Flow'!$E$421:$EF$421,X$7,'Trended Cash Flow'!$E$74:$EF$74) -> 0 | Y32: =+SUMIF('Trended Cash Flow'!$E$421:$EF$421,Y$7,'Trended Cash Flow'!$E$74:$EF$74) -> 0 | Z32: =+SUMIF('Trended Cash Flow'!$E$421:$EF$421,Z$7,'Trended Cash Flow'!$E$74:$EF$74) -> 764421.4552 | AA32: =+SUMIF('Trended Cash Flow'!$E$421:$EF$421,AA$7,'Trended Cash Flow'!$E$78:$EF$78) -> 0 | AH32: =AH66 -> Construction Hard Costs | AI32: =SUM($AI66:$CR66) -> 41614763 | AJ32: =SUMIF($AI$61:$CR$61,"<="&$AI$27,$AI66:$CR66) -> 0 | AK32: 0 | AL32: 41614763 | AM32: 1
B33: =+Assumptions!H21 -> Taxes | E33: =+Assumptions!J21 -> 270369.5498 | F33: 2371.662717 | N33: Sale Price | Q33: =SUMIF('Trended Cash Flow'!$E$421:$EF$421,Q$7,'Trended Cash Flow'!$E$75:$EF$75) -> 0 | R33: =SUMIF('Trended Cash Flow'!$E$421:$EF$421,R$7,'Trended Cash Flow'!$E$75:$EF$75) -> 0 | S33: =SUMIF('Trended Cash Flow'!$E$421:$EF$421,S$7,'Trended Cash Flow'!$E$75:$EF$75) -> 0 | T33: =SUMIF('Trended Cash Flow'!$E$421:$EF$421,T$7,'Trended Cash Flow'!$E$75:$EF$75) -> 0 | U33: =SUMIF('Trended Cash Flow'!$E$421:$EF$421,U$7,'Trended Cash Flow'!$E$75:$EF$75) -> 0 | V33: =SUMIF('Trended Cash Flow'!$E$421:$EF$421,V$7,'Trended Cash Flow'!$E$75:$EF$75) -> 0 | W33: =SUMIF('Trended Cash Flow'!$E$421:$EF$421,W$7,'Trended Cash Flow'!$E$75:$EF$75) -> 0 | X33: =SUMIF('Trended Cash Flow'!$E$421:$EF$421,X$7,'Trended Cash Flow'!$E$75:$EF$75) -> 0 | Y33: =SUMIF('Trended Cash Flow'!$E$421:$EF$421,Y$7,'Trended Cash Flow'!$E$75:$EF$75) -> 0 | Z33: =SUMIF('Trended Cash Flow'!$E$421:$EF$421,Z$7,'Trended Cash Flow'!$E$75:$EF$75) -> 95506565.41 | AA33: =SUMIF('Trended Cash Flow'!$E$421:$EF$421,AA$7,'Trended Cash Flow'!$E$80:$EF$80) -> 0 | AH33: =AH68 -> Architect, Engineering and Surveying | AI33: =SUM($AI68:$CR68) -> 1530800 | AJ33: =SUMIF($AI$61:$CR$61,"<="&$AI$27,$AI68:$CR68) -> 0 | AK33: 0 | AL33: 1530800 | AM33: 1
B34: =+Assumptions!H22 -> Legal & Closing Costs | E34: =+Assumptions!J22 -> 50000 | F34: 438.5964912 | H34: Promote Structure | N34: Closing Costs | Q34: =+SUMIF('Trended Cash Flow'!$E$421:$EF$421,Q$7,'Trended Cash Flow'!$E$78:$EF$78) -> 0 | R34: =+SUMIF('Trended Cash Flow'!$E$421:$EF$421,R$7,'Trended Cash Flow'!$E$78:$EF$78) -> 0 | S34: =+SUMIF('Trended Cash Flow'!$E$421:$EF$421,S$7,'Trended Cash Flow'!$E$78:$EF$78) -> 0 | T34: =+SUMIF('Trended Cash Flow'!$E$421:$EF$421,T$7,'Trended Cash Flow'!$E$78:$EF$78) -> 0 | U34: =+SUMIF('Trended Cash Flow'!$E$421:$EF$421,U$7,'Trended Cash Flow'!$E$78:$EF$78) -> 0 | V34: =+SUMIF('Trended Cash Flow'!$E$421:$EF$421,V$7,'Trended Cash Flow'!$E$78:$EF$78) -> 0 | W34: =+SUMIF('Trended Cash Flow'!$E$421:$EF$421,W$7,'Trended Cash Flow'!$E$78:$EF$78) -> 0 | X34: =+SUMIF('Trended Cash Flow'!$E$421:$EF$421,X$7,'Trended Cash Flow'!$E$78:$EF$78) -> 0 | Y34: =+SUMIF('Trended Cash Flow'!$E$421:$EF$421,Y$7,'Trended Cash Flow'!$E$78:$EF$78) -> 0 | Z34: =+SUMIF('Trended Cash Flow'!$E$421:$EF$421,Z$7,'Trended Cash Flow'!$E$78:$EF$78) -> -772137.2685 | AA34: =+AA31+AA32+AA33 -> 0 | AH34: Taxes | AI34: 270369.5498 | AJ34: 0 | AK34: 0 | AL34: 270369.5498 | AM34: 1
B35: =+Assumptions!H23 -> Insurance | E35: =+Assumptions!J23 -> 395000 | F35: 3464.912281 | H35: Total Profit | L35: =+'Trended Cash Flow'!$B$84+E57+E58 -> 85265787.29 | N35: Debt Repayment | Q35: =SUMIF('Trended Cash Flow'!$E$421:$EF$421,Q$7,'Trended Cash Flow'!$E$80:$EF$80) -> 0 | R35: =SUMIF('Trended Cash Flow'!$E$421:$EF$421,R$7,'Trended Cash Flow'!$E$80:$EF$80) -> 0 | S35: =SUMIF('Trended Cash Flow'!$E$421:$EF$421,S$7,'Trended Cash Flow'!$E$80:$EF$80) -> 0 | T35: =SUMIF('Trended Cash Flow'!$E$421:$EF$421,T$7,'Trended Cash Flow'!$E$80:$EF$80) -> 0 | U35: =SUMIF('Trended Cash Flow'!$E$421:$EF$421,U$7,'Trended Cash Flow'!$E$80:$EF$80) -> 0 | V35: =SUMIF('Trended Cash Flow'!$E$421:$EF$421,V$7,'Trended Cash Flow'!$E$80:$EF$80) -> 0 | W35: =SUMIF('Trended Cash Flow'!$E$421:$EF$421,W$7,'Trended Cash Flow'!$E$80:$EF$80) -> 0 | X35: =SUMIF('Trended Cash Flow'!$E$421:$EF$421,X$7,'Trended Cash Flow'!$E$80:$EF$80) -> 0 | Y35: =SUMIF('Trended Cash Flow'!$E$421:$EF$421,Y$7,'Trended Cash Flow'!$E$80:$EF$80) -> 0 | Z35: =SUMIF('Trended Cash Flow'!$E$421:$EF$421,Z$7,'Trended Cash Flow'!$E$80:$EF$80) -> -52841670.91 | AH35: Soft Cost Contingency | AI35: 1414083.035 | AJ35: 0 | AK35: 0 | AL35: 1414083.035 | AM35: 1
B36: =+Assumptions!H24 -> Financing | E36: =+Assumptions!J24 -> 678571 | F36: 5952.377193 | H36: Preference (pari passu) | L36: =+SUM('Trended Cash Flow'!$E$100:$EF$100) -> 8979657.446 | N36: Net Sale Proceeds | Q36: =+Q33+Q34+Q35 -> 0 | R36: 0 | S36: 0 | T36: 0 | U36: 0 | V36: 0 | W36: 0 | X36: 0 | Y36: 0 | Z36: 41892757.23 | AA36: =-SUMIF('Trended Cash Flow'!$E$421:$EF$421,AA$7,'Trended Cash Flow'!$E$66:$EF$66) -> 0 | AH36: Overhead | AI36: 2269165 | AJ36: 0 | AK36: 0 | AL36: 2269165 | AM36: 1
B37: =+Assumptions!H25 -> Municipal Fees | E37: =+Assumptions!J25 -> 2272219.801 | F37: 19931.75264 | H37: Equity Partner | K37: =+$D$57 -> 0.9 | L37: =+K37*$L$36 -> 8081691.702 | AA37: =SUMIF('Trended Cash Flow'!$E$421:$EF$421,AA$7,'Trended Cash Flow'!$E$72:$EF$72) -> 0 | AH37: Marketing | AI37: 750000 | AJ37: 0 | AK37: 0 | AL37: 750000 | AM37: 1
B38: =+Assumptions!H26 -> Architect | E38: =+Assumptions!J26 -> 250000 | F38: 2192.982456 | H38: CAST | K38: =+$D$58 -> 0.1 | L38: =+K38*$L$36 -> 897965.7446 | N38: Total Equity | Q38: =-SUMIF('Trended Cash Flow'!$E$421:$EF$421,Q$7,'Trended Cash Flow'!$E$66:$EF$66) -> -26875297.89 | R38: =-SUMIF('Trended Cash Flow'!$E$421:$EF$421,R$7,'Trended Cash Flow'!$E$66:$EF$66) -> 0 | S38: =-SUMIF('Trended Cash Flow'!$E$421:$EF$421,S$7,'Trended Cash Flow'!$E$66:$EF$66) -> 0 | T38: =-SUMIF('Trended Cash Flow'!$E$421:$EF$421,T$7,'Trended Cash Flow'!$E$66:$EF$66) -> 0 | U38: =-SUMIF('Trended Cash Flow'!$E$421:$EF$421,U$7,'Trended Cash Flow'!$E$66:$EF$66) -> 0 | V38: =-SUMIF('Trended Cash Flow'!$E$421:$EF$421,V$7,'Trended Cash Flow'!$E$66:$EF$66) -> 0 | W38: =-SUMIF('Trended Cash Flow'!$E$421:$EF$421,W$7,'Trended Cash Flow'!$E$66:$EF$66) -> 0 | X38: =-SUMIF('Trended Cash Flow'!$E$421:$EF$421,X$7,'Trended Cash Flow'!$E$66:$EF$66) -> 0 | Y38: =-SUMIF('Trended Cash Flow'!$E$421:$EF$421,Y$7,'Trended Cash Flow'!$E$66:$EF$66) -> 0 | Z38: =-SUMIF('Trended Cash Flow'!$E$421:$EF$421,Z$7,'Trended Cash Flow'!$E$66:$EF$66) -> 0 | AA38: =SUMIF('Trended Cash Flow'!$E$421:$EF$421,AA$7,'Trended Cash Flow'!$E$75:$EF$75)+SUMIF('Trended Cash Flow'!$E$421:$EF$421,AA$7,'Trended Cash Flow'!$E$78:$EF$78) -> 0 | AH38: Construction Interest | AI38: 4782379.029 | AJ38: 0 | AK38: 0 | AL38: 4782379.029 | AM38: 1
B39: =+Assumptions!H27 -> Engineering & Surveying | E39: =+Assumptions!J27 -> 1280800 | F39: 11235.08772 | N39: Refinance Proceeds | Q39: =SUMIF('Trended Cash Flow'!$E$421:$EF$421,Q$7,'Trended Cash Flow'!$E$72:$EF$72) -> 0 | R39: =SUMIF('Trended Cash Flow'!$E$421:$EF$421,R$7,'Trended Cash Flow'!$E$72:$EF$72) -> 0 | S39: =SUMIF('Trended Cash Flow'!$E$421:$EF$421,S$7,'Trended Cash Flow'!$E$72:$EF$72) -> 21962897.58 | T39: =SUMIF('Trended Cash Flow'!$E$421:$EF$421,T$7,'Trended Cash Flow'!$E$72:$EF$72) -> 0 | U39: =SUMIF('Trended Cash Flow'!$E$421:$EF$421,U$7,'Trended Cash Flow'!$E$72:$EF$72) -> 0 | V39: =SUMIF('Trended Cash Flow'!$E$421:$EF$421,V$7,'Trended Cash Flow'!$E$72:$EF$72) -> 0 | W39: =SUMIF('Trended Cash Flow'!$E$421:$EF$421,W$7,'Trended Cash Flow'!$E$72:$EF$72) -> 0 | X39: =SUMIF('Trended Cash Flow'!$E$421:$EF$421,X$7,'Trended Cash Flow'!$E$72:$EF$72) -> 0 | Y39: =SUMIF('Trended Cash Flow'!$E$421:$EF$421,Y$7,'Trended Cash Flow'!$E$72:$EF$72) -> 0 | Z39: =SUMIF('Trended Cash Flow'!$E$421:$EF$421,Z$7,'Trended Cash Flow'!$E$72:$EF$72) -> 0 | AA39: =SUMIF('Trended Cash Flow'!$E$421:$EF$421,AA$7,'Trended Cash Flow'!$E$80:$EF$80) -> 0 | AH39: Preleasing and Leaseup Operating Deficit | AI39: 40000 | AJ39: 0 | AK39: 0 | AL39: 40000 | AM39: 1
B40: =+Assumptions!H28 -> Owner Purchased Items | E40: =+Assumptions!J28 -> 750000 | F40: 6578.947368 | H40: Capital (pari passu) | L40: =+-SUM('Trended Cash Flow'!E97:EF97) -> 26875297.89 | N40: Sale Proceeds | Q40: =SUMIF('Trended Cash Flow'!$E$421:$EF$421,Q$7,'Trended Cash Flow'!$E$75:$EF$75)+SUMIF('Trended Cash Flow'!$E$421:$EF$421,Q$7,'Trended Cash Flow'!$E$78:$EF$78) -> 0 | R40: =SUMIF('Trended Cash Flow'!$E$421:$EF$421,R$7,'Trended Cash Flow'!$E$75:$EF$75)+SUMIF('Trended Cash Flow'!$E$421:$EF$421,R$7,'Trended Cash Flow'!$E$78:$EF$78) -> 0 | S40: =SUMIF('Trended Cash Flow'!$E$421:$EF$421,S$7,'Trended Cash Flow'!$E$75:$EF$75)+SUMIF('Trended Cash Flow'!$E$421:$EF$421,S$7,'Trended Cash Flow'!$E$78:$EF$78) -> 0 | T40: =SUMIF('Trended Cash Flow'!$E$421:$EF$421,T$7,'Trended Cash Flow'!$E$75:$EF$75)+SUMIF('Trended Cash Flow'!$E$421:$EF$421,T$7,'Trended Cash Flow'!$E$78:$EF$78) -> 0 | U40: =SUMIF('Trended Cash Flow'!$E$421:$EF$421,U$7,'Trended Cash Flow'!$E$75:$EF$75)+SUMIF('Trended Cash Flow'!$E$421:$EF$421,U$7,'Trended Cash Flow'!$E$78:$EF$78) -> 0 | V40: =SUMIF('Trended Cash Flow'!$E$421:$EF$421,V$7,'Trended Cash Flow'!$E$75:$EF$75)+SUMIF('Trended Cash Flow'!$E$421:$EF$421,V$7,'Trended Cash Flow'!$E$78:$EF$78) -> 0 | W40: =SUMIF('Trended Cash Flow'!$E$421:$EF$421,W$7,'Trended Cash Flow'!$E$75:$EF$75)+SUMIF('Trended Cash Flow'!$E$421:$EF$421,W$7,'Trended Cash Flow'!$E$78:$EF$78) -> 0 | X40: =SUMIF('Trended Cash Flow'!$E$421:$EF$421,X$7,'Trended Cash Flow'!$E$75:$EF$75)+SUMIF('Trended Cash Flow'!$E$421:$EF$421,X$7,'Trended Cash Flow'!$E$78:$EF$78) -> 0 | Y40: =SUMIF('Trended Cash Flow'!$E$421:$EF$421,Y$7,'Trended Cash Flow'!$E$75:$EF$75)+SUMIF('Trended Cash Flow'!$E$421:$EF$421,Y$7,'Trended Cash Flow'!$E$78:$EF$78) -> 0 | Z40: =SUMIF('Trended Cash Flow'!$E$421:$EF$421,Z$7,'Trended Cash Flow'!$E$75:$EF$75)+SUMIF('Trended Cash Flow'!$E$421:$EF$421,Z$7,'Trended Cash Flow'!$E$78:$EF$78) -> 94734428.14 | AA40: =SUMIF('Trended Cash Flow'!$E$421:$EF$421,AA$7,'Trended Cash Flow'!$E$63:$EF$63) -> 0 | AH40: =AH76 -> Retail TIs | AI40: =SUM($AI76:$CR76) -> 440550 | AJ40: =SUMIF($AI$61:$CR$61,"<="&$AI$27,$AI76:$CR76) -> 0 | AK40: 0 | AL40: 440550 | AM40: 1
B41: =+Assumptions!H29 -> Construction Interest | E41: =+Assumptions!J29 -> 2638320 | F41: 23143.15789 | H41: Equity Partner | K41: =+$D$57 -> 0.9 | L41: =+K41*$L$40 -> 24187768.1 | N41: Debt Repayment | Q41: =SUMIF('Trended Cash Flow'!$E$421:$EF$421,Q$7,'Trended Cash Flow'!$E$80:$EF$80) -> 0 | R41: =SUMIF('Trended Cash Flow'!$E$421:$EF$421,R$7,'Trended Cash Flow'!$E$80:$EF$80) -> 0 | S41: =SUMIF('Trended Cash Flow'!$E$421:$EF$421,S$7,'Trended Cash Flow'!$E$80:$EF$80) -> 0 | T41: =SUMIF('Trended Cash Flow'!$E$421:$EF$421,T$7,'Trended Cash Flow'!$E$80:$EF$80) -> 0 | U41: =SUMIF('Trended Cash Flow'!$E$421:$EF$421,U$7,'Trended Cash Flow'!$E$80:$EF$80) -> 0 | V41: =SUMIF('Trended Cash Flow'!$E$421:$EF$421,V$7,'Trended Cash Flow'!$E$80:$EF$80) -> 0 | W41: =SUMIF('Trended Cash Flow'!$E$421:$EF$421,W$7,'Trended Cash Flow'!$E$80:$EF$80) -> 0 | X41: =SUMIF('Trended Cash Flow'!$E$421:$EF$421,X$7,'Trended Cash Flow'!$E$80:$EF$80) -> 0 | Y41: =SUMIF('Trended Cash Flow'!$E$421:$EF$421,Y$7,'Trended Cash Flow'!$E$80:$EF$80) -> 0 | Z41: =SUMIF('Trended Cash Flow'!$E$421:$EF$421,Z$7,'Trended Cash Flow'!$E$80:$EF$80) -> -52841670.91 | AA41: =SUMIF('Trended Cash Flow'!$E$421:$EF$421,AA$7,'Trended Cash Flow'!$E$84:$EF$84) -> 0 | AH41: Total Costs | AI41: =SUM($AI77:$CR77) -> 62947900.42 | AJ41: =SUMIF($AI$61:$CR$61,"<="&$AI$27,$AI77:$CR77) -> 0 | AK41: 0 | AL41: 62947900.42 | AM41: 1
B42: =+Assumptions!H35 -> Retail TIs | E42: =+Assumptions!J35 -> 440550 | F42: 3864.473684 | H42: CAST | K42: =+$D$58 -> 0.1 | L42: =+K42*$L$40 -> 2687529.789 | N42: Total Distributions | Q42: =SUMIF('Trended Cash Flow'!$E$421:$EF$421,Q$7,'Trended Cash Flow'!$E$63:$EF$63) -> 0 | R42: =SUMIF('Trended Cash Flow'!$E$421:$EF$421,R$7,'Trended Cash Flow'!$E$63:$EF$63) -> -67888.86636 | S42: =SUMIF('Trended Cash Flow'!$E$421:$EF$421,S$7,'Trended Cash Flow'!$E$63:$EF$63) -> 1404296.269 | T42: =SUMIF('Trended Cash Flow'!$E$421:$EF$421,T$7,'Trended Cash Flow'!$E$63:$EF$63) -> 1209242.699 | U42: =SUMIF('Trended Cash Flow'!$E$421:$EF$421,U$7,'Trended Cash Flow'!$E$63:$EF$63) -> 1343138.823 | V42: =SUMIF('Trended Cash Flow'!$E$421:$EF$421,V$7,'Trended Cash Flow'!$E$63:$EF$63) -> 1481505.291 | W42: =SUMIF('Trended Cash Flow'!$E$421:$EF$421,W$7,'Trended Cash Flow'!$E$63:$EF$63) -> 1829381.276 | X42: =SUMIF('Trended Cash Flow'!$E$421:$EF$421,X$7,'Trended Cash Flow'!$E$63:$EF$63) -> 2019559.928 | Y42: =SUMIF('Trended Cash Flow'!$E$421:$EF$421,Y$7,'Trended Cash Flow'!$E$63:$EF$63) -> 2197079.401 | Z42: =SUMIF('Trended Cash Flow'!$E$421:$EF$421,Z$7,'Trended Cash Flow'!$E$63:$EF$63) -> 2379265.153
B43: =+Assumptions!H30 -> Preleasing & Marketing | E43: =+Assumptions!J30 -> 40000 | F43: 350.877193 | N43: Total Project Distributions | O43: =SUM(Q41:AA41) -> -52841670.91 | Q43: =SUMIF('Trended Cash Flow'!$E$421:$EF$421,Q$7,'Trended Cash Flow'!$E$84:$EF$84) -> -26875297.89 | R43: =SUMIF('Trended Cash Flow'!$E$421:$EF$421,R$7,'Trended Cash Flow'!$E$84:$EF$84) -> 0 | S43: =SUMIF('Trended Cash Flow'!$E$421:$EF$421,S$7,'Trended Cash Flow'!$E$84:$EF$84) -> 23468787.09 | T43: =SUMIF('Trended Cash Flow'!$E$421:$EF$421,T$7,'Trended Cash Flow'!$E$84:$EF$84) -> 1209242.699 | U43: =SUMIF('Trended Cash Flow'!$E$421:$EF$421,U$7,'Trended Cash Flow'!$E$84:$EF$84) -> 1343138.823 | V43: =SUMIF('Trended Cash Flow'!$E$421:$EF$421,V$7,'Trended Cash Flow'!$E$84:$EF$84) -> 1481505.291 | W43: =SUMIF('Trended Cash Flow'!$E$421:$EF$421,W$7,'Trended Cash Flow'!$E$84:$EF$84) -> 1829381.276 | X43: =SUMIF('Trended Cash Flow'!$E$421:$EF$421,X$7,'Trended Cash Flow'!$E$84:$EF$84) -> 2019559.928 | Y43: =SUMIF('Trended Cash Flow'!$E$421:$EF$421,Y$7,'Trended Cash Flow'!$E$84:$EF$84) -> 2197079.401 | Z43: =SUMIF('Trended Cash Flow'!$E$421:$EF$421,Z$7,'Trended Cash Flow'!$E$84:$EF$84) -> 51717092.78
B44: =+Assumptions!H31 -> Leaseup Operating Deficit | E44: =+Assumptions!J31 -> 0 | F44: 0 | H44: Profit | L44: =+'Trended Cash Flow'!B344+'Trended Cash Flow'!B329 -> 49410831.96
B45: =+Assumptions!H32 -> Developer Fee | E45: =+Assumptions!J32 -> 2269165 | F45: 19904.95614 | H45: Equity Partner | K45: =+L45/L44 -> 0.6082834532 | L45: =+'Trended Cash Flow'!B344 -> 30055791.49 | N45: Deal Returns | AA45: =IF(AA$40=0,"",(AA$40)/(-SUM($Q$36:AA$36)-SUM($Q$37:AA$37))) ->  | AB45: =IF(AB$40=0,"",-(AB$40)/(-SUM($Q$36:AB$36)-SUM($Q$37:AB$37))) -> 
B46: =+Assumptions!H33 -> Development Contingency | E46: =+Assumptions!J33 -> 1414083.035 | F46: 12404.23715 | H46: CAST | K46: =+L46/L44 -> 0.3917165468 | L46: =+'Trended Cash Flow'!B329 -> 19355040.47 | N46: Cumulative Return on Equity | Q46: =IF(Q7>$D$13,"",(SUM($Q$42:Q42)/(-SUM($Q$38:Q$38)-SUM($Q$39:Q$39)))) -> 0 | R46: =IF(R7>$D$13,"",(SUM($Q$42:R42)/(-SUM($Q$38:R$38)-SUM($Q$39:R$39)))) -> -0.002526069353 | S46: =IF(S7>$D$13,"",(SUM($Q$42:S42)/(-SUM($Q$38:S$38)-SUM($Q$39:S$39)))) -> 0.2720477401 | T46: =IF(T7>$D$13,"",(SUM($Q$42:T42)/(-SUM($Q$38:T$38)-SUM($Q$39:T$39)))) -> 0.5182090101 | U46: =IF(U7>$D$13,"",(SUM($Q$42:U42)/(-SUM($Q$38:U$38)-SUM($Q$39:U$39)))) -> 0.7916270418 | V46: =IF(V7>$D$13,"",(SUM($Q$42:V42)/(-SUM($Q$38:V$38)-SUM($Q$39:V$39)))) -> 1.093211847 | W46: =IF(W7>$D$13,"",(SUM($Q$42:W42)/(-SUM($Q$38:W$38)-SUM($Q$39:W$39)))) -> 1.46561254 | X46: =IF(X7>$D$13,"",(SUM($Q$42:X42)/(-SUM($Q$38:X$38)-SUM($Q$39:X$39)))) -> 1.876727229 | Y46: =IF(Y7>$D$13,"",(SUM($Q$42:Y42)/(-SUM($Q$38:Y$38)-SUM($Q$39:Y$39)))) -> 2.323978932 | Z46: =IF(Z7>$D$13,"",(SUM($Q$42:Z42)/(-SUM($Q$38:Z$38)-SUM($Q$39:Z$39)))) -> 2.808317545 | AA46: =+IF(AA41>0,AA11/$E$51,"") -> 
B47: =+Assumptions!H36 -> Retail LCs | E47: =+Assumptions!J36 -> 0 | F47: =+E47/$F$16 -> 0 | N47: Annual Return on Equity | Q47: =IF(Q$42=0,"",(Q$42)/(-SUM($Q$38:Q$38)-SUM($Q$39:Q$39))) ->  | R47: =IF(R$42=0,"",(R$42)/(-SUM($Q$38:R$38)-SUM($Q$39:R$39))) -> -0.002526069353 | S47: =IF(S$42=0,"",(S$42)/(-SUM($Q$38:S$38)-SUM($Q$39:S$39))) -> 0.2858676371 | T47: =IF(T$42=0,"",(T$42)/(-SUM($Q$38:T$38)-SUM($Q$39:T$39))) -> 0.24616127 | U47: =IF(U$42=0,"",(U$42)/(-SUM($Q$38:U$38)-SUM($Q$39:U$39))) -> 0.2734180317 | V47: =IF(V$42=0,"",(V$42)/(-SUM($Q$38:V$38)-SUM($Q$39:V$39))) -> 0.3015848053 | W47: =IF(W$42=0,"",(W$42)/(-SUM($Q$38:W$38)-SUM($Q$39:W$39))) -> 0.3724006925 | X47: =IF(X$42=0,"",(X$42)/(-SUM($Q$38:X$38)-SUM($Q$39:X$39))) -> 0.4111146896 | Y47: =IF(Y$42=0,"",(Y$42)/(-SUM($Q$38:Y$38)-SUM($Q$39:Y$39))) -> 0.4472517026 | Z47: =IF(Z$42=0,"",(Z$42)/(-SUM($Q$38:Z$38)-SUM($Q$39:Z$39))) -> 0.4843386133 | AA47: =IF(AA40=0,"",(SUM($Q$41:AA41)-SUM($Q$36:AA36))/-SUM($Q$36:AA36)) -> 
B48: =+Assumptions!H37 -> Broker Commission / Other Costs | E48: =+Assumptions!J37 -> 715000 | F48: =+E48/$F$16 -> 6271.929825 | H48: Sale Assumptions | N48: Yield on Cost | O48: Stabilized YOC | P48: =SUMIFS('Trended Cash Flow'!$E$35:$EF$35,'Trended Cash Flow'!$E$11:$EF$11,">="&$E$11,'Trended Cash Flow'!$E$11:$EF$11,"<"&$E$11+12)/$O$25 -> 0.06710649246 | R48: =+IF(R43>0,R11/$E$51,"") ->  | S48: 0.06730399645 | T48: 0.06588561059 | U48: 0.06808771036 | V48: 0.07036333085 | W48: 0.07271492425 | X48: 0.07514502445 | Y48: 0.07765624981 | Z48: 0.08025130588
B49: =Assumptions!H38 -> Sponsor Land Bump/Pursuit Pref | E49: =+Assumptions!J38 -> 650000 | F49: =+E49/$F$16 -> 5701.754386 | H49: Disposition Date | K49: =+Assumptions!F38 -> 120 | L49: =+Assumptions!E38 -> 2033-06-15 | N49: Capital Returned | Q49: =IF(Q42=0,"",(SUM($Q$43:Q43)-SUM($Q$38:Q38))/-SUM($Q$38:Q38)) ->  | R49: =IF(R42=0,"",(SUM($Q$43:R43)-SUM($Q$38:R38))/-SUM($Q$38:R38)) -> 0 | S49: =IF(S42=0,"",(SUM($Q$43:S43)-SUM($Q$38:S38))/-SUM($Q$38:S38)) -> 0.8732475148 | T49: =IF(T42=0,"",(SUM($Q$43:T43)-SUM($Q$38:T38))/-SUM($Q$38:T38)) -> 0.9182420932 | U49: =IF(U42=0,"",(SUM($Q$43:U43)-SUM($Q$38:U38))/-SUM($Q$38:U38)) -> 0.9682187978 | V49: =IF(V42=0,"",(SUM($Q$43:V43)-SUM($Q$38:V38))/-SUM($Q$38:V38)) -> 1.023343965 | W49: =IF(W42=0,"",(SUM($Q$43:W43)-SUM($Q$38:W38))/-SUM($Q$38:W38)) -> 1.091413212 | X49: =IF(X42=0,"",(SUM($Q$43:X43)-SUM($Q$38:X38))/-SUM($Q$38:X38)) -> 1.166558794 | Y49: =IF(Y42=0,"",(SUM($Q$43:Y43)-SUM($Q$38:Y38))/-SUM($Q$38:Y38)) -> 1.24830968 | Z49: =IF(Z42=0,"",(SUM($Q$43:Z43)-SUM($Q$38:Z38))/-SUM($Q$38:Z38)) -> 3.172645291
B50: =+Assumptions!H34 -> Non-Accrual Interest Reserve | E50: =+Assumptions!J34 -> 0 | F50: 0 | N50: IRR & Multiple | O50: IRR | P50: ='Trended Cash Flow'!$B$90 -> 0.2038463056 | Y50: Multiple | Z50: =(SUM($Q$41:AA41)-SUM($Q$36:AA36))/-SUM($Q$36:AA36) -> 2.261355766
B51: =+Assumptions!H39 -> Total Project Cost: | E51: =+Assumptions!J39 -> 60803841.39 | F51: 533367.0297 | H51: Estimate of Today's Mkt Cap-Rate | L51: =+Assumptions!F312 -> 0.0425 | AA51: =IF('Trended Cash Flow'!$D$402="ON",-SUMIF('Trended Cash Flow'!$E$421:$EF$421,AA$7,'Trended Cash Flow'!$E$359:$EF$359),0) -> 0
H52: Buffer to exit cap-rate | L52: =Assumptions!F313 -> 0.0025 | M52: ='Trended Cash Flow'!A123 -> 0.9 | N52: GP Equity Returns | AA52: =AA51*$M$52 -> 0
B53: Capitalization Summary | H53: Exit cap-rate | L53: =+Assumptions!F314 -> 0.045 | M53: =1-M52 -> 0.1 | N53: Total Equity | Q53: =IF('Trended Cash Flow'!$D$402="ON",-SUMIF('Trended Cash Flow'!$E$421:$EF$421,Q$7,'Trended Cash Flow'!$E$359:$EF$359),0) -> -2687529.789 | R53: =IF('Trended Cash Flow'!$D$402="ON",-SUMIF('Trended Cash Flow'!$E$421:$EF$421,R$7,'Trended Cash Flow'!$E$359:$EF$359),0) -> 0 | S53: =IF('Trended Cash Flow'!$D$402="ON",-SUMIF('Trended Cash Flow'!$E$421:$EF$421,S$7,'Trended Cash Flow'!$E$359:$EF$359),0) -> 0 | T53: =IF('Trended Cash Flow'!$D$402="ON",-SUMIF('Trended Cash Flow'!$E$421:$EF$421,T$7,'Trended Cash Flow'!$E$359:$EF$359),0) -> 0 | U53: =IF('Trended Cash Flow'!$D$402="ON",-SUMIF('Trended Cash Flow'!$E$421:$EF$421,U$7,'Trended Cash Flow'!$E$359:$EF$359),0) -> 0 | V53: =IF('Trended Cash Flow'!$D$402="ON",-SUMIF('Trended Cash Flow'!$E$421:$EF$421,V$7,'Trended Cash Flow'!$E$359:$EF$359),0) -> 0 | W53: =IF('Trended Cash Flow'!$D$402="ON",-SUMIF('Trended Cash Flow'!$E$421:$EF$421,W$7,'Trended Cash Flow'!$E$359:$EF$359),0) -> 0 | X53: =IF('Trended Cash Flow'!$D$402="ON",-SUMIF('Trended Cash Flow'!$E$421:$EF$421,X$7,'Trended Cash Flow'!$E$359:$EF$359),0) -> 0 | Y53: =IF('Trended Cash Flow'!$D$402="ON",-SUMIF('Trended Cash Flow'!$E$421:$EF$421,Y$7,'Trended Cash Flow'!$E$359:$EF$359),0) -> 0 | Z53: =IF('Trended Cash Flow'!$D$402="ON",-SUMIF('Trended Cash Flow'!$E$421:$EF$421,Z$7,'Trended Cash Flow'!$E$359:$EF$359),0) -> 0 | AA53: =AA51*$M$53 -> 0
B54: Source | E54: Total | F54: Per Unit | N54: Total Equity (Request) | Q54: =Q53*$M$52 -> -2418776.81 | R54: 0 | S54: 0 | T54: 0 | U54: 0 | V54: 0 | W54: 0 | X54: 0 | Y54: 0 | Z54: 0 | AA54: =SUMIF('Trended Cash Flow'!$E$421:$EF$421,AA$7,'Trended Cash Flow'!$E$331:$EF$331) -> 0
B55: Bank Loan Construction (% of Capital) | D55: =+Capitalization!J11 -> 0.558 | E55: =+Capitalization!H11 -> 33928543.49 | F55: =+E55/$F$16 -> 297618.8026 | H55: Total RE Tax Adjusted Cap Rate | L55: =+Assumptions!S35/100+L53 -> 0.0571 | N55: Total Equity (CAST Land Lift/Sweat) | Q55: =Q53*$M$53 -> -268752.9789 | R55: 0 | S55: 0 | T55: 0 | U55: 0 | V55: 0 | W55: 0 | X55: 0 | Y55: 0 | Z55: 0 | AA55: =+IF(AA54>0,AA54/-($Q$53+$R$53+$S$53),"") -> 
B56: Mezzanine Debt | D56: =+Capitalization!F14 -> 0 | E56: =+Capitalization!H14 -> 0 | F56: =+E56/$F$16 -> 0 | H56: Taxable Value as a % of Sale Price | L56: =+Assumptions!F316 -> 1 | N56: Total Investor Distributions | O56: =SUM(Q54:AA54) -> -2418776.81 | Q56: =SUMIF('Trended Cash Flow'!$E$421:$EF$421,Q$7,'Trended Cash Flow'!$E$331:$EF$331) -> -2687529.789 | R56: =SUMIF('Trended Cash Flow'!$E$421:$EF$421,R$7,'Trended Cash Flow'!$E$331:$EF$331) -> 0 | S56: =SUMIF('Trended Cash Flow'!$E$421:$EF$421,S$7,'Trended Cash Flow'!$E$331:$EF$331) -> 2346878.709 | T56: =SUMIF('Trended Cash Flow'!$E$421:$EF$421,T$7,'Trended Cash Flow'!$E$331:$EF$331) -> 120924.2699 | U56: =SUMIF('Trended Cash Flow'!$E$421:$EF$421,U$7,'Trended Cash Flow'!$E$331:$EF$331) -> 134313.8823 | V56: =SUMIF('Trended Cash Flow'!$E$421:$EF$421,V$7,'Trended Cash Flow'!$E$331:$EF$331) -> 148150.5291 | W56: =SUMIF('Trended Cash Flow'!$E$421:$EF$421,W$7,'Trended Cash Flow'!$E$331:$EF$331) -> 182938.1276 | X56: =SUMIF('Trended Cash Flow'!$E$421:$EF$421,X$7,'Trended Cash Flow'!$E$331:$EF$331) -> 201955.9928 | Y56: =SUMIF('Trended Cash Flow'!$E$421:$EF$421,Y$7,'Trended Cash Flow'!$E$331:$EF$331) -> 219707.9401 | Z56: =SUMIF('Trended Cash Flow'!$E$421:$EF$421,Z$7,'Trended Cash Flow'!$E$331:$EF$331) -> 19585666.55 | AA56: =SUMIF('Trended Cash Flow'!$E$421:$EF$421,AA$7,'Trended Cash Flow'!$E$123:$EF$123) -> 0
B57: LP Equity (% of Equity) | D57: =+Capitalization!F15 -> 0.9 | E57: =+Capitalization!H15 -> 24187768.1 | F57: =+E57/$F$16 -> 212173.4044 | H57: Closing Cost at Sale | L57: =+Assumptions!F317 -> 0.0075 | N57: Yield on Equity (Leveraged) | Q57: =+IF(Q56>0,Q56/-($Q$53+$R$53+$S$53),"") ->  | S57: 0.8732475148 | T57: 0.04499457842 | U57: 0.04997670458 | V57: 0.05512516723 | W57: 0.06806924648 | X57: 0.07514558298 | Y57: 0.08175088552 | Z57: 7.2876091 | AA57: =SUMIF('Trended Cash Flow'!$E$421:$EF$421,AA$7,'Trended Cash Flow'!$E$124:$EF$124) -> 0
B58: GP Equity (% of Equity) | D58: =+Capitalization!F16 -> 0.1 | E58: =+Capitalization!H16 -> 2687529.789 | F58: =+E58/$F$16 -> 23574.82271 | N58: Total Investor Distributions | O58: =SUM(Q56:AA56) -> 20253006.21 | Q58: =SUMIF('Trended Cash Flow'!$E$421:$EF$421,Q$7,'Trended Cash Flow'!$E$123:$EF$123) -> -2418776.81 | R58: =SUMIF('Trended Cash Flow'!$E$421:$EF$421,R$7,'Trended Cash Flow'!$E$123:$EF$123) -> 0 | S58: =SUMIF('Trended Cash Flow'!$E$421:$EF$421,S$7,'Trended Cash Flow'!$E$123:$EF$123) -> 2112190.839 | T58: =SUMIF('Trended Cash Flow'!$E$421:$EF$421,T$7,'Trended Cash Flow'!$E$123:$EF$123) -> 60462.13493 | U58: =SUMIF('Trended Cash Flow'!$E$421:$EF$421,U$7,'Trended Cash Flow'!$E$123:$EF$123) -> 67156.94116 | V58: =SUMIF('Trended Cash Flow'!$E$421:$EF$421,V$7,'Trended Cash Flow'!$E$123:$EF$123) -> 74075.26453 | W58: =SUMIF('Trended Cash Flow'!$E$421:$EF$421,W$7,'Trended Cash Flow'!$E$123:$EF$123) -> 91469.06382 | X58: =SUMIF('Trended Cash Flow'!$E$421:$EF$421,X$7,'Trended Cash Flow'!$E$123:$EF$123) -> 100977.9964 | Y58: =SUMIF('Trended Cash Flow'!$E$421:$EF$421,Y$7,'Trended Cash Flow'!$E$123:$EF$123) -> 109853.9701 | Z58: =SUMIF('Trended Cash Flow'!$E$421:$EF$421,Z$7,'Trended Cash Flow'!$E$123:$EF$123) -> 9792833.274
B59: Total Capitalization | E59: =+E51 -> 60803841.39 | F59: =+E59/$F$16 -> 533367.0297 | H59: Gross Sales Proceeds | L59: =Z40 -> 94734428.14
H60: Gross Sales Proceeds / Unit | L60: =L59/F16 -> 831003.7556
N61: IRR & Multiple | O61: G/R IRR | P61: ='Trended Cash Flow'!C123 -> 0.2560457885 | Y61: G/R Multiple | Z61: =IFERROR((SUM($Q$58:$AA$58)-SUM($Q$53:$AA$53))/-SUM($Q$53:$AA$53),"N/A") -> 4.717258396 | AI61: ='Cash Flow'!E11 -> 1 | AJ61: ='Cash Flow'!F11 -> 2 | AL61: ='Cash Flow'!G11 -> 3 | AN61: ='Cash Flow'!H11 -> 4 | AO61: ='Cash Flow'!I11 -> 5 | AP61: ='Cash Flow'!J11 -> 6 | AQ61: ='Cash Flow'!K11 -> 7 | AR61: ='Cash Flow'!L11 -> 8 | AS61: ='Cash Flow'!M11 -> 9 | AT61: ='Cash Flow'!N11 -> 10 | AU61: ='Cash Flow'!O11 -> 11 | AV61: ='Cash Flow'!P11 -> 12 | AW61: ='Cash Flow'!Q11 -> 13 | AX61: ='Cash Flow'!R11 -> 14 | AY61: ='Cash Flow'!S11 -> 15 | AZ61: ='Cash Flow'!T11 -> 16 | BA61: ='Cash Flow'!U11 -> 17 | BB61: ='Cash Flow'!V11 -> 18 | BC61: ='Cash Flow'!W11 -> 19 | BD61: ='Cash Flow'!X11 -> 20 | BE61: ='Cash Flow'!Y11 -> 21 | BF61: ='Cash Flow'!Z11 -> 22 | BG61: ='Cash Flow'!AA11 -> 23 | BH61: ='Cash Flow'!AB11 -> 24 | BI61: ='Cash Flow'!AC11 -> 25 | BJ61: ='Cash Flow'!AD11 -> 26 | BK61: ='Cash Flow'!AE11 -> 27 | BL61: ='Cash Flow'!AF11 -> 28 | BM61: ='Cash Flow'!AG11 -> 29 | BN61: ='Cash Flow'!AH11 -> 30 | BO61: ='Cash Flow'!AI11 -> 31 | BP61: ='Cash Flow'!AJ11 -> 32 | BQ61: ='Cash Flow'!AK11 -> 33 | BR61: ='Cash Flow'!AL11 -> 34 | BS61: ='Cash Flow'!AM11 -> 35 | BT61: ='Cash Flow'!AN11 -> 36 | BU61: ='Cash Flow'!AO11 -> 37 | BV61: ='Cash Flow'!AP11 -> 38 | BW61: ='Cash Flow'!AQ11 -> 39 | BX61: ='Cash Flow'!AR11 -> 40 | BY61: ='Cash Flow'!AS11 -> 41 | BZ61: ='Cash Flow'!AT11 -> 42 | CA61: ='Cash Flow'!AU11 -> 43 | CB61: ='Cash Flow'!AV11 -> 44 | CC61: ='Cash Flow'!AW11 -> 45 | CD61: ='Cash Flow'!AX11 -> 46 | CE61: ='Cash Flow'!AY11 -> 47 | CF61: ='Cash Flow'!AZ11 -> 48 | CG61: ='Cash Flow'!BA11 -> 49 | CH61: ='Cash Flow'!BB11 -> 50 | CI61: ='Cash Flow'!BC11 -> 51 | CJ61: ='Cash Flow'!BD11 -> 52 | CK61: ='Cash Flow'!BE11 -> 53 | CL61: ='Cash Flow'!BF11 -> 54 | CM61: ='Cash Flow'!BG11 -> 55 | CN61: ='Cash Flow'!BH11 -> 56 | CO61: ='Cash Flow'!BI11 -> 57 | CP61: ='Cash Flow'!BJ11 -> 58 | CQ61: ='Cash Flow'!BK11 -> 59 | CR61: ='Cash Flow'!BL11 -> 60
AI62: ='Cash Flow'!E12 -> 2023-06-15 | AJ62: ='Cash Flow'!F12 -> 2023-07-15 | AL62: ='Cash Flow'!G12 -> 2023-08-15 | AN62: ='Cash Flow'!H12 -> 2023-09-15 | AO62: ='Cash Flow'!I12 -> 2023-10-15 | AP62: ='Cash Flow'!J12 -> 2023-11-15 | AQ62: ='Cash Flow'!K12 -> 2023-12-15 | AR62: ='Cash Flow'!L12 -> 2024-01-15 | AS62: ='Cash Flow'!M12 -> 2024-02-15 | AT62: ='Cash Flow'!N12 -> 2024-03-15 | AU62: ='Cash Flow'!O12 -> 2024-04-15 | AV62: ='Cash Flow'!P12 -> 2024-05-15 | AW62: ='Cash Flow'!Q12 -> 2024-06-15 | AX62: ='Cash Flow'!R12 -> 2024-07-15 | AY62: ='Cash Flow'!S12 -> 2024-08-15 | AZ62: ='Cash Flow'!T12 -> 2024-09-15 | BA62: ='Cash Flow'!U12 -> 2024-10-15 | BB62: ='Cash Flow'!V12 -> 2024-11-15 | BC62: ='Cash Flow'!W12 -> 2024-12-15 | BD62: ='Cash Flow'!X12 -> 2025-01-15 | BE62: ='Cash Flow'!Y12 -> 2025-02-15 | BF62: ='Cash Flow'!Z12 -> 2025-03-15 | BG62: ='Cash Flow'!AA12 -> 2025-04-15 | BH62: ='Cash Flow'!AB12 -> 2025-05-15 | BI62: ='Cash Flow'!AC12 -> 2025-06-15 | BJ62: ='Cash Flow'!AD12 -> 2025-07-15 | BK62: ='Cash Flow'!AE12 -> 2025-08-15 | BL62: ='Cash Flow'!AF12 -> 2025-09-15 | BM62: ='Cash Flow'!AG12 -> 2025-10-15 | BN62: ='Cash Flow'!AH12 -> 2025-11-15 | BO62: ='Cash Flow'!AI12 -> 2025-12-15 | BP62: ='Cash Flow'!AJ12 -> 2026-01-15 | BQ62: ='Cash Flow'!AK12 -> 2026-02-15 | BR62: ='Cash Flow'!AL12 -> 2026-03-15 | BS62: ='Cash Flow'!AM12 -> 2026-04-15 | BT62: ='Cash Flow'!AN12 -> 2026-05-15 | BU62: ='Cash Flow'!AO12 -> 2026-06-15 | BV62: ='Cash Flow'!AP12 -> 2026-07-15 | BW62: ='Cash Flow'!AQ12 -> 2026-08-15 | BX62: ='Cash Flow'!AR12 -> 2026-09-15 | BY62: ='Cash Flow'!AS12 -> 2026-10-15 | BZ62: ='Cash Flow'!AT12 -> 2026-11-15 | CA62: ='Cash Flow'!AU12 -> 2026-12-15 | CB62: ='Cash Flow'!AV12 -> 2027-01-15 | CC62: ='Cash Flow'!AW12 -> 2027-02-15 | CD62: ='Cash Flow'!AX12 -> 2027-03-15 | CE62: ='Cash Flow'!AY12 -> 2027-04-15 | CF62: ='Cash Flow'!AZ12 -> 2027-05-15 | CG62: ='Cash Flow'!BA12 -> 2027-06-15 | CH62: ='Cash Flow'!BB12 -> 2027-07-15 | CI62: ='Cash Flow'!BC12 -> 2027-08-15 | CJ62: ='Cash Flow'!BD12 -> 2027-09-15 | CK62: ='Cash Flow'!BE12 -> 2027-10-15 | CL62: ='Cash Flow'!BF12 -> 2027-11-15 | CM62: ='Cash Flow'!BG12 -> 2027-12-15 | CN62: ='Cash Flow'!BH12 -> 2028-01-15 | CO62: ='Cash Flow'!BI12 -> 2028-02-15 | CP62: ='Cash Flow'!BJ12 -> 2028-03-15 | CQ62: ='Cash Flow'!BK12 -> 2028-04-15 | CR62: ='Cash Flow'!BL12 -> 2028-05-15
AA63: =-SUMIF('Trended Cash Flow'!$E$421:$EF$421,AA$7,'Trended Cash Flow'!$E$362:$EF$362) -> 0 | AH63: Funding Requirements
N64: LP Equity Partner Returns | AA64: =SUMIF('Trended Cash Flow'!$E$421:$EF$421,AA$7,'Trended Cash Flow'!$E$347:$EF$347) -> 0 | AH64: ='Cash Flow'!$A41 -> Land | AI64: ='Cash Flow'!E41 -> 5075000 | AJ64: ='Cash Flow'!F41 -> 0 | AL64: ='Cash Flow'!G41 -> 0 | AN64: ='Cash Flow'!H41 -> 0 | AO64: ='Cash Flow'!I41 -> 0 | AP64: ='Cash Flow'!J41 -> 0 | AQ64: ='Cash Flow'!K41 -> 0 | AR64: ='Cash Flow'!L41 -> 0 | AS64: ='Cash Flow'!M41 -> 0 | AT64: ='Cash Flow'!N41 -> 0 | AU64: ='Cash Flow'!O41 -> 0 | AV64: ='Cash Flow'!P41 -> 0 | AW64: ='Cash Flow'!Q41 -> 0 | AX64: ='Cash Flow'!R41 -> 0 | AY64: ='Cash Flow'!S41 -> 0 | AZ64: ='Cash Flow'!T41 -> 0 | BA64: ='Cash Flow'!U41 -> 0 | BB64: ='Cash Flow'!V41 -> 0 | BC64: ='Cash Flow'!W41 -> 0 | BD64: ='Cash Flow'!X41 -> 0 | BE64: ='Cash Flow'!Y41 -> 0 | BF64: ='Cash Flow'!Z41 -> 0 | BG64: ='Cash Flow'!AA41 -> 0 | BH64: ='Cash Flow'!AB41 -> 0 | BI64: ='Cash Flow'!AC41 -> 0 | BJ64: ='Cash Flow'!AD41 -> 0 | BK64: ='Cash Flow'!AE41 -> 0 | BL64: ='Cash Flow'!AF41 -> 0 | BM64: ='Cash Flow'!AG41 -> 0 | BN64: ='Cash Flow'!AH41 -> 0 | BO64: ='Cash Flow'!AI41 -> 0 | BP64: ='Cash Flow'!AJ41 -> 0 | BQ64: ='Cash Flow'!AK41 -> 0 | BR64: ='Cash Flow'!AL41 -> 0 | BS64: ='Cash Flow'!AM41 -> 0 | BT64: ='Cash Flow'!AN41 -> 0 | BU64: ='Cash Flow'!AO41 -> 0 | BV64: ='Cash Flow'!AP41 -> 0 | BW64: ='Cash Flow'!AQ41 -> 0 | BX64: ='Cash Flow'!AR41 -> 0 | BY64: ='Cash Flow'!AS41 -> 0 | BZ64: ='Cash Flow'!AT41 -> 0 | CA64: ='Cash Flow'!AU41 -> 0 | CB64: ='Cash Flow'!AV41 -> 0 | CC64: ='Cash Flow'!AW41 -> 0 | CD64: ='Cash Flow'!AX41 -> 0 | CE64: ='Cash Flow'!AY41 -> 0 | CF64: ='Cash Flow'!AZ41 -> 0 | CG64: ='Cash Flow'!BA41 -> 0 | CH64: ='Cash Flow'!BB41 -> 0 | CI64: ='Cash Flow'!BC41 -> 0 | CJ64: ='Cash Flow'!BD41 -> 0 | CK64: ='Cash Flow'!BE41 -> 0 | CL64: ='Cash Flow'!BF41 -> 0 | CM64: ='Cash Flow'!BG41 -> 0 | CN64: ='Cash Flow'!BH41 -> 0 | CO64: ='Cash Flow'!BI41 -> 0 | CP64: ='Cash Flow'!BJ41 -> 0 | CQ64: ='Cash Flow'!BK41 -> 0 | CR64: ='Cash Flow'!BL41 -> 0
N65: Total Equity | Q65: =-SUMIF('Trended Cash Flow'!$E$421:$EF$421,Q$7,'Trended Cash Flow'!$E$362:$EF$362) -> -24187768.1 | R65: =-SUMIF('Trended Cash Flow'!$E$421:$EF$421,R$7,'Trended Cash Flow'!$E$362:$EF$362) -> 0 | S65: =-SUMIF('Trended Cash Flow'!$E$421:$EF$421,S$7,'Trended Cash Flow'!$E$362:$EF$362) -> 0 | T65: =-SUMIF('Trended Cash Flow'!$E$421:$EF$421,T$7,'Trended Cash Flow'!$E$362:$EF$362) -> 0 | U65: =-SUMIF('Trended Cash Flow'!$E$421:$EF$421,U$7,'Trended Cash Flow'!$E$362:$EF$362) -> 0 | V65: =-SUMIF('Trended Cash Flow'!$E$421:$EF$421,V$7,'Trended Cash Flow'!$E$362:$EF$362) -> 0 | W65: =-SUMIF('Trended Cash Flow'!$E$421:$EF$421,W$7,'Trended Cash Flow'!$E$362:$EF$362) -> 0 | X65: =-SUMIF('Trended Cash Flow'!$E$421:$EF$421,X$7,'Trended Cash Flow'!$E$362:$EF$362) -> 0 | Y65: =-SUMIF('Trended Cash Flow'!$E$421:$EF$421,Y$7,'Trended Cash Flow'!$E$362:$EF$362) -> 0 | Z65: =-SUMIF('Trended Cash Flow'!$E$421:$EF$421,Z$7,'Trended Cash Flow'!$E$362:$EF$362) -> 0 | AA65: =+IF(AA64>0,AA64/-($Q$65+$R$65+$S$65),"") ->  | AH65: ='Cash Flow'!$A42 -> Legal, Closing Costs & Financing | AI65: ='Cash Flow'!E42 -> 1123571 | AJ65: ='Cash Flow'!F42 -> 0 | AL65: ='Cash Flow'!G42 -> 0 | AN65: ='Cash Flow'!H42 -> 0 | AO65: ='Cash Flow'!I42 -> 0 | AP65: ='Cash Flow'!J42 -> 0 | AQ65: ='Cash Flow'!K42 -> 0 | AR65: ='Cash Flow'!L42 -> 0 | AS65: ='Cash Flow'!M42 -> 0 | AT65: ='Cash Flow'!N42 -> 0 | AU65: ='Cash Flow'!O42 -> 0 | AV65: ='Cash Flow'!P42 -> 0 | AW65: ='Cash Flow'!Q42 -> 0 | AX65: ='Cash Flow'!R42 -> 0 | AY65: ='Cash Flow'!S42 -> 0 | AZ65: ='Cash Flow'!T42 -> 0 | BA65: ='Cash Flow'!U42 -> 0 | BB65: ='Cash Flow'!V42 -> 0 | BC65: ='Cash Flow'!W42 -> 0 | BD65: ='Cash Flow'!X42 -> 0 | BE65: ='Cash Flow'!Y42 -> 0 | BF65: ='Cash Flow'!Z42 -> 0 | BG65: ='Cash Flow'!AA42 -> 0 | BH65: ='Cash Flow'!AB42 -> 0 | BI65: ='Cash Flow'!AC42 -> 0 | BJ65: ='Cash Flow'!AD42 -> 0 | BK65: ='Cash Flow'!AE42 -> 0 | BL65: ='Cash Flow'!AF42 -> 0 | BM65: ='Cash Flow'!AG42 -> 0 | BN65: ='Cash Flow'!AH42 -> 0 | BO65: ='Cash Flow'!AI42 -> 0 | BP65: ='Cash Flow'!AJ42 -> 0 | BQ65: ='Cash Flow'!AK42 -> 0 | BR65: ='Cash Flow'!AL42 -> 0 | BS65: ='Cash Flow'!AM42 -> 0 | BT65: ='Cash Flow'!AN42 -> 0 | BU65: ='Cash Flow'!AO42 -> 0 | BV65: ='Cash Flow'!AP42 -> 0 | BW65: ='Cash Flow'!AQ42 -> 0 | BX65: ='Cash Flow'!AR42 -> 0 | BY65: ='Cash Flow'!AS42 -> 0 | BZ65: ='Cash Flow'!AT42 -> 0 | CA65: ='Cash Flow'!AU42 -> 0 | CB65: ='Cash Flow'!AV42 -> 0 | CC65: ='Cash Flow'!AW42 -> 0 | CD65: ='Cash Flow'!AX42 -> 0 | CE65: ='Cash Flow'!AY42 -> 0 | CF65: ='Cash Flow'!AZ42 -> 0 | CG65: ='Cash Flow'!BA42 -> 0 | CH65: ='Cash Flow'!BB42 -> 0 | CI65: ='Cash Flow'!BC42 -> 0 | CJ65: ='Cash Flow'!BD42 -> 0 | CK65: ='Cash Flow'!BE42 -> 0 | CL65: ='Cash Flow'!BF42 -> 0 | CM65: ='Cash Flow'!BG42 -> 0 | CN65: ='Cash Flow'!BH42 -> 0 | CO65: ='Cash Flow'!BI42 -> 0 | CP65: ='Cash Flow'!BJ42 -> 0 | CQ65: ='Cash Flow'!BK42 -> 0 | CR65: ='Cash Flow'!BL42 -> 0
N66: Total Investor Distributions | O66: =SUM(Q66:AA66) -> 38137483.19 | Q66: =SUMIF('Trended Cash Flow'!$E$421:$EF$421,Q$7,'Trended Cash Flow'!$E$347:$EF$347) -> -24187768.1 | R66: =SUMIF('Trended Cash Flow'!$E$421:$EF$421,R$7,'Trended Cash Flow'!$E$347:$EF$347) -> 0 | S66: =SUMIF('Trended Cash Flow'!$E$421:$EF$421,S$7,'Trended Cash Flow'!$E$347:$EF$347) -> 21121908.39 | T66: =SUMIF('Trended Cash Flow'!$E$421:$EF$421,T$7,'Trended Cash Flow'!$E$347:$EF$347) -> 1088318.429 | U66: =SUMIF('Trended Cash Flow'!$E$421:$EF$421,U$7,'Trended Cash Flow'!$E$347:$EF$347) -> 1208824.941 | V66: =SUMIF('Trended Cash Flow'!$E$421:$EF$421,V$7,'Trended Cash Flow'!$E$347:$EF$347) -> 1333354.762 | W66: =SUMIF('Trended Cash Flow'!$E$421:$EF$421,W$7,'Trended Cash Flow'!$E$347:$EF$347) -> 1646443.149 | X66: =SUMIF('Trended Cash Flow'!$E$421:$EF$421,X$7,'Trended Cash Flow'!$E$347:$EF$347) -> 1817603.935 | Y66: =SUMIF('Trended Cash Flow'!$E$421:$EF$421,Y$7,'Trended Cash Flow'!$E$347:$EF$347) -> 1977371.461 | Z66: =SUMIF('Trended Cash Flow'!$E$421:$EF$421,Z$7,'Trended Cash Flow'!$E$347:$EF$347) -> 32131426.23 | AH66: ='Cash Flow'!$A43 -> Construction Hard Costs | AI66: ='Cash Flow'!E43 -> 0 | AJ66: ='Cash Flow'!F43 -> 828000.008 | AL66: ='Cash Flow'!G43 -> 1051388.043 | AN66: ='Cash Flow'!H43 -> 1301896.497 | AO66: ='Cash Flow'!I43 -> 1572065.466 | AP66: ='Cash Flow'!J43 -> 1851166.798 | AQ66: ='Cash Flow'!K43 -> 2125696.423 | AR66: ='Cash Flow'!L43 -> 2380332.926 | AS66: ='Cash Flow'!M43 -> 2599291.256 | AT66: ='Cash Flow'!N43 -> 2767916.419 | AU66: ='Cash Flow'!O43 -> 2874297.957 | AV66: ='Cash Flow'!P43 -> 2910659.417 | AW66: ='Cash Flow'!Q43 -> 2874297.957 | AX66: ='Cash Flow'!R43 -> 2767916.419 | AY66: ='Cash Flow'!S43 -> 2599291.256 | AZ66: ='Cash Flow'!T43 -> 2380332.926 | BA66: ='Cash Flow'!U43 -> 2125696.423 | BB66: ='Cash Flow'!V43 -> 1851166.798 | BC66: ='Cash Flow'!W43 -> 1572065.466 | BD66: ='Cash Flow'!X43 -> 1301896.497 | BE66: ='Cash Flow'!Y43 -> 1051388.043 | BF66: ='Cash Flow'!Z43 -> 828000.008 | BG66: ='Cash Flow'!AA43 -> 0 | BH66: ='Cash Flow'!AB43 -> 0 | BI66: ='Cash Flow'!AC43 -> 0 | BJ66: ='Cash Flow'!AD43 -> 0 | BK66: ='Cash Flow'!AE43 -> 0 | BL66: ='Cash Flow'!AF43 -> 0 | BM66: ='Cash Flow'!AG43 -> 0 | BN66: ='Cash Flow'!AH43 -> 0 | BO66: ='Cash Flow'!AI43 -> 0 | BP66: ='Cash Flow'!AJ43 -> 0 | BQ66: ='Cash Flow'!AK43 -> 0 | BR66: ='Cash Flow'!AL43 -> 0 | BS66: ='Cash Flow'!AM43 -> 0 | BT66: ='Cash Flow'!AN43 -> 0 | BU66: ='Cash Flow'!AO43 -> 0 | BV66: ='Cash Flow'!AP43 -> 0 | BW66: ='Cash Flow'!AQ43 -> 0 | BX66: ='Cash Flow'!AR43 -> 0 | BY66: ='Cash Flow'!AS43 -> 0 | BZ66: ='Cash Flow'!AT43 -> 0 | CA66: ='Cash Flow'!AU43 -> 0 | CB66: ='Cash Flow'!AV43 -> 0 | CC66: ='Cash Flow'!AW43 -> 0 | CD66: ='Cash Flow'!AX43 -> 0 | CE66: ='Cash Flow'!AY43 -> 0 | CF66: ='Cash Flow'!AZ43 -> 0 | CG66: ='Cash Flow'!BA43 -> 0 | CH66: ='Cash Flow'!BB43 -> 0 | CI66: ='Cash Flow'!BC43 -> 0 | CJ66: ='Cash Flow'!BD43 -> 0 | CK66: ='Cash Flow'!BE43 -> 0 | CL66: ='Cash Flow'!BF43 -> 0 | CM66: ='Cash Flow'!BG43 -> 0 | CN66: ='Cash Flow'!BH43 -> 0 | CO66: ='Cash Flow'!BI43 -> 0 | CP66: ='Cash Flow'!BJ43 -> 0 | CQ66: ='Cash Flow'!BK43 -> 0 | CR66: ='Cash Flow'!BL43 -> 0
N67: Yield on Equity (Leveraged) | Q67: =+IF(Q66>0,Q66/-($Q$65+$R$65+$S$65),"") ->  | S67: 0.8732475148 | T67: 0.04499457842 | U67: 0.04997670458 | V67: 0.05512516723 | W67: 0.06806924648 | X67: 0.07514558298 | Y67: 0.08175088552 | Z67: 1.328416334 | AH67: ='Cash Flow'!$A44 -> Municipal Fees | AI67: ='Cash Flow'!E44 -> 2272219.801 | AJ67: ='Cash Flow'!F44 -> 0 | AL67: ='Cash Flow'!G44 -> 0 | AN67: ='Cash Flow'!H44 -> 0 | AO67: ='Cash Flow'!I44 -> 0 | AP67: ='Cash Flow'!J44 -> 0 | AQ67: ='Cash Flow'!K44 -> 0 | AR67: ='Cash Flow'!L44 -> 0 | AS67: ='Cash Flow'!M44 -> 0 | AT67: ='Cash Flow'!N44 -> 0 | AU67: ='Cash Flow'!O44 -> 0 | AV67: ='Cash Flow'!P44 -> 0 | AW67: ='Cash Flow'!Q44 -> 0 | AX67: ='Cash Flow'!R44 -> 0 | AY67: ='Cash Flow'!S44 -> 0 | AZ67: ='Cash Flow'!T44 -> 0 | BA67: ='Cash Flow'!U44 -> 0 | BB67: ='Cash Flow'!V44 -> 0 | BC67: ='Cash Flow'!W44 -> 0 | BD67: ='Cash Flow'!X44 -> 0 | BE67: ='Cash Flow'!Y44 -> 0 | BF67: ='Cash Flow'!Z44 -> 0 | BG67: ='Cash Flow'!AA44 -> 0 | BH67: ='Cash Flow'!AB44 -> 0 | BI67: ='Cash Flow'!AC44 -> 0 | BJ67: ='Cash Flow'!AD44 -> 0 | BK67: ='Cash Flow'!AE44 -> 0 | BL67: ='Cash Flow'!AF44 -> 0 | BM67: ='Cash Flow'!AG44 -> 0 | BN67: ='Cash Flow'!AH44 -> 0 | BO67: ='Cash Flow'!AI44 -> 0 | BP67: ='Cash Flow'!AJ44 -> 0 | BQ67: ='Cash Flow'!AK44 -> 0 | BR67: ='Cash Flow'!AL44 -> 0 | BS67: ='Cash Flow'!AM44 -> 0 | BT67: ='Cash Flow'!AN44 -> 0 | BU67: ='Cash Flow'!AO44 -> 0 | BV67: ='Cash Flow'!AP44 -> 0 | BW67: ='Cash Flow'!AQ44 -> 0 | BX67: ='Cash Flow'!AR44 -> 0 | BY67: ='Cash Flow'!AS44 -> 0 | BZ67: ='Cash Flow'!AT44 -> 0 | CA67: ='Cash Flow'!AU44 -> 0 | CB67: ='Cash Flow'!AV44 -> 0 | CC67: ='Cash Flow'!AW44 -> 0 | CD67: ='Cash Flow'!AX44 -> 0 | CE67: ='Cash Flow'!AY44 -> 0 | CF67: ='Cash Flow'!AZ44 -> 0 | CG67: ='Cash Flow'!BA44 -> 0 | CH67: ='Cash Flow'!BB44 -> 0 | CI67: ='Cash Flow'!BC44 -> 0 | CJ67: ='Cash Flow'!BD44 -> 0 | CK67: ='Cash Flow'!BE44 -> 0 | CL67: ='Cash Flow'!BF44 -> 0 | CM67: ='Cash Flow'!BG44 -> 0 | CN67: ='Cash Flow'!BH44 -> 0 | CO67: ='Cash Flow'!BI44 -> 0 | CP67: ='Cash Flow'!BJ44 -> 0 | CQ67: ='Cash Flow'!BK44 -> 0 | CR67: ='Cash Flow'!BL44 -> 0
AH68: ='Cash Flow'!$A45 -> Architect, Engineering and Surveying | AI68: ='Cash Flow'!E45 -> 1530800 | AJ68: ='Cash Flow'!F45 -> 0 | AL68: ='Cash Flow'!G45 -> 0 | AN68: ='Cash Flow'!H45 -> 0 | AO68: ='Cash Flow'!I45 -> 0 | AP68: ='Cash Flow'!J45 -> 0 | AQ68: ='Cash Flow'!K45 -> 0 | AR68: ='Cash Flow'!L45 -> 0 | AS68: ='Cash Flow'!M45 -> 0 | AT68: ='Cash Flow'!N45 -> 0 | AU68: ='Cash Flow'!O45 -> 0 | AV68: ='Cash Flow'!P45 -> 0 | AW68: ='Cash Flow'!Q45 -> 0 | AX68: ='Cash Flow'!R45 -> 0 | AY68: ='Cash Flow'!S45 -> 0 | AZ68: ='Cash Flow'!T45 -> 0 | BA68: ='Cash Flow'!U45 -> 0 | BB68: ='Cash Flow'!V45 -> 0 | BC68: ='Cash Flow'!W45 -> 0 | BD68: ='Cash Flow'!X45 -> 0 | BE68: ='Cash Flow'!Y45 -> 0 | BF68: ='Cash Flow'!Z45 -> 0 | BG68: ='Cash Flow'!AA45 -> 0 | BH68: ='Cash Flow'!AB45 -> 0 | BI68: ='Cash Flow'!AC45 -> 0 | BJ68: ='Cash Flow'!AD45 -> 0 | BK68: ='Cash Flow'!AE45 -> 0 | BL68: ='Cash Flow'!AF45 -> 0 | BM68: ='Cash Flow'!AG45 -> 0 | BN68: ='Cash Flow'!AH45 -> 0 | BO68: ='Cash Flow'!AI45 -> 0 | BP68: ='Cash Flow'!AJ45 -> 0 | BQ68: ='Cash Flow'!AK45 -> 0 | BR68: ='Cash Flow'!AL45 -> 0 | BS68: ='Cash Flow'!AM45 -> 0 | BT68: ='Cash Flow'!AN45 -> 0 | BU68: ='Cash Flow'!AO45 -> 0 | BV68: ='Cash Flow'!AP45 -> 0 | BW68: ='Cash Flow'!AQ45 -> 0 | BX68: ='Cash Flow'!AR45 -> 0 | BY68: ='Cash Flow'!AS45 -> 0 | BZ68: ='Cash Flow'!AT45 -> 0 | CA68: ='Cash Flow'!AU45 -> 0 | CB68: ='Cash Flow'!AV45 -> 0 | CC68: ='Cash Flow'!AW45 -> 0 | CD68: ='Cash Flow'!AX45 -> 0 | CE68: ='Cash Flow'!AY45 -> 0 | CF68: ='Cash Flow'!AZ45 -> 0 | CG68: ='Cash Flow'!BA45 -> 0 | CH68: ='Cash Flow'!BB45 -> 0 | CI68: ='Cash Flow'!BC45 -> 0 | CJ68: ='Cash Flow'!BD45 -> 0 | CK68: ='Cash Flow'!BE45 -> 0 | CL68: ='Cash Flow'!BF45 -> 0 | CM68: ='Cash Flow'!BG45 -> 0 | CN68: ='Cash Flow'!BH45 -> 0 | CO68: ='Cash Flow'!BI45 -> 0 | CP68: ='Cash Flow'!BJ45 -> 0 | CQ68: ='Cash Flow'!BK45 -> 0 | CR68: ='Cash Flow'!BL45 -> 0
N69: IRR & Multiple | O69: IRR | P69: ='Trended Cash Flow'!$B$351 -> 0.1779204976 | Y69: Multiple | Z69: =(SUM($Q$66:$AA$66)-SUM($Q$65:$AA$65))/-SUM($Q$65:$AA$65) -> 2.576726014 | AH69: ='Cash Flow'!$A46 -> Taxes | AI69: ='Cash Flow'!E46 -> 270369.5498 | AJ69: ='Cash Flow'!F46 -> 0 | AL69: ='Cash Flow'!G46 -> 0 | AN69: ='Cash Flow'!H46 -> 0 | AO69: ='Cash Flow'!I46 -> 0 | AP69: ='Cash Flow'!J46 -> 0 | AQ69: ='Cash Flow'!K46 -> 0 | AR69: ='Cash Flow'!L46 -> 0 | AS69: ='Cash Flow'!M46 -> 0 | AT69: ='Cash Flow'!N46 -> 0 | AU69: ='Cash Flow'!O46 -> 0 | AV69: ='Cash Flow'!P46 -> 0 | AW69: ='Cash Flow'!Q46 -> 0 | AX69: ='Cash Flow'!R46 -> 0 | AY69: ='Cash Flow'!S46 -> 0 | AZ69: ='Cash Flow'!T46 -> 0 | BA69: ='Cash Flow'!U46 -> 0 | BB69: ='Cash Flow'!V46 -> 0 | BC69: ='Cash Flow'!W46 -> 0 | BD69: ='Cash Flow'!X46 -> 0 | BE69: ='Cash Flow'!Y46 -> 0 | BF69: ='Cash Flow'!Z46 -> 0 | BG69: ='Cash Flow'!AA46 -> 0 | BH69: ='Cash Flow'!AB46 -> 0 | BI69: ='Cash Flow'!AC46 -> 0 | BJ69: ='Cash Flow'!AD46 -> 0 | BK69: ='Cash Flow'!AE46 -> 0 | BL69: ='Cash Flow'!AF46 -> 0 | BM69: ='Cash Flow'!AG46 -> 0 | BN69: ='Cash Flow'!AH46 -> 0 | BO69: ='Cash Flow'!AI46 -> 0 | BP69: ='Cash Flow'!AJ46 -> 0 | BQ69: ='Cash Flow'!AK46 -> 0 | BR69: ='Cash Flow'!AL46 -> 0 | BS69: ='Cash Flow'!AM46 -> 0 | BT69: ='Cash Flow'!AN46 -> 0 | BU69: ='Cash Flow'!AO46 -> 0 | BV69: ='Cash Flow'!AP46 -> 0 | BW69: ='Cash Flow'!AQ46 -> 0 | BX69: ='Cash Flow'!AR46 -> 0 | BY69: ='Cash Flow'!AS46 -> 0 | BZ69: ='Cash Flow'!AT46 -> 0 | CA69: ='Cash Flow'!AU46 -> 0 | CB69: ='Cash Flow'!AV46 -> 0 | CC69: ='Cash Flow'!AW46 -> 0 | CD69: ='Cash Flow'!AX46 -> 0 | CE69: ='Cash Flow'!AY46 -> 0 | CF69: ='Cash Flow'!AZ46 -> 0 | CG69: ='Cash Flow'!BA46 -> 0 | CH69: ='Cash Flow'!BB46 -> 0 | CI69: ='Cash Flow'!BC46 -> 0 | CJ69: ='Cash Flow'!BD46 -> 0 | CK69: ='Cash Flow'!BE46 -> 0 | CL69: ='Cash Flow'!BF46 -> 0 | CM69: ='Cash Flow'!BG46 -> 0 | CN69: ='Cash Flow'!BH46 -> 0 | CO69: ='Cash Flow'!BI46 -> 0 | CP69: ='Cash Flow'!BJ46 -> 0 | CQ69: ='Cash Flow'!BK46 -> 0 | CR69: ='Cash Flow'!BL46 -> 0
AH70: ='Cash Flow'!$A47 -> Soft Cost Contingency | AI70: ='Cash Flow'!E47 -> 0 | AJ70: ='Cash Flow'!F47 -> 0 | AL70: ='Cash Flow'!G47 -> 0 | AN70: ='Cash Flow'!H47 -> 282816.607 | AO70: ='Cash Flow'!I47 -> 282816.607 | AP70: ='Cash Flow'!J47 -> 282816.607 | AQ70: ='Cash Flow'!K47 -> 282816.607 | AR70: ='Cash Flow'!L47 -> 282816.607 | AS70: ='Cash Flow'!M47 -> 0 | AT70: ='Cash Flow'!N47 -> 0 | AU70: ='Cash Flow'!O47 -> 0 | AV70: ='Cash Flow'!P47 -> 0 | AW70: ='Cash Flow'!Q47 -> 0 | AX70: ='Cash Flow'!R47 -> 0 | AY70: ='Cash Flow'!S47 -> 0 | AZ70: ='Cash Flow'!T47 -> 0 | BA70: ='Cash Flow'!U47 -> 0 | BB70: ='Cash Flow'!V47 -> 0 | BC70: ='Cash Flow'!W47 -> 0 | BD70: ='Cash Flow'!X47 -> 0 | BE70: ='Cash Flow'!Y47 -> 0 | BF70: ='Cash Flow'!Z47 -> 0 | BG70: ='Cash Flow'!AA47 -> 0 | BH70: ='Cash Flow'!AB47 -> 0 | BI70: ='Cash Flow'!AC47 -> 0 | BJ70: ='Cash Flow'!AD47 -> 0 | BK70: ='Cash Flow'!AE47 -> 0 | BL70: ='Cash Flow'!AF47 -> 0 | BM70: ='Cash Flow'!AG47 -> 0 | BN70: ='Cash Flow'!AH47 -> 0 | BO70: ='Cash Flow'!AI47 -> 0 | BP70: ='Cash Flow'!AJ47 -> 0 | BQ70: ='Cash Flow'!AK47 -> 0 | BR70: ='Cash Flow'!AL47 -> 0 | BS70: ='Cash Flow'!AM47 -> 0 | BT70: ='Cash Flow'!AN47 -> 0 | BU70: ='Cash Flow'!AO47 -> 0 | BV70: ='Cash Flow'!AP47 -> 0 | BW70: ='Cash Flow'!AQ47 -> 0 | BX70: ='Cash Flow'!AR47 -> 0 | BY70: ='Cash Flow'!AS47 -> 0 | BZ70: ='Cash Flow'!AT47 -> 0 | CA70: ='Cash Flow'!AU47 -> 0 | CB70: ='Cash Flow'!AV47 -> 0 | CC70: ='Cash Flow'!AW47 -> 0 | CD70: ='Cash Flow'!AX47 -> 0 | CE70: ='Cash Flow'!AY47 -> 0 | CF70: ='Cash Flow'!AZ47 -> 0 | CG70: ='Cash Flow'!BA47 -> 0 | CH70: ='Cash Flow'!BB47 -> 0 | CI70: ='Cash Flow'!BC47 -> 0 | CJ70: ='Cash Flow'!BD47 -> 0 | CK70: ='Cash Flow'!BE47 -> 0 | CL70: ='Cash Flow'!BF47 -> 0 | CM70: ='Cash Flow'!BG47 -> 0 | CN70: ='Cash Flow'!BH47 -> 0 | CO70: ='Cash Flow'!BI47 -> 0 | CP70: ='Cash Flow'!BJ47 -> 0 | CQ70: ='Cash Flow'!BK47 -> 0 | CR70: ='Cash Flow'!BL47 -> 0
AH71: ='Cash Flow'!$A48 -> Overhead | AI71: ='Cash Flow'!E48 -> 567291.25 | AJ71: ='Cash Flow'!F48 -> 0 | AL71: ='Cash Flow'!G48 -> 0 | AN71: ='Cash Flow'!H48 -> 56729.125 | AO71: ='Cash Flow'!I48 -> 56729.125 | AP71: ='Cash Flow'!J48 -> 56729.125 | AQ71: ='Cash Flow'!K48 -> 56729.125 | AR71: ='Cash Flow'!L48 -> 56729.125 | AS71: ='Cash Flow'!M48 -> 56729.125 | AT71: ='Cash Flow'!N48 -> 56729.125 | AU71: ='Cash Flow'!O48 -> 56729.125 | AV71: ='Cash Flow'!P48 -> 56729.125 | AW71: ='Cash Flow'!Q48 -> 56729.125 | AX71: ='Cash Flow'!R48 -> 56729.125 | AY71: ='Cash Flow'!S48 -> 56729.125 | AZ71: ='Cash Flow'!T48 -> 56729.125 | BA71: ='Cash Flow'!U48 -> 56729.125 | BB71: ='Cash Flow'!V48 -> 56729.125 | BC71: ='Cash Flow'!W48 -> 56729.125 | BD71: ='Cash Flow'!X48 -> 56729.125 | BE71: ='Cash Flow'!Y48 -> 56729.125 | BF71: ='Cash Flow'!Z48 -> 56729.125 | BG71: ='Cash Flow'!AA48 -> 56729.125 | BH71: ='Cash Flow'!AB48 -> 567291.25 | BI71: ='Cash Flow'!AC48 -> 0 | BJ71: ='Cash Flow'!AD48 -> 0 | BK71: ='Cash Flow'!AE48 -> 0 | BL71: ='Cash Flow'!AF48 -> 0 | BM71: ='Cash Flow'!AG48 -> 0 | BN71: ='Cash Flow'!AH48 -> 0 | BO71: ='Cash Flow'!AI48 -> 0 | BP71: ='Cash Flow'!AJ48 -> 0 | BQ71: ='Cash Flow'!AK48 -> 0 | BR71: ='Cash Flow'!AL48 -> 0 | BS71: ='Cash Flow'!AM48 -> 0 | BT71: ='Cash Flow'!AN48 -> 0 | BU71: ='Cash Flow'!AO48 -> 0 | BV71: ='Cash Flow'!AP48 -> 0 | BW71: ='Cash Flow'!AQ48 -> 0 | BX71: ='Cash Flow'!AR48 -> 0 | BY71: ='Cash Flow'!AS48 -> 0 | BZ71: ='Cash Flow'!AT48 -> 0 | CA71: ='Cash Flow'!AU48 -> 0 | CB71: ='Cash Flow'!AV48 -> 0 | CC71: ='Cash Flow'!AW48 -> 0 | CD71: ='Cash Flow'!AX48 -> 0 | CE71: ='Cash Flow'!AY48 -> 0 | CF71: ='Cash Flow'!AZ48 -> 0 | CG71: ='Cash Flow'!BA48 -> 0 | CH71: ='Cash Flow'!BB48 -> 0 | CI71: ='Cash Flow'!BC48 -> 0 | CJ71: ='Cash Flow'!BD48 -> 0 | CK71: ='Cash Flow'!BE48 -> 0 | CL71: ='Cash Flow'!BF48 -> 0 | CM71: ='Cash Flow'!BG48 -> 0 | CN71: ='Cash Flow'!BH48 -> 0 | CO71: ='Cash Flow'!BI48 -> 0 | CP71: ='Cash Flow'!BJ48 -> 0 | CQ71: ='Cash Flow'!BK48 -> 0 | CR71: ='Cash Flow'!BL48 -> 0
AH72: ='Cash Flow'!$A49 -> Marketing | AI72: ='Cash Flow'!E49 -> 0 | AJ72: ='Cash Flow'!F49 -> 0 | AL72: ='Cash Flow'!G49 -> 0 | AN72: ='Cash Flow'!H49 -> 0 | AO72: ='Cash Flow'!I49 -> 0 | AP72: ='Cash Flow'!J49 -> 0 | AQ72: ='Cash Flow'!K49 -> 0 | AR72: ='Cash Flow'!L49 -> 0 | AS72: ='Cash Flow'!M49 -> 0 | AT72: ='Cash Flow'!N49 -> 0 | AU72: ='Cash Flow'!O49 -> 0 | AV72: ='Cash Flow'!P49 -> 0 | AW72: ='Cash Flow'!Q49 -> 0 | AX72: ='Cash Flow'!R49 -> 0 | AY72: ='Cash Flow'!S49 -> 0 | AZ72: ='Cash Flow'!T49 -> 0 | BA72: ='Cash Flow'!U49 -> 0 | BB72: ='Cash Flow'!V49 -> 0 | BC72: ='Cash Flow'!W49 -> 0 | BD72: ='Cash Flow'!X49 -> 0 | BE72: ='Cash Flow'!Y49 -> 0 | BF72: ='Cash Flow'!Z49 -> 187500 | BG72: ='Cash Flow'!AA49 -> 187500 | BH72: ='Cash Flow'!AB49 -> 187500 | BI72: ='Cash Flow'!AC49 -> 187500 | BJ72: ='Cash Flow'!AD49 -> 0 | BK72: ='Cash Flow'!AE49 -> 0 | BL72: ='Cash Flow'!AF49 -> 0 | BM72: ='Cash Flow'!AG49 -> 0 | BN72: ='Cash Flow'!AH49 -> 0 | BO72: ='Cash Flow'!AI49 -> 0 | BP72: ='Cash Flow'!AJ49 -> 0 | BQ72: ='Cash Flow'!AK49 -> 0 | BR72: ='Cash Flow'!AL49 -> 0 | BS72: ='Cash Flow'!AM49 -> 0 | BT72: ='Cash Flow'!AN49 -> 0 | BU72: ='Cash Flow'!AO49 -> 0 | BV72: ='Cash Flow'!AP49 -> 0 | BW72: ='Cash Flow'!AQ49 -> 0 | BX72: ='Cash Flow'!AR49 -> 0 | BY72: ='Cash Flow'!AS49 -> 0 | BZ72: ='Cash Flow'!AT49 -> 0 | CA72: ='Cash Flow'!AU49 -> 0 | CB72: ='Cash Flow'!AV49 -> 0 | CC72: ='Cash Flow'!AW49 -> 0 | CD72: ='Cash Flow'!AX49 -> 0 | CE72: ='Cash Flow'!AY49 -> 0 | CF72: ='Cash Flow'!AZ49 -> 0 | CG72: ='Cash Flow'!BA49 -> 0 | CH72: ='Cash Flow'!BB49 -> 0 | CI72: ='Cash Flow'!BC49 -> 0 | CJ72: ='Cash Flow'!BD49 -> 0 | CK72: ='Cash Flow'!BE49 -> 0 | CL72: ='Cash Flow'!BF49 -> 0 | CM72: ='Cash Flow'!BG49 -> 0 | CN72: ='Cash Flow'!BH49 -> 0 | CO72: ='Cash Flow'!BI49 -> 0 | CP72: ='Cash Flow'!BJ49 -> 0 | CQ72: ='Cash Flow'!BK49 -> 0 | CR72: ='Cash Flow'!BL49 -> 0
AH73: ='Cash Flow'!$A50 -> Construction Interest | AI73: ='Cash Flow'!E50 -> 0 | AJ73: ='Cash Flow'!F50 -> 0 | AL73: ='Cash Flow'!G50 -> 0 | AN73: ='Cash Flow'!H50 -> 0 | AO73: ='Cash Flow'!I50 -> 0 | AP73: ='Cash Flow'!J50 -> 0 | AQ73: ='Cash Flow'!K50 -> 0 | AR73: ='Cash Flow'!L50 -> 0 | AS73: ='Cash Flow'!M50 -> 0 | AT73: ='Cash Flow'!N50 -> 5949.36682 | AU73: ='Cash Flow'!O50 -> 27178.82865 | AV73: ='Cash Flow'!P50 -> 49365.37298 | AW73: ='Cash Flow'!Q50 -> 71991.02734 | AX73: ='Cash Flow'!R50 -> 94513.66316 | AY73: ='Cash Flow'!S50 -> 116407.3572 | AZ73: ='Cash Flow'!T50 -> 137200.5652 | BA73: ='Cash Flow'!U50 -> 156507.5349 | BB73: ='Cash Flow'!V50 -> 174049.533 | BC73: ='Cash Flow'!W50 -> 189664.1239 | BD73: ='Cash Flow'!X50 -> 203715.5799 | BE73: ='Cash Flow'!Y50 -> 215846.1545 | BF73: ='Cash Flow'!Z50 -> 226288.8951 | BG73: ='Cash Flow'!AA50 -> 236540.7959 | BH73: ='Cash Flow'!AB50 -> 240659.5859 | BI73: ='Cash Flow'!AC50 -> 231166.7921 | BJ73: ='Cash Flow'!AD50 -> 176614.7982 | BK73: ='Cash Flow'!AE50 -> 115236.9782 | BL73: ='Cash Flow'!AF50 -> 16794.42335 | BM73: ='Cash Flow'!AG50 -> 16920.38152 | BN73: ='Cash Flow'!AH50 -> 17047.28439 | BO73: ='Cash Flow'!AI50 -> 17175.13902 | BP73: ='Cash Flow'!AJ50 -> 17303.95256 | BQ73: ='Cash Flow'!AK50 -> 17433.73221 | BR73: ='Cash Flow'!AL50 -> 17564.4852 | BS73: ='Cash Flow'!AM50 -> 17696.21884 | BT73: ='Cash Flow'!AN50 -> 72140.03356 | BU73: ='Cash Flow'!AO50 -> 72681.08381 | BV73: ='Cash Flow'!AP50 -> 73226.19194 | BW73: ='Cash Flow'!AQ50 -> 73775.38838 | BX73: ='Cash Flow'!AR50 -> 74328.7038 | BY73: ='Cash Flow'!AS50 -> 74886.16907 | BZ73: ='Cash Flow'!AT50 -> 75447.81534 | CA73: ='Cash Flow'!AU50 -> 76013.67396 | CB73: ='Cash Flow'!AV50 -> 76583.77651 | CC73: ='Cash Flow'!AW50 -> 77158.15484 | CD73: ='Cash Flow'!AX50 -> 77736.841 | CE73: ='Cash Flow'!AY50 -> 78319.8673 | CF73: ='Cash Flow'!AZ50 -> 78907.26631 | CG73: ='Cash Flow'!BA50 -> 79499.07081 | CH73: ='Cash Flow'!BB50 -> 80095.31384 | CI73: ='Cash Flow'!BC50 -> 80696.02869 | CJ73: ='Cash Flow'!BD50 -> 81301.24891 | CK73: ='Cash Flow'!BE50 -> 81911.00827 | CL73: ='Cash Flow'!BF50 -> 82525.34084 | CM73: ='Cash Flow'!BG50 -> 83144.28089 | CN73: ='Cash Flow'!BH50 -> 83767.863 | CO73: ='Cash Flow'!BI50 -> 84396.12197 | CP73: ='Cash Flow'!BJ50 -> 85029.09289 | CQ73: ='Cash Flow'!BK50 -> 85666.81108 | CR73: ='Cash Flow'!BL50 -> 86309.31217
AH74: ='Cash Flow'!$A51 -> Preleasing and Leaseup Operating Deficit | AI74: ='Cash Flow'!E51 -> 0 | AJ74: ='Cash Flow'!F51 -> 0 | AL74: ='Cash Flow'!G51 -> 0 | AN74: ='Cash Flow'!H51 -> 0 | AO74: ='Cash Flow'!I51 -> 0 | AP74: ='Cash Flow'!J51 -> 0 | AQ74: ='Cash Flow'!K51 -> 0 | AR74: ='Cash Flow'!L51 -> 0 | AS74: ='Cash Flow'!M51 -> 0 | AT74: ='Cash Flow'!N51 -> 0 | AU74: ='Cash Flow'!O51 -> 0 | AV74: ='Cash Flow'!P51 -> 0 | AW74: ='Cash Flow'!Q51 -> 0 | AX74: ='Cash Flow'!R51 -> 0 | AY74: ='Cash Flow'!S51 -> 0 | AZ74: ='Cash Flow'!T51 -> 0 | BA74: ='Cash Flow'!U51 -> 0 | BB74: ='Cash Flow'!V51 -> 0 | BC74: ='Cash Flow'!W51 -> 0 | BD74: ='Cash Flow'!X51 -> 0 | BE74: ='Cash Flow'!Y51 -> 13333.33333 | BF74: ='Cash Flow'!Z51 -> 13333.33333 | BG74: ='Cash Flow'!AA51 -> 13333.33333 | BH74: ='Cash Flow'!AB51 -> 0 | BI74: ='Cash Flow'!AC51 -> 0 | BJ74: ='Cash Flow'!AD51 -> 0 | BK74: ='Cash Flow'!AE51 -> 0 | BL74: ='Cash Flow'!AF51 -> 0 | BM74: ='Cash Flow'!AG51 -> 0 | BN74: ='Cash Flow'!AH51 -> 0 | BO74: ='Cash Flow'!AI51 -> 0 | BP74: ='Cash Flow'!AJ51 -> 0 | BQ74: ='Cash Flow'!AK51 -> 0 | BR74: ='Cash Flow'!AL51 -> 0 | BS74: ='Cash Flow'!AM51 -> 0 | BT74: ='Cash Flow'!AN51 -> 0 | BU74: ='Cash Flow'!AO51 -> 0 | BV74: ='Cash Flow'!AP51 -> 0 | BW74: ='Cash Flow'!AQ51 -> 0 | BX74: ='Cash Flow'!AR51 -> 0 | BY74: ='Cash Flow'!AS51 -> 0 | BZ74: ='Cash Flow'!AT51 -> 0 | CA74: ='Cash Flow'!AU51 -> 0 | CB74: ='Cash Flow'!AV51 -> 0 | CC74: ='Cash Flow'!AW51 -> 0 | CD74: ='Cash Flow'!AX51 -> 0 | CE74: ='Cash Flow'!AY51 -> 0 | CF74: ='Cash Flow'!AZ51 -> 0 | CG74: ='Cash Flow'!BA51 -> 0 | CH74: ='Cash Flow'!BB51 -> 0 | CI74: ='Cash Flow'!BC51 -> 0 | CJ74: ='Cash Flow'!BD51 -> 0 | CK74: ='Cash Flow'!BE51 -> 0 | CL74: ='Cash Flow'!BF51 -> 0 | CM74: ='Cash Flow'!BG51 -> 0 | CN74: ='Cash Flow'!BH51 -> 0 | CO74: ='Cash Flow'!BI51 -> 0 | CP74: ='Cash Flow'!BJ51 -> 0 | CQ74: ='Cash Flow'!BK51 -> 0 | CR74: ='Cash Flow'!BL51 -> 0
AH75: ='Cash Flow'!$A52 -> Non-Accrual Interest Reserve | AI75: ='Cash Flow'!E52 -> 0 | AJ75: ='Cash Flow'!F52 -> 0 | AL75: ='Cash Flow'!G52 -> 0 | AN75: ='Cash Flow'!H52 -> 0 | AO75: ='Cash Flow'!I52 -> 0 | AP75: ='Cash Flow'!J52 -> 0 | AQ75: ='Cash Flow'!K52 -> 0 | AR75: ='Cash Flow'!L52 -> 0 | AS75: ='Cash Flow'!M52 -> 0 | AT75: ='Cash Flow'!N52 -> 0 | AU75: ='Cash Flow'!O52 -> 0 | AV75: ='Cash Flow'!P52 -> 0 | AW75: ='Cash Flow'!Q52 -> 0 | AX75: ='Cash Flow'!R52 -> 0 | AY75: ='Cash Flow'!S52 -> 0 | AZ75: ='Cash Flow'!T52 -> 0 | BA75: ='Cash Flow'!U52 -> 0 | BB75: ='Cash Flow'!V52 -> 0 | BC75: ='Cash Flow'!W52 -> 0 | BD75: ='Cash Flow'!X52 -> 0 | BE75: ='Cash Flow'!Y52 -> 0 | BF75: ='Cash Flow'!Z52 -> 0 | BG75: ='Cash Flow'!AA52 -> 0 | BH75: ='Cash Flow'!AB52 -> 0 | BI75: ='Cash Flow'!AC52 -> 0 | BJ75: ='Cash Flow'!AD52 -> 0 | BK75: ='Cash Flow'!AE52 -> 0 | BL75: ='Cash Flow'!AF52 -> 0 | BM75: ='Cash Flow'!AG52 -> 0 | BN75: ='Cash Flow'!AH52 -> 0 | BO75: ='Cash Flow'!AI52 -> 0 | BP75: ='Cash Flow'!AJ52 -> 0 | BQ75: ='Cash Flow'!AK52 -> 0 | BR75: ='Cash Flow'!AL52 -> 0 | BS75: ='Cash Flow'!AM52 -> 0 | BT75: ='Cash Flow'!AN52 -> 0 | BU75: ='Cash Flow'!AO52 -> 0 | BV75: ='Cash Flow'!AP52 -> 0 | BW75: ='Cash Flow'!AQ52 -> 0 | BX75: ='Cash Flow'!AR52 -> 0 | BY75: ='Cash Flow'!AS52 -> 0 | BZ75: ='Cash Flow'!AT52 -> 0 | CA75: ='Cash Flow'!AU52 -> 0 | CB75: ='Cash Flow'!AV52 -> 0 | CC75: ='Cash Flow'!AW52 -> 0 | CD75: ='Cash Flow'!AX52 -> 0 | CE75: ='Cash Flow'!AY52 -> 0 | CF75: ='Cash Flow'!AZ52 -> 0 | CG75: ='Cash Flow'!BA52 -> 0 | CH75: ='Cash Flow'!BB52 -> 0 | CI75: ='Cash Flow'!BC52 -> 0 | CJ75: ='Cash Flow'!BD52 -> 0 | CK75: ='Cash Flow'!BE52 -> 0 | CL75: ='Cash Flow'!BF52 -> 0 | CM75: ='Cash Flow'!BG52 -> 0 | CN75: ='Cash Flow'!BH52 -> 0 | CO75: ='Cash Flow'!BI52 -> 0 | CP75: ='Cash Flow'!BJ52 -> 0 | CQ75: ='Cash Flow'!BK52 -> 0 | CR75: ='Cash Flow'!BL52 -> 0
AH76: ='Cash Flow'!$A53 -> Retail TIs | AI76: ='Cash Flow'!E53 -> 0 | AJ76: ='Cash Flow'!F53 -> 0 | AL76: ='Cash Flow'!G53 -> 0 | AN76: ='Cash Flow'!H53 -> 0 | AO76: ='Cash Flow'!I53 -> 0 | AP76: ='Cash Flow'!J53 -> 0 | AQ76: ='Cash Flow'!K53 -> 0 | AR76: ='Cash Flow'!L53 -> 0 | AS76: ='Cash Flow'!M53 -> 0 | AT76: ='Cash Flow'!N53 -> 0 | AU76: ='Cash Flow'!O53 -> 0 | AV76: ='Cash Flow'!P53 -> 0 | AW76: ='Cash Flow'!Q53 -> 0 | AX76: ='Cash Flow'!R53 -> 0 | AY76: ='Cash Flow'!S53 -> 0 | AZ76: ='Cash Flow'!T53 -> 0 | BA76: ='Cash Flow'!U53 -> 0 | BB76: ='Cash Flow'!V53 -> 0 | BC76: ='Cash Flow'!W53 -> 55068.75 | BD76: ='Cash Flow'!X53 -> 55068.75 | BE76: ='Cash Flow'!Y53 -> 55068.75 | BF76: ='Cash Flow'!Z53 -> 55068.75 | BG76: ='Cash Flow'!AA53 -> 55068.75 | BH76: ='Cash Flow'!AB53 -> 55068.75 | BI76: ='Cash Flow'!AC53 -> 55068.75 | BJ76: ='Cash Flow'!AD53 -> 55068.75 | BK76: ='Cash Flow'!AE53 -> 0 | BL76: ='Cash Flow'!AF53 -> 0 | BM76: ='Cash Flow'!AG53 -> 0 | BN76: ='Cash Flow'!AH53 -> 0 | BO76: ='Cash Flow'!AI53 -> 0 | BP76: ='Cash Flow'!AJ53 -> 0 | BQ76: ='Cash Flow'!AK53 -> 0 | BR76: ='Cash Flow'!AL53 -> 0 | BS76: ='Cash Flow'!AM53 -> 0 | BT76: ='Cash Flow'!AN53 -> 0 | BU76: ='Cash Flow'!AO53 -> 0 | BV76: ='Cash Flow'!AP53 -> 0 | BW76: ='Cash Flow'!AQ53 -> 0 | BX76: ='Cash Flow'!AR53 -> 0 | BY76: ='Cash Flow'!AS53 -> 0 | BZ76: ='Cash Flow'!AT53 -> 0 | CA76: ='Cash Flow'!AU53 -> 0 | CB76: ='Cash Flow'!AV53 -> 0 | CC76: ='Cash Flow'!AW53 -> 0 | CD76: ='Cash Flow'!AX53 -> 0 | CE76: ='Cash Flow'!AY53 -> 0 | CF76: ='Cash Flow'!AZ53 -> 0 | CG76: ='Cash Flow'!BA53 -> 0 | CH76: ='Cash Flow'!BB53 -> 0 | CI76: ='Cash Flow'!BC53 -> 0 | CJ76: ='Cash Flow'!BD53 -> 0 | CK76: ='Cash Flow'!BE53 -> 0 | CL76: ='Cash Flow'!BF53 -> 0 | CM76: ='Cash Flow'!BG53 -> 0 | CN76: ='Cash Flow'!BH53 -> 0 | CO76: ='Cash Flow'!BI53 -> 0 | CP76: ='Cash Flow'!BJ53 -> 0 | CQ76: ='Cash Flow'!BK53 -> 0 | CR76: ='Cash Flow'!BL53 -> 0
AH77: ='Cash Flow'!$A57 -> Monthly Funding Requirements | AI77: ='Cash Flow'!E57 -> 12204251.6 | AJ77: ='Cash Flow'!F57 -> 828000.008 | AL77: ='Cash Flow'!G57 -> 1051388.043 | AN77: ='Cash Flow'!H57 -> 1641442.229 | AO77: ='Cash Flow'!I57 -> 1911611.198 | AP77: ='Cash Flow'!J57 -> 2190712.53 | AQ77: ='Cash Flow'!K57 -> 2465242.155 | AR77: ='Cash Flow'!L57 -> 2719878.658 | AS77: ='Cash Flow'!M57 -> 2656020.381 | AT77: ='Cash Flow'!N57 -> 2830594.911 | AU77: ='Cash Flow'!O57 -> 2958205.91 | AV77: ='Cash Flow'!P57 -> 3016753.915 | AW77: ='Cash Flow'!Q57 -> 3003018.109 | AX77: ='Cash Flow'!R57 -> 2919159.207 | AY77: ='Cash Flow'!S57 -> 2772427.738 | AZ77: ='Cash Flow'!T57 -> 2574262.616 | BA77: ='Cash Flow'!U57 -> 2338933.083 | BB77: ='Cash Flow'!V57 -> 2081945.456 | BC77: ='Cash Flow'!W57 -> 1873527.465 | BD77: ='Cash Flow'!X57 -> 1617409.951 | BE77: ='Cash Flow'!Y57 -> 1392365.406 | BF77: ='Cash Flow'!Z57 -> 1366920.111 | BG77: ='Cash Flow'!AA57 -> 549172.0042 | BH77: ='Cash Flow'!AB57 -> 1050519.586 | BI77: ='Cash Flow'!AC57 -> 473735.5421 | BJ77: ='Cash Flow'!AD57 -> 231683.5482 | BK77: ='Cash Flow'!AE57 -> 115236.9782 | BL77: ='Cash Flow'!AF57 -> 16794.42335 | BM77: ='Cash Flow'!AG57 -> 16920.38152 | BN77: ='Cash Flow'!AH57 -> 17047.28439 | BO77: ='Cash Flow'!AI57 -> 17175.13902 | BP77: ='Cash Flow'!AJ57 -> 17303.95256 | BQ77: ='Cash Flow'!AK57 -> 17433.73221 | BR77: ='Cash Flow'!AL57 -> 17564.4852 | BS77: ='Cash Flow'!AM57 -> 17696.21884 | BT77: ='Cash Flow'!AN57 -> 72140.03356 | BU77: ='Cash Flow'!AO57 -> 72681.08381 | BV77: ='Cash Flow'!AP57 -> 73226.19194 | BW77: ='Cash Flow'!AQ57 -> 73775.38838 | BX77: ='Cash Flow'!AR57 -> 74328.7038 | BY77: ='Cash Flow'!AS57 -> 74886.16907 | BZ77: ='Cash Flow'!AT57 -> 75447.81534 | CA77: ='Cash Flow'!AU57 -> 76013.67396 | CB77: ='Cash Flow'!AV57 -> 76583.77651 | CC77: ='Cash Flow'!AW57 -> 77158.15484 | CD77: ='Cash Flow'!AX57 -> 77736.841 | CE77: ='Cash Flow'!AY57 -> 78319.8673 | CF77: ='Cash Flow'!AZ57 -> 78907.26631 | CG77: ='Cash Flow'!BA57 -> 79499.07081 | CH77: ='Cash Flow'!BB57 -> 80095.31384 | CI77: ='Cash Flow'!BC57 -> 80696.02869 | CJ77: ='Cash Flow'!BD57 -> 81301.24891 | CK77: ='Cash Flow'!BE57 -> 81911.00827 | CL77: ='Cash Flow'!BF57 -> 82525.34084 | CM77: ='Cash Flow'!BG57 -> 83144.28089 | CN77: ='Cash Flow'!BH57 -> 83767.863 | CO77: ='Cash Flow'!BI57 -> 84396.12197 | CP77: ='Cash Flow'!BJ57 -> 85029.09289 | CQ77: ='Cash Flow'!BK57 -> 85666.81108 | CR77: ='Cash Flow'!BL57 -> 86309.31217
AH79: Total Development Costs | AI79: =SUM(AI77:AI77) -> 12204251.6 | AJ79: =SUM(AJ77:AJ77) -> 828000.008 | AL79: 1051388.043 | AN79: 1641442.229 | AO79: 1911611.198 | AP79: 2190712.53 | AQ79: 2465242.155 | AR79: 2719878.658 | AS79: 2656020.381 | AT79: 2830594.911 | AU79: 2958205.91 | AV79: 3016753.915 | AW79: 3003018.109 | AX79: 2919159.207 | AY79: 2772427.738 | AZ79: 2574262.616 | BA79: 2338933.083 | BB79: 2081945.456 | BC79: 1873527.465 | BD79: 1617409.951 | BE79: 1392365.406 | BF79: 1366920.111 | BG79: 549172.0042 | BH79: 1050519.586 | BI79: 473735.5421 | BJ79: 231683.5482 | BK79: 115236.9782 | BL79: 16794.42335 | BM79: 16920.38152 | BN79: 17047.28439 | BO79: 17175.13902 | BP79: 17303.95256 | BQ79: 17433.73221 | BR79: 17564.4852 | BS79: 17696.21884 | BT79: 72140.03356 | BU79: 72681.08381 | BV79: 73226.19194 | BW79: 73775.38838 | BX79: 74328.7038 | BY79: 74886.16907 | BZ79: 75447.81534 | CA79: 76013.67396 | CB79: 76583.77651 | CC79: 77158.15484 | CD79: 77736.841 | CE79: 78319.8673 | CF79: 78907.26631 | CG79: 79499.07081 | CH79: 80095.31384 | CI79: 80696.02869 | CJ79: 81301.24891 | CK79: 81911.00827 | CL79: 82525.34084 | CM79: 83144.28089 | CN79: 83767.863 | CO79: =SUM(CO77:CO77) -> 84396.12197 | CP79: =SUM(CP77:CP77) -> 85029.09289 | CQ79: =SUM(CQ77:CQ77) -> 85666.81108 | CR79: =SUM(CR77:CR77) -> 86309.31217
AI80: =SUM(AI77:CN77) -> 62606499.08

Sheet Deal Summary (hidden)
B2: ='Deal Summary (LP Equity)'!B2 -> GOLDEN HILL FINANCE SUMMARY
AH3: Timing Summary
B5: Timing | H5: Construction Loan | N5: Total Project Cash Flow Summary | AI5: Start Date | AJ5: End Date | AK5: Duration (months) | AL5: Percent Complete
B6: Schedule | E6: Month | F6: Date | H6: Total Commitment | L6: =+E61 -> 33928543.49 | AH6: Construction Period | AI6: =EDATE((EOMONTH(F8,0)+1),-1) -> 2023-08-01 | AJ6: =(EOMONTH(F10,0)) -> 2025-08-31 | AK6: =ROUNDDOWN(DAYS360(AI6,AJ6)+30,0) -> 780 | AL6: =IF($AI$28>AJ6,1,IF($AI$28<AI6,0,($AI$28-AI6)/(AJ6-AI6))) -> 0
B7: Land Close | E7: =Assumptions!F32 -> 1 | F7: =Assumptions!E32 -> 2023-06-15 | H7: Interest rate | L7: =+Assumptions!$F$281 -> 0.09 | O7: Total | Q7: 1 | R7: 2 | S7: 3 | T7: 4 | U7: 5 | V7: 6 | W7: 7 | X7: 8 | Y7: 9 | Z7: 10 | AH7: Lease Up | AI7: =EDATE((EOMONTH(F9,0)+1),-1) -> 2025-05-01 | AJ7: =(EOMONTH(F10,0)) -> 2025-08-31 | AK7: =ROUNDDOWN(DAYS360(AI7,AJ7)+30,0) -> 150 | AL7: =IF($AI$28>AJ7,1,IF($AI$28<AI7,0,($AI$28-AI7)/(AJ7-AI7))) -> 0
B8: Construction Start Date | E8: =Assumptions!F34 -> 2 | F8: =Assumptions!E34 -> 2023-08-15 | H8: Term (years) | L8: 5 | N8: Operations Summary | AH8: Stabilization to Sale | AI8: =EDATE((EOMONTH(F11,0)+1),-1) -> 2026-05-01 | AJ8: =EOMONTH(F13,0) -> 2033-06-30 | AK8: =ROUNDDOWN(DAYS360(AI8,AJ8)+30,0) -> 2609 | AL8: =IF($AI$28>AJ8,1,IF($AI$28<AI8,0,($AI$28-AI8)/(AJ8-AI8))) -> 0
B9: First Unit Delivered | E9: =Assumptions!F35 -> 23 | F9: =Assumptions!E35 -> 2025-05-15 | H9: Structure | L9: Amortized | N9: Total Revenues | Q9: =SUMIF('Trended Cash Flow'!$E$421:$EF$421,Q$7,'Trended Cash Flow'!$E$31:$EF$31) -> 0 | R9: =SUMIF('Trended Cash Flow'!$E$421:$EF$421,R$7,'Trended Cash Flow'!$E$31:$EF$31) -> 0 | S9: =SUMIF('Trended Cash Flow'!$E$421:$EF$421,S$7,'Trended Cash Flow'!$E$31:$EF$31) -> 4405934.812 | T9: =SUMIF('Trended Cash Flow'!$E$421:$EF$421,T$7,'Trended Cash Flow'!$E$31:$EF$31) -> 5181246.532 | U9: =SUMIF('Trended Cash Flow'!$E$421:$EF$421,U$7,'Trended Cash Flow'!$E$31:$EF$31) -> 5350885.917 | V9: =SUMIF('Trended Cash Flow'!$E$421:$EF$421,V$7,'Trended Cash Flow'!$E$31:$EF$31) -> 5526082.811 | W9: =SUMIF('Trended Cash Flow'!$E$421:$EF$421,W$7,'Trended Cash Flow'!$E$31:$EF$31) -> 5707019.381 | X9: =SUMIF('Trended Cash Flow'!$E$421:$EF$421,X$7,'Trended Cash Flow'!$E$31:$EF$31) -> 5893883.773 | Y9: =SUMIF('Trended Cash Flow'!$E$421:$EF$421,Y$7,'Trended Cash Flow'!$E$31:$EF$31) -> 6086870.3 | Z9: =SUMIF('Trended Cash Flow'!$E$421:$EF$421,Z$7,'Trended Cash Flow'!$E$31:$EF$31) -> 6286179.65 | AA9: =SUMIF('Trended Cash Flow'!$E$421:$EF$421,AA$7,'Trended Cash Flow'!$E$31:$EF$31) -> 0
B10: Last Unit Delivered | E10: =Assumptions!F36 -> 26.86785714 | F10: =+Assumptions!E36 -> 2025-08-15 | H10: Yield on Debt (Trended / Untrended) | L10: =TEXT((Assumptions!L307/'Deal Summary'!L6), "##.00%")&" / "& TEXT((Assumptions!G307/'Deal Summary'!L6),"##.00%") -> 11.16% / 10.74% | N10: Operating Expenses | Q10: =-SUMIF('Trended Cash Flow'!$E$421:$EF$421,Q$7,'Trended Cash Flow'!$E$34:$EF$34) -> 0 | R10: =-SUMIF('Trended Cash Flow'!$E$421:$EF$421,R$7,'Trended Cash Flow'!$E$34:$EF$34) -> -107888.8664 | S10: =-SUMIF('Trended Cash Flow'!$E$421:$EF$421,S$7,'Trended Cash Flow'!$E$34:$EF$34) -> -313593.2867 | T10: =-SUMIF('Trended Cash Flow'!$E$421:$EF$421,T$7,'Trended Cash Flow'!$E$34:$EF$34) -> -1175148.316 | U10: =-SUMIF('Trended Cash Flow'!$E$421:$EF$421,U$7,'Trended Cash Flow'!$E$34:$EF$34) -> -1210891.576 | V10: =-SUMIF('Trended Cash Flow'!$E$421:$EF$421,V$7,'Trended Cash Flow'!$E$34:$EF$34) -> -1247722.002 | W10: =-SUMIF('Trended Cash Flow'!$E$421:$EF$421,W$7,'Trended Cash Flow'!$E$34:$EF$34) -> -1285672.661 | X10: =-SUMIF('Trended Cash Flow'!$E$421:$EF$421,X$7,'Trended Cash Flow'!$E$34:$EF$34) -> -1324777.625 | Y10: =-SUMIF('Trended Cash Flow'!$E$421:$EF$421,Y$7,'Trended Cash Flow'!$E$34:$EF$34) -> -1365072.004 | Z10: =-SUMIF('Trended Cash Flow'!$E$421:$EF$421,Z$7,'Trended Cash Flow'!$E$34:$EF$34) -> -1406591.976 | AA10: =-SUMIF('Trended Cash Flow'!$E$421:$EF$421,AA$7,'Trended Cash Flow'!$E$34:$EF$34) -> 0
B11: Stabilized | E11: =Assumptions!F37 -> 35 | F11: =+Assumptions!E37 -> 2026-05-15 | N11: Project Net Operating Income | Q11: =SUMIF('Trended Cash Flow'!$E$421:$EF$421,Q$7,'Trended Cash Flow'!$E$35:$EF$35) -> 0 | R11: =SUMIF('Trended Cash Flow'!$E$421:$EF$421,R$7,'Trended Cash Flow'!$E$35:$EF$35) -> -107888.8664 | S11: =SUMIF('Trended Cash Flow'!$E$421:$EF$421,S$7,'Trended Cash Flow'!$E$35:$EF$35) -> 4092341.525 | T11: =SUMIF('Trended Cash Flow'!$E$421:$EF$421,T$7,'Trended Cash Flow'!$E$35:$EF$35) -> 4006098.216 | U11: =SUMIF('Trended Cash Flow'!$E$421:$EF$421,U$7,'Trended Cash Flow'!$E$35:$EF$35) -> 4139994.341 | V11: =SUMIF('Trended Cash Flow'!$E$421:$EF$421,V$7,'Trended Cash Flow'!$E$35:$EF$35) -> 4278360.808 | W11: =SUMIF('Trended Cash Flow'!$E$421:$EF$421,W$7,'Trended Cash Flow'!$E$35:$EF$35) -> 4421346.72 | X11: =SUMIF('Trended Cash Flow'!$E$421:$EF$421,X$7,'Trended Cash Flow'!$E$35:$EF$35) -> 4569106.148 | Y11: =SUMIF('Trended Cash Flow'!$E$421:$EF$421,Y$7,'Trended Cash Flow'!$E$35:$EF$35) -> 4721798.296 | Z11: =SUMIF('Trended Cash Flow'!$E$421:$EF$421,Z$7,'Trended Cash Flow'!$E$35:$EF$35) -> 4879587.674 | AA11: =SUMIF('Trended Cash Flow'!$E$421:$EF$421,AA$7,'Trended Cash Flow'!$E$35:$EF$35) -> 0
B12: Refinance | D12: Sale Year | E12: =Assumptions!AH13 -> 35 | F12: =Assumptions!AI13 -> 2026-04-15 | H12: Refinance Debt Terms
B13: Sale Date | D13: =INDEX('Trended Cash Flow'!$E$421:$EF$421,,MATCH($E$13,'Trended Cash Flow'!$E$11:$EF$11,0)) -> 10 | E13: =Assumptions!F38 -> 120 | F13: =Assumptions!E38 -> 2033-06-15 | H13: Refi Date | K13: =Assumptions!AH13 -> 35 | L13: =Assumptions!AI13 -> 2026-04-15 | N13: Preleasing and Leaseup Operating Deficit | Q13: =SUMIF('Trended Cash Flow'!$E$421:$EF$421,Q$7,'Trended Cash Flow'!$E$51:$EF$51) -> 0 | R13: =SUMIF('Trended Cash Flow'!$E$421:$EF$421,R$7,'Trended Cash Flow'!$E$51:$EF$51) -> 40000 | S13: =SUMIF('Trended Cash Flow'!$E$421:$EF$421,S$7,'Trended Cash Flow'!$E$51:$EF$51) -> 0 | T13: =SUMIF('Trended Cash Flow'!$E$421:$EF$421,T$7,'Trended Cash Flow'!$E$51:$EF$51) -> 0 | U13: =SUMIF('Trended Cash Flow'!$E$421:$EF$421,U$7,'Trended Cash Flow'!$E$51:$EF$51) -> 0 | V13: =SUMIF('Trended Cash Flow'!$E$421:$EF$421,V$7,'Trended Cash Flow'!$E$51:$EF$51) -> 0 | W13: =SUMIF('Trended Cash Flow'!$E$421:$EF$421,W$7,'Trended Cash Flow'!$E$51:$EF$51) -> 0 | X13: =SUMIF('Trended Cash Flow'!$E$421:$EF$421,X$7,'Trended Cash Flow'!$E$51:$EF$51) -> 0 | Y13: =SUMIF('Trended Cash Flow'!$E$421:$EF$421,Y$7,'Trended Cash Flow'!$E$51:$EF$51) -> 0 | Z13: =SUMIF('Trended Cash Flow'!$E$421:$EF$421,Z$7,'Trended Cash Flow'!$E$51:$EF$51) -> 0 | AA13: =SUMIF('Trended Cash Flow'!$E$421:$EF$421,AA$7,'Trended Cash Flow'!$E$51:$EF$51) -> 0
H14: Closing Costs | L14: =Assumptions!AI14 -> 0.0075
B15: Project Summary | N15: Debt Service
B16: Total Number of Units | F16: =Assumptions!$J$197 -> 114 | H16: Forward 12 NOI at Refi | L16: =Assumptions!AG17 -> 4613391.709 | N16: Interest Payments | Q16: =-(-SUMIF('Trended Cash Flow'!$E$421:$EF$421,Q$7,'Trended Cash Flow'!$E$59:$EF$59)-SUMIF('Trended Cash Flow'!$E$421:$EF$421,Q$7,'Trended Cash Flow'!$E$367:$EF$367)-SUMIF('Trended Cash Flow'!$E$421:$EF$421,Q$7,'Trended Cash Flow'!$E$368:$EF$368)-SUMIF('Trended Cash Flow'!$E$421:$EF$421,Q$7,'Trended Cash Flow'!$E$386:$EF$386)-SUMIF('Trended Cash Flow'!$E$421:$EF$421,Q$7,'Trended Cash Flow'!$E$396:$EF$396)) -> 0 | R16: =-(-SUMIF('Trended Cash Flow'!$E$421:$EF$421,R$7,'Trended Cash Flow'!$E$59:$EF$59)-SUMIF('Trended Cash Flow'!$E$421:$EF$421,R$7,'Trended Cash Flow'!$E$367:$EF$367)-SUMIF('Trended Cash Flow'!$E$421:$EF$421,R$7,'Trended Cash Flow'!$E$368:$EF$368)-SUMIF('Trended Cash Flow'!$E$421:$EF$421,R$7,'Trended Cash Flow'!$E$386:$EF$386)-SUMIF('Trended Cash Flow'!$E$421:$EF$421,R$7,'Trended Cash Flow'!$E$396:$EF$396)) -> 0 | S16: =-(-SUMIF('Trended Cash Flow'!$E$421:$EF$421,S$7,'Trended Cash Flow'!$E$59:$EF$59)-SUMIF('Trended Cash Flow'!$E$421:$EF$421,S$7,'Trended Cash Flow'!$E$367:$EF$367)-SUMIF('Trended Cash Flow'!$E$421:$EF$421,S$7,'Trended Cash Flow'!$E$368:$EF$368)-SUMIF('Trended Cash Flow'!$E$421:$EF$421,S$7,'Trended Cash Flow'!$E$386:$EF$386)-SUMIF('Trended Cash Flow'!$E$421:$EF$421,S$7,'Trended Cash Flow'!$E$396:$EF$396)) -> -2688045.256 | T16: =-(-SUMIF('Trended Cash Flow'!$E$421:$EF$421,T$7,'Trended Cash Flow'!$E$59:$EF$59)-SUMIF('Trended Cash Flow'!$E$421:$EF$421,T$7,'Trended Cash Flow'!$E$367:$EF$367)-SUMIF('Trended Cash Flow'!$E$421:$EF$421,T$7,'Trended Cash Flow'!$E$368:$EF$368)-SUMIF('Trended Cash Flow'!$E$421:$EF$421,T$7,'Trended Cash Flow'!$E$386:$EF$386)-SUMIF('Trended Cash Flow'!$E$421:$EF$421,T$7,'Trended Cash Flow'!$E$396:$EF$396)) -> -2796855.518 | U16: =-(-SUMIF('Trended Cash Flow'!$E$421:$EF$421,U$7,'Trended Cash Flow'!$E$59:$EF$59)-SUMIF('Trended Cash Flow'!$E$421:$EF$421,U$7,'Trended Cash Flow'!$E$367:$EF$367)-SUMIF('Trended Cash Flow'!$E$421:$EF$421,U$7,'Trended Cash Flow'!$E$368:$EF$368)-SUMIF('Trended Cash Flow'!$E$421:$EF$421,U$7,'Trended Cash Flow'!$E$386:$EF$386)-SUMIF('Trended Cash Flow'!$E$421:$EF$421,U$7,'Trended Cash Flow'!$E$396:$EF$396)) -> -2796855.518 | V16: =-(-SUMIF('Trended Cash Flow'!$E$421:$EF$421,V$7,'Trended Cash Flow'!$E$59:$EF$59)-SUMIF('Trended Cash Flow'!$E$421:$EF$421,V$7,'Trended Cash Flow'!$E$367:$EF$367)-SUMIF('Trended Cash Flow'!$E$421:$EF$421,V$7,'Trended Cash Flow'!$E$368:$EF$368)-SUMIF('Trended Cash Flow'!$E$421:$EF$421,V$7,'Trended Cash Flow'!$E$386:$EF$386)-SUMIF('Trended Cash Flow'!$E$421:$EF$421,V$7,'Trended Cash Flow'!$E$396:$EF$396)) -> -2796855.518 | W16: =-(-SUMIF('Trended Cash Flow'!$E$421:$EF$421,W$7,'Trended Cash Flow'!$E$59:$EF$59)-SUMIF('Trended Cash Flow'!$E$421:$EF$421,W$7,'Trended Cash Flow'!$E$367:$EF$367)-SUMIF('Trended Cash Flow'!$E$421:$EF$421,W$7,'Trended Cash Flow'!$E$368:$EF$368)-SUMIF('Trended Cash Flow'!$E$421:$EF$421,W$7,'Trended Cash Flow'!$E$386:$EF$386)-SUMIF('Trended Cash Flow'!$E$421:$EF$421,W$7,'Trended Cash Flow'!$E$396:$EF$396)) -> 1416084.02 | X16: =-(-SUMIF('Trended Cash Flow'!$E$421:$EF$421,X$7,'Trended Cash Flow'!$E$59:$EF$59)-SUMIF('Trended Cash Flow'!$E$421:$EF$421,X$7,'Trended Cash Flow'!$E$367:$EF$367)-SUMIF('Trended Cash Flow'!$E$421:$EF$421,X$7,'Trended Cash Flow'!$E$368:$EF$368)-SUMIF('Trended Cash Flow'!$E$421:$EF$421,X$7,'Trended Cash Flow'!$E$386:$EF$386)-SUMIF('Trended Cash Flow'!$E$421:$EF$421,X$7,'Trended Cash Flow'!$E$396:$EF$396)) -> 1775285.669 | Y16: =-(-SUMIF('Trended Cash Flow'!$E$421:$EF$421,Y$7,'Trended Cash Flow'!$E$59:$EF$59)-SUMIF('Trended Cash Flow'!$E$421:$EF$421,Y$7,'Trended Cash Flow'!$E$367:$EF$367)-SUMIF('Trended Cash Flow'!$E$421:$EF$421,Y$7,'Trended Cash Flow'!$E$368:$EF$368)-SUMIF('Trended Cash Flow'!$E$421:$EF$421,Y$7,'Trended Cash Flow'!$E$386:$EF$386)-SUMIF('Trended Cash Flow'!$E$421:$EF$421,Y$7,'Trended Cash Flow'!$E$396:$EF$396)) -> 1750458.344 | Z16: =-(-SUMIF('Trended Cash Flow'!$E$421:$EF$421,Z$7,'Trended Cash Flow'!$E$59:$EF$59)-SUMIF('Trended Cash Flow'!$E$421:$EF$421,Z$7,'Trended Cash Flow'!$E$367:$EF$367)-SUMIF('Trended Cash Flow'!$E$421:$EF$421,Z$7,'Trended Cash Flow'!$E$368:$EF$368)-SUMIF('Trended Cash Flow'!$E$421:$EF$421,Z$7,'Trended Cash Flow'!$E$386:$EF$386)-SUMIF('Trended Cash Flow'!$E$421:$EF$421,Z$7,'Trended Cash Flow'!$E$396:$EF$396)) -> 1725200.067 | AA16: =-(-SUMIF('Trended Cash Flow'!$E$421:$EF$421,AA$7,'Trended Cash Flow'!$E$59:$EF$59)-SUMIF('Trended Cash Flow'!$E$421:$EF$421,AA$7,'Trended Cash Flow'!$E$367:$EF$367)-SUMIF('Trended Cash Flow'!$E$421:$EF$421,AA$7,'Trended Cash Flow'!$E$368:$EF$368)-SUMIF('Trended Cash Flow'!$E$421:$EF$421,AA$7,'Trended Cash Flow'!$E$386:$EF$386)-SUMIF('Trended Cash Flow'!$E$421:$EF$421,AA$7,'Trended Cash Flow'!$E$396:$EF$396)) -> 0
B17: Total Rentable Square Feet | F17: =Assumptions!$H$197 -> 78585 | H17: Cap Rate For Value | L17: =Assumptions!AG19 -> 0.045 | N17: Principal Payments | Q17: =SUMIF('Trended Cash Flow'!$E$421:$EF$421,Q$7,'Trended Cash Flow'!$E$387:$EF$387)+SUMIF('Trended Cash Flow'!$E$421:$EF$421,Q$7,'Trended Cash Flow'!$E$397:$EF$397) -> 0 | R17: =SUMIF('Trended Cash Flow'!$E$421:$EF$421,R$7,'Trended Cash Flow'!$E$387:$EF$387)+SUMIF('Trended Cash Flow'!$E$421:$EF$421,R$7,'Trended Cash Flow'!$E$397:$EF$397) -> 0 | S17: =SUMIF('Trended Cash Flow'!$E$421:$EF$421,S$7,'Trended Cash Flow'!$E$387:$EF$387)+SUMIF('Trended Cash Flow'!$E$421:$EF$421,S$7,'Trended Cash Flow'!$E$397:$EF$397) -> 0 | T17: =SUMIF('Trended Cash Flow'!$E$421:$EF$421,T$7,'Trended Cash Flow'!$E$387:$EF$387)+SUMIF('Trended Cash Flow'!$E$421:$EF$421,T$7,'Trended Cash Flow'!$E$397:$EF$397) -> 0 | U17: =SUMIF('Trended Cash Flow'!$E$421:$EF$421,U$7,'Trended Cash Flow'!$E$387:$EF$387)+SUMIF('Trended Cash Flow'!$E$421:$EF$421,U$7,'Trended Cash Flow'!$E$397:$EF$397) -> 0 | V17: =SUMIF('Trended Cash Flow'!$E$421:$EF$421,V$7,'Trended Cash Flow'!$E$387:$EF$387)+SUMIF('Trended Cash Flow'!$E$421:$EF$421,V$7,'Trended Cash Flow'!$E$397:$EF$397) -> 0 | W17: =SUMIF('Trended Cash Flow'!$E$421:$EF$421,W$7,'Trended Cash Flow'!$E$387:$EF$387)+SUMIF('Trended Cash Flow'!$E$421:$EF$421,W$7,'Trended Cash Flow'!$E$397:$EF$397) -> -700257.8998 | X17: =SUMIF('Trended Cash Flow'!$E$421:$EF$421,X$7,'Trended Cash Flow'!$E$387:$EF$387)+SUMIF('Trended Cash Flow'!$E$421:$EF$421,X$7,'Trended Cash Flow'!$E$397:$EF$397) -> -763917.7088 | Y17: =SUMIF('Trended Cash Flow'!$E$421:$EF$421,Y$7,'Trended Cash Flow'!$E$387:$EF$387)+SUMIF('Trended Cash Flow'!$E$421:$EF$421,Y$7,'Trended Cash Flow'!$E$397:$EF$397) -> -763917.7088 | Z17: =SUMIF('Trended Cash Flow'!$E$421:$EF$421,Z$7,'Trended Cash Flow'!$E$387:$EF$387)+SUMIF('Trended Cash Flow'!$E$421:$EF$421,Z$7,'Trended Cash Flow'!$E$397:$EF$397) -> -763917.7088 | AA17: =SUMIF('Trended Cash Flow'!$E$421:$EF$421,AA$7,'Trended Cash Flow'!$E$387:$EF$387)+SUMIF('Trended Cash Flow'!$E$421:$EF$421,AA$7,'Trended Cash Flow'!$E$397:$EF$397) -> 0
B18: Average Unit Size | F18: =Assumptions!$H$198 -> 689.3421053 | H18: LTV | L18: =Assumptions!AG20 -> 0.8 | N18: Total Debt Service | Q18: =SUMIF('Trended Cash Flow'!$E$421:$EF$421,Q$7,'Trended Cash Flow'!$E$59:$EF$59)+SUMIF('Trended Cash Flow'!$E$421:$EF$421,Q$7,'Trended Cash Flow'!$E$60:$EF$60)+SUMIF('Trended Cash Flow'!$E$421:$EF$421,Q$7,'Trended Cash Flow'!$E$61:$EF$61)+SUMIF('Trended Cash Flow'!$E$421:$EF$421,Q$7,'Trended Cash Flow'!$E$62:$EF$62) -> 0 | R18: =SUMIF('Trended Cash Flow'!$E$421:$EF$421,R$7,'Trended Cash Flow'!$E$59:$EF$59)+SUMIF('Trended Cash Flow'!$E$421:$EF$421,R$7,'Trended Cash Flow'!$E$60:$EF$60)+SUMIF('Trended Cash Flow'!$E$421:$EF$421,R$7,'Trended Cash Flow'!$E$61:$EF$61)+SUMIF('Trended Cash Flow'!$E$421:$EF$421,R$7,'Trended Cash Flow'!$E$62:$EF$62) -> 0 | S18: =SUMIF('Trended Cash Flow'!$E$421:$EF$421,S$7,'Trended Cash Flow'!$E$59:$EF$59)+SUMIF('Trended Cash Flow'!$E$421:$EF$421,S$7,'Trended Cash Flow'!$E$60:$EF$60)+SUMIF('Trended Cash Flow'!$E$421:$EF$421,S$7,'Trended Cash Flow'!$E$61:$EF$61)+SUMIF('Trended Cash Flow'!$E$421:$EF$421,S$7,'Trended Cash Flow'!$E$62:$EF$62) -> -2688045.256 | T18: =SUMIF('Trended Cash Flow'!$E$421:$EF$421,T$7,'Trended Cash Flow'!$E$59:$EF$59)+SUMIF('Trended Cash Flow'!$E$421:$EF$421,T$7,'Trended Cash Flow'!$E$60:$EF$60)+SUMIF('Trended Cash Flow'!$E$421:$EF$421,T$7,'Trended Cash Flow'!$E$61:$EF$61)+SUMIF('Trended Cash Flow'!$E$421:$EF$421,T$7,'Trended Cash Flow'!$E$62:$EF$62) -> -2796855.518 | U18: =SUMIF('Trended Cash Flow'!$E$421:$EF$421,U$7,'Trended Cash Flow'!$E$59:$EF$59)+SUMIF('Trended Cash Flow'!$E$421:$EF$421,U$7,'Trended Cash Flow'!$E$60:$EF$60)+SUMIF('Trended Cash Flow'!$E$421:$EF$421,U$7,'Trended Cash Flow'!$E$61:$EF$61)+SUMIF('Trended Cash Flow'!$E$421:$EF$421,U$7,'Trended Cash Flow'!$E$62:$EF$62) -> -2796855.518 | V18: =SUMIF('Trended Cash Flow'!$E$421:$EF$421,V$7,'Trended Cash Flow'!$E$59:$EF$59)+SUMIF('Trended Cash Flow'!$E$421:$EF$421,V$7,'Trended Cash Flow'!$E$60:$EF$60)+SUMIF('Trended Cash Flow'!$E$421:$EF$421,V$7,'Trended Cash Flow'!$E$61:$EF$61)+SUMIF('Trended Cash Flow'!$E$421:$EF$421,V$7,'Trended Cash Flow'!$E$62:$EF$62) -> -2796855.518 | W18: =SUMIF('Trended Cash Flow'!$E$421:$EF$421,W$7,'Trended Cash Flow'!$E$59:$EF$59)+SUMIF('Trended Cash Flow'!$E$421:$EF$421,W$7,'Trended Cash Flow'!$E$60:$EF$60)+SUMIF('Trended Cash Flow'!$E$421:$EF$421,W$7,'Trended Cash Flow'!$E$61:$EF$61)+SUMIF('Trended Cash Flow'!$E$421:$EF$421,W$7,'Trended Cash Flow'!$E$62:$EF$62) -> -2591965.444 | X18: =SUMIF('Trended Cash Flow'!$E$421:$EF$421,X$7,'Trended Cash Flow'!$E$59:$EF$59)+SUMIF('Trended Cash Flow'!$E$421:$EF$421,X$7,'Trended Cash Flow'!$E$60:$EF$60)+SUMIF('Trended Cash Flow'!$E$421:$EF$421,X$7,'Trended Cash Flow'!$E$61:$EF$61)+SUMIF('Trended Cash Flow'!$E$421:$EF$421,X$7,'Trended Cash Flow'!$E$62:$EF$62) -> -2549546.22 | Y18: =SUMIF('Trended Cash Flow'!$E$421:$EF$421,Y$7,'Trended Cash Flow'!$E$59:$EF$59)+SUMIF('Trended Cash Flow'!$E$421:$EF$421,Y$7,'Trended Cash Flow'!$E$60:$EF$60)+SUMIF('Trended Cash Flow'!$E$421:$EF$421,Y$7,'Trended Cash Flow'!$E$61:$EF$61)+SUMIF('Trended Cash Flow'!$E$421:$EF$421,Y$7,'Trended Cash Flow'!$E$62:$EF$62) -> -2524718.894 | Z18: =SUMIF('Trended Cash Flow'!$E$421:$EF$421,Z$7,'Trended Cash Flow'!$E$59:$EF$59)+SUMIF('Trended Cash Flow'!$E$421:$EF$421,Z$7,'Trended Cash Flow'!$E$60:$EF$60)+SUMIF('Trended Cash Flow'!$E$421:$EF$421,Z$7,'Trended Cash Flow'!$E$61:$EF$61)+SUMIF('Trended Cash Flow'!$E$421:$EF$421,Z$7,'Trended Cash Flow'!$E$62:$EF$62) -> -2500322.521 | AA18: =SUMIF('Trended Cash Flow'!$E$421:$EF$421,AA$7,'Trended Cash Flow'!$E$59:$EF$59)+SUMIF('Trended Cash Flow'!$E$421:$EF$421,AA$7,'Trended Cash Flow'!$E$60:$EF$60)+SUMIF('Trended Cash Flow'!$E$421:$EF$421,AA$7,'Trended Cash Flow'!$E$61:$EF$61)+SUMIF('Trended Cash Flow'!$E$421:$EF$421,AA$7,'Trended Cash Flow'!$E$62:$EF$62) -> 0
B19: Average Rent / Unit (today) | F19: =Assumptions!$K$198 -> 3341.710526 | H19: DSCR | I19: =+Assumptions!AI26 -> 35 | K19: *Incl Full Tax | L19: =+Assumptions!AI17 -> 1.25
B20: Average Rent / SF (today) | F20: =Assumptions!$L$198 -> 4.847680855 | H20: Total Commitment | L20: =Assumptions!AI21 -> 55833681.93 | N20: Cash Flow after Debt Service | Q20: =SUMIF('Trended Cash Flow'!$E$421:$EF$421,Q$7,'Trended Cash Flow'!$E$63:$EF$63) -> 0 | R20: =SUMIF('Trended Cash Flow'!$E$421:$EF$421,R$7,'Trended Cash Flow'!$E$63:$EF$63) -> -67888.86636 | S20: =SUMIF('Trended Cash Flow'!$E$421:$EF$421,S$7,'Trended Cash Flow'!$E$63:$EF$63) -> 1404296.269 | T20: =SUMIF('Trended Cash Flow'!$E$421:$EF$421,T$7,'Trended Cash Flow'!$E$63:$EF$63) -> 1209242.699 | U20: =SUMIF('Trended Cash Flow'!$E$421:$EF$421,U$7,'Trended Cash Flow'!$E$63:$EF$63) -> 1343138.823 | V20: =SUMIF('Trended Cash Flow'!$E$421:$EF$421,V$7,'Trended Cash Flow'!$E$63:$EF$63) -> 1481505.291 | W20: =SUMIF('Trended Cash Flow'!$E$421:$EF$421,W$7,'Trended Cash Flow'!$E$63:$EF$63) -> 1829381.276 | X20: =SUMIF('Trended Cash Flow'!$E$421:$EF$421,X$7,'Trended Cash Flow'!$E$63:$EF$63) -> 2019559.928 | Y20: =SUMIF('Trended Cash Flow'!$E$421:$EF$421,Y$7,'Trended Cash Flow'!$E$63:$EF$63) -> 2197079.401 | Z20: =SUMIF('Trended Cash Flow'!$E$421:$EF$421,Z$7,'Trended Cash Flow'!$E$63:$EF$63) -> 2379265.153 | AA20: =SUMIF('Trended Cash Flow'!$E$421:$EF$421,AA$7,'Trended Cash Flow'!$E$63:$EF$63) -> 0
H21: Term | L21: =Assumptions!AI23 -> 35
B22: Unit Mix Summary | C22: % of Project | D22: Avg. SF | E22: Rent / Unit | F22: Rent / SF | H22: Debt Structure | J22: =Assumptions!AG24 -> Index | K22: =Assumptions!AH24 -> Spread | L22: =Assumptions!AI24 -> IO | N22: Sources Summary
B23: =Assumptions!C201 -> Studio | C23: =Assumptions!F201 -> 0.2368421053 | D23: =Assumptions!O201 -> 380.7777778 | E23: =Assumptions!K201 -> 2213.851852 | F23: =E23/D23 -> 5.814025873 | H23: Interest Rate | J23: =Assumptions!AG25 -> 0.025 | K23: =Assumptions!AH25 -> 0.025 | L23: =Assumptions!AI25 -> 0.05 | O23: =SUM(Q23:AA23) -> 60803841.06 | Q23: =SUMIF('Trended Cash Flow'!$E$421:$EF$421,Q$7,'Trended Cash Flow'!$E$57:$EF$57) -> 33887191.38 | R23: =SUMIF('Trended Cash Flow'!$E$421:$EF$421,R$7,'Trended Cash Flow'!$E$57:$EF$57) -> 26036256.22 | S23: =SUMIF('Trended Cash Flow'!$E$421:$EF$421,S$7,'Trended Cash Flow'!$E$57:$EF$57) -> 880393.4616 | T23: =SUMIF('Trended Cash Flow'!$E$421:$EF$421,T$7,'Trended Cash Flow'!$E$57:$EF$57) -> 0 | U23: =SUMIF('Trended Cash Flow'!$E$421:$EF$421,U$7,'Trended Cash Flow'!$E$57:$EF$57) -> 0 | V23: =SUMIF('Trended Cash Flow'!$E$421:$EF$421,V$7,'Trended Cash Flow'!$E$57:$EF$57) -> 0 | W23: =SUMIF('Trended Cash Flow'!$E$421:$EF$421,W$7,'Trended Cash Flow'!$E$57:$EF$57) -> 0 | X23: =SUMIF('Trended Cash Flow'!$E$421:$EF$421,X$7,'Trended Cash Flow'!$E$57:$EF$57) -> 0 | Y23: =SUMIF('Trended Cash Flow'!$E$421:$EF$421,Y$7,'Trended Cash Flow'!$E$57:$EF$57) -> 0 | Z23: =SUMIF('Trended Cash Flow'!$E$421:$EF$421,Z$7,'Trended Cash Flow'!$E$57:$EF$57) -> 0 | AA23: =SUMIF('Trended Cash Flow'!$E$421:$EF$421,AA$7,'Trended Cash Flow'!$E$57:$EF$57) -> 0
B24: =Assumptions!C202 -> 1 bed | C24: =Assumptions!F202 -> 0.1754385965 | D24: =Assumptions!O202 -> 558.55 | E24: =Assumptions!K202 -> 2767.65 | F24: =E24/D24 -> 4.955062215 | H24: Amortization Period | L24: =Assumptions!AI26 -> 35 | N24: Equity | O24: =SUM(Q24:AA24) -> 26875297.89 | Q24: =SUMIF('Trended Cash Flow'!$E$421:$EF$421,Q$7,'Trended Cash Flow'!$E$66:$EF$66) -> 26875297.89 | R24: =SUMIF('Trended Cash Flow'!$E$421:$EF$421,R$7,'Trended Cash Flow'!$E$66:$EF$66) -> 0 | S24: =SUMIF('Trended Cash Flow'!$E$421:$EF$421,S$7,'Trended Cash Flow'!$E$66:$EF$66) -> 0 | T24: =SUMIF('Trended Cash Flow'!$E$421:$EF$421,T$7,'Trended Cash Flow'!$E$66:$EF$66) -> 0 | U24: =SUMIF('Trended Cash Flow'!$E$421:$EF$421,U$7,'Trended Cash Flow'!$E$66:$EF$66) -> 0 | V24: =SUMIF('Trended Cash Flow'!$E$421:$EF$421,V$7,'Trended Cash Flow'!$E$66:$EF$66) -> 0 | W24: =SUMIF('Trended Cash Flow'!$E$421:$EF$421,W$7,'Trended Cash Flow'!$E$66:$EF$66) -> 0 | X24: =SUMIF('Trended Cash Flow'!$E$421:$EF$421,X$7,'Trended Cash Flow'!$E$66:$EF$66) -> 0 | Y24: =SUMIF('Trended Cash Flow'!$E$421:$EF$421,Y$7,'Trended Cash Flow'!$E$66:$EF$66) -> 0 | Z24: =SUMIF('Trended Cash Flow'!$E$421:$EF$421,Z$7,'Trended Cash Flow'!$E$66:$EF$66) -> 0 | AA24: =SUMIF('Trended Cash Flow'!$E$421:$EF$421,AA$7,'Trended Cash Flow'!$E$66:$EF$66) -> 0
B25: =Assumptions!C203 -> 1 Bed + den | C25: =Assumptions!F203 -> 0.149122807 | D25: =Assumptions!O203 -> 712.6470588 | E25: =Assumptions!K203 -> 3231.764706 | F25: 4.534874123 | N25: Debt | O25: =SUM(Q25:AA25) -> 33928244.58 | Q25: =SUMIF('Trended Cash Flow'!$E$421:$EF$421,Q$7,'Trended Cash Flow'!$E$67:$EF$67) -> 7011893.491 | R25: =SUMIF('Trended Cash Flow'!$E$421:$EF$421,R$7,'Trended Cash Flow'!$E$67:$EF$67) -> 26036256.22 | S25: =SUMIF('Trended Cash Flow'!$E$421:$EF$421,S$7,'Trended Cash Flow'!$E$67:$EF$67) -> 880094.8709 | T25: =SUMIF('Trended Cash Flow'!$E$421:$EF$421,T$7,'Trended Cash Flow'!$E$67:$EF$67) -> 0 | U25: =SUMIF('Trended Cash Flow'!$E$421:$EF$421,U$7,'Trended Cash Flow'!$E$67:$EF$67) -> 0 | V25: =SUMIF('Trended Cash Flow'!$E$421:$EF$421,V$7,'Trended Cash Flow'!$E$67:$EF$67) -> 0 | W25: =SUMIF('Trended Cash Flow'!$E$421:$EF$421,W$7,'Trended Cash Flow'!$E$67:$EF$67) -> 0 | X25: =SUMIF('Trended Cash Flow'!$E$421:$EF$421,X$7,'Trended Cash Flow'!$E$67:$EF$67) -> 0 | Y25: =SUMIF('Trended Cash Flow'!$E$421:$EF$421,Y$7,'Trended Cash Flow'!$E$67:$EF$67) -> 0 | Z25: =SUMIF('Trended Cash Flow'!$E$421:$EF$421,Z$7,'Trended Cash Flow'!$E$67:$EF$67) -> 0 | AA25: =SUMIF('Trended Cash Flow'!$E$421:$EF$421,AA$7,'Trended Cash Flow'!$E$67:$EF$67) -> 0
B26: =Assumptions!C204 -> 2 Bed | C26: =Assumptions!F204 -> 0.3684210526 | D26: =Assumptions!O204 -> 867.2142857 | E26: =Assumptions!K204 -> 3701.619048 | F26: =E26/D26 -> 4.268401834 | H26: Switches to AMO | K26: =Assumptions!AH28 -> 73 | L26: =Assumptions!AI28 -> 2029-07-15 | N26: Mezzanine | O26: =SUM(Q26:AA26) -> 0 | Q26: =SUMIF('Trended Cash Flow'!$E$421:$EF$421,Q$7,'Trended Cash Flow'!$E$68:$EF$68) -> 0 | R26: =SUMIF('Trended Cash Flow'!$E$421:$EF$421,R$7,'Trended Cash Flow'!$E$68:$EF$68) -> 0 | S26: =SUMIF('Trended Cash Flow'!$E$421:$EF$421,S$7,'Trended Cash Flow'!$E$68:$EF$68) -> 0 | T26: =SUMIF('Trended Cash Flow'!$E$421:$EF$421,T$7,'Trended Cash Flow'!$E$68:$EF$68) -> 0 | U26: =SUMIF('Trended Cash Flow'!$E$421:$EF$421,U$7,'Trended Cash Flow'!$E$68:$EF$68) -> 0 | V26: =SUMIF('Trended Cash Flow'!$E$421:$EF$421,V$7,'Trended Cash Flow'!$E$68:$EF$68) -> 0 | W26: =SUMIF('Trended Cash Flow'!$E$421:$EF$421,W$7,'Trended Cash Flow'!$E$68:$EF$68) -> 0 | X26: =SUMIF('Trended Cash Flow'!$E$421:$EF$421,X$7,'Trended Cash Flow'!$E$68:$EF$68) -> 0 | Y26: =SUMIF('Trended Cash Flow'!$E$421:$EF$421,Y$7,'Trended Cash Flow'!$E$68:$EF$68) -> 0 | Z26: =SUMIF('Trended Cash Flow'!$E$421:$EF$421,Z$7,'Trended Cash Flow'!$E$68:$EF$68) -> 0 | AA26: =SUMIF('Trended Cash Flow'!$E$421:$EF$421,AA$7,'Trended Cash Flow'!$E$68:$EF$68) -> 0
B27: =Assumptions!C205 -> PH | C27: =Assumptions!F205 -> 0.0701754386 | D27: =Assumptions!S206 -> 1074.375 | E27: =Assumptions!K205 -> 6927.5 | F27: =E27/D27 -> 6.447934846 | H27: Debt Structure | J27: =Assumptions!AG29 -> 0 | K27: =Assumptions!AH29 -> 0 | L27: =Assumptions!AI29 -> AMO | AH27: Todays Month Number | AI27: =ROUNDUP(DAYS360(AI62,AI28)/30+1,0) -> -112
H28: Interest Rate | J28: =Assumptions!AG30 -> 0 | K28: =Assumptions!AH30 -> Fixed | L28: =Assumptions!AI30 -> 0.0325 | N28: Sale Summary | AH28: Todays Date | AI28: 2014-02-01
H29: Amortization Period | J29: =Assumptions!AG31 -> 0 | K29: =Assumptions!AH31 -> 0 | L29: =Assumptions!AI31 -> 35 | N29: Capped Forward NOI | Q29: =+SUMIF('Trended Cash Flow'!$E$421:$EF$421,Q$7,'Trended Cash Flow'!$E$73:$EF$73) -> 0 | R29: =+SUMIF('Trended Cash Flow'!$E$421:$EF$421,R$7,'Trended Cash Flow'!$E$73:$EF$73) -> 0 | S29: =+SUMIF('Trended Cash Flow'!$E$421:$EF$421,S$7,'Trended Cash Flow'!$E$73:$EF$73) -> 0 | T29: =+SUMIF('Trended Cash Flow'!$E$421:$EF$421,T$7,'Trended Cash Flow'!$E$73:$EF$73) -> 0 | U29: =+SUMIF('Trended Cash Flow'!$E$421:$EF$421,U$7,'Trended Cash Flow'!$E$73:$EF$73) -> 0 | V29: =+SUMIF('Trended Cash Flow'!$E$421:$EF$421,V$7,'Trended Cash Flow'!$E$73:$EF$73) -> 0 | W29: =+SUMIF('Trended Cash Flow'!$E$421:$EF$421,W$7,'Trended Cash Flow'!$E$73:$EF$73) -> 0 | X29: =+SUMIF('Trended Cash Flow'!$E$421:$EF$421,X$7,'Trended Cash Flow'!$E$73:$EF$73) -> 0 | Y29: =+SUMIF('Trended Cash Flow'!$E$421:$EF$421,Y$7,'Trended Cash Flow'!$E$73:$EF$73) -> 0 | Z29: =+SUMIF('Trended Cash Flow'!$E$421:$EF$421,Z$7,'Trended Cash Flow'!$E$73:$EF$73) -> 4689003.43 | AA29: =+SUMIF('Trended Cash Flow'!$E$421:$EF$421,AA$7,'Trended Cash Flow'!$E$73:$EF$73) -> 0 | AH29: Development Completion | AI29: Projected Costs | AJ29: Spent To-Date | AL29: Outstanding Costs
B30: Yield on Cost | J30: =Assumptions!AG32 -> 0 | K30: =Assumptions!AH32 -> 0 | L30: =Assumptions!AI32 -> 0 | N30: RE Tax Adjustment at Sale | Q30: =+SUMIF('Trended Cash Flow'!$E$421:$EF$421,Q$7,'Trended Cash Flow'!$E$74:$EF$74) -> 0 | R30: =+SUMIF('Trended Cash Flow'!$E$421:$EF$421,R$7,'Trended Cash Flow'!$E$74:$EF$74) -> 0 | S30: =+SUMIF('Trended Cash Flow'!$E$421:$EF$421,S$7,'Trended Cash Flow'!$E$74:$EF$74) -> 0 | T30: =+SUMIF('Trended Cash Flow'!$E$421:$EF$421,T$7,'Trended Cash Flow'!$E$74:$EF$74) -> 0 | U30: =+SUMIF('Trended Cash Flow'!$E$421:$EF$421,U$7,'Trended Cash Flow'!$E$74:$EF$74) -> 0 | V30: =+SUMIF('Trended Cash Flow'!$E$421:$EF$421,V$7,'Trended Cash Flow'!$E$74:$EF$74) -> 0 | W30: =+SUMIF('Trended Cash Flow'!$E$421:$EF$421,W$7,'Trended Cash Flow'!$E$74:$EF$74) -> 0 | X30: =+SUMIF('Trended Cash Flow'!$E$421:$EF$421,X$7,'Trended Cash Flow'!$E$74:$EF$74) -> 0 | Y30: =+SUMIF('Trended Cash Flow'!$E$421:$EF$421,Y$7,'Trended Cash Flow'!$E$74:$EF$74) -> 0 | Z30: =+SUMIF('Trended Cash Flow'!$E$421:$EF$421,Z$7,'Trended Cash Flow'!$E$74:$EF$74) -> 764421.4552 | AA30: =+SUMIF('Trended Cash Flow'!$E$421:$EF$421,AA$7,'Trended Cash Flow'!$E$74:$EF$74) -> 0 | AH30: =AH64 -> Land | AI30: =SUM($AI64:$CR64) -> 5075000 | AJ30: =SUMIF($AI$61:$CR$61,"<="&$AI$27,$AI64:$CR64) -> 0 | AK30: =AJ30/AI30 -> 0 | AL30: =AI30-AJ30 -> 5075000 | AM30: =AL30/AI30 -> 1
B31: YOC (Trended) | F31: =+Assumptions!L311 -> 0.06227989934 | H31: Fixed Principal | L31: =Assumptions!AI33 -> On | N31: Sale Price | Q31: =SUMIF('Trended Cash Flow'!$E$421:$EF$421,Q$7,'Trended Cash Flow'!$E$75:$EF$75) -> 0 | R31: =SUMIF('Trended Cash Flow'!$E$421:$EF$421,R$7,'Trended Cash Flow'!$E$75:$EF$75) -> 0 | S31: =SUMIF('Trended Cash Flow'!$E$421:$EF$421,S$7,'Trended Cash Flow'!$E$75:$EF$75) -> 0 | T31: =SUMIF('Trended Cash Flow'!$E$421:$EF$421,T$7,'Trended Cash Flow'!$E$75:$EF$75) -> 0 | U31: =SUMIF('Trended Cash Flow'!$E$421:$EF$421,U$7,'Trended Cash Flow'!$E$75:$EF$75) -> 0 | V31: =SUMIF('Trended Cash Flow'!$E$421:$EF$421,V$7,'Trended Cash Flow'!$E$75:$EF$75) -> 0 | W31: =SUMIF('Trended Cash Flow'!$E$421:$EF$421,W$7,'Trended Cash Flow'!$E$75:$EF$75) -> 0 | X31: =SUMIF('Trended Cash Flow'!$E$421:$EF$421,X$7,'Trended Cash Flow'!$E$75:$EF$75) -> 0 | Y31: =SUMIF('Trended Cash Flow'!$E$421:$EF$421,Y$7,'Trended Cash Flow'!$E$75:$EF$75) -> 0 | Z31: =SUMIF('Trended Cash Flow'!$E$421:$EF$421,Z$7,'Trended Cash Flow'!$E$75:$EF$75) -> 95506565.41 | AA31: =SUMIF('Trended Cash Flow'!$E$421:$EF$421,AA$7,'Trended Cash Flow'!$E$75:$EF$75) -> 0 | AH31: =AH65 -> Legal, Closing Costs & Financing | AI31: =SUM($AI65:$CR65) -> 1123571 | AJ31: =SUMIF($AI$61:$CR$61,"<="&$AI$27,$AI65:$CR65) -> 0 | AK31: =AJ31/AI31 -> 0 | AL31: =AI31-AJ31 -> 1123571 | AM31: 1
B32: YOC (Untrended) | F32: =+Assumptions!J311 -> 0.05995416499 | H32: Amortization Rate | L32: =Assumptions!AI34 -> 0.03 | N32: Closing Costs | Q32: =+SUMIF('Trended Cash Flow'!$E$421:$EF$421,Q$7,'Trended Cash Flow'!$E$78:$EF$78) -> 0 | R32: =+SUMIF('Trended Cash Flow'!$E$421:$EF$421,R$7,'Trended Cash Flow'!$E$78:$EF$78) -> 0 | S32: =+SUMIF('Trended Cash Flow'!$E$421:$EF$421,S$7,'Trended Cash Flow'!$E$78:$EF$78) -> 0 | T32: =+SUMIF('Trended Cash Flow'!$E$421:$EF$421,T$7,'Trended Cash Flow'!$E$78:$EF$78) -> 0 | U32: =+SUMIF('Trended Cash Flow'!$E$421:$EF$421,U$7,'Trended Cash Flow'!$E$78:$EF$78) -> 0 | V32: =+SUMIF('Trended Cash Flow'!$E$421:$EF$421,V$7,'Trended Cash Flow'!$E$78:$EF$78) -> 0 | W32: =+SUMIF('Trended Cash Flow'!$E$421:$EF$421,W$7,'Trended Cash Flow'!$E$78:$EF$78) -> 0 | X32: =+SUMIF('Trended Cash Flow'!$E$421:$EF$421,X$7,'Trended Cash Flow'!$E$78:$EF$78) -> 0 | Y32: =+SUMIF('Trended Cash Flow'!$E$421:$EF$421,Y$7,'Trended Cash Flow'!$E$78:$EF$78) -> 0 | Z32: =+SUMIF('Trended Cash Flow'!$E$421:$EF$421,Z$7,'Trended Cash Flow'!$E$78:$EF$78) -> -772137.2685 | AA32: =+SUMIF('Trended Cash Flow'!$E$421:$EF$421,AA$7,'Trended Cash Flow'!$E$78:$EF$78) -> 0 | AH32: =AH66 -> Construction Hard Costs | AI32: =SUM($AI66:$CR66) -> 41614763 | AJ32: =SUMIF($AI$61:$CR$61,"<="&$AI$27,$AI66:$CR66) -> 0 | AK32: 0 | AL32: 41614763 | AM32: 1
H33: Principal | L33: =Assumptions!AI35 -> 63659.80907 | N33: Debt Repayment | Q33: =SUMIF('Trended Cash Flow'!$E$421:$EF$421,Q$7,'Trended Cash Flow'!$E$80:$EF$80) -> 0 | R33: =SUMIF('Trended Cash Flow'!$E$421:$EF$421,R$7,'Trended Cash Flow'!$E$80:$EF$80) -> 0 | S33: =SUMIF('Trended Cash Flow'!$E$421:$EF$421,S$7,'Trended Cash Flow'!$E$80:$EF$80) -> 0 | T33: =SUMIF('Trended Cash Flow'!$E$421:$EF$421,T$7,'Trended Cash Flow'!$E$80:$EF$80) -> 0 | U33: =SUMIF('Trended Cash Flow'!$E$421:$EF$421,U$7,'Trended Cash Flow'!$E$80:$EF$80) -> 0 | V33: =SUMIF('Trended Cash Flow'!$E$421:$EF$421,V$7,'Trended Cash Flow'!$E$80:$EF$80) -> 0 | W33: =SUMIF('Trended Cash Flow'!$E$421:$EF$421,W$7,'Trended Cash Flow'!$E$80:$EF$80) -> 0 | X33: =SUMIF('Trended Cash Flow'!$E$421:$EF$421,X$7,'Trended Cash Flow'!$E$80:$EF$80) -> 0 | Y33: =SUMIF('Trended Cash Flow'!$E$421:$EF$421,Y$7,'Trended Cash Flow'!$E$80:$EF$80) -> 0 | Z33: =SUMIF('Trended Cash Flow'!$E$421:$EF$421,Z$7,'Trended Cash Flow'!$E$80:$EF$80) -> -52841670.91 | AA33: =SUMIF('Trended Cash Flow'!$E$421:$EF$421,AA$7,'Trended Cash Flow'!$E$80:$EF$80) -> 0 | AH33: =AH68 -> Architect, Engineering and Surveying | AI33: =SUM($AI68:$CR68) -> 1530800 | AJ33: =SUMIF($AI$61:$CR$61,"<="&$AI$27,$AI68:$CR68) -> 0 | AK33: 0 | AL33: 1530800 | AM33: 1
B34: Project Cost | N34: Net Sale Proceeds | Q34: =+Q31+Q32+Q33 -> 0 | R34: =+R31+R32+R33 -> 0 | S34: 0 | T34: 0 | U34: 0 | V34: 0 | W34: 0 | X34: 0 | Y34: 0 | Z34: 41892757.23 | AA34: 0 | AH34: Taxes | AI34: 270369.5498 | AJ34: 0 | AK34: 0 | AL34: 270369.5498 | AM34: 1
B35: Detail | E35: Total | F35: Per Unit | H35: Promote Structure | AH35: Soft Cost Contingency | AI35: 1414083.035 | AJ35: 0 | AK35: 0 | AL35: 1414083.035 | AM35: 1
B36: =+Assumptions!H18 -> Total Hard Costs | E36: =+Assumptions!J18 -> 40014195 | F36: =+E36/$F$16 -> 351001.7105 | H36: Total Profit and Return of Capital | L36: =+'Trended Cash Flow'!$B$84+E63+E64 -> 85265787.29 | N36: Total Equity | Q36: =-SUMIF('Trended Cash Flow'!$E$421:$EF$421,Q$7,'Trended Cash Flow'!$E$66:$EF$66) -> -26875297.89 | R36: =-SUMIF('Trended Cash Flow'!$E$421:$EF$421,R$7,'Trended Cash Flow'!$E$66:$EF$66) -> 0 | S36: =-SUMIF('Trended Cash Flow'!$E$421:$EF$421,S$7,'Trended Cash Flow'!$E$66:$EF$66) -> 0 | T36: =-SUMIF('Trended Cash Flow'!$E$421:$EF$421,T$7,'Trended Cash Flow'!$E$66:$EF$66) -> 0 | U36: =-SUMIF('Trended Cash Flow'!$E$421:$EF$421,U$7,'Trended Cash Flow'!$E$66:$EF$66) -> 0 | V36: =-SUMIF('Trended Cash Flow'!$E$421:$EF$421,V$7,'Trended Cash Flow'!$E$66:$EF$66) -> 0 | W36: =-SUMIF('Trended Cash Flow'!$E$421:$EF$421,W$7,'Trended Cash Flow'!$E$66:$EF$66) -> 0 | X36: =-SUMIF('Trended Cash Flow'!$E$421:$EF$421,X$7,'Trended Cash Flow'!$E$66:$EF$66) -> 0 | Y36: =-SUMIF('Trended Cash Flow'!$E$421:$EF$421,Y$7,'Trended Cash Flow'!$E$66:$EF$66) -> 0 | Z36: =-SUMIF('Trended Cash Flow'!$E$421:$EF$421,Z$7,'Trended Cash Flow'!$E$66:$EF$66) -> 0 | AA36: =-SUMIF('Trended Cash Flow'!$E$421:$EF$421,AA$7,'Trended Cash Flow'!$E$66:$EF$66) -> 0 | AH36: Overhead | AI36: 2269165 | AJ36: 0 | AK36: 0 | AL36: 2269165 | AM36: =AL36/AI36 -> 1
B37: =+Assumptions!H19 -> General Contractor (GC) Fee | E37: =+Assumptions!J19 -> 1600568 | F37: =+E37/$F$16 -> 14040.07018 | H37: Preference (pari passu) | L37: =+SUM('Trended Cash Flow'!$E$100:$EF$100) -> 8979657.446 | N37: Refinance Proceeds | Q37: =SUMIF('Trended Cash Flow'!$E$421:$EF$421,Q$7,'Trended Cash Flow'!$E$72:$EF$72) -> 0 | R37: =SUMIF('Trended Cash Flow'!$E$421:$EF$421,R$7,'Trended Cash Flow'!$E$72:$EF$72) -> 0 | S37: =SUMIF('Trended Cash Flow'!$E$421:$EF$421,S$7,'Trended Cash Flow'!$E$72:$EF$72) -> 21962897.58 | T37: =SUMIF('Trended Cash Flow'!$E$421:$EF$421,T$7,'Trended Cash Flow'!$E$72:$EF$72) -> 0 | U37: =SUMIF('Trended Cash Flow'!$E$421:$EF$421,U$7,'Trended Cash Flow'!$E$72:$EF$72) -> 0 | V37: =SUMIF('Trended Cash Flow'!$E$421:$EF$421,V$7,'Trended Cash Flow'!$E$72:$EF$72) -> 0 | W37: =SUMIF('Trended Cash Flow'!$E$421:$EF$421,W$7,'Trended Cash Flow'!$E$72:$EF$72) -> 0 | X37: =SUMIF('Trended Cash Flow'!$E$421:$EF$421,X$7,'Trended Cash Flow'!$E$72:$EF$72) -> 0 | Y37: =SUMIF('Trended Cash Flow'!$E$421:$EF$421,Y$7,'Trended Cash Flow'!$E$72:$EF$72) -> 0 | Z37: =SUMIF('Trended Cash Flow'!$E$421:$EF$421,Z$7,'Trended Cash Flow'!$E$72:$EF$72) -> 0 | AA37: =SUMIF('Trended Cash Flow'!$E$421:$EF$421,AA$7,'Trended Cash Flow'!$E$72:$EF$72) -> 0 | AH37: Marketing | AI37: 750000 | AJ37: 0 | AK37: 0 | AL37: 750000 | AM37: 1
B38: =+Assumptions!H20 -> Land | E38: =+Assumptions!J20 -> 5075000 | F38: 44517.54386 | H38: Equity Partner | K38: =+$D$63 -> 0.9 | L38: =+K38*$L$37 -> 8081691.702 | N38: Sale Proceeds | Q38: =SUMIF('Trended Cash Flow'!$E$421:$EF$421,Q$7,'Trended Cash Flow'!$E$75:$EF$75)+SUMIF('Trended Cash Flow'!$E$421:$EF$421,Q$7,'Trended Cash Flow'!$E$78:$EF$78) -> 0 | R38: =SUMIF('Trended Cash Flow'!$E$421:$EF$421,R$7,'Trended Cash Flow'!$E$75:$EF$75)+SUMIF('Trended Cash Flow'!$E$421:$EF$421,R$7,'Trended Cash Flow'!$E$78:$EF$78) -> 0 | S38: =SUMIF('Trended Cash Flow'!$E$421:$EF$421,S$7,'Trended Cash Flow'!$E$75:$EF$75)+SUMIF('Trended Cash Flow'!$E$421:$EF$421,S$7,'Trended Cash Flow'!$E$78:$EF$78) -> 0 | T38: =SUMIF('Trended Cash Flow'!$E$421:$EF$421,T$7,'Trended Cash Flow'!$E$75:$EF$75)+SUMIF('Trended Cash Flow'!$E$421:$EF$421,T$7,'Trended Cash Flow'!$E$78:$EF$78) -> 0 | U38: =SUMIF('Trended Cash Flow'!$E$421:$EF$421,U$7,'Trended Cash Flow'!$E$75:$EF$75)+SUMIF('Trended Cash Flow'!$E$421:$EF$421,U$7,'Trended Cash Flow'!$E$78:$EF$78) -> 0 | V38: =SUMIF('Trended Cash Flow'!$E$421:$EF$421,V$7,'Trended Cash Flow'!$E$75:$EF$75)+SUMIF('Trended Cash Flow'!$E$421:$EF$421,V$7,'Trended Cash Flow'!$E$78:$EF$78) -> 0 | W38: =SUMIF('Trended Cash Flow'!$E$421:$EF$421,W$7,'Trended Cash Flow'!$E$75:$EF$75)+SUMIF('Trended Cash Flow'!$E$421:$EF$421,W$7,'Trended Cash Flow'!$E$78:$EF$78) -> 0 | X38: =SUMIF('Trended Cash Flow'!$E$421:$EF$421,X$7,'Trended Cash Flow'!$E$75:$EF$75)+SUMIF('Trended Cash Flow'!$E$421:$EF$421,X$7,'Trended Cash Flow'!$E$78:$EF$78) -> 0 | Y38: =SUMIF('Trended Cash Flow'!$E$421:$EF$421,Y$7,'Trended Cash Flow'!$E$75:$EF$75)+SUMIF('Trended Cash Flow'!$E$421:$EF$421,Y$7,'Trended Cash Flow'!$E$78:$EF$78) -> 0 | Z38: =SUMIF('Trended Cash Flow'!$E$421:$EF$421,Z$7,'Trended Cash Flow'!$E$75:$EF$75)+SUMIF('Trended Cash Flow'!$E$421:$EF$421,Z$7,'Trended Cash Flow'!$E$78:$EF$78) -> 94734428.14 | AA38: =SUMIF('Trended Cash Flow'!$E$421:$EF$421,AA$7,'Trended Cash Flow'!$E$75:$EF$75)+SUMIF('Trended Cash Flow'!$E$421:$EF$421,AA$7,'Trended Cash Flow'!$E$78:$EF$78) -> 0 | AH38: Construction Interest | AI38: 4782379.029 | AJ38: 0 | AK38: 0 | AL38: 4782379.029 | AM38: 1
B39: =+Assumptions!H21 -> Taxes | E39: =+Assumptions!J21 -> 270369.5498 | F39: 2371.662717 | H39: CAST | K39: =+$D$64 -> 0.1 | L39: =+K39*$L$37 -> 897965.7446 | N39: Debt Repayment | Q39: =SUMIF('Trended Cash Flow'!$E$421:$EF$421,Q$7,'Trended Cash Flow'!$E$80:$EF$80) -> 0 | R39: =SUMIF('Trended Cash Flow'!$E$421:$EF$421,R$7,'Trended Cash Flow'!$E$80:$EF$80) -> 0 | S39: =SUMIF('Trended Cash Flow'!$E$421:$EF$421,S$7,'Trended Cash Flow'!$E$80:$EF$80) -> 0 | T39: =SUMIF('Trended Cash Flow'!$E$421:$EF$421,T$7,'Trended Cash Flow'!$E$80:$EF$80) -> 0 | U39: =SUMIF('Trended Cash Flow'!$E$421:$EF$421,U$7,'Trended Cash Flow'!$E$80:$EF$80) -> 0 | V39: =SUMIF('Trended Cash Flow'!$E$421:$EF$421,V$7,'Trended Cash Flow'!$E$80:$EF$80) -> 0 | W39: =SUMIF('Trended Cash Flow'!$E$421:$EF$421,W$7,'Trended Cash Flow'!$E$80:$EF$80) -> 0 | X39: =SUMIF('Trended Cash Flow'!$E$421:$EF$421,X$7,'Trended Cash Flow'!$E$80:$EF$80) -> 0 | Y39: =SUMIF('Trended Cash Flow'!$E$421:$EF$421,Y$7,'Trended Cash Flow'!$E$80:$EF$80) -> 0 | Z39: =SUMIF('Trended Cash Flow'!$E$421:$EF$421,Z$7,'Trended Cash Flow'!$E$80:$EF$80) -> -52841670.91 | AA39: =SUMIF('Trended Cash Flow'!$E$421:$EF$421,AA$7,'Trended Cash Flow'!$E$80:$EF$80) -> 0 | AH39: Preleasing and Leaseup Operating Deficit | AI39: 40000 | AJ39: 0 | AK39: 0 | AL39: 40000 | AM39: 1
B40: =+Assumptions!H22 -> Legal & Closing Costs | E40: =+Assumptions!J22 -> 50000 | F40: 438.5964912 | H40: IRR | K40: =+Assumptions!AD7 -> 0.08 | N40: Total Distributions | Q40: =SUMIF('Trended Cash Flow'!$E$421:$EF$421,Q$7,'Trended Cash Flow'!$E$63:$EF$63) -> 0 | R40: =SUMIF('Trended Cash Flow'!$E$421:$EF$421,R$7,'Trended Cash Flow'!$E$63:$EF$63) -> -67888.86636 | S40: =SUMIF('Trended Cash Flow'!$E$421:$EF$421,S$7,'Trended Cash Flow'!$E$63:$EF$63) -> 1404296.269 | T40: =SUMIF('Trended Cash Flow'!$E$421:$EF$421,T$7,'Trended Cash Flow'!$E$63:$EF$63) -> 1209242.699 | U40: =SUMIF('Trended Cash Flow'!$E$421:$EF$421,U$7,'Trended Cash Flow'!$E$63:$EF$63) -> 1343138.823 | V40: =SUMIF('Trended Cash Flow'!$E$421:$EF$421,V$7,'Trended Cash Flow'!$E$63:$EF$63) -> 1481505.291 | W40: =SUMIF('Trended Cash Flow'!$E$421:$EF$421,W$7,'Trended Cash Flow'!$E$63:$EF$63) -> 1829381.276 | X40: =SUMIF('Trended Cash Flow'!$E$421:$EF$421,X$7,'Trended Cash Flow'!$E$63:$EF$63) -> 2019559.928 | Y40: =SUMIF('Trended Cash Flow'!$E$421:$EF$421,Y$7,'Trended Cash Flow'!$E$63:$EF$63) -> 2197079.401 | Z40: =SUMIF('Trended Cash Flow'!$E$421:$EF$421,Z$7,'Trended Cash Flow'!$E$63:$EF$63) -> 2379265.153 | AA40: =SUMIF('Trended Cash Flow'!$E$421:$EF$421,AA$7,'Trended Cash Flow'!$E$63:$EF$63) -> 0 | AH40: =AH76 -> Retail TIs | AI40: =SUM($AI76:$CR76) -> 440550 | AJ40: =SUMIF($AI$61:$CR$61,"<="&$AI$27,$AI76:$CR76) -> 0 | AK40: 0 | AL40: 440550 | AM40: 1
B41: =+Assumptions!H23 -> Insurance | E41: =+Assumptions!J23 -> 395000 | F41: 3464.912281 | H41: Return of Capital (pari passu) | L41: =+-SUM('Trended Cash Flow'!E97:EF97) -> 26875297.89 | N41: Total Project Distributions | O41: =SUM(Q41:AA41) -> 58390489.4 | Q41: =SUMIF('Trended Cash Flow'!$E$421:$EF$421,Q$7,'Trended Cash Flow'!$E$84:$EF$84) -> -26875297.89 | R41: =SUMIF('Trended Cash Flow'!$E$421:$EF$421,R$7,'Trended Cash Flow'!$E$84:$EF$84) -> 0 | S41: =SUMIF('Trended Cash Flow'!$E$421:$EF$421,S$7,'Trended Cash Flow'!$E$84:$EF$84) -> 23468787.09 | T41: =SUMIF('Trended Cash Flow'!$E$421:$EF$421,T$7,'Trended Cash Flow'!$E$84:$EF$84) -> 1209242.699 | U41: =SUMIF('Trended Cash Flow'!$E$421:$EF$421,U$7,'Trended Cash Flow'!$E$84:$EF$84) -> 1343138.823 | V41: =SUMIF('Trended Cash Flow'!$E$421:$EF$421,V$7,'Trended Cash Flow'!$E$84:$EF$84) -> 1481505.291 | W41: =SUMIF('Trended Cash Flow'!$E$421:$EF$421,W$7,'Trended Cash Flow'!$E$84:$EF$84) -> 1829381.276 | X41: =SUMIF('Trended Cash Flow'!$E$421:$EF$421,X$7,'Trended Cash Flow'!$E$84:$EF$84) -> 2019559.928 | Y41: =SUMIF('Trended Cash Flow'!$E$421:$EF$421,Y$7,'Trended Cash Flow'!$E$84:$EF$84) -> 2197079.401 | Z41: =SUMIF('Trended Cash Flow'!$E$421:$EF$421,Z$7,'Trended Cash Flow'!$E$84:$EF$84) -> 51717092.78 | AA41: =SUMIF('Trended Cash Flow'!$E$421:$EF$421,AA$7,'Trended Cash Flow'!$E$84:$EF$84) -> 0 | AH41: Total Costs | AI41: =SUM($AI77:$CR77) -> 62947900.42 | AJ41: =SUMIF($AI$61:$CR$61,"<="&$AI$27,$AI77:$CR77) -> 0 | AK41: 0 | AL41: 62947900.42 | AM41: 1
B42: =+Assumptions!H24 -> Financing | E42: =+Assumptions!J24 -> 678571 | F42: 5952.377193 | H42: Equity Partner | K42: =+$D$63 -> 0.9 | L42: =+K42*$L$41 -> 24187768.1
B43: =+Assumptions!H25 -> Municipal Fees | E43: =+Assumptions!J25 -> 2272219.801 | F43: 19931.75264 | H43: CAST | K43: =+$D$64 -> 0.1 | L43: =+K43*$L$41 -> 2687529.789 | N43: Deal Returns
B44: =+Assumptions!H26 -> Architect | E44: =+Assumptions!J26 -> 250000 | F44: 2192.982456 | N44: Cumulative Return on Equity | Q44: =IF(Q7>$D$13,"",(SUM($Q$40:Q40)/(-SUM($Q$36:Q$36)-SUM($Q$37:Q$37)))) -> 0 | R44: =IF(R7>$D$13,"",(SUM($Q$40:R40)/(-SUM($Q$36:R$36)-SUM($Q$37:R$37)))) -> -0.002526069353 | S44: =IF(S7>$D$13,"",(SUM($Q$40:S40)/(-SUM($Q$36:S$36)-SUM($Q$37:S$37)))) -> 0.2720477401 | T44: =IF(T7>$D$13,"",(SUM($Q$40:T40)/(-SUM($Q$36:T$36)-SUM($Q$37:T$37)))) -> 0.5182090101 | U44: =IF(U7>$D$13,"",(SUM($Q$40:U40)/(-SUM($Q$36:U$36)-SUM($Q$37:U$37)))) -> 0.7916270418 | V44: =IF(V7>$D$13,"",(SUM($Q$40:V40)/(-SUM($Q$36:V$36)-SUM($Q$37:V$37)))) -> 1.093211847 | W44: =IF(W7>$D$13,"",(SUM($Q$40:W40)/(-SUM($Q$36:W$36)-SUM($Q$37:W$37)))) -> 1.46561254 | X44: =IF(X7>$D$13,"",(SUM($Q$40:X40)/(-SUM($Q$36:X$36)-SUM($Q$37:X$37)))) -> 1.876727229 | Y44: =IF(Y7>$D$13,"",(SUM($Q$40:Y40)/(-SUM($Q$36:Y$36)-SUM($Q$37:Y$37)))) -> 2.323978932 | Z44: =IF(Z7>$D$13,"",(SUM($Q$40:Z40)/(-SUM($Q$36:Z$36)-SUM($Q$37:Z$37)))) -> 2.808317545 | AA44: =IF(AA7>$D$13,"",(SUM($Q$40:AA40)/(-SUM($Q$36:AA$36)-SUM($Q$37:AA$37)))) -> 2.808317545
B45: =+Assumptions!H27 -> Engineering & Surveying | E45: =+Assumptions!J27 -> 1280800 | F45: 11235.08772 | H45: Profit | J45: Multiple | K45: IRR | L45: =+'Trended Cash Flow'!B344+'Trended Cash Flow'!B329 -> 49410831.96 | N45: Annual Return on Equity | Q45: =IF(Q$40=0,"",(Q$40)/(-SUM($Q$36:Q$36)-SUM($Q$37:Q$37))) ->  | R45: =IF(R$40=0,"",(R$40)/(-SUM($Q$36:R$36)-SUM($Q$37:R$37))) -> -0.002526069353 | S45: =IF(S$40=0,"",(S$40)/(-SUM($Q$36:S$36)-SUM($Q$37:S$37))) -> 0.2858676371 | T45: =IF(T$40=0,"",(T$40)/(-SUM($Q$36:T$36)-SUM($Q$37:T$37))) -> 0.24616127 | U45: =IF(U$40=0,"",(U$40)/(-SUM($Q$36:U$36)-SUM($Q$37:U$37))) -> 0.2734180317 | V45: =IF(V$40=0,"",(V$40)/(-SUM($Q$36:V$36)-SUM($Q$37:V$37))) -> 0.3015848053 | W45: =IF(W$40=0,"",(W$40)/(-SUM($Q$36:W$36)-SUM($Q$37:W$37))) -> 0.3724006925 | X45: =IF(X$40=0,"",(X$40)/(-SUM($Q$36:X$36)-SUM($Q$37:X$37))) -> 0.4111146896 | Y45: =IF(Y$40=0,"",(Y$40)/(-SUM($Q$36:Y$36)-SUM($Q$37:Y$37))) -> 0.4472517026 | Z45: =IF(Z$40=0,"",(Z$40)/(-SUM($Q$36:Z$36)-SUM($Q$37:Z$37))) -> 0.4843386133 | AA45: =IF(AA$40=0,"",(AA$40)/(-SUM($Q$36:AA$36)-SUM($Q$37:AA$37))) ->  | AB45: =IF(AB$40=0,"",-(AB$40)/(-SUM($Q$36:AB$36)-SUM($Q$37:AB$37))) -> 
B46: =+Assumptions!H28 -> Owner Purchased Items | E46: =+Assumptions!J28 -> 750000 | F46: 6578.947368 | H46: Equity Partner | J46: =+(L46+L42+L38)/L42 -> 2.576726014 | K46: =+P67 -> 0.1779204976 | L46: =+'Trended Cash Flow'!B344 -> 30055791.49 | N46: Yield on Cost | O46: Stabilized YOC | P46: =SUMIFS('Trended Cash Flow'!$E$35:$EF$35,'Trended Cash Flow'!$E$11:$EF$11,">="&$E$11,'Trended Cash Flow'!$E$11:$EF$11,"<"&$E$11+12)/$O$23 -> 0.06710649246 | R46: =+IF(R41>0,R11/$E$57,"") ->  | S46: 0.06730399645 | T46: 0.06588561059 | U46: 0.06808771036 | V46: 0.07036333085 | W46: 0.07271492425 | X46: 0.07514502445 | Y46: 0.07765624981 | Z46: 0.08025130588
B47: =+Assumptions!H29 -> Construction Interest | E47: =+Assumptions!J29 -> 2638320 | F47: 23143.15789 | H47: CAST | J47: =+(L47+L43+L39)/L43 -> 8.53591878 | K47: =+'Trended Cash Flow'!B335 -> 0.3233460248 | L47: =+'Trended Cash Flow'!B329 -> 19355040.47 | N47: Capital Returned | Q47: =IF(Q40=0,"",(SUM($Q$41:Q41)-SUM($Q$36:Q36))/-SUM($Q$36:Q36)) ->  | R47: =IF(R40=0,"",(SUM($Q$41:R41)-SUM($Q$36:R36))/-SUM($Q$36:R36)) -> 0 | S47: =IF(S40=0,"",(SUM($Q$41:S41)-SUM($Q$36:S36))/-SUM($Q$36:S36)) -> 0.8732475148 | T47: =IF(T40=0,"",(SUM($Q$41:T41)-SUM($Q$36:T36))/-SUM($Q$36:T36)) -> 0.9182420932 | U47: =IF(U40=0,"",(SUM($Q$41:U41)-SUM($Q$36:U36))/-SUM($Q$36:U36)) -> 0.9682187978 | V47: =IF(V40=0,"",(SUM($Q$41:V41)-SUM($Q$36:V36))/-SUM($Q$36:V36)) -> 1.023343965 | W47: =IF(W40=0,"",(SUM($Q$41:W41)-SUM($Q$36:W36))/-SUM($Q$36:W36)) -> 1.091413212 | X47: =IF(X40=0,"",(SUM($Q$41:X41)-SUM($Q$36:X36))/-SUM($Q$36:X36)) -> 1.166558794 | Y47: =IF(Y40=0,"",(SUM($Q$41:Y41)-SUM($Q$36:Y36))/-SUM($Q$36:Y36)) -> 1.24830968 | Z47: =IF(Z40=0,"",(SUM($Q$41:Z41)-SUM($Q$36:Z36))/-SUM($Q$36:Z36)) -> 3.172645291 | AA47: =IF(AA40=0,"",(SUM($Q$41:AA41)-SUM($Q$36:AA36))/-SUM($Q$36:AA36)) -> 
B48: =+Assumptions!H35 -> Retail TIs | E48: =+Assumptions!J35 -> 440550 | F48: 3864.473684 | N48: IRR & Multiple | O48: IRR | P48: ='Trended Cash Flow'!$B$90 -> 0.2038463056 | Y48: Multiple | Z48: =(SUM($Q$41:AA41)-SUM($Q$36:AA36))/-SUM($Q$36:AA36) -> 3.172645291
B49: =+Assumptions!H30 -> Preleasing & Marketing | E49: =+Assumptions!J30 -> 40000 | F49: 350.877193 | H49: Sale Assumptions
B50: =+Assumptions!H31 -> Leaseup Operating Deficit | E50: =+Assumptions!J31 -> 0 | F50: 0 | H50: Disposition Date | K50: =+Assumptions!F38 -> 120 | L50: =+Assumptions!E38 -> 2033-06-15 | N50: GP Equity Returns
B51: =+Assumptions!H32 -> Developer Fee | E51: =+Assumptions!J32 -> 2269165 | F51: 19904.95614 | N51: Total Equity | Q51: =IF('Trended Cash Flow'!$D$402="ON",-SUMIF('Trended Cash Flow'!$E$421:$EF$421,Q$7,'Trended Cash Flow'!$E$359:$EF$359),0) -> -2687529.789 | R51: =IF('Trended Cash Flow'!$D$402="ON",-SUMIF('Trended Cash Flow'!$E$421:$EF$421,R$7,'Trended Cash Flow'!$E$359:$EF$359),0) -> 0 | S51: =IF('Trended Cash Flow'!$D$402="ON",-SUMIF('Trended Cash Flow'!$E$421:$EF$421,S$7,'Trended Cash Flow'!$E$359:$EF$359),0) -> 0 | T51: =IF('Trended Cash Flow'!$D$402="ON",-SUMIF('Trended Cash Flow'!$E$421:$EF$421,T$7,'Trended Cash Flow'!$E$359:$EF$359),0) -> 0 | U51: =IF('Trended Cash Flow'!$D$402="ON",-SUMIF('Trended Cash Flow'!$E$421:$EF$421,U$7,'Trended Cash Flow'!$E$359:$EF$359),0) -> 0 | V51: =IF('Trended Cash Flow'!$D$402="ON",-SUMIF('Trended Cash Flow'!$E$421:$EF$421,V$7,'Trended Cash Flow'!$E$359:$EF$359),0) -> 0 | W51: =IF('Trended Cash Flow'!$D$402="ON",-SUMIF('Trended Cash Flow'!$E$421:$EF$421,W$7,'Trended Cash Flow'!$E$359:$EF$359),0) -> 0 | X51: =IF('Trended Cash Flow'!$D$402="ON",-SUMIF('Trended Cash Flow'!$E$421:$EF$421,X$7,'Trended Cash Flow'!$E$359:$EF$359),0) -> 0 | Y51: =IF('Trended Cash Flow'!$D$402="ON",-SUMIF('Trended Cash Flow'!$E$421:$EF$421,Y$7,'Trended Cash Flow'!$E$359:$EF$359),0) -> 0 | Z51: =IF('Trended Cash Flow'!$D$402="ON",-SUMIF('Trended Cash Flow'!$E$421:$EF$421,Z$7,'Trended Cash Flow'!$E$359:$EF$359),0) -> 0 | AA51: =IF('Trended Cash Flow'!$D$402="ON",-SUMIF('Trended Cash Flow'!$E$421:$EF$421,AA$7,'Trended Cash Flow'!$E$359:$EF$359),0) -> 0
B52: =+Assumptions!H33 -> Development Contingency | D52: =+Assumptions!Q22 -> 0.1 | E52: =+Assumptions!J33 -> 1414083.035 | F52: 12404.23715 | H52: Estimate of Today's Mkt Cap-Rate | L52: =+Assumptions!F312 -> 0.0425 | M52: ='Trended Cash Flow'!A123 -> 0.9 | N52: Total Equity (Request) | Q52: =Q51*$M$52 -> -2418776.81 | R52: =R51*$M$52 -> 0 | S52: 0 | T52: 0 | U52: 0 | V52: 0 | W52: 0 | X52: 0 | Y52: 0 | Z52: 0 | AA52: 0
B53: =+Assumptions!H36 -> Retail LCs | E53: =+Assumptions!J36 -> 0 | F53: =+E53/$F$16 -> 0 | H53: Buffer to exit cap-rate | L53: =Assumptions!F313 -> 0.0025 | M53: =1-M52 -> 0.1 | N53: Total Equity (CAST Land Lift/Sweat) | Q53: =Q51*$M$53 -> -268752.9789 | R53: =R51*$M$53 -> 0 | S53: 0 | T53: 0 | U53: 0 | V53: 0 | W53: 0 | X53: 0 | Y53: 0 | Z53: 0 | AA53: 0
B54: =+Assumptions!H37 -> Broker Commission / Other Costs | E54: =+Assumptions!J37 -> 715000 | F54: =+E54/$F$16 -> 6271.929825 | H54: Exit cap-rate | L54: =+Assumptions!F314 -> 0.045 | N54: Total Investor Distributions | O54: =SUM(Q54:AA54) -> 20253006.21 | Q54: =SUMIF('Trended Cash Flow'!$E$421:$EF$421,Q$7,'Trended Cash Flow'!$E$331:$EF$331) -> -2687529.789 | R54: =SUMIF('Trended Cash Flow'!$E$421:$EF$421,R$7,'Trended Cash Flow'!$E$331:$EF$331) -> 0 | S54: =SUMIF('Trended Cash Flow'!$E$421:$EF$421,S$7,'Trended Cash Flow'!$E$331:$EF$331) -> 2346878.709 | T54: =SUMIF('Trended Cash Flow'!$E$421:$EF$421,T$7,'Trended Cash Flow'!$E$331:$EF$331) -> 120924.2699 | U54: =SUMIF('Trended Cash Flow'!$E$421:$EF$421,U$7,'Trended Cash Flow'!$E$331:$EF$331) -> 134313.8823 | V54: =SUMIF('Trended Cash Flow'!$E$421:$EF$421,V$7,'Trended Cash Flow'!$E$331:$EF$331) -> 148150.5291 | W54: =SUMIF('Trended Cash Flow'!$E$421:$EF$421,W$7,'Trended Cash Flow'!$E$331:$EF$331) -> 182938.1276 | X54: =SUMIF('Trended Cash Flow'!$E$421:$EF$421,X$7,'Trended Cash Flow'!$E$331:$EF$331) -> 201955.9928 | Y54: =SUMIF('Trended Cash Flow'!$E$421:$EF$421,Y$7,'Trended Cash Flow'!$E$331:$EF$331) -> 219707.9401 | Z54: =SUMIF('Trended Cash Flow'!$E$421:$EF$421,Z$7,'Trended Cash Flow'!$E$331:$EF$331) -> 19585666.55 | AA54: =SUMIF('Trended Cash Flow'!$E$421:$EF$421,AA$7,'Trended Cash Flow'!$E$331:$EF$331) -> 0
B55: =Assumptions!H38 -> Sponsor Land Bump/Pursuit Pref | E55: =+Assumptions!J38 -> 650000 | F55: =+E55/$F$16 -> 5701.754386 | N55: Yield on Equity (Leveraged) | Q55: =+IF(Q54>0,Q54/-($Q$51+$R$51+$S$51),"") ->  | S55: 0.8732475148 | T55: 0.04499457842 | U55: 0.04997670458 | V55: 0.05512516723 | W55: 0.06806924648 | X55: 0.07514558298 | Y55: 0.08175088552 | Z55: 7.2876091
B56: =+Assumptions!H34 -> Non-Accrual Interest Reserve | E56: =+Assumptions!J34 -> 0 | F56: 0 | H56: Total RE Tax Adjusted Cap Rate | L56: =+Assumptions!S35/100+L54 -> 0.0571 | N56: Total Investor Distributions | O56: =SUM(Q56:AA56) -> 9990242.673 | Q56: =SUMIF('Trended Cash Flow'!$E$421:$EF$421,Q$7,'Trended Cash Flow'!$E$123:$EF$123) -> -2418776.81 | R56: =SUMIF('Trended Cash Flow'!$E$421:$EF$421,R$7,'Trended Cash Flow'!$E$123:$EF$123) -> 0 | S56: =SUMIF('Trended Cash Flow'!$E$421:$EF$421,S$7,'Trended Cash Flow'!$E$123:$EF$123) -> 2112190.839 | T56: =SUMIF('Trended Cash Flow'!$E$421:$EF$421,T$7,'Trended Cash Flow'!$E$123:$EF$123) -> 60462.13493 | U56: =SUMIF('Trended Cash Flow'!$E$421:$EF$421,U$7,'Trended Cash Flow'!$E$123:$EF$123) -> 67156.94116 | V56: =SUMIF('Trended Cash Flow'!$E$421:$EF$421,V$7,'Trended Cash Flow'!$E$123:$EF$123) -> 74075.26453 | W56: =SUMIF('Trended Cash Flow'!$E$421:$EF$421,W$7,'Trended Cash Flow'!$E$123:$EF$123) -> 91469.06382 | X56: =SUMIF('Trended Cash Flow'!$E$421:$EF$421,X$7,'Trended Cash Flow'!$E$123:$EF$123) -> 100977.9964 | Y56: =SUMIF('Trended Cash Flow'!$E$421:$EF$421,Y$7,'Trended Cash Flow'!$E$123:$EF$123) -> 109853.9701 | Z56: =SUMIF('Trended Cash Flow'!$E$421:$EF$421,Z$7,'Trended Cash Flow'!$E$123:$EF$123) -> 9792833.274 | AA56: =SUMIF('Trended Cash Flow'!$E$421:$EF$421,AA$7,'Trended Cash Flow'!$E$123:$EF$123) -> 0
B57: =+Assumptions!H39 -> Total Project Cost: | E57: =+Assumptions!J39 -> 60803841.39 | F57: 533367.0297 | H57: Taxable Value as a % of Sale Price | L57: =+Assumptions!F316 -> 1 | N57: Total CAST Distributions | O57: 10262763.54 | Q57: =SUMIF('Trended Cash Flow'!$E$421:$EF$421,Q$7,'Trended Cash Flow'!$E$124:$EF$124) -> -268752.9789 | R57: =SUMIF('Trended Cash Flow'!$E$421:$EF$421,R$7,'Trended Cash Flow'!$E$124:$EF$124) -> 0 | S57: =SUMIF('Trended Cash Flow'!$E$421:$EF$421,S$7,'Trended Cash Flow'!$E$124:$EF$124) -> 234687.8709 | T57: =SUMIF('Trended Cash Flow'!$E$421:$EF$421,T$7,'Trended Cash Flow'!$E$124:$EF$124) -> 60462.13493 | U57: =SUMIF('Trended Cash Flow'!$E$421:$EF$421,U$7,'Trended Cash Flow'!$E$124:$EF$124) -> 67156.94116 | V57: =SUMIF('Trended Cash Flow'!$E$421:$EF$421,V$7,'Trended Cash Flow'!$E$124:$EF$124) -> 74075.26453 | W57: =SUMIF('Trended Cash Flow'!$E$421:$EF$421,W$7,'Trended Cash Flow'!$E$124:$EF$124) -> 91469.06382 | X57: =SUMIF('Trended Cash Flow'!$E$421:$EF$421,X$7,'Trended Cash Flow'!$E$124:$EF$124) -> 100977.9964 | Y57: =SUMIF('Trended Cash Flow'!$E$421:$EF$421,Y$7,'Trended Cash Flow'!$E$124:$EF$124) -> 109853.9701 | Z57: =SUMIF('Trended Cash Flow'!$E$421:$EF$421,Z$7,'Trended Cash Flow'!$E$124:$EF$124) -> 9792833.274 | AA57: =SUMIF('Trended Cash Flow'!$E$421:$EF$421,AA$7,'Trended Cash Flow'!$E$124:$EF$124) -> 0
H58: Closing Cost at Sale | L58: =+Assumptions!F317 -> 0.0075
B59: Capitalization Summary | O59: G/R IRR | P59: ='Trended Cash Flow'!C123 -> 0.2560457885 | Y59: G/R Multiple | Z59: =IFERROR((SUM($Q$56:$AA$56)-SUM($Q$52:$AA$52))/-SUM($Q$52:$AA$52),"N/A") -> 5.130287106
B60: Source | E60: Total | F60: Per Unit | H60: Gross Sales Proceeds | L60: =Z38 -> 94734428.14 | N60: IRR & Multiple | O60: CAST IRR | P60: ='Trended Cash Flow'!C124 -> 0.5498993099 | Y60: CAST Multiple | Z60: =IFERROR((SUM($Q$57:$AA$57)-SUM($Q$53:$AA$53))/-SUM($Q$53:$AA$53),"N/A") -> 39.18660384
B61: Bank Loan Construction (% of Capital) | D61: =+Capitalization!J11 -> 0.558 | E61: =+Capitalization!H11 -> 33928543.49 | F61: =+E61/$F$16 -> 297618.8026 | H61: Gross Sales Proceeds / Unit | L61: =L60/F16 -> 831003.7556 | AI61: ='Cash Flow'!E11 -> 1 | AJ61: ='Cash Flow'!F11 -> 2 | AL61: ='Cash Flow'!G11 -> 3 | AN61: ='Cash Flow'!H11 -> 4 | AO61: ='Cash Flow'!I11 -> 5 | AP61: ='Cash Flow'!J11 -> 6 | AQ61: ='Cash Flow'!K11 -> 7 | AR61: ='Cash Flow'!L11 -> 8 | AS61: ='Cash Flow'!M11 -> 9 | AT61: ='Cash Flow'!N11 -> 10 | AU61: ='Cash Flow'!O11 -> 11 | AV61: ='Cash Flow'!P11 -> 12 | AW61: ='Cash Flow'!Q11 -> 13 | AX61: ='Cash Flow'!R11 -> 14 | AY61: ='Cash Flow'!S11 -> 15 | AZ61: ='Cash Flow'!T11 -> 16 | BA61: ='Cash Flow'!U11 -> 17 | BB61: ='Cash Flow'!V11 -> 18 | BC61: ='Cash Flow'!W11 -> 19 | BD61: ='Cash Flow'!X11 -> 20 | BE61: ='Cash Flow'!Y11 -> 21 | BF61: ='Cash Flow'!Z11 -> 22 | BG61: ='Cash Flow'!AA11 -> 23 | BH61: ='Cash Flow'!AB11 -> 24 | BI61: ='Cash Flow'!AC11 -> 25 | BJ61: ='Cash Flow'!AD11 -> 26 | BK61: ='Cash Flow'!AE11 -> 27 | BL61: ='Cash Flow'!AF11 -> 28 | BM61: ='Cash Flow'!AG11 -> 29 | BN61: ='Cash Flow'!AH11 -> 30 | BO61: ='Cash Flow'!AI11 -> 31 | BP61: ='Cash Flow'!AJ11 -> 32 | BQ61: ='Cash Flow'!AK11 -> 33 | BR61: ='Cash Flow'!AL11 -> 34 | BS61: ='Cash Flow'!AM11 -> 35 | BT61: ='Cash Flow'!AN11 -> 36 | BU61: ='Cash Flow'!AO11 -> 37 | BV61: ='Cash Flow'!AP11 -> 38 | BW61: ='Cash Flow'!AQ11 -> 39 | BX61: ='Cash Flow'!AR11 -> 40 | BY61: ='Cash Flow'!AS11 -> 41 | BZ61: ='Cash Flow'!AT11 -> 42 | CA61: ='Cash Flow'!AU11 -> 43 | CB61: ='Cash Flow'!AV11 -> 44 | CC61: ='Cash Flow'!AW11 -> 45 | CD61: ='Cash Flow'!AX11 -> 46 | CE61: ='Cash Flow'!AY11 -> 47 | CF61: ='Cash Flow'!AZ11 -> 48 | CG61: ='Cash Flow'!BA11 -> 49 | CH61: ='Cash Flow'!BB11 -> 50 | CI61: ='Cash Flow'!BC11 -> 51 | CJ61: ='Cash Flow'!BD11 -> 52 | CK61: ='Cash Flow'!BE11 -> 53 | CL61: ='Cash Flow'!BF11 -> 54 | CM61: ='Cash Flow'!BG11 -> 55 | CN61: ='Cash Flow'!BH11 -> 56 | CO61: ='Cash Flow'!BI11 -> 57 | CP61: ='Cash Flow'!BJ11 -> 58 | CQ61: ='Cash Flow'!BK11 -> 59 | CR61: ='Cash Flow'!BL11 -> 60
B62: Mezzanine Debt | D62: =+Capitalization!F14 -> 0 | E62: =+Capitalization!H14 -> 0 | F62: =+E62/$F$16 -> 0 | N62: LP Equity Partner Returns | AI62: ='Cash Flow'!E12 -> 2023-06-15 | AJ62: ='Cash Flow'!F12 -> 2023-07-15 | AL62: ='Cash Flow'!G12 -> 2023-08-15 | AN62: ='Cash Flow'!H12 -> 2023-09-15 | AO62: ='Cash Flow'!I12 -> 2023-10-15 | AP62: ='Cash Flow'!J12 -> 2023-11-15 | AQ62: ='Cash Flow'!K12 -> 2023-12-15 | AR62: ='Cash Flow'!L12 -> 2024-01-15 | AS62: ='Cash Flow'!M12 -> 2024-02-15 | AT62: ='Cash Flow'!N12 -> 2024-03-15 | AU62: ='Cash Flow'!O12 -> 2024-04-15 | AV62: ='Cash Flow'!P12 -> 2024-05-15 | AW62: ='Cash Flow'!Q12 -> 2024-06-15 | AX62: ='Cash Flow'!R12 -> 2024-07-15 | AY62: ='Cash Flow'!S12 -> 2024-08-15 | AZ62: ='Cash Flow'!T12 -> 2024-09-15 | BA62: ='Cash Flow'!U12 -> 2024-10-15 | BB62: ='Cash Flow'!V12 -> 2024-11-15 | BC62: ='Cash Flow'!W12 -> 2024-12-15 | BD62: ='Cash Flow'!X12 -> 2025-01-15 | BE62: ='Cash Flow'!Y12 -> 2025-02-15 | BF62: ='Cash Flow'!Z12 -> 2025-03-15 | BG62: ='Cash Flow'!AA12 -> 2025-04-15 | BH62: ='Cash Flow'!AB12 -> 2025-05-15 | BI62: ='Cash Flow'!AC12 -> 2025-06-15 | BJ62: ='Cash Flow'!AD12 -> 2025-07-15 | BK62: ='Cash Flow'!AE12 -> 2025-08-15 | BL62: ='Cash Flow'!AF12 -> 2025-09-15 | BM62: ='Cash Flow'!AG12 -> 2025-10-15 | BN62: ='Cash Flow'!AH12 -> 2025-11-15 | BO62: ='Cash Flow'!AI12 -> 2025-12-15 | BP62: ='Cash Flow'!AJ12 -> 2026-01-15 | BQ62: ='Cash Flow'!AK12 -> 2026-02-15 | BR62: ='Cash Flow'!AL12 -> 2026-03-15 | BS62: ='Cash Flow'!AM12 -> 2026-04-15 | BT62: ='Cash Flow'!AN12 -> 2026-05-15 | BU62: ='Cash Flow'!AO12 -> 2026-06-15 | BV62: ='Cash Flow'!AP12 -> 2026-07-15 | BW62: ='Cash Flow'!AQ12 -> 2026-08-15 | BX62: ='Cash Flow'!AR12 -> 2026-09-15 | BY62: ='Cash Flow'!AS12 -> 2026-10-15 | BZ62: ='Cash Flow'!AT12 -> 2026-11-15 | CA62: ='Cash Flow'!AU12 -> 2026-12-15 | CB62: ='Cash Flow'!AV12 -> 2027-01-15 | CC62: ='Cash Flow'!AW12 -> 2027-02-15 | CD62: ='Cash Flow'!AX12 -> 2027-03-15 | CE62: ='Cash Flow'!AY12 -> 2027-04-15 | CF62: ='Cash Flow'!AZ12 -> 2027-05-15 | CG62: ='Cash Flow'!BA12 -> 2027-06-15 | CH62: ='Cash Flow'!BB12 -> 2027-07-15 | CI62: ='Cash Flow'!BC12 -> 2027-08-15 | CJ62: ='Cash Flow'!BD12 -> 2027-09-15 | CK62: ='Cash Flow'!BE12 -> 2027-10-15 | CL62: ='Cash Flow'!BF12 -> 2027-11-15 | CM62: ='Cash Flow'!BG12 -> 2027-12-15 | CN62: ='Cash Flow'!BH12 -> 2028-01-15 | CO62: ='Cash Flow'!BI12 -> 2028-02-15 | CP62: ='Cash Flow'!BJ12 -> 2028-03-15 | CQ62: ='Cash Flow'!BK12 -> 2028-04-15 | CR62: ='Cash Flow'!BL12 -> 2028-05-15
B63: LP Equity (% of Equity) | D63: =+Capitalization!F15 -> 0.9 | E63: =+Capitalization!H15 -> 24187768.1 | F63: =+E63/$F$16 -> 212173.4044 | J63: Multiple | K63: IRR | L63: Profit | N63: Total Equity | Q63: =-SUMIF('Trended Cash Flow'!$E$421:$EF$421,Q$7,'Trended Cash Flow'!$E$362:$EF$362) -> -24187768.1 | R63: =-SUMIF('Trended Cash Flow'!$E$421:$EF$421,R$7,'Trended Cash Flow'!$E$362:$EF$362) -> 0 | S63: =-SUMIF('Trended Cash Flow'!$E$421:$EF$421,S$7,'Trended Cash Flow'!$E$362:$EF$362) -> 0 | T63: =-SUMIF('Trended Cash Flow'!$E$421:$EF$421,T$7,'Trended Cash Flow'!$E$362:$EF$362) -> 0 | U63: =-SUMIF('Trended Cash Flow'!$E$421:$EF$421,U$7,'Trended Cash Flow'!$E$362:$EF$362) -> 0 | V63: =-SUMIF('Trended Cash Flow'!$E$421:$EF$421,V$7,'Trended Cash Flow'!$E$362:$EF$362) -> 0 | W63: =-SUMIF('Trended Cash Flow'!$E$421:$EF$421,W$7,'Trended Cash Flow'!$E$362:$EF$362) -> 0 | X63: =-SUMIF('Trended Cash Flow'!$E$421:$EF$421,X$7,'Trended Cash Flow'!$E$362:$EF$362) -> 0 | Y63: =-SUMIF('Trended Cash Flow'!$E$421:$EF$421,Y$7,'Trended Cash Flow'!$E$362:$EF$362) -> 0 | Z63: =-SUMIF('Trended Cash Flow'!$E$421:$EF$421,Z$7,'Trended Cash Flow'!$E$362:$EF$362) -> 0 | AA63: =-SUMIF('Trended Cash Flow'!$E$421:$EF$421,AA$7,'Trended Cash Flow'!$E$362:$EF$362) -> 0 | AH63: Funding Requirements
B64: GP Equity (% of Equity) | D64: =+Capitalization!F16 -> 0.1 | E64: =+Capitalization!H16 -> 2687529.789 | F64: =+E64/$F$16 -> 23574.82271 | H64: Deal Level | J64: =+L36/L41 -> 3.172645291 | K64: =+P48 -> 0.2038463056 | L64: =+L36-L41 -> 58390489.4 | N64: Total Investor Distributions | O64: =SUM(Q64:AA64) -> 38137483.19 | Q64: =SUMIF('Trended Cash Flow'!$E$421:$EF$421,Q$7,'Trended Cash Flow'!$E$347:$EF$347) -> -24187768.1 | R64: =SUMIF('Trended Cash Flow'!$E$421:$EF$421,R$7,'Trended Cash Flow'!$E$347:$EF$347) -> 0 | S64: =SUMIF('Trended Cash Flow'!$E$421:$EF$421,S$7,'Trended Cash Flow'!$E$347:$EF$347) -> 21121908.39 | T64: =SUMIF('Trended Cash Flow'!$E$421:$EF$421,T$7,'Trended Cash Flow'!$E$347:$EF$347) -> 1088318.429 | U64: =SUMIF('Trended Cash Flow'!$E$421:$EF$421,U$7,'Trended Cash Flow'!$E$347:$EF$347) -> 1208824.941 | V64: =SUMIF('Trended Cash Flow'!$E$421:$EF$421,V$7,'Trended Cash Flow'!$E$347:$EF$347) -> 1333354.762 | W64: =SUMIF('Trended Cash Flow'!$E$421:$EF$421,W$7,'Trended Cash Flow'!$E$347:$EF$347) -> 1646443.149 | X64: =SUMIF('Trended Cash Flow'!$E$421:$EF$421,X$7,'Trended Cash Flow'!$E$347:$EF$347) -> 1817603.935 | Y64: =SUMIF('Trended Cash Flow'!$E$421:$EF$421,Y$7,'Trended Cash Flow'!$E$347:$EF$347) -> 1977371.461 | Z64: =SUMIF('Trended Cash Flow'!$E$421:$EF$421,Z$7,'Trended Cash Flow'!$E$347:$EF$347) -> 32131426.23 | AA64: =SUMIF('Trended Cash Flow'!$E$421:$EF$421,AA$7,'Trended Cash Flow'!$E$347:$EF$347) -> 0 | AH64: ='Cash Flow'!$A41 -> Land | AI64: ='Cash Flow'!E41 -> 5075000 | AJ64: ='Cash Flow'!F41 -> 0 | AL64: ='Cash Flow'!G41 -> 0 | AN64: ='Cash Flow'!H41 -> 0 | AO64: ='Cash Flow'!I41 -> 0 | AP64: ='Cash Flow'!J41 -> 0 | AQ64: ='Cash Flow'!K41 -> 0 | AR64: ='Cash Flow'!L41 -> 0 | AS64: ='Cash Flow'!M41 -> 0 | AT64: ='Cash Flow'!N41 -> 0 | AU64: ='Cash Flow'!O41 -> 0 | AV64: ='Cash Flow'!P41 -> 0 | AW64: ='Cash Flow'!Q41 -> 0 | AX64: ='Cash Flow'!R41 -> 0 | AY64: ='Cash Flow'!S41 -> 0 | AZ64: ='Cash Flow'!T41 -> 0 | BA64: ='Cash Flow'!U41 -> 0 | BB64: ='Cash Flow'!V41 -> 0 | BC64: ='Cash Flow'!W41 -> 0 | BD64: ='Cash Flow'!X41 -> 0 | BE64: ='Cash Flow'!Y41 -> 0 | BF64: ='Cash Flow'!Z41 -> 0 | BG64: ='Cash Flow'!AA41 -> 0 | BH64: ='Cash Flow'!AB41 -> 0 | BI64: ='Cash Flow'!AC41 -> 0 | BJ64: ='Cash Flow'!AD41 -> 0 | BK64: ='Cash Flow'!AE41 -> 0 | BL64: ='Cash Flow'!AF41 -> 0 | BM64: ='Cash Flow'!AG41 -> 0 | BN64: ='Cash Flow'!AH41 -> 0 | BO64: ='Cash Flow'!AI41 -> 0 | BP64: ='Cash Flow'!AJ41 -> 0 | BQ64: ='Cash Flow'!AK41 -> 0 | BR64: ='Cash Flow'!AL41 -> 0 | BS64: ='Cash Flow'!AM41 -> 0 | BT64: ='Cash Flow'!AN41 -> 0 | BU64: ='Cash Flow'!AO41 -> 0 | BV64: ='Cash Flow'!AP41 -> 0 | BW64: ='Cash Flow'!AQ41 -> 0 | BX64: ='Cash Flow'!AR41 -> 0 | BY64: ='Cash Flow'!AS41 -> 0 | BZ64: ='Cash Flow'!AT41 -> 0 | CA64: ='Cash Flow'!AU41 -> 0 | CB64: ='Cash Flow'!AV41 -> 0 | CC64: ='Cash Flow'!AW41 -> 0 | CD64: ='Cash Flow'!AX41 -> 0 | CE64: ='Cash Flow'!AY41 -> 0 | CF64: ='Cash Flow'!AZ41 -> 0 | CG64: ='Cash Flow'!BA41 -> 0 | CH64: ='Cash Flow'!BB41 -> 0 | CI64: ='Cash Flow'!BC41 -> 0 | CJ64: ='Cash Flow'!BD41 -> 0 | CK64: ='Cash Flow'!BE41 -> 0 | CL64: ='Cash Flow'!BF41 -> 0 | CM64: ='Cash Flow'!BG41 -> 0 | CN64: ='Cash Flow'!BH41 -> 0 | CO64: ='Cash Flow'!BI41 -> 0 | CP64: ='Cash Flow'!BJ41 -> 0 | CQ64: ='Cash Flow'!BK41 -> 0 | CR64: ='Cash Flow'!BL41 -> 0
B65: Total Capitalization | E65: =+E57 -> 60803841.39 | F65: =+E65/$F$16 -> 533367.0297 | N65: Yield on Equity (Leveraged) | Q65: =+IF(Q64>0,Q64/-($Q$63+$R$63+$S$63),"") ->  | S65: 0.8732475148 | T65: 0.04499457842 | U65: 0.04997670458 | V65: 0.05512516723 | W65: 0.06806924648 | X65: 0.07514558298 | Y65: 0.08175088552 | Z65: 1.328416334 | AH65: ='Cash Flow'!$A42 -> Legal, Closing Costs & Financing | AI65: ='Cash Flow'!E42 -> 1123571 | AJ65: ='Cash Flow'!F42 -> 0 | AL65: ='Cash Flow'!G42 -> 0 | AN65: ='Cash Flow'!H42 -> 0 | AO65: ='Cash Flow'!I42 -> 0 | AP65: ='Cash Flow'!J42 -> 0 | AQ65: ='Cash Flow'!K42 -> 0 | AR65: ='Cash Flow'!L42 -> 0 | AS65: ='Cash Flow'!M42 -> 0 | AT65: ='Cash Flow'!N42 -> 0 | AU65: ='Cash Flow'!O42 -> 0 | AV65: ='Cash Flow'!P42 -> 0 | AW65: ='Cash Flow'!Q42 -> 0 | AX65: ='Cash Flow'!R42 -> 0 | AY65: ='Cash Flow'!S42 -> 0 | AZ65: ='Cash Flow'!T42 -> 0 | BA65: ='Cash Flow'!U42 -> 0 | BB65: ='Cash Flow'!V42 -> 0 | BC65: ='Cash Flow'!W42 -> 0 | BD65: ='Cash Flow'!X42 -> 0 | BE65: ='Cash Flow'!Y42 -> 0 | BF65: ='Cash Flow'!Z42 -> 0 | BG65: ='Cash Flow'!AA42 -> 0 | BH65: ='Cash Flow'!AB42 -> 0 | BI65: ='Cash Flow'!AC42 -> 0 | BJ65: ='Cash Flow'!AD42 -> 0 | BK65: ='Cash Flow'!AE42 -> 0 | BL65: ='Cash Flow'!AF42 -> 0 | BM65: ='Cash Flow'!AG42 -> 0 | BN65: ='Cash Flow'!AH42 -> 0 | BO65: ='Cash Flow'!AI42 -> 0 | BP65: ='Cash Flow'!AJ42 -> 0 | BQ65: ='Cash Flow'!AK42 -> 0 | BR65: ='Cash Flow'!AL42 -> 0 | BS65: ='Cash Flow'!AM42 -> 0 | BT65: ='Cash Flow'!AN42 -> 0 | BU65: ='Cash Flow'!AO42 -> 0 | BV65: ='Cash Flow'!AP42 -> 0 | BW65: ='Cash Flow'!AQ42 -> 0 | BX65: ='Cash Flow'!AR42 -> 0 | BY65: ='Cash Flow'!AS42 -> 0 | BZ65: ='Cash Flow'!AT42 -> 0 | CA65: ='Cash Flow'!AU42 -> 0 | CB65: ='Cash Flow'!AV42 -> 0 | CC65: ='Cash Flow'!AW42 -> 0 | CD65: ='Cash Flow'!AX42 -> 0 | CE65: ='Cash Flow'!AY42 -> 0 | CF65: ='Cash Flow'!AZ42 -> 0 | CG65: ='Cash Flow'!BA42 -> 0 | CH65: ='Cash Flow'!BB42 -> 0 | CI65: ='Cash Flow'!BC42 -> 0 | CJ65: ='Cash Flow'!BD42 -> 0 | CK65: ='Cash Flow'!BE42 -> 0 | CL65: ='Cash Flow'!BF42 -> 0 | CM65: ='Cash Flow'!BG42 -> 0 | CN65: ='Cash Flow'!BH42 -> 0 | CO65: ='Cash Flow'!BI42 -> 0 | CP65: ='Cash Flow'!BJ42 -> 0 | CQ65: ='Cash Flow'!BK42 -> 0 | CR65: ='Cash Flow'!BL42 -> 0
AH66: ='Cash Flow'!$A43 -> Construction Hard Costs | AI66: ='Cash Flow'!E43 -> 0 | AJ66: ='Cash Flow'!F43 -> 828000.008 | AL66: ='Cash Flow'!G43 -> 1051388.043 | AN66: ='Cash Flow'!H43 -> 1301896.497 | AO66: ='Cash Flow'!I43 -> 1572065.466 | AP66: ='Cash Flow'!J43 -> 1851166.798 | AQ66: ='Cash Flow'!K43 -> 2125696.423 | AR66: ='Cash Flow'!L43 -> 2380332.926 | AS66: ='Cash Flow'!M43 -> 2599291.256 | AT66: ='Cash Flow'!N43 -> 2767916.419 | AU66: ='Cash Flow'!O43 -> 2874297.957 | AV66: ='Cash Flow'!P43 -> 2910659.417 | AW66: ='Cash Flow'!Q43 -> 2874297.957 | AX66: ='Cash Flow'!R43 -> 2767916.419 | AY66: ='Cash Flow'!S43 -> 2599291.256 | AZ66: ='Cash Flow'!T43 -> 2380332.926 | BA66: ='Cash Flow'!U43 -> 2125696.423 | BB66: ='Cash Flow'!V43 -> 1851166.798 | BC66: ='Cash Flow'!W43 -> 1572065.466 | BD66: ='Cash Flow'!X43 -> 1301896.497 | BE66: ='Cash Flow'!Y43 -> 1051388.043 | BF66: ='Cash Flow'!Z43 -> 828000.008 | BG66: ='Cash Flow'!AA43 -> 0 | BH66: ='Cash Flow'!AB43 -> 0 | BI66: ='Cash Flow'!AC43 -> 0 | BJ66: ='Cash Flow'!AD43 -> 0 | BK66: ='Cash Flow'!AE43 -> 0 | BL66: ='Cash Flow'!AF43 -> 0 | BM66: ='Cash Flow'!AG43 -> 0 | BN66: ='Cash Flow'!AH43 -> 0 | BO66: ='Cash Flow'!AI43 -> 0 | BP66: ='Cash Flow'!AJ43 -> 0 | BQ66: ='Cash Flow'!AK43 -> 0 | BR66: ='Cash Flow'!AL43 -> 0 | BS66: ='Cash Flow'!AM43 -> 0 | BT66: ='Cash Flow'!AN43 -> 0 | BU66: ='Cash Flow'!AO43 -> 0 | BV66: ='Cash Flow'!AP43 -> 0 | BW66: ='Cash Flow'!AQ43 -> 0 | BX66: ='Cash Flow'!AR43 -> 0 | BY66: ='Cash Flow'!AS43 -> 0 | BZ66: ='Cash Flow'!AT43 -> 0 | CA66: ='Cash Flow'!AU43 -> 0 | CB66: ='Cash Flow'!AV43 -> 0 | CC66: ='Cash Flow'!AW43 -> 0 | CD66: ='Cash Flow'!AX43 -> 0 | CE66: ='Cash Flow'!AY43 -> 0 | CF66: ='Cash Flow'!AZ43 -> 0 | CG66: ='Cash Flow'!BA43 -> 0 | CH66: ='Cash Flow'!BB43 -> 0 | CI66: ='Cash Flow'!BC43 -> 0 | CJ66: ='Cash Flow'!BD43 -> 0 | CK66: ='Cash Flow'!BE43 -> 0 | CL66: ='Cash Flow'!BF43 -> 0 | CM66: ='Cash Flow'!BG43 -> 0 | CN66: ='Cash Flow'!BH43 -> 0 | CO66: ='Cash Flow'!BI43 -> 0 | CP66: ='Cash Flow'!BJ43 -> 0 | CQ66: ='Cash Flow'!BK43 -> 0 | CR66: ='Cash Flow'!BL43 -> 0
N67: IRR & Multiple | O67: IRR | P67: ='Trended Cash Flow'!$B$351 -> 0.1779204976 | Y67: Multiple | Z67: =(SUM($Q$64:$AA$64)-SUM($Q$63:$AA$63))/-SUM($Q$63:$AA$63) -> 2.576726014 | AH67: ='Cash Flow'!$A44 -> Municipal Fees | AI67: ='Cash Flow'!E44 -> 2272219.801 | AJ67: ='Cash Flow'!F44 -> 0 | AL67: ='Cash Flow'!G44 -> 0 | AN67: ='Cash Flow'!H44 -> 0 | AO67: ='Cash Flow'!I44 -> 0 | AP67: ='Cash Flow'!J44 -> 0 | AQ67: ='Cash Flow'!K44 -> 0 | AR67: ='Cash Flow'!L44 -> 0 | AS67: ='Cash Flow'!M44 -> 0 | AT67: ='Cash Flow'!N44 -> 0 | AU67: ='Cash Flow'!O44 -> 0 | AV67: ='Cash Flow'!P44 -> 0 | AW67: ='Cash Flow'!Q44 -> 0 | AX67: ='Cash Flow'!R44 -> 0 | AY67: ='Cash Flow'!S44 -> 0 | AZ67: ='Cash Flow'!T44 -> 0 | BA67: ='Cash Flow'!U44 -> 0 | BB67: ='Cash Flow'!V44 -> 0 | BC67: ='Cash Flow'!W44 -> 0 | BD67: ='Cash Flow'!X44 -> 0 | BE67: ='Cash Flow'!Y44 -> 0 | BF67: ='Cash Flow'!Z44 -> 0 | BG67: ='Cash Flow'!AA44 -> 0 | BH67: ='Cash Flow'!AB44 -> 0 | BI67: ='Cash Flow'!AC44 -> 0 | BJ67: ='Cash Flow'!AD44 -> 0 | BK67: ='Cash Flow'!AE44 -> 0 | BL67: ='Cash Flow'!AF44 -> 0 | BM67: ='Cash Flow'!AG44 -> 0 | BN67: ='Cash Flow'!AH44 -> 0 | BO67: ='Cash Flow'!AI44 -> 0 | BP67: ='Cash Flow'!AJ44 -> 0 | BQ67: ='Cash Flow'!AK44 -> 0 | BR67: ='Cash Flow'!AL44 -> 0 | BS67: ='Cash Flow'!AM44 -> 0 | BT67: ='Cash Flow'!AN44 -> 0 | BU67: ='Cash Flow'!AO44 -> 0 | BV67: ='Cash Flow'!AP44 -> 0 | BW67: ='Cash Flow'!AQ44 -> 0 | BX67: ='Cash Flow'!AR44 -> 0 | BY67: ='Cash Flow'!AS44 -> 0 | BZ67: ='Cash Flow'!AT44 -> 0 | CA67: ='Cash Flow'!AU44 -> 0 | CB67: ='Cash Flow'!AV44 -> 0 | CC67: ='Cash Flow'!AW44 -> 0 | CD67: ='Cash Flow'!AX44 -> 0 | CE67: ='Cash Flow'!AY44 -> 0 | CF67: ='Cash Flow'!AZ44 -> 0 | CG67: ='Cash Flow'!BA44 -> 0 | CH67: ='Cash Flow'!BB44 -> 0 | CI67: ='Cash Flow'!BC44 -> 0 | CJ67: ='Cash Flow'!BD44 -> 0 | CK67: ='Cash Flow'!BE44 -> 0 | CL67: ='Cash Flow'!BF44 -> 0 | CM67: ='Cash Flow'!BG44 -> 0 | CN67: ='Cash Flow'!BH44 -> 0 | CO67: ='Cash Flow'!BI44 -> 0 | CP67: ='Cash Flow'!BJ44 -> 0 | CQ67: ='Cash Flow'!BK44 -> 0 | CR67: ='Cash Flow'!BL44 -> 0
AH68: ='Cash Flow'!$A45 -> Architect, Engineering and Surveying | AI68: ='Cash Flow'!E45 -> 1530800 | AJ68: ='Cash Flow'!F45 -> 0 | AL68: ='Cash Flow'!G45 -> 0 | AN68: ='Cash Flow'!H45 -> 0 | AO68: ='Cash Flow'!I45 -> 0 | AP68: ='Cash Flow'!J45 -> 0 | AQ68: ='Cash Flow'!K45 -> 0 | AR68: ='Cash Flow'!L45 -> 0 | AS68: ='Cash Flow'!M45 -> 0 | AT68: ='Cash Flow'!N45 -> 0 | AU68: ='Cash Flow'!O45 -> 0 | AV68: ='Cash Flow'!P45 -> 0 | AW68: ='Cash Flow'!Q45 -> 0 | AX68: ='Cash Flow'!R45 -> 0 | AY68: ='Cash Flow'!S45 -> 0 | AZ68: ='Cash Flow'!T45 -> 0 | BA68: ='Cash Flow'!U45 -> 0 | BB68: ='Cash Flow'!V45 -> 0 | BC68: ='Cash Flow'!W45 -> 0 | BD68: ='Cash Flow'!X45 -> 0 | BE68: ='Cash Flow'!Y45 -> 0 | BF68: ='Cash Flow'!Z45 -> 0 | BG68: ='Cash Flow'!AA45 -> 0 | BH68: ='Cash Flow'!AB45 -> 0 | BI68: ='Cash Flow'!AC45 -> 0 | BJ68: ='Cash Flow'!AD45 -> 0 | BK68: ='Cash Flow'!AE45 -> 0 | BL68: ='Cash Flow'!AF45 -> 0 | BM68: ='Cash Flow'!AG45 -> 0 | BN68: ='Cash Flow'!AH45 -> 0 | BO68: ='Cash Flow'!AI45 -> 0 | BP68: ='Cash Flow'!AJ45 -> 0 | BQ68: ='Cash Flow'!AK45 -> 0 | BR68: ='Cash Flow'!AL45 -> 0 | BS68: ='Cash Flow'!AM45 -> 0 | BT68: ='Cash Flow'!AN45 -> 0 | BU68: ='Cash Flow'!AO45 -> 0 | BV68: ='Cash Flow'!AP45 -> 0 | BW68: ='Cash Flow'!AQ45 -> 0 | BX68: ='Cash Flow'!AR45 -> 0 | BY68: ='Cash Flow'!AS45 -> 0 | BZ68: ='Cash Flow'!AT45 -> 0 | CA68: ='Cash Flow'!AU45 -> 0 | CB68: ='Cash Flow'!AV45 -> 0 | CC68: ='Cash Flow'!AW45 -> 0 | CD68: ='Cash Flow'!AX45 -> 0 | CE68: ='Cash Flow'!AY45 -> 0 | CF68: ='Cash Flow'!AZ45 -> 0 | CG68: ='Cash Flow'!BA45 -> 0 | CH68: ='Cash Flow'!BB45 -> 0 | CI68: ='Cash Flow'!BC45 -> 0 | CJ68: ='Cash Flow'!BD45 -> 0 | CK68: ='Cash Flow'!BE45 -> 0 | CL68: ='Cash Flow'!BF45 -> 0 | CM68: ='Cash Flow'!BG45 -> 0 | CN68: ='Cash Flow'!BH45 -> 0 | CO68: ='Cash Flow'!BI45 -> 0 | CP68: ='Cash Flow'!BJ45 -> 0 | CQ68: ='Cash Flow'!BK45 -> 0 | CR68: ='Cash Flow'!BL45 -> 0
AH69: ='Cash Flow'!$A46 -> Taxes | AI69: ='Cash Flow'!E46 -> 270369.5498 | AJ69: ='Cash Flow'!F46 -> 0 | AL69: ='Cash Flow'!G46 -> 0 | AN69: ='Cash Flow'!H46 -> 0 | AO69: ='Cash Flow'!I46 -> 0 | AP69: ='Cash Flow'!J46 -> 0 | AQ69: ='Cash Flow'!K46 -> 0 | AR69: ='Cash Flow'!L46 -> 0 | AS69: ='Cash Flow'!M46 -> 0 | AT69: ='Cash Flow'!N46 -> 0 | AU69: ='Cash Flow'!O46 -> 0 | AV69: ='Cash Flow'!P46 -> 0 | AW69: ='Cash Flow'!Q46 -> 0 | AX69: ='Cash Flow'!R46 -> 0 | AY69: ='Cash Flow'!S46 -> 0 | AZ69: ='Cash Flow'!T46 -> 0 | BA69: ='Cash Flow'!U46 -> 0 | BB69: ='Cash Flow'!V46 -> 0 | BC69: ='Cash Flow'!W46 -> 0 | BD69: ='Cash Flow'!X46 -> 0 | BE69: ='Cash Flow'!Y46 -> 0 | BF69: ='Cash Flow'!Z46 -> 0 | BG69: ='Cash Flow'!AA46 -> 0 | BH69: ='Cash Flow'!AB46 -> 0 | BI69: ='Cash Flow'!AC46 -> 0 | BJ69: ='Cash Flow'!AD46 -> 0 | BK69: ='Cash Flow'!AE46 -> 0 | BL69: ='Cash Flow'!AF46 -> 0 | BM69: ='Cash Flow'!AG46 -> 0 | BN69: ='Cash Flow'!AH46 -> 0 | BO69: ='Cash Flow'!AI46 -> 0 | BP69: ='Cash Flow'!AJ46 -> 0 | BQ69: ='Cash Flow'!AK46 -> 0 | BR69: ='Cash Flow'!AL46 -> 0 | BS69: ='Cash Flow'!AM46 -> 0 | BT69: ='Cash Flow'!AN46 -> 0 | BU69: ='Cash Flow'!AO46 -> 0 | BV69: ='Cash Flow'!AP46 -> 0 | BW69: ='Cash Flow'!AQ46 -> 0 | BX69: ='Cash Flow'!AR46 -> 0 | BY69: ='Cash Flow'!AS46 -> 0 | BZ69: ='Cash Flow'!AT46 -> 0 | CA69: ='Cash Flow'!AU46 -> 0 | CB69: ='Cash Flow'!AV46 -> 0 | CC69: ='Cash Flow'!AW46 -> 0 | CD69: ='Cash Flow'!AX46 -> 0 | CE69: ='Cash Flow'!AY46 -> 0 | CF69: ='Cash Flow'!AZ46 -> 0 | CG69: ='Cash Flow'!BA46 -> 0 | CH69: ='Cash Flow'!BB46 -> 0 | CI69: ='Cash Flow'!BC46 -> 0 | CJ69: ='Cash Flow'!BD46 -> 0 | CK69: ='Cash Flow'!BE46 -> 0 | CL69: ='Cash Flow'!BF46 -> 0 | CM69: ='Cash Flow'!BG46 -> 0 | CN69: ='Cash Flow'!BH46 -> 0 | CO69: ='Cash Flow'!BI46 -> 0 | CP69: ='Cash Flow'!BJ46 -> 0 | CQ69: ='Cash Flow'!BK46 -> 0 | CR69: ='Cash Flow'!BL46 -> 0
AH70: ='Cash Flow'!$A47 -> Soft Cost Contingency | AI70: ='Cash Flow'!E47 -> 0 | AJ70: ='Cash Flow'!F47 -> 0 | AL70: ='Cash Flow'!G47 -> 0 | AN70: ='Cash Flow'!H47 -> 282816.607 | AO70: ='Cash Flow'!I47 -> 282816.607 | AP70: ='Cash Flow'!J47 -> 282816.607 | AQ70: ='Cash Flow'!K47 -> 282816.607 | AR70: ='Cash Flow'!L47 -> 282816.607 | AS70: ='Cash Flow'!M47 -> 0 | AT70: ='Cash Flow'!N47 -> 0 | AU70: ='Cash Flow'!O47 -> 0 | AV70: ='Cash Flow'!P47 -> 0 | AW70: ='Cash Flow'!Q47 -> 0 | AX70: ='Cash Flow'!R47 -> 0 | AY70: ='Cash Flow'!S47 -> 0 | AZ70: ='Cash Flow'!T47 -> 0 | BA70: ='Cash Flow'!U47 -> 0 | BB70: ='Cash Flow'!V47 -> 0 | BC70: ='Cash Flow'!W47 -> 0 | BD70: ='Cash Flow'!X47 -> 0 | BE70: ='Cash Flow'!Y47 -> 0 | BF70: ='Cash Flow'!Z47 -> 0 | BG70: ='Cash Flow'!AA47 -> 0 | BH70: ='Cash Flow'!AB47 -> 0 | BI70: ='Cash Flow'!AC47 -> 0 | BJ70: ='Cash Flow'!AD47 -> 0 | BK70: ='Cash Flow'!AE47 -> 0 | BL70: ='Cash Flow'!AF47 -> 0 | BM70: ='Cash Flow'!AG47 -> 0 | BN70: ='Cash Flow'!AH47 -> 0 | BO70: ='Cash Flow'!AI47 -> 0 | BP70: ='Cash Flow'!AJ47 -> 0 | BQ70: ='Cash Flow'!AK47 -> 0 | BR70: ='Cash Flow'!AL47 -> 0 | BS70: ='Cash Flow'!AM47 -> 0 | BT70: ='Cash Flow'!AN47 -> 0 | BU70: ='Cash Flow'!AO47 -> 0 | BV70: ='Cash Flow'!AP47 -> 0 | BW70: ='Cash Flow'!AQ47 -> 0 | BX70: ='Cash Flow'!AR47 -> 0 | BY70: ='Cash Flow'!AS47 -> 0 | BZ70: ='Cash Flow'!AT47 -> 0 | CA70: ='Cash Flow'!AU47 -> 0 | CB70: ='Cash Flow'!AV47 -> 0 | CC70: ='Cash Flow'!AW47 -> 0 | CD70: ='Cash Flow'!AX47 -> 0 | CE70: ='Cash Flow'!AY47 -> 0 | CF70: ='Cash Flow'!AZ47 -> 0 | CG70: ='Cash Flow'!BA47 -> 0 | CH70: ='Cash Flow'!BB47 -> 0 | CI70: ='Cash Flow'!BC47 -> 0 | CJ70: ='Cash Flow'!BD47 -> 0 | CK70: ='Cash Flow'!BE47 -> 0 | CL70: ='Cash Flow'!BF47 -> 0 | CM70: ='Cash Flow'!BG47 -> 0 | CN70: ='Cash Flow'!BH47 -> 0 | CO70: ='Cash Flow'!BI47 -> 0 | CP70: ='Cash Flow'!BJ47 -> 0 | CQ70: ='Cash Flow'!BK47 -> 0 | CR70: ='Cash Flow'!BL47 -> 0
AH71: ='Cash Flow'!$A48 -> Overhead | AI71: ='Cash Flow'!E48 -> 567291.25 | AJ71: ='Cash Flow'!F48 -> 0 | AL71: ='Cash Flow'!G48 -> 0 | AN71: ='Cash Flow'!H48 -> 56729.125 | AO71: ='Cash Flow'!I48 -> 56729.125 | AP71: ='Cash Flow'!J48 -> 56729.125 | AQ71: ='Cash Flow'!K48 -> 56729.125 | AR71: ='Cash Flow'!L48 -> 56729.125 | AS71: ='Cash Flow'!M48 -> 56729.125 | AT71: ='Cash Flow'!N48 -> 56729.125 | AU71: ='Cash Flow'!O48 -> 56729.125 | AV71: ='Cash Flow'!P48 -> 56729.125 | AW71: ='Cash Flow'!Q48 -> 56729.125 | AX71: ='Cash Flow'!R48 -> 56729.125 | AY71: ='Cash Flow'!S48 -> 56729.125 | AZ71: ='Cash Flow'!T48 -> 56729.125 | BA71: ='Cash Flow'!U48 -> 56729.125 | BB71: ='Cash Flow'!V48 -> 56729.125 | BC71: ='Cash Flow'!W48 -> 56729.125 | BD71: ='Cash Flow'!X48 -> 56729.125 | BE71: ='Cash Flow'!Y48 -> 56729.125 | BF71: ='Cash Flow'!Z48 -> 56729.125 | BG71: ='Cash Flow'!AA48 -> 56729.125 | BH71: ='Cash Flow'!AB48 -> 567291.25 | BI71: ='Cash Flow'!AC48 -> 0 | BJ71: ='Cash Flow'!AD48 -> 0 | BK71: ='Cash Flow'!AE48 -> 0 | BL71: ='Cash Flow'!AF48 -> 0 | BM71: ='Cash Flow'!AG48 -> 0 | BN71: ='Cash Flow'!AH48 -> 0 | BO71: ='Cash Flow'!AI48 -> 0 | BP71: ='Cash Flow'!AJ48 -> 0 | BQ71: ='Cash Flow'!AK48 -> 0 | BR71: ='Cash Flow'!AL48 -> 0 | BS71: ='Cash Flow'!AM48 -> 0 | BT71: ='Cash Flow'!AN48 -> 0 | BU71: ='Cash Flow'!AO48 -> 0 | BV71: ='Cash Flow'!AP48 -> 0 | BW71: ='Cash Flow'!AQ48 -> 0 | BX71: ='Cash Flow'!AR48 -> 0 | BY71: ='Cash Flow'!AS48 -> 0 | BZ71: ='Cash Flow'!AT48 -> 0 | CA71: ='Cash Flow'!AU48 -> 0 | CB71: ='Cash Flow'!AV48 -> 0 | CC71: ='Cash Flow'!AW48 -> 0 | CD71: ='Cash Flow'!AX48 -> 0 | CE71: ='Cash Flow'!AY48 -> 0 | CF71: ='Cash Flow'!AZ48 -> 0 | CG71: ='Cash Flow'!BA48 -> 0 | CH71: ='Cash Flow'!BB48 -> 0 | CI71: ='Cash Flow'!BC48 -> 0 | CJ71: ='Cash Flow'!BD48 -> 0 | CK71: ='Cash Flow'!BE48 -> 0 | CL71: ='Cash Flow'!BF48 -> 0 | CM71: ='Cash Flow'!BG48 -> 0 | CN71: ='Cash Flow'!BH48 -> 0 | CO71: ='Cash Flow'!BI48 -> 0 | CP71: ='Cash Flow'!BJ48 -> 0 | CQ71: ='Cash Flow'!BK48 -> 0 | CR71: ='Cash Flow'!BL48 -> 0
AH72: ='Cash Flow'!$A49 -> Marketing | AI72: ='Cash Flow'!E49 -> 0 | AJ72: ='Cash Flow'!F49 -> 0 | AL72: ='Cash Flow'!G49 -> 0 | AN72: ='Cash Flow'!H49 -> 0 | AO72: ='Cash Flow'!I49 -> 0 | AP72: ='Cash Flow'!J49 -> 0 | AQ72: ='Cash Flow'!K49 -> 0 | AR72: ='Cash Flow'!L49 -> 0 | AS72: ='Cash Flow'!M49 -> 0 | AT72: ='Cash Flow'!N49 -> 0 | AU72: ='Cash Flow'!O49 -> 0 | AV72: ='Cash Flow'!P49 -> 0 | AW72: ='Cash Flow'!Q49 -> 0 | AX72: ='Cash Flow'!R49 -> 0 | AY72: ='Cash Flow'!S49 -> 0 | AZ72: ='Cash Flow'!T49 -> 0 | BA72: ='Cash Flow'!U49 -> 0 | BB72: ='Cash Flow'!V49 -> 0 | BC72: ='Cash Flow'!W49 -> 0 | BD72: ='Cash Flow'!X49 -> 0 | BE72: ='Cash Flow'!Y49 -> 0 | BF72: ='Cash Flow'!Z49 -> 187500 | BG72: ='Cash Flow'!AA49 -> 187500 | BH72: ='Cash Flow'!AB49 -> 187500 | BI72: ='Cash Flow'!AC49 -> 187500 | BJ72: ='Cash Flow'!AD49 -> 0 | BK72: ='Cash Flow'!AE49 -> 0 | BL72: ='Cash Flow'!AF49 -> 0 | BM72: ='Cash Flow'!AG49 -> 0 | BN72: ='Cash Flow'!AH49 -> 0 | BO72: ='Cash Flow'!AI49 -> 0 | BP72: ='Cash Flow'!AJ49 -> 0 | BQ72: ='Cash Flow'!AK49 -> 0 | BR72: ='Cash Flow'!AL49 -> 0 | BS72: ='Cash Flow'!AM49 -> 0 | BT72: ='Cash Flow'!AN49 -> 0 | BU72: ='Cash Flow'!AO49 -> 0 | BV72: ='Cash Flow'!AP49 -> 0 | BW72: ='Cash Flow'!AQ49 -> 0 | BX72: ='Cash Flow'!AR49 -> 0 | BY72: ='Cash Flow'!AS49 -> 0 | BZ72: ='Cash Flow'!AT49 -> 0 | CA72: ='Cash Flow'!AU49 -> 0 | CB72: ='Cash Flow'!AV49 -> 0 | CC72: ='Cash Flow'!AW49 -> 0 | CD72: ='Cash Flow'!AX49 -> 0 | CE72: ='Cash Flow'!AY49 -> 0 | CF72: ='Cash Flow'!AZ49 -> 0 | CG72: ='Cash Flow'!BA49 -> 0 | CH72: ='Cash Flow'!BB49 -> 0 | CI72: ='Cash Flow'!BC49 -> 0 | CJ72: ='Cash Flow'!BD49 -> 0 | CK72: ='Cash Flow'!BE49 -> 0 | CL72: ='Cash Flow'!BF49 -> 0 | CM72: ='Cash Flow'!BG49 -> 0 | CN72: ='Cash Flow'!BH49 -> 0 | CO72: ='Cash Flow'!BI49 -> 0 | CP72: ='Cash Flow'!BJ49 -> 0 | CQ72: ='Cash Flow'!BK49 -> 0 | CR72: ='Cash Flow'!BL49 -> 0
AH73: ='Cash Flow'!$A50 -> Construction Interest | AI73: ='Cash Flow'!E50 -> 0 | AJ73: ='Cash Flow'!F50 -> 0 | AL73: ='Cash Flow'!G50 -> 0 | AN73: ='Cash Flow'!H50 -> 0 | AO73: ='Cash Flow'!I50 -> 0 | AP73: ='Cash Flow'!J50 -> 0 | AQ73: ='Cash Flow'!K50 -> 0 | AR73: ='Cash Flow'!L50 -> 0 | AS73: ='Cash Flow'!M50 -> 0 | AT73: ='Cash Flow'!N50 -> 5949.36682 | AU73: ='Cash Flow'!O50 -> 27178.82865 | AV73: ='Cash Flow'!P50 -> 49365.37298 | AW73: ='Cash Flow'!Q50 -> 71991.02734 | AX73: ='Cash Flow'!R50 -> 94513.66316 | AY73: ='Cash Flow'!S50 -> 116407.3572 | AZ73: ='Cash Flow'!T50 -> 137200.5652 | BA73: ='Cash Flow'!U50 -> 156507.5349 | BB73: ='Cash Flow'!V50 -> 174049.533 | BC73: ='Cash Flow'!W50 -> 189664.1239 | BD73: ='Cash Flow'!X50 -> 203715.5799 | BE73: ='Cash Flow'!Y50 -> 215846.1545 | BF73: ='Cash Flow'!Z50 -> 226288.8951 | BG73: ='Cash Flow'!AA50 -> 236540.7959 | BH73: ='Cash Flow'!AB50 -> 240659.5859 | BI73: ='Cash Flow'!AC50 -> 231166.7921 | BJ73: ='Cash Flow'!AD50 -> 176614.7982 | BK73: ='Cash Flow'!AE50 -> 115236.9782 | BL73: ='Cash Flow'!AF50 -> 16794.42335 | BM73: ='Cash Flow'!AG50 -> 16920.38152 | BN73: ='Cash Flow'!AH50 -> 17047.28439 | BO73: ='Cash Flow'!AI50 -> 17175.13902 | BP73: ='Cash Flow'!AJ50 -> 17303.95256 | BQ73: ='Cash Flow'!AK50 -> 17433.73221 | BR73: ='Cash Flow'!AL50 -> 17564.4852 | BS73: ='Cash Flow'!AM50 -> 17696.21884 | BT73: ='Cash Flow'!AN50 -> 72140.03356 | BU73: ='Cash Flow'!AO50 -> 72681.08381 | BV73: ='Cash Flow'!AP50 -> 73226.19194 | BW73: ='Cash Flow'!AQ50 -> 73775.38838 | BX73: ='Cash Flow'!AR50 -> 74328.7038 | BY73: ='Cash Flow'!AS50 -> 74886.16907 | BZ73: ='Cash Flow'!AT50 -> 75447.81534 | CA73: ='Cash Flow'!AU50 -> 76013.67396 | CB73: ='Cash Flow'!AV50 -> 76583.77651 | CC73: ='Cash Flow'!AW50 -> 77158.15484 | CD73: ='Cash Flow'!AX50 -> 77736.841 | CE73: ='Cash Flow'!AY50 -> 78319.8673 | CF73: ='Cash Flow'!AZ50 -> 78907.26631 | CG73: ='Cash Flow'!BA50 -> 79499.07081 | CH73: ='Cash Flow'!BB50 -> 80095.31384 | CI73: ='Cash Flow'!BC50 -> 80696.02869 | CJ73: ='Cash Flow'!BD50 -> 81301.24891 | CK73: ='Cash Flow'!BE50 -> 81911.00827 | CL73: ='Cash Flow'!BF50 -> 82525.34084 | CM73: ='Cash Flow'!BG50 -> 83144.28089 | CN73: ='Cash Flow'!BH50 -> 83767.863 | CO73: ='Cash Flow'!BI50 -> 84396.12197 | CP73: ='Cash Flow'!BJ50 -> 85029.09289 | CQ73: ='Cash Flow'!BK50 -> 85666.81108 | CR73: ='Cash Flow'!BL50 -> 86309.31217
AH74: ='Cash Flow'!$A51 -> Preleasing and Leaseup Operating Deficit | AI74: ='Cash Flow'!E51 -> 0 | AJ74: ='Cash Flow'!F51 -> 0 | AL74: ='Cash Flow'!G51 -> 0 | AN74: ='Cash Flow'!H51 -> 0 | AO74: ='Cash Flow'!I51 -> 0 | AP74: ='Cash Flow'!J51 -> 0 | AQ74: ='Cash Flow'!K51 -> 0 | AR74: ='Cash Flow'!L51 -> 0 | AS74: ='Cash Flow'!M51 -> 0 | AT74: ='Cash Flow'!N51 -> 0 | AU74: ='Cash Flow'!O51 -> 0 | AV74: ='Cash Flow'!P51 -> 0 | AW74: ='Cash Flow'!Q51 -> 0 | AX74: ='Cash Flow'!R51 -> 0 | AY74: ='Cash Flow'!S51 -> 0 | AZ74: ='Cash Flow'!T51 -> 0 | BA74: ='Cash Flow'!U51 -> 0 | BB74: ='Cash Flow'!V51 -> 0 | BC74: ='Cash Flow'!W51 -> 0 | BD74: ='Cash Flow'!X51 -> 0 | BE74: ='Cash Flow'!Y51 -> 13333.33333 | BF74: ='Cash Flow'!Z51 -> 13333.33333 | BG74: ='Cash Flow'!AA51 -> 13333.33333 | BH74: ='Cash Flow'!AB51 -> 0 | BI74: ='Cash Flow'!AC51 -> 0 | BJ74: ='Cash Flow'!AD51 -> 0 | BK74: ='Cash Flow'!AE51 -> 0 | BL74: ='Cash Flow'!AF51 -> 0 | BM74: ='Cash Flow'!AG51 -> 0 | BN74: ='Cash Flow'!AH51 -> 0 | BO74: ='Cash Flow'!AI51 -> 0 | BP74: ='Cash Flow'!AJ51 -> 0 | BQ74: ='Cash Flow'!AK51 -> 0 | BR74: ='Cash Flow'!AL51 -> 0 | BS74: ='Cash Flow'!AM51 -> 0 | BT74: ='Cash Flow'!AN51 -> 0 | BU74: ='Cash Flow'!AO51 -> 0 | BV74: ='Cash Flow'!AP51 -> 0 | BW74: ='Cash Flow'!AQ51 -> 0 | BX74: ='Cash Flow'!AR51 -> 0 | BY74: ='Cash Flow'!AS51 -> 0 | BZ74: ='Cash Flow'!AT51 -> 0 | CA74: ='Cash Flow'!AU51 -> 0 | CB74: ='Cash Flow'!AV51 -> 0 | CC74: ='Cash Flow'!AW51 -> 0 | CD74: ='Cash Flow'!AX51 -> 0 | CE74: ='Cash Flow'!AY51 -> 0 | CF74: ='Cash Flow'!AZ51 -> 0 | CG74: ='Cash Flow'!BA51 -> 0 | CH74: ='Cash Flow'!BB51 -> 0 | CI74: ='Cash Flow'!BC51 -> 0 | CJ74: ='Cash Flow'!BD51 -> 0 | CK74: ='Cash Flow'!BE51 -> 0 | CL74: ='Cash Flow'!BF51 -> 0 | CM74: ='Cash Flow'!BG51 -> 0 | CN74: ='Cash Flow'!BH51 -> 0 | CO74: ='Cash Flow'!BI51 -> 0 | CP74: ='Cash Flow'!BJ51 -> 0 | CQ74: ='Cash Flow'!BK51 -> 0 | CR74: ='Cash Flow'!BL51 -> 0
AH75: ='Cash Flow'!$A52 -> Non-Accrual Interest Reserve | AI75: ='Cash Flow'!E52 -> 0 | AJ75: ='Cash Flow'!F52 -> 0 | AL75: ='Cash Flow'!G52 -> 0 | AN75: ='Cash Flow'!H52 -> 0 | AO75: ='Cash Flow'!I52 -> 0 | AP75: ='Cash Flow'!J52 -> 0 | AQ75: ='Cash Flow'!K52 -> 0 | AR75: ='Cash Flow'!L52 -> 0 | AS75: ='Cash Flow'!M52 -> 0 | AT75: ='Cash Flow'!N52 -> 0 | AU75: ='Cash Flow'!O52 -> 0 | AV75: ='Cash Flow'!P52 -> 0 | AW75: ='Cash Flow'!Q52 -> 0 | AX75: ='Cash Flow'!R52 -> 0 | AY75: ='Cash Flow'!S52 -> 0 | AZ75: ='Cash Flow'!T52 -> 0 | BA75: ='Cash Flow'!U52 -> 0 | BB75: ='Cash Flow'!V52 -> 0 | BC75: ='Cash Flow'!W52 -> 0 | BD75: ='Cash Flow'!X52 -> 0 | BE75: ='Cash Flow'!Y52 -> 0 | BF75: ='Cash Flow'!Z52 -> 0 | BG75: ='Cash Flow'!AA52 -> 0 | BH75: ='Cash Flow'!AB52 -> 0 | BI75: ='Cash Flow'!AC52 -> 0 | BJ75: ='Cash Flow'!AD52 -> 0 | BK75: ='Cash Flow'!AE52 -> 0 | BL75: ='Cash Flow'!AF52 -> 0 | BM75: ='Cash Flow'!AG52 -> 0 | BN75: ='Cash Flow'!AH52 -> 0 | BO75: ='Cash Flow'!AI52 -> 0 | BP75: ='Cash Flow'!AJ52 -> 0 | BQ75: ='Cash Flow'!AK52 -> 0 | BR75: ='Cash Flow'!AL52 -> 0 | BS75: ='Cash Flow'!AM52 -> 0 | BT75: ='Cash Flow'!AN52 -> 0 | BU75: ='Cash Flow'!AO52 -> 0 | BV75: ='Cash Flow'!AP52 -> 0 | BW75: ='Cash Flow'!AQ52 -> 0 | BX75: ='Cash Flow'!AR52 -> 0 | BY75: ='Cash Flow'!AS52 -> 0 | BZ75: ='Cash Flow'!AT52 -> 0 | CA75: ='Cash Flow'!AU52 -> 0 | CB75: ='Cash Flow'!AV52 -> 0 | CC75: ='Cash Flow'!AW52 -> 0 | CD75: ='Cash Flow'!AX52 -> 0 | CE75: ='Cash Flow'!AY52 -> 0 | CF75: ='Cash Flow'!AZ52 -> 0 | CG75: ='Cash Flow'!BA52 -> 0 | CH75: ='Cash Flow'!BB52 -> 0 | CI75: ='Cash Flow'!BC52 -> 0 | CJ75: ='Cash Flow'!BD52 -> 0 | CK75: ='Cash Flow'!BE52 -> 0 | CL75: ='Cash Flow'!BF52 -> 0 | CM75: ='Cash Flow'!BG52 -> 0 | CN75: ='Cash Flow'!BH52 -> 0 | CO75: ='Cash Flow'!BI52 -> 0 | CP75: ='Cash Flow'!BJ52 -> 0 | CQ75: ='Cash Flow'!BK52 -> 0 | CR75: ='Cash Flow'!BL52 -> 0
AH76: ='Cash Flow'!$A53 -> Retail TIs | AI76: ='Cash Flow'!E53 -> 0 | AJ76: ='Cash Flow'!F53 -> 0 | AL76: ='Cash Flow'!G53 -> 0 | AN76: ='Cash Flow'!H53 -> 0 | AO76: ='Cash Flow'!I53 -> 0 | AP76: ='Cash Flow'!J53 -> 0 | AQ76: ='Cash Flow'!K53 -> 0 | AR76: ='Cash Flow'!L53 -> 0 | AS76: ='Cash Flow'!M53 -> 0 | AT76: ='Cash Flow'!N53 -> 0 | AU76: ='Cash Flow'!O53 -> 0 | AV76: ='Cash Flow'!P53 -> 0 | AW76: ='Cash Flow'!Q53 -> 0 | AX76: ='Cash Flow'!R53 -> 0 | AY76: ='Cash Flow'!S53 -> 0 | AZ76: ='Cash Flow'!T53 -> 0 | BA76: ='Cash Flow'!U53 -> 0 | BB76: ='Cash Flow'!V53 -> 0 | BC76: ='Cash Flow'!W53 -> 55068.75 | BD76: ='Cash Flow'!X53 -> 55068.75 | BE76: ='Cash Flow'!Y53 -> 55068.75 | BF76: ='Cash Flow'!Z53 -> 55068.75 | BG76: ='Cash Flow'!AA53 -> 55068.75 | BH76: ='Cash Flow'!AB53 -> 55068.75 | BI76: ='Cash Flow'!AC53 -> 55068.75 | BJ76: ='Cash Flow'!AD53 -> 55068.75 | BK76: ='Cash Flow'!AE53 -> 0 | BL76: ='Cash Flow'!AF53 -> 0 | BM76: ='Cash Flow'!AG53 -> 0 | BN76: ='Cash Flow'!AH53 -> 0 | BO76: ='Cash Flow'!AI53 -> 0 | BP76: ='Cash Flow'!AJ53 -> 0 | BQ76: ='Cash Flow'!AK53 -> 0 | BR76: ='Cash Flow'!AL53 -> 0 | BS76: ='Cash Flow'!AM53 -> 0 | BT76: ='Cash Flow'!AN53 -> 0 | BU76: ='Cash Flow'!AO53 -> 0 | BV76: ='Cash Flow'!AP53 -> 0 | BW76: ='Cash Flow'!AQ53 -> 0 | BX76: ='Cash Flow'!AR53 -> 0 | BY76: ='Cash Flow'!AS53 -> 0 | BZ76: ='Cash Flow'!AT53 -> 0 | CA76: ='Cash Flow'!AU53 -> 0 | CB76: ='Cash Flow'!AV53 -> 0 | CC76: ='Cash Flow'!AW53 -> 0 | CD76: ='Cash Flow'!AX53 -> 0 | CE76: ='Cash Flow'!AY53 -> 0 | CF76: ='Cash Flow'!AZ53 -> 0 | CG76: ='Cash Flow'!BA53 -> 0 | CH76: ='Cash Flow'!BB53 -> 0 | CI76: ='Cash Flow'!BC53 -> 0 | CJ76: ='Cash Flow'!BD53 -> 0 | CK76: ='Cash Flow'!BE53 -> 0 | CL76: ='Cash Flow'!BF53 -> 0 | CM76: ='Cash Flow'!BG53 -> 0 | CN76: ='Cash Flow'!BH53 -> 0 | CO76: ='Cash Flow'!BI53 -> 0 | CP76: ='Cash Flow'!BJ53 -> 0 | CQ76: ='Cash Flow'!BK53 -> 0 | CR76: ='Cash Flow'!BL53 -> 0
AH77: ='Cash Flow'!$A57 -> Monthly Funding Requirements | AI77: ='Cash Flow'!E57 -> 12204251.6 | AJ77: ='Cash Flow'!F57 -> 828000.008 | AL77: ='Cash Flow'!G57 -> 1051388.043 | AN77: ='Cash Flow'!H57 -> 1641442.229 | AO77: ='Cash Flow'!I57 -> 1911611.198 | AP77: ='Cash Flow'!J57 -> 2190712.53 | AQ77: ='Cash Flow'!K57 -> 2465242.155 | AR77: ='Cash Flow'!L57 -> 2719878.658 | AS77: ='Cash Flow'!M57 -> 2656020.381 | AT77: ='Cash Flow'!N57 -> 2830594.911 | AU77: ='Cash Flow'!O57 -> 2958205.91 | AV77: ='Cash Flow'!P57 -> 3016753.915 | AW77: ='Cash Flow'!Q57 -> 3003018.109 | AX77: ='Cash Flow'!R57 -> 2919159.207 | AY77: ='Cash Flow'!S57 -> 2772427.738 | AZ77: ='Cash Flow'!T57 -> 2574262.616 | BA77: ='Cash Flow'!U57 -> 2338933.083 | BB77: ='Cash Flow'!V57 -> 2081945.456 | BC77: ='Cash Flow'!W57 -> 1873527.465 | BD77: ='Cash Flow'!X57 -> 1617409.951 | BE77: ='Cash Flow'!Y57 -> 1392365.406 | BF77: ='Cash Flow'!Z57 -> 1366920.111 | BG77: ='Cash Flow'!AA57 -> 549172.0042 | BH77: ='Cash Flow'!AB57 -> 1050519.586 | BI77: ='Cash Flow'!AC57 -> 473735.5421 | BJ77: ='Cash Flow'!AD57 -> 231683.5482 | BK77: ='Cash Flow'!AE57 -> 115236.9782 | BL77: ='Cash Flow'!AF57 -> 16794.42335 | BM77: ='Cash Flow'!AG57 -> 16920.38152 | BN77: ='Cash Flow'!AH57 -> 17047.28439 | BO77: ='Cash Flow'!AI57 -> 17175.13902 | BP77: ='Cash Flow'!AJ57 -> 17303.95256 | BQ77: ='Cash Flow'!AK57 -> 17433.73221 | BR77: ='Cash Flow'!AL57 -> 17564.4852 | BS77: ='Cash Flow'!AM57 -> 17696.21884 | BT77: ='Cash Flow'!AN57 -> 72140.03356 | BU77: ='Cash Flow'!AO57 -> 72681.08381 | BV77: ='Cash Flow'!AP57 -> 73226.19194 | BW77: ='Cash Flow'!AQ57 -> 73775.38838 | BX77: ='Cash Flow'!AR57 -> 74328.7038 | BY77: ='Cash Flow'!AS57 -> 74886.16907 | BZ77: ='Cash Flow'!AT57 -> 75447.81534 | CA77: ='Cash Flow'!AU57 -> 76013.67396 | CB77: ='Cash Flow'!AV57 -> 76583.77651 | CC77: ='Cash Flow'!AW57 -> 77158.15484 | CD77: ='Cash Flow'!AX57 -> 77736.841 | CE77: ='Cash Flow'!AY57 -> 78319.8673 | CF77: ='Cash Flow'!AZ57 -> 78907.26631 | CG77: ='Cash Flow'!BA57 -> 79499.07081 | CH77: ='Cash Flow'!BB57 -> 80095.31384 | CI77: ='Cash Flow'!BC57 -> 80696.02869 | CJ77: ='Cash Flow'!BD57 -> 81301.24891 | CK77: ='Cash Flow'!BE57 -> 81911.00827 | CL77: ='Cash Flow'!BF57 -> 82525.34084 | CM77: ='Cash Flow'!BG57 -> 83144.28089 | CN77: ='Cash Flow'!BH57 -> 83767.863 | CO77: ='Cash Flow'!BI57 -> 84396.12197 | CP77: ='Cash Flow'!BJ57 -> 85029.09289 | CQ77: ='Cash Flow'!BK57 -> 85666.81108 | CR77: ='Cash Flow'!BL57 -> 86309.31217
AH79: Total Development Costs | AI79: =SUM(AI77:AI77) -> 12204251.6 | AJ79: =SUM(AJ77:AJ77) -> 828000.008 | AL79: 1051388.043 | AN79: 1641442.229 | AO79: 1911611.198 | AP79: 2190712.53 | AQ79: 2465242.155 | AR79: 2719878.658 | AS79: 2656020.381 | AT79: 2830594.911 | AU79: 2958205.91 | AV79: 3016753.915 | AW79: 3003018.109 | AX79: 2919159.207 | AY79: 2772427.738 | AZ79: 2574262.616 | BA79: 2338933.083 | BB79: 2081945.456 | BC79: 1873527.465 | BD79: 1617409.951 | BE79: 1392365.406 | BF79: 1366920.111 | BG79: 549172.0042 | BH79: 1050519.586 | BI79: 473735.5421 | BJ79: 231683.5482 | BK79: 115236.9782 | BL79: 16794.42335 | BM79: 16920.38152 | BN79: 17047.28439 | BO79: 17175.13902 | BP79: 17303.95256 | BQ79: 17433.73221 | BR79: 17564.4852 | BS79: 17696.21884 | BT79: 72140.03356 | BU79: 72681.08381 | BV79: 73226.19194 | BW79: 73775.38838 | BX79: 74328.7038 | BY79: 74886.16907 | BZ79: 75447.81534 | CA79: 76013.67396 | CB79: 76583.77651 | CC79: 77158.15484 | CD79: 77736.841 | CE79: 78319.8673 | CF79: 78907.26631 | CG79: 79499.07081 | CH79: 80095.31384 | CI79: 80696.02869 | CJ79: 81301.24891 | CK79: 81911.00827 | CL79: 82525.34084 | CM79: 83144.28089 | CN79: 83767.863 | CO79: =SUM(CO77:CO77) -> 84396.12197 | CP79: =SUM(CP77:CP77) -> 85029.09289 | CQ79: =SUM(CQ77:CQ77) -> 85666.81108 | CR79: =SUM(CR77:CR77) -> 86309.31217
AI80: =SUM(AI77:CN77) -> 62606499.08

Sheet Calc Table
A2: =Assumptions!$C$2 -> 2504 C St | I2: =Assumptions!$E$2 -> Golden Hill
I3: =Assumptions!$G$2 -> SD, CA
A5: Construction Expenditures Timing
B7: Construction Period: | D7: =Assumptions!$R$47 -> 21
B8: Total Hard Cost: | D8: =Assumptions!$J$18+Assumptions!J19 -> 41614763
B9: Overhead: | D9: =Assumptions!$J$32 -> 2269165
B10: Marketing: | D10: =Assumptions!$J$28 -> 750000
B11: Stab. Operating Expenses: | D11: =Assumptions!G230 -> 1086221.862
B12: Soft Cost Contingency: | D12: =Assumptions!J33 -> 1414083.035
B13: All other applicable costs incurred in full on land closing date.
D15: Unit | E15: Hard | F15: Offsite | G15: Marketing | H15: Operating | I15: Soft Cost
A16: Month | B16: Date | D16: Absorption | E16: Costs | F16: Overhead | G16: Cost | H16: Exp | I16: Contingency
A18: 1 | B18: =Assumptions!E32 -> 2023-06-15 | D18: =IF(AND(B18>='Lease Up'!$D$19,B18<='Lease Up'!$C$60),VLOOKUP(B18,'Lease Up'!$C$25:$G$60,4),0) -> 0 | E18: =IF(AND(B18>=EDATE(Assumptions!$S$42,Assumptions!$R$45),B18<=EDATE(Assumptions!$S$42,SUM(Assumptions!$R$45,'Calc Table'!$D$7))),INDEX('Hard Cost Curves'!$D$48:$AY$48,MATCH(SUM('Calc Table'!A18,-Assumptions!$R$45),'Hard Cost Curves'!$D$8:$AY$8))*$D$8,0) -> 0 | F18: =IF(B18=Assumptions!$E$32,$D$9*0.25,IF(B18-1<Assumptions!$E$34,0,IF(COUNTIF(F17:F$18,">0")>=$D$7+1,0,IF(COUNTIF(F17:F$18,">0")=$D$7,F$18,($D$9*0.5)/($D$7-1))))) -> 567291.25 | G18: =IF(D20<>0,IF(D18=0,$D$10*0.25,IF(AND(G14<>$D$10*0.25,G17=$D$10*0.25),$D$10*0.25,IF(AND(G14=$D$10*0.25,G17=$D$10*0.2),$D$10*0.1,IF(AND(G17=$D$10*0.1,G16=$D$10*0.25),$D$10*0.1,0)))),0) -> 0 | H18: =IF(AND(D21<>0,D19=0),Assumptions!$Q$16/3,IF(AND(D21<>0,D18=0),Assumptions!$Q$16/3,IF(D18=0,0,IF(D15=0,$D$11*0.75/12,IF(AND(D19=0,D21=0),$D$11*0.9/12,$D$11*0.85/12))))) -> 0 | I18: =IF(AND($B18>=EDATE(Assumptions!$E$34,1),$B18<EDATE(Assumptions!$E$34,6)),$D$12/5,0) -> 0
A19: =A18+1 -> 2 | B19: =DATE(YEAR(B18+30), MONTH(B18+30), 15) -> 2023-07-15 | D19: =IF(AND(B19>='Lease Up'!$D$19,B19<='Lease Up'!$C$60),VLOOKUP(B19,'Lease Up'!$C$25:$G$60,4),0) -> 0 | E19: =IF(AND(B19>=EDATE(Assumptions!$S$42,Assumptions!$R$45),B19<=EDATE(Assumptions!$S$42,SUM(Assumptions!$R$45,'Calc Table'!$D$7))),INDEX('Hard Cost Curves'!$D$48:$AY$48,MATCH(SUM('Calc Table'!A19,-Assumptions!$R$45),'Hard Cost Curves'!$D$8:$AY$8))*$D$8,0) -> 828000.008 | F19: =IF(B19=Assumptions!$E$32,$D$9*0.25,IF(B19-1<Assumptions!$E$34,0,IF(COUNTIF(F18:F$18,">0")>=$D$7+1,0,IF(COUNTIF(F18:F$18,">0")=$D$7,F$18,($D$9*0.5)/($D$7-1))))) -> 0 | G19: 0 | H19: =IF(AND(D22<>0,D20=0),Assumptions!$Q$16/3,IF(AND(D22<>0,D19=0),Assumptions!$Q$16/3,IF(D19=0,0,IF(D16=0,$D$11*0.75/12,IF(AND(D20=0,D22=0),$D$11*0.9/12,$D$11*0.85/12))))) -> 0 | I19: =IF(AND($B19>=EDATE(Assumptions!$E$34,1),$B19<EDATE(Assumptions!$E$34,6)),$D$12/5,0) -> 0
A20: 3 | B20: =DATE(YEAR(B19+30), MONTH(B19+30), 15) -> 2023-08-15 | D20: =IF(AND(B20>='Lease Up'!$D$19,B20<='Lease Up'!$C$60),VLOOKUP(B20,'Lease Up'!$C$25:$G$60,4),0) -> 0 | E20: =IF(AND(B20>=EDATE(Assumptions!$S$42,Assumptions!$R$45),B20<=EDATE(Assumptions!$S$42,SUM(Assumptions!$R$45,'Calc Table'!$D$7))),INDEX('Hard Cost Curves'!$D$48:$AY$48,MATCH(SUM('Calc Table'!A20,-Assumptions!$R$45),'Hard Cost Curves'!$D$8:$AY$8))*$D$8,0) -> 1051388.043 | F20: =IF(B20=Assumptions!$E$32,$D$9*0.25,IF(B20-1<Assumptions!$E$34,0,IF(COUNTIF(F$18:F19,">0")>=$D$7+1,0,IF(COUNTIF(F$18:F19,">0")=$D$7,F$18,($D$9*0.5)/($D$7-1))))) -> 0 | G20: 0 | H20: =IF(AND(D23<>0,D21=0),Assumptions!$Q$16/3,IF(AND(D23<>0,D20=0),Assumptions!$Q$16/3,IF(D20=0,0,IF(D17=0,$D$11*0.75/12,IF(AND(D21=0,D23=0),$D$11*0.9/12,$D$11*0.85/12))))) -> 0 | I20: =IF(AND($B20>=EDATE(Assumptions!$E$34,1),$B20<EDATE(Assumptions!$E$34,6)),$D$12/5,0) -> 0
A21: 4 | B21: 2023-09-15 | D21: =IF(AND(B21>='Lease Up'!$D$19,B21<='Lease Up'!$C$60),VLOOKUP(B21,'Lease Up'!$C$25:$G$60,4),0) -> 0 | E21: =IF(AND(B21>=EDATE(Assumptions!$S$42,Assumptions!$R$45),B21<=EDATE(Assumptions!$S$42,SUM(Assumptions!$R$45,'Calc Table'!$D$7))),INDEX('Hard Cost Curves'!$D$48:$AY$48,MATCH(SUM('Calc Table'!A21,-Assumptions!$R$45),'Hard Cost Curves'!$D$8:$AY$8))*$D$8,0) -> 1301896.497 | F21: =IF(B21=Assumptions!$E$32,$D$9*0.25,IF(B21-1<Assumptions!$E$34,0,IF(COUNTIF(F$18:F20,">0")>=$D$7+1,0,IF(COUNTIF(F$18:F20,">0")=$D$7,F$18,($D$9*0.5)/($D$7-1))))) -> 56729.125 | G21: 0 | H21: =IF(AND(D24<>0,D22=0),Assumptions!$Q$16/3,IF(AND(D24<>0,D21=0),Assumptions!$Q$16/3,IF(D21=0,0,IF(D18=0,$D$11*0.75/12,IF(AND(D22=0,D24=0),$D$11*0.9/12,$D$11*0.85/12))))) -> 0 | I21: =IF(AND($B21>=EDATE(Assumptions!$E$34,1),$B21<EDATE(Assumptions!$E$34,6)),$D$12/5,0) -> 282816.607
A22: 5 | B22: 2023-10-15 | D22: =IF(AND(B22>='Lease Up'!$D$19,B22<='Lease Up'!$C$60),VLOOKUP(B22,'Lease Up'!$C$25:$G$60,4),0) -> 0 | E22: =IF(AND(B22>=EDATE(Assumptions!$S$42,Assumptions!$R$45),B22<=EDATE(Assumptions!$S$42,SUM(Assumptions!$R$45,'Calc Table'!$D$7))),INDEX('Hard Cost Curves'!$D$48:$AY$48,MATCH(SUM('Calc Table'!A22,-Assumptions!$R$45),'Hard Cost Curves'!$D$8:$AY$8))*$D$8,0) -> 1572065.466 | F22: =IF(B22=Assumptions!$E$32,$D$9*0.25,IF(B22-1<Assumptions!$E$34,0,IF(COUNTIF(F$18:F21,">0")>=$D$7+1,0,IF(COUNTIF(F$18:F21,">0")=$D$7,F$18,($D$9*0.5)/($D$7-1))))) -> 56729.125 | G22: 0 | H22: =IF(AND(D25<>0,D23=0),Assumptions!$Q$16/3,IF(AND(D25<>0,D22=0),Assumptions!$Q$16/3,IF(D22=0,0,IF(D19=0,$D$11*0.75/12,IF(AND(D23=0,D25=0),$D$11*0.9/12,$D$11*0.85/12))))) -> 0 | I22: =IF(AND($B22>=EDATE(Assumptions!$E$34,1),$B22<EDATE(Assumptions!$E$34,6)),$D$12/5,0) -> 282816.607
A23: 6 | B23: 2023-11-15 | D23: =IF(AND(B23>='Lease Up'!$D$19,B23<='Lease Up'!$C$60),VLOOKUP(B23,'Lease Up'!$C$25:$G$60,4),0) -> 0 | E23: =IF(AND(B23>=EDATE(Assumptions!$S$42,Assumptions!$R$45),B23<=EDATE(Assumptions!$S$42,SUM(Assumptions!$R$45,'Calc Table'!$D$7))),INDEX('Hard Cost Curves'!$D$48:$AY$48,MATCH(SUM('Calc Table'!A23,-Assumptions!$R$45),'Hard Cost Curves'!$D$8:$AY$8))*$D$8,0) -> 1851166.798 | F23: =IF(B23=Assumptions!$E$32,$D$9*0.25,IF(B23-1<Assumptions!$E$34,0,IF(COUNTIF(F$18:F22,">0")>=$D$7+1,0,IF(COUNTIF(F$18:F22,">0")=$D$7,F$18,($D$9*0.5)/($D$7-1))))) -> 56729.125 | G23: 0 | H23: =IF(AND(D26<>0,D24=0),Assumptions!$Q$16/3,IF(AND(D26<>0,D23=0),Assumptions!$Q$16/3,IF(D23=0,0,IF(D20=0,$D$11*0.75/12,IF(AND(D24=0,D26=0),$D$11*0.9/12,$D$11*0.85/12))))) -> 0 | I23: =IF(AND($B23>=EDATE(Assumptions!$E$34,1),$B23<EDATE(Assumptions!$E$34,6)),$D$12/5,0) -> 282816.607
A24: 7 | B24: 2023-12-15 | D24: =IF(AND(B24>='Lease Up'!$D$19,B24<='Lease Up'!$C$60),VLOOKUP(B24,'Lease Up'!$C$25:$G$60,4),0) -> 0 | E24: =IF(AND(B24>=EDATE(Assumptions!$S$42,Assumptions!$R$45),B24<=EDATE(Assumptions!$S$42,SUM(Assumptions!$R$45,'Calc Table'!$D$7))),INDEX('Hard Cost Curves'!$D$48:$AY$48,MATCH(SUM('Calc Table'!A24,-Assumptions!$R$45),'Hard Cost Curves'!$D$8:$AY$8))*$D$8,0) -> 2125696.423 | F24: =IF(B24=Assumptions!$E$32,$D$9*0.25,IF(B24-1<Assumptions!$E$34,0,IF(COUNTIF(F$18:F23,">0")>=$D$7+1,0,IF(COUNTIF(F$18:F23,">0")=$D$7,F$18,($D$9*0.5)/($D$7-1))))) -> 56729.125 | G24: 0 | H24: =IF(AND(D27<>0,D25=0),Assumptions!$Q$16/3,IF(AND(D27<>0,D24=0),Assumptions!$Q$16/3,IF(D24=0,0,IF(D21=0,$D$11*0.75/12,IF(AND(D25=0,D27=0),$D$11*0.9/12,$D$11*0.85/12))))) -> 0 | I24: =IF(AND($B24>=EDATE(Assumptions!$E$34,1),$B24<EDATE(Assumptions!$E$34,6)),$D$12/5,0) -> 282816.607
A25: 8 | B25: 2024-01-15 | D25: =IF(AND(B25>='Lease Up'!$D$19,B25<='Lease Up'!$C$60),VLOOKUP(B25,'Lease Up'!$C$25:$G$60,4),0) -> 0 | E25: =IF(AND(B25>=EDATE(Assumptions!$S$42,Assumptions!$R$45),B25<=EDATE(Assumptions!$S$42,SUM(Assumptions!$R$45,'Calc Table'!$D$7))),INDEX('Hard Cost Curves'!$D$48:$AY$48,MATCH(SUM('Calc Table'!A25,-Assumptions!$R$45),'Hard Cost Curves'!$D$8:$AY$8))*$D$8,0) -> 2380332.926 | F25: =IF(B25=Assumptions!$E$32,$D$9*0.25,IF(B25-1<Assumptions!$E$34,0,IF(COUNTIF(F$18:F24,">0")>=$D$7+1,0,IF(COUNTIF(F$18:F24,">0")=$D$7,F$18,($D$9*0.5)/($D$7-1))))) -> 56729.125 | G25: 0 | H25: =IF(AND(D28<>0,D26=0),Assumptions!$Q$16/3,IF(AND(D28<>0,D25=0),Assumptions!$Q$16/3,IF(D25=0,0,IF(D22=0,$D$11*0.75/12,IF(AND(D26=0,D28=0),$D$11*0.9/12,$D$11*0.85/12))))) -> 0 | I25: =IF(AND($B25>=EDATE(Assumptions!$E$34,1),$B25<EDATE(Assumptions!$E$34,6)),$D$12/5,0) -> 282816.607
A26: 9 | B26: 2024-02-15 | D26: =IF(AND(B26>='Lease Up'!$D$19,B26<='Lease Up'!$C$60),VLOOKUP(B26,'Lease Up'!$C$25:$G$60,4),0) -> 0 | E26: =IF(AND(B26>=EDATE(Assumptions!$S$42,Assumptions!$R$45),B26<=EDATE(Assumptions!$S$42,SUM(Assumptions!$R$45,'Calc Table'!$D$7))),INDEX('Hard Cost Curves'!$D$48:$AY$48,MATCH(SUM('Calc Table'!A26,-Assumptions!$R$45),'Hard Cost Curves'!$D$8:$AY$8))*$D$8,0) -> 2599291.256 | F26: =IF(B26=Assumptions!$E$32,$D$9*0.25,IF(B26-1<Assumptions!$E$34,0,IF(COUNTIF(F$18:F25,">0")>=$D$7+1,0,IF(COUNTIF(F$18:F25,">0")=$D$7,F$18,($D$9*0.5)/($D$7-1))))) -> 56729.125 | G26: 0 | H26: =IF(AND(D29<>0,D27=0),Assumptions!$Q$16/3,IF(AND(D29<>0,D26=0),Assumptions!$Q$16/3,IF(D26=0,0,IF(D23=0,$D$11*0.75/12,IF(AND(D27=0,D29=0),$D$11*0.9/12,$D$11*0.85/12))))) -> 0 | I26: =IF(AND($B26>=EDATE(Assumptions!$E$34,1),$B26<EDATE(Assumptions!$E$34,6)),$D$12/5,0) -> 0
A27: 10 | B27: 2024-03-15 | D27: =IF(AND(B27>='Lease Up'!$D$19,B27<='Lease Up'!$C$60),VLOOKUP(B27,'Lease Up'!$C$25:$G$60,4),0) -> 0 | E27: =IF(AND(B27>=EDATE(Assumptions!$S$42,Assumptions!$R$45),B27<=EDATE(Assumptions!$S$42,SUM(Assumptions!$R$45,'Calc Table'!$D$7))),INDEX('Hard Cost Curves'!$D$48:$AY$48,MATCH(SUM('Calc Table'!A27,-Assumptions!$R$45),'Hard Cost Curves'!$D$8:$AY$8))*$D$8,0) -> 2767916.419 | F27: =IF(B27=Assumptions!$E$32,$D$9*0.25,IF(B27-1<Assumptions!$E$34,0,IF(COUNTIF(F$18:F26,">0")>=$D$7+1,0,IF(COUNTIF(F$18:F26,">0")=$D$7,F$18,($D$9*0.5)/($D$7-1))))) -> 56729.125 | G27: 0 | H27: =IF(AND(D30<>0,D28=0),Assumptions!$Q$16/3,IF(AND(D30<>0,D27=0),Assumptions!$Q$16/3,IF(D27=0,0,IF(D24=0,$D$11*0.75/12,IF(AND(D28=0,D30=0),$D$11*0.9/12,$D$11*0.85/12))))) -> 0 | I27: =IF(AND($B27>=EDATE(Assumptions!$E$34,1),$B27<EDATE(Assumptions!$E$34,6)),$D$12/5,0) -> 0
A28: 11 | B28: 2024-04-15 | D28: =IF(AND(B28>='Lease Up'!$D$19,B28<='Lease Up'!$C$60),VLOOKUP(B28,'Lease Up'!$C$25:$G$60,4),0) -> 0 | E28: =IF(AND(B28>=EDATE(Assumptions!$S$42,Assumptions!$R$45),B28<=EDATE(Assumptions!$S$42,SUM(Assumptions!$R$45,'Calc Table'!$D$7))),INDEX('Hard Cost Curves'!$D$48:$AY$48,MATCH(SUM('Calc Table'!A28,-Assumptions!$R$45),'Hard Cost Curves'!$D$8:$AY$8))*$D$8,0) -> 2874297.957 | F28: =IF(B28=Assumptions!$E$32,$D$9*0.25,IF(B28-1<Assumptions!$E$34,0,IF(COUNTIF(F$18:F27,">0")>=$D$7+1,0,IF(COUNTIF(F$18:F27,">0")=$D$7,F$18,($D$9*0.5)/($D$7-1))))) -> 56729.125 | G28: 0 | H28: =IF(AND(D31<>0,D29=0),Assumptions!$Q$16/3,IF(AND(D31<>0,D28=0),Assumptions!$Q$16/3,IF(D28=0,0,IF(D25=0,$D$11*0.75/12,IF(AND(D29=0,D31=0),$D$11*0.9/12,$D$11*0.85/12))))) -> 0 | I28: =IF(AND($B28>=EDATE(Assumptions!$E$34,1),$B28<EDATE(Assumptions!$E$34,6)),$D$12/5,0) -> 0
A29: 12 | B29: 2024-05-15 | D29: =IF(AND(B29>='Lease Up'!$D$19,B29<='Lease Up'!$C$60),VLOOKUP(B29,'Lease Up'!$C$25:$G$60,4),0) -> 0 | E29: =IF(AND(B29>=EDATE(Assumptions!$S$42,Assumptions!$R$45),B29<=EDATE(Assumptions!$S$42,SUM(Assumptions!$R$45,'Calc Table'!$D$7))),INDEX('Hard Cost Curves'!$D$48:$AY$48,MATCH(SUM('Calc Table'!A29,-Assumptions!$R$45),'Hard Cost Curves'!$D$8:$AY$8))*$D$8,0) -> 2910659.417 | F29: =IF(B29=Assumptions!$E$32,$D$9*0.25,IF(B29-1<Assumptions!$E$34,0,IF(COUNTIF(F$18:F28,">0")>=$D$7+1,0,IF(COUNTIF(F$18:F28,">0")=$D$7,F$18,($D$9*0.5)/($D$7-1))))) -> 56729.125 | G29: 0 | H29: =IF(AND(D32<>0,D30=0),Assumptions!$Q$16/3,IF(AND(D32<>0,D29=0),Assumptions!$Q$16/3,IF(D29=0,0,IF(D26=0,$D$11*0.75/12,IF(AND(D30=0,D32=0),$D$11*0.9/12,$D$11*0.85/12))))) -> 0 | I29: =IF(AND($B29>=EDATE(Assumptions!$E$34,1),$B29<EDATE(Assumptions!$E$34,6)),$D$12/5,0) -> 0
A30: 13 | B30: 2024-06-15 | D30: =IF(AND(B30>='Lease Up'!$D$19,B30<='Lease Up'!$C$60),VLOOKUP(B30,'Lease Up'!$C$25:$G$60,4),0) -> 0 | E30: =IF(AND(B30>=EDATE(Assumptions!$S$42,Assumptions!$R$45),B30<=EDATE(Assumptions!$S$42,SUM(Assumptions!$R$45,'Calc Table'!$D$7))),INDEX('Hard Cost Curves'!$D$48:$AY$48,MATCH(SUM('Calc Table'!A30,-Assumptions!$R$45),'Hard Cost Curves'!$D$8:$AY$8))*$D$8,0) -> 2874297.957 | F30: =IF(B30=Assumptions!$E$32,$D$9*0.25,IF(B30-1<Assumptions!$E$34,0,IF(COUNTIF(F$18:F29,">0")>=$D$7+1,0,IF(COUNTIF(F$18:F29,">0")=$D$7,F$18,($D$9*0.5)/($D$7-1))))) -> 56729.125 | G30: 0 | H30: =IF(AND(D33<>0,D31=0),Assumptions!$Q$16/3,IF(AND(D33<>0,D30=0),Assumptions!$Q$16/3,IF(D30=0,0,IF(D27=0,$D$11*0.75/12,IF(AND(D31=0,D33=0),$D$11*0.9/12,$D$11*0.85/12))))) -> 0 | I30: =IF(AND($B30>=EDATE(Assumptions!$E$34,1),$B30<EDATE(Assumptions!$E$34,6)),$D$12/5,0) -> 0
A31: 14 | B31: 2024-07-15 | D31: =IF(AND(B31>='Lease Up'!$D$19,B31<='Lease Up'!$C$60),VLOOKUP(B31,'Lease Up'!$C$25:$G$60,4),0) -> 0 | E31: =IF(AND(B31>=EDATE(Assumptions!$S$42,Assumptions!$R$45),B31<=EDATE(Assumptions!$S$42,SUM(Assumptions!$R$45,'Calc Table'!$D$7))),INDEX('Hard Cost Curves'!$D$48:$AY$48,MATCH(SUM('Calc Table'!A31,-Assumptions!$R$45),'Hard Cost Curves'!$D$8:$AY$8))*$D$8,0) -> 2767916.419 | F31: =IF(B31=Assumptions!$E$32,$D$9*0.25,IF(B31-1<Assumptions!$E$34,0,IF(COUNTIF(F$18:F30,">0")>=$D$7+1,0,IF(COUNTIF(F$18:F30,">0")=$D$7,F$18,($D$9*0.5)/($D$7-1))))) -> 56729.125 | G31: 0 | H31: =IF(AND(D34<>0,D32=0),Assumptions!$Q$16/3,IF(AND(D34<>0,D31=0),Assumptions!$Q$16/3,IF(D31=0,0,IF(D28=0,$D$11*0.75/12,IF(AND(D32=0,D34=0),$D$11*0.9/12,$D$11*0.85/12))))) -> 0 | I31: =IF(AND($B31>=EDATE(Assumptions!$E$34,1),$B31<EDATE(Assumptions!$E$34,6)),$D$12/5,0) -> 0
A32: 15 | B32: 2024-08-15 | D32: =IF(AND(B32>='Lease Up'!$D$19,B32<='Lease Up'!$C$60),VLOOKUP(B32,'Lease Up'!$C$25:$G$60,4),0) -> 0 | E32: =IF(AND(B32>=EDATE(Assumptions!$S$42,Assumptions!$R$45),B32<=EDATE(Assumptions!$S$42,SUM(Assumptions!$R$45,'Calc Table'!$D$7))),INDEX('Hard Cost Curves'!$D$48:$AY$48,MATCH(SUM('Calc Table'!A32,-Assumptions!$R$45),'Hard Cost Curves'!$D$8:$AY$8))*$D$8,0) -> 2599291.256 | F32: =IF(B32=Assumptions!$E$32,$D$9*0.25,IF(B32-1<Assumptions!$E$34,0,IF(COUNTIF(F$18:F31,">0")>=$D$7+1,0,IF(COUNTIF(F$18:F31,">0")=$D$7,F$18,($D$9*0.5)/($D$7-1))))) -> 56729.125 | G32: 0 | H32: =IF(AND(D35<>0,D33=0),Assumptions!$Q$16/3,IF(AND(D35<>0,D32=0),Assumptions!$Q$16/3,IF(D32=0,0,IF(D29=0,$D$11*0.75/12,IF(AND(D33=0,D35=0),$D$11*0.9/12,$D$11*0.85/12))))) -> 0 | I32: =IF(AND($B32>=EDATE(Assumptions!$E$34,1),$B32<EDATE(Assumptions!$E$34,6)),$D$12/5,0) -> 0
A33: 16 | B33: 2024-09-15 | D33: =IF(AND(B33>='Lease Up'!$D$19,B33<='Lease Up'!$C$60),VLOOKUP(B33,'Lease Up'!$C$25:$G$60,4),0) -> 0 | E33: =IF(AND(B33>=EDATE(Assumptions!$S$42,Assumptions!$R$45),B33<=EDATE(Assumptions!$S$42,SUM(Assumptions!$R$45,'Calc Table'!$D$7))),INDEX('Hard Cost Curves'!$D$48:$AY$48,MATCH(SUM('Calc Table'!A33,-Assumptions!$R$45),'Hard Cost Curves'!$D$8:$AY$8))*$D$8,0) -> 2380332.926 | F33: =IF(B33=Assumptions!$E$32,$D$9*0.25,IF(B33-1<Assumptions!$E$34,0,IF(COUNTIF(F$18:F32,">0")>=$D$7+1,0,IF(COUNTIF(F$18:F32,">0")=$D$7,F$18,($D$9*0.5)/($D$7-1))))) -> 56729.125 | G33: 0 | H33: =IF(AND(D36<>0,D34=0),Assumptions!$Q$16/3,IF(AND(D36<>0,D33=0),Assumptions!$Q$16/3,IF(D33=0,0,IF(D30=0,$D$11*0.75/12,IF(AND(D34=0,D36=0),$D$11*0.9/12,$D$11*0.85/12))))) -> 0 | I33: =IF(AND($B33>=EDATE(Assumptions!$E$34,1),$B33<EDATE(Assumptions!$E$34,6)),$D$12/5,0) -> 0
A34: 17 | B34: 2024-10-15 | D34: =IF(AND(B34>='Lease Up'!$D$19,B34<='Lease Up'!$C$60),VLOOKUP(B34,'Lease Up'!$C$25:$G$60,4),0) -> 0 | E34: =IF(AND(B34>=EDATE(Assumptions!$S$42,Assumptions!$R$45),B34<=EDATE(Assumptions!$S$42,SUM(Assumptions!$R$45,'Calc Table'!$D$7))),INDEX('Hard Cost Curves'!$D$48:$AY$48,MATCH(SUM('Calc Table'!A34,-Assumptions!$R$45),'Hard Cost Curves'!$D$8:$AY$8))*$D$8,0) -> 2125696.423 | F34: =IF(B34=Assumptions!$E$32,$D$9*0.25,IF(B34-1<Assumptions!$E$34,0,IF(COUNTIF(F$18:F33,">0")>=$D$7+1,0,IF(COUNTIF(F$18:F33,">0")=$D$7,F$18,($D$9*0.5)/($D$7-1))))) -> 56729.125 | G34: 0 | H34: =IF(AND(D37<>0,D35=0),Assumptions!$Q$16/3,IF(AND(D37<>0,D34=0),Assumptions!$Q$16/3,IF(D34=0,0,IF(D31=0,$D$11*0.75/12,IF(AND(D35=0,D37=0),$D$11*0.9/12,$D$11*0.85/12))))) -> 0 | I34: =IF(AND($B34>=EDATE(Assumptions!$E$34,1),$B34<EDATE(Assumptions!$E$34,6)),$D$12/5,0) -> 0
A35: 18 | B35: 2024-11-15 | D35: =IF(AND(B35>='Lease Up'!$D$19,B35<='Lease Up'!$C$60),VLOOKUP(B35,'Lease Up'!$C$25:$G$60,4),0) -> 0 | E35: =IF(AND(B35>=EDATE(Assumptions!$S$42,Assumptions!$R$45),B35<=EDATE(Assumptions!$S$42,SUM(Assumptions!$R$45,'Calc Table'!$D$7))),INDEX('Hard Cost Curves'!$D$48:$AY$48,MATCH(SUM('Calc Table'!A35,-Assumptions!$R$45),'Hard Cost Curves'!$D$8:$AY$8))*$D$8,0) -> 1851166.798 | F35: =IF(B35=Assumptions!$E$32,$D$9*0.25,IF(B35-1<Assumptions!$E$34,0,IF(COUNTIF(F$18:F34,">0")>=$D$7+1,0,IF(COUNTIF(F$18:F34,">0")=$D$7,F$18,($D$9*0.5)/($D$7-1))))) -> 56729.125 | G35: 0 | H35: =IF(AND(D38<>0,D36=0),Assumptions!$Q$16/3,IF(AND(D38<>0,D35=0),Assumptions!$Q$16/3,IF(D35=0,0,IF(D32=0,$D$11*0.75/12,IF(AND(D36=0,D38=0),$D$11*0.9/12,$D$11*0.85/12))))) -> 0 | I35: =IF(AND($B35>=EDATE(Assumptions!$E$34,1),$B35<EDATE(Assumptions!$E$34,6)),$D$12/5,0) -> 0
A36: 19 | B36: 2024-12-15 | D36: =IF(AND(B36>='Lease Up'!$D$19,B36<='Lease Up'!$C$60),VLOOKUP(B36,'Lease Up'!$C$25:$G$60,4),0) -> 0 | E36: =IF(AND(B36>=EDATE(Assumptions!$S$42,Assumptions!$R$45),B36<=EDATE(Assumptions!$S$42,SUM(Assumptions!$R$45,'Calc Table'!$D$7))),INDEX('Hard Cost Curves'!$D$48:$AY$48,MATCH(SUM('Calc Table'!A36,-Assumptions!$R$45),'Hard Cost Curves'!$D$8:$AY$8))*$D$8,0) -> 1572065.466 | F36: =IF(B36=Assumptions!$E$32,$D$9*0.25,IF(B36-1<Assumptions!$E$34,0,IF(COUNTIF(F$18:F35,">0")>=$D$7+1,0,IF(COUNTIF(F$18:F35,">0")=$D$7,F$18,($D$9*0.5)/($D$7-1))))) -> 56729.125 | G36: 0 | H36: =IF(AND(D39<>0,D37=0),Assumptions!$Q$16/3,IF(AND(D39<>0,D36=0),Assumptions!$Q$16/3,IF(D36=0,0,IF(D33=0,$D$11*0.75/12,IF(AND(D37=0,D39=0),$D$11*0.9/12,$D$11*0.85/12))))) -> 0 | I36: =IF(AND($B36>=EDATE(Assumptions!$E$34,1),$B36<EDATE(Assumptions!$E$34,6)),$D$12/5,0) -> 0
A37: 20 | B37: 2025-01-15 | D37: =IF(AND(B37>='Lease Up'!$D$19,B37<='Lease Up'!$C$60),VLOOKUP(B37,'Lease Up'!$C$25:$G$60,4),0) -> 0 | E37: =IF(AND(B37>=EDATE(Assumptions!$S$42,Assumptions!$R$45),B37<=EDATE(Assumptions!$S$42,SUM(Assumptions!$R$45,'Calc Table'!$D$7))),INDEX('Hard Cost Curves'!$D$48:$AY$48,MATCH(SUM('Calc Table'!A37,-Assumptions!$R$45),'Hard Cost Curves'!$D$8:$AY$8))*$D$8,0) -> 1301896.497 | F37: =IF(B37=Assumptions!$E$32,$D$9*0.25,IF(B37-1<Assumptions!$E$34,0,IF(COUNTIF(F$18:F36,">0")>=$D$7+1,0,IF(COUNTIF(F$18:F36,">0")=$D$7,F$18,($D$9*0.5)/($D$7-1))))) -> 56729.125 | G37: 0 | H37: =IF(AND(D40<>0,D38=0),Assumptions!$Q$16/3,IF(AND(D40<>0,D37=0),Assumptions!$Q$16/3,IF(D37=0,0,IF(D34=0,$D$11*0.75/12,IF(AND(D38=0,D40=0),$D$11*0.9/12,$D$11*0.85/12))))) -> 0 | I37: =IF(AND($B37>=EDATE(Assumptions!$E$34,1),$B37<EDATE(Assumptions!$E$34,6)),$D$12/5,0) -> 0
A38: 21 | B38: 2025-02-15 | D38: =IF(AND(B38>='Lease Up'!$D$19,B38<='Lease Up'!$C$60),VLOOKUP(B38,'Lease Up'!$C$25:$G$60,4),0) -> 0 | E38: =IF(AND(B38>=EDATE(Assumptions!$S$42,Assumptions!$R$45),B38<=EDATE(Assumptions!$S$42,SUM(Assumptions!$R$45,'Calc Table'!$D$7))),INDEX('Hard Cost Curves'!$D$48:$AY$48,MATCH(SUM('Calc Table'!A38,-Assumptions!$R$45),'Hard Cost Curves'!$D$8:$AY$8))*$D$8,0) -> 1051388.043 | F38: =IF(B38=Assumptions!$E$32,$D$9*0.25,IF(B38-1<Assumptions!$E$34,0,IF(COUNTIF(F$18:F37,">0")>=$D$7+1,0,IF(COUNTIF(F$18:F37,">0")=$D$7,F$18,($D$9*0.5)/($D$7-1))))) -> 56729.125 | G38: 0 | H38: =IF(AND(D41<>0,D39=0),Assumptions!$Q$16/3,IF(AND(D41<>0,D38=0),Assumptions!$Q$16/3,IF(D38=0,0,IF(D35=0,$D$11*0.75/12,IF(AND(D39=0,D41=0),$D$11*0.9/12,$D$11*0.85/12))))) -> 13333.33333 | I38: =IF(AND($B38>=EDATE(Assumptions!$E$34,1),$B38<EDATE(Assumptions!$E$34,6)),$D$12/5,0) -> 0
A39: 22 | B39: 2025-03-15 | D39: =IF(AND(B39>='Lease Up'!$D$19,B39<='Lease Up'!$C$60),VLOOKUP(B39,'Lease Up'!$C$25:$G$60,4),0) -> 0 | E39: =IF(AND(B39>=EDATE(Assumptions!$S$42,Assumptions!$R$45),B39<=EDATE(Assumptions!$S$42,SUM(Assumptions!$R$45,'Calc Table'!$D$7))),INDEX('Hard Cost Curves'!$D$48:$AY$48,MATCH(SUM('Calc Table'!A39,-Assumptions!$R$45),'Hard Cost Curves'!$D$8:$AY$8))*$D$8,0) -> 828000.008 | F39: =IF(B39=Assumptions!$E$32,$D$9*0.25,IF(B39-1<Assumptions!$E$34,0,IF(COUNTIF(F$18:F38,">0")>=$D$7+1,0,IF(COUNTIF(F$18:F38,">0")=$D$7,F$18,($D$9*0.5)/($D$7-1))))) -> 56729.125 | G39: 187500 | H39: =IF(AND(D42<>0,D40=0),Assumptions!$Q$16/3,IF(AND(D42<>0,D39=0),Assumptions!$Q$16/3,IF(D39=0,0,IF(D36=0,$D$11*0.75/12,IF(AND(D40=0,D42=0),$D$11*0.9/12,$D$11*0.85/12))))) -> 13333.33333 | I39: =IF(AND($B39>=EDATE(Assumptions!$E$34,1),$B39<EDATE(Assumptions!$E$34,6)),$D$12/5,0) -> 0
A40: 23 | B40: 2025-04-15 | D40: =IF(AND(B40>='Lease Up'!$D$19,B40<='Lease Up'!$C$60),VLOOKUP(B40,'Lease Up'!$C$25:$G$60,4),0) -> 0 | E40: =IF(AND(B40>=EDATE(Assumptions!$S$42,Assumptions!$R$45),B40<=EDATE(Assumptions!$S$42,SUM(Assumptions!$R$45,'Calc Table'!$D$7))),INDEX('Hard Cost Curves'!$D$48:$AY$48,MATCH(SUM('Calc Table'!A40,-Assumptions!$R$45),'Hard Cost Curves'!$D$8:$AY$8))*$D$8,0) -> 0 | F40: =IF(B40=Assumptions!$E$32,$D$9*0.25,IF(B40-1<Assumptions!$E$34,0,IF(COUNTIF(F$18:F39,">0")>=$D$7+1,0,IF(COUNTIF(F$18:F39,">0")=$D$7,F$18,($D$9*0.5)/($D$7-1))))) -> 56729.125 | G40: 187500 | H40: =IF(AND(D43<>0,D41=0),Assumptions!$Q$16/3,IF(AND(D43<>0,D40=0),Assumptions!$Q$16/3,IF(D40=0,0,IF(D37=0,$D$11*0.75/12,IF(AND(D41=0,D43=0),$D$11*0.9/12,$D$11*0.85/12))))) -> 13333.33333 | I40: =IF(AND($B40>=EDATE(Assumptions!$E$34,1),$B40<EDATE(Assumptions!$E$34,6)),$D$12/5,0) -> 0
A41: 24 | B41: 2025-05-15 | D41: =IF(AND(B41>='Lease Up'!$D$19,B41<='Lease Up'!$C$60),VLOOKUP(B41,'Lease Up'!$C$25:$G$60,4),0) -> 28 | E41: =IF(AND(B41>=EDATE(Assumptions!$S$42,Assumptions!$R$45),B41<=EDATE(Assumptions!$S$42,SUM(Assumptions!$R$45,'Calc Table'!$D$7))),INDEX('Hard Cost Curves'!$D$48:$AY$48,MATCH(SUM('Calc Table'!A41,-Assumptions!$R$45),'Hard Cost Curves'!$D$8:$AY$8))*$D$8,0) -> 0 | F41: =IF(B41=Assumptions!$E$32,$D$9*0.25,IF(B41-1<Assumptions!$E$34,0,IF(COUNTIF(F$18:F40,">0")>=$D$7+1,0,IF(COUNTIF(F$18:F40,">0")=$D$7,F$18,($D$9*0.5)/($D$7-1))))) -> 567291.25 | G41: 187500 | H41: =IF(AND(D44<>0,D42=0),Assumptions!$Q$16/3,IF(AND(D44<>0,D41=0),Assumptions!$Q$16/3,IF(D41=0,0,IF(D38=0,$D$11*0.75/12,IF(AND(D42=0,D44=0),$D$11*0.9/12,$D$11*0.85/12))))) -> 67888.86636 | I41: =IF(AND($B41>=EDATE(Assumptions!$E$34,1),$B41<EDATE(Assumptions!$E$34,6)),$D$12/5,0) -> 0
A42: 25 | B42: 2025-06-15 | D42: =IF(AND(B42>='Lease Up'!$D$19,B42<='Lease Up'!$C$60),VLOOKUP(B42,'Lease Up'!$C$25:$G$60,4),0) -> 28 | E42: =IF(AND(B42>=EDATE(Assumptions!$S$42,Assumptions!$R$45),B42<=EDATE(Assumptions!$S$42,SUM(Assumptions!$R$45,'Calc Table'!$D$7))),INDEX('Hard Cost Curves'!$D$48:$AY$48,MATCH(SUM('Calc Table'!A42,-Assumptions!$R$45),'Hard Cost Curves'!$D$8:$AY$8))*$D$8,0) -> 0 | F42: =IF(B42=Assumptions!$E$32,$D$9*0.25,IF(B42-1<Assumptions!$E$34,0,IF(COUNTIF(F$18:F41,">0")>=$D$7+1,0,IF(COUNTIF(F$18:F41,">0")=$D$7,F$18,($D$9*0.5)/($D$7-1))))) -> 0 | G42: 187500 | H42: =IF(AND(D45<>0,D43=0),Assumptions!$Q$16/3,IF(AND(D45<>0,D42=0),Assumptions!$Q$16/3,IF(D42=0,0,IF(D39=0,$D$11*0.75/12,IF(AND(D43=0,D45=0),$D$11*0.9/12,$D$11*0.85/12))))) -> 67888.86636 | I42: =IF(AND($B42>=EDATE(Assumptions!$E$34,1),$B42<EDATE(Assumptions!$E$34,6)),$D$12/5,0) -> 0
A43: 26 | B43: 2025-07-15 | D43: =IF(AND(B43>='Lease Up'!$D$19,B43<='Lease Up'!$C$60),VLOOKUP(B43,'Lease Up'!$C$25:$G$60,4),0) -> 28 | E43: =IF(AND(B43>=EDATE(Assumptions!$S$42,Assumptions!$R$45),B43<=EDATE(Assumptions!$S$42,SUM(Assumptions!$R$45,'Calc Table'!$D$7))),INDEX('Hard Cost Curves'!$D$48:$AY$48,MATCH(SUM('Calc Table'!A43,-Assumptions!$R$45),'Hard Cost Curves'!$D$8:$AY$8))*$D$8,0) -> 0 | F43: =IF(B43=Assumptions!$E$32,$D$9*0.25,IF(B43-1<Assumptions!$E$34,0,IF(COUNTIF(F$18:F42,">0")>=$D$7+1,0,IF(COUNTIF(F$18:F42,">0")=$D$7,F$18,($D$9*0.5)/($D$7-1))))) -> 0 | G43: 0 | H43: =IF(AND(D46<>0,D44=0),Assumptions!$Q$16/3,IF(AND(D46<>0,D43=0),Assumptions!$Q$16/3,IF(D43=0,0,IF(D40=0,$D$11*0.75/12,IF(AND(D44=0,D46=0),$D$11*0.9/12,$D$11*0.85/12))))) -> 67888.86636 | I43: =IF(AND($B43>=EDATE(Assumptions!$E$34,1),$B43<EDATE(Assumptions!$E$34,6)),$D$12/5,0) -> 0
A44: 27 | B44: 2025-08-15 | D44: =IF(AND(B44>='Lease Up'!$D$19,B44<='Lease Up'!$C$60),VLOOKUP(B44,'Lease Up'!$C$25:$G$60,4),0) -> 24.3 | E44: =IF(AND(B44>=EDATE(Assumptions!$S$42,Assumptions!$R$45),B44<=EDATE(Assumptions!$S$42,SUM(Assumptions!$R$45,'Calc Table'!$D$7))),INDEX('Hard Cost Curves'!$D$48:$AY$48,MATCH(SUM('Calc Table'!A44,-Assumptions!$R$45),'Hard Cost Curves'!$D$8:$AY$8))*$D$8,0) -> 0 | F44: =IF(B44=Assumptions!$E$32,$D$9*0.25,IF(B44-1<Assumptions!$E$34,0,IF(COUNTIF(F$18:F43,">0")>=$D$7+1,0,IF(COUNTIF(F$18:F43,">0")=$D$7,F$18,($D$9*0.5)/($D$7-1))))) -> 0 | G44: 0 | H44: =IF(AND(D47<>0,D45=0),Assumptions!$Q$16/3,IF(AND(D47<>0,D44=0),Assumptions!$Q$16/3,IF(D44=0,0,IF(D41=0,$D$11*0.75/12,IF(AND(D45=0,D47=0),$D$11*0.9/12,$D$11*0.85/12))))) -> 81466.63963 | I44: =IF(AND($B44>=EDATE(Assumptions!$E$34,1),$B44<EDATE(Assumptions!$E$34,6)),$D$12/5,0) -> 0
A45: 28 | B45: 2025-09-15 | D45: =IF(AND(B45>='Lease Up'!$D$19,B45<='Lease Up'!$C$60),VLOOKUP(B45,'Lease Up'!$C$25:$G$60,4),0) -> 0 | E45: =IF(AND(B45>=EDATE(Assumptions!$S$42,Assumptions!$R$45),B45<=EDATE(Assumptions!$S$42,SUM(Assumptions!$R$45,'Calc Table'!$D$7))),INDEX('Hard Cost Curves'!$D$48:$AY$48,MATCH(SUM('Calc Table'!A45,-Assumptions!$R$45),'Hard Cost Curves'!$D$8:$AY$8))*$D$8,0) -> 0 | F45: =IF(B45=Assumptions!$E$32,$D$9*0.25,IF(B45-1<Assumptions!$E$34,0,IF(COUNTIF(F$18:F44,">0")>=$D$7+1,0,IF(COUNTIF(F$18:F44,">0")=$D$7,F$18,($D$9*0.5)/($D$7-1))))) -> 0 | G45: 0 | H45: =IF(AND(D48<>0,D46=0),Assumptions!$Q$16/3,IF(AND(D48<>0,D45=0),Assumptions!$Q$16/3,IF(D45=0,0,IF(D42=0,$D$11*0.75/12,IF(AND(D46=0,D48=0),$D$11*0.9/12,$D$11*0.85/12))))) -> 0 | I45: =IF(AND($B45>=EDATE(Assumptions!$E$34,1),$B45<EDATE(Assumptions!$E$34,6)),$D$12/5,0) -> 0
A46: 29 | B46: 2025-10-15 | D46: =IF(AND(B46>='Lease Up'!$D$19,B46<='Lease Up'!$C$60),VLOOKUP(B46,'Lease Up'!$C$25:$G$60,4),0) -> 0 | E46: =IF(AND(B46>=EDATE(Assumptions!$S$42,Assumptions!$R$45),B46<=EDATE(Assumptions!$S$42,SUM(Assumptions!$R$45,'Calc Table'!$D$7))),INDEX('Hard Cost Curves'!$D$48:$AY$48,MATCH(SUM('Calc Table'!A46,-Assumptions!$R$45),'Hard Cost Curves'!$D$8:$AY$8))*$D$8,0) -> 0 | F46: =IF(B46=Assumptions!$E$32,$D$9*0.25,IF(B46-1<Assumptions!$E$34,0,IF(COUNTIF(F$18:F45,">0")>=$D$7+1,0,IF(COUNTIF(F$18:F45,">0")=$D$7,F$18,($D$9*0.5)/($D$7-1))))) -> 0 | G46: =IF(D48<>0,IF(D46=0,$D$10*0.25,IF(AND(G42<>$D$10*0.25,G45=$D$10*0.25),$D$10*0.25,IF(AND(G42=$D$10*0.25,G45=$D$10*0.2),$D$10*0.1,IF(AND(G45=$D$10*0.1,G44=$D$10*0.25),$D$10*0.1,0)))),0) -> 0 | H46: =IF(AND(D49<>0,D47=0),Assumptions!$Q$16/3,IF(AND(D49<>0,D46=0),Assumptions!$Q$16/3,IF(D46=0,0,IF(D43=0,$D$11*0.75/12,IF(AND(D47=0,D49=0),$D$11*0.9/12,$D$11*0.85/12))))) -> 0 | I46: =IF(AND($B46>=EDATE(Assumptions!$E$34,1),$B46<EDATE(Assumptions!$E$34,6)),$D$12/5,0) -> 0
A47: 30 | B47: 2025-11-15 | D47: =IF(AND(B47>='Lease Up'!$D$19,B47<='Lease Up'!$C$60),VLOOKUP(B47,'Lease Up'!$C$25:$G$60,4),0) -> 0 | E47: =IF(AND(B47>=EDATE(Assumptions!$S$42,Assumptions!$R$45),B47<=EDATE(Assumptions!$S$42,SUM(Assumptions!$R$45,'Calc Table'!$D$7))),INDEX('Hard Cost Curves'!$D$48:$AY$48,MATCH(SUM('Calc Table'!A47,-Assumptions!$R$45),'Hard Cost Curves'!$D$8:$AY$8))*$D$8,0) -> 0 | F47: =IF(B47=Assumptions!$E$32,$D$9*0.25,IF(B47-1<Assumptions!$E$34,0,IF(COUNTIF(F$18:F46,">0")>=$D$7+1,0,IF(COUNTIF(F$18:F46,">0")=$D$7,F$18,($D$9*0.5)/($D$7-1))))) -> 0 | G47: =IF(D49<>0,IF(D47=0,$D$10*0.25,IF(AND(G43<>$D$10*0.25,G46=$D$10*0.25),$D$10*0.25,IF(AND(G43=$D$10*0.25,G46=$D$10*0.2),$D$10*0.1,IF(AND(G46=$D$10*0.1,G45=$D$10*0.25),$D$10*0.1,0)))),0) -> 0 | H47: =IF(AND(D50<>0,D48=0),Assumptions!$Q$16/3,IF(AND(D50<>0,D47=0),Assumptions!$Q$16/3,IF(D47=0,0,IF(D44=0,$D$11*0.75/12,IF(AND(D48=0,D50=0),$D$11*0.9/12,$D$11*0.85/12))))) -> 0 | I47: =IF(AND($B47>=EDATE(Assumptions!$E$34,1),$B47<EDATE(Assumptions!$E$34,6)),$D$12/5,0) -> 0
A48: 31 | B48: 2025-12-15 | D48: =IF(AND(B48>='Lease Up'!$D$19,B48<='Lease Up'!$C$60),VLOOKUP(B48,'Lease Up'!$C$25:$G$60,4),0) -> 0 | E48: =IF(AND(B48>=EDATE(Assumptions!$S$42,Assumptions!$R$45),B48<=EDATE(Assumptions!$S$42,SUM(Assumptions!$R$45,'Calc Table'!$D$7))),INDEX('Hard Cost Curves'!$D$48:$AY$48,MATCH(SUM('Calc Table'!A48,-Assumptions!$R$45),'Hard Cost Curves'!$D$8:$AY$8))*$D$8,0) -> 0 | F48: =IF(B48=Assumptions!$E$32,$D$9*0.25,IF(B48-1<Assumptions!$E$34,0,IF(COUNTIF(F$18:F47,">0")>=$D$7+1,0,IF(COUNTIF(F$18:F47,">0")=$D$7,F$18,($D$9*0.5)/($D$7-1))))) -> 0 | G48: 0 | H48: =IF(AND(D51<>0,D49=0),Assumptions!$Q$16/3,IF(AND(D51<>0,D48=0),Assumptions!$Q$16/3,IF(D48=0,0,IF(D45=0,$D$11*0.75/12,IF(AND(D49=0,D51=0),$D$11*0.9/12,$D$11*0.85/12))))) -> 0 | I48: =IF(AND($B48>=EDATE(Assumptions!$E$34,1),$B48<EDATE(Assumptions!$E$34,6)),$D$12/5,0) -> 0
A49: 32 | B49: 2026-01-15 | D49: =IF(AND(B49>='Lease Up'!$D$19,B49<='Lease Up'!$C$60),VLOOKUP(B49,'Lease Up'!$C$25:$G$60,4),0) -> 0 | E49: =IF(AND(B49>=EDATE(Assumptions!$S$42,Assumptions!$R$45),B49<=EDATE(Assumptions!$S$42,SUM(Assumptions!$R$45,'Calc Table'!$D$7))),INDEX('Hard Cost Curves'!$D$48:$AY$48,MATCH(SUM('Calc Table'!A49,-Assumptions!$R$45),'Hard Cost Curves'!$D$8:$AY$8))*$D$8,0) -> 0 | F49: =IF(B49=Assumptions!$E$32,$D$9*0.25,IF(B49-1<Assumptions!$E$34,0,IF(COUNTIF(F$18:F48,">0")>=$D$7+1,0,IF(COUNTIF(F$18:F48,">0")=$D$7,F$18,($D$9*0.5)/($D$7-1))))) -> 0 | G49: 0 | H49: =IF(AND(D52<>0,D50=0),Assumptions!$Q$16/3,IF(AND(D52<>0,D49=0),Assumptions!$Q$16/3,IF(D49=0,0,IF(D46=0,$D$11*0.75/12,IF(AND(D50=0,D52=0),$D$11*0.9/12,$D$11*0.85/12))))) -> 0 | I49: =IF(AND($B49>=EDATE(Assumptions!$E$34,1),$B49<EDATE(Assumptions!$E$34,6)),$D$12/5,0) -> 0
A50: 33 | B50: 2026-02-15 | D50: =IF(AND(B50>='Lease Up'!$D$19,B50<='Lease Up'!$C$60),VLOOKUP(B50,'Lease Up'!$C$25:$G$60,4),0) -> 0 | E50: =IF(AND(B50>=EDATE(Assumptions!$S$42,Assumptions!$R$45),B50<=EDATE(Assumptions!$S$42,SUM(Assumptions!$R$45,'Calc Table'!$D$7))),INDEX('Hard Cost Curves'!$D$48:$AY$48,MATCH(SUM('Calc Table'!A50,-Assumptions!$R$45),'Hard Cost Curves'!$D$8:$AY$8))*$D$8,0) -> 0 | F50: =IF(B50=Assumptions!$E$32,$D$9*0.25,IF(B50-1<Assumptions!$E$34,0,IF(COUNTIF(F$18:F49,">0")>=$D$7+1,0,IF(COUNTIF(F$18:F49,">0")=$D$7,F$18,($D$9*0.5)/($D$7-1))))) -> 0 | G50: 0 | H50: =IF(AND(D53<>0,D51=0),Assumptions!$Q$16/3,IF(AND(D53<>0,D50=0),Assumptions!$Q$16/3,IF(D50=0,0,IF(D47=0,$D$11*0.75/12,IF(AND(D51=0,D53=0),$D$11*0.9/12,$D$11*0.85/12))))) -> 0 | I50: =IF(AND($B50>=EDATE(Assumptions!$E$34,1),$B50<EDATE(Assumptions!$E$34,6)),$D$12/5,0) -> 0
A51: 34 | B51: 2026-03-15 | D51: =IF(AND(B51>='Lease Up'!$D$19,B51<='Lease Up'!$C$60),VLOOKUP(B51,'Lease Up'!$C$25:$G$60,4),0) -> 0 | E51: =IF(AND(B51>=EDATE(Assumptions!$S$42,Assumptions!$R$45),B51<=EDATE(Assumptions!$S$42,SUM(Assumptions!$R$45,'Calc Table'!$D$7))),INDEX('Hard Cost Curves'!$D$48:$AY$48,MATCH(SUM('Calc Table'!A51,-Assumptions!$R$45),'Hard Cost Curves'!$D$8:$AY$8))*$D$8,0) -> 0 | F51: =IF(B51=Assumptions!$E$32,$D$9*0.25,IF(B51-1<Assumptions!$E$34,0,IF(COUNTIF(F$18:F50,">0")>=$D$7+1,0,IF(COUNTIF(F$18:F50,">0")=$D$7,F$18,($D$9*0.5)/($D$7-1))))) -> 0 | G51: 0 | H51: =IF(AND(D54<>0,D52=0),Assumptions!$Q$16/3,IF(AND(D54<>0,D51=0),Assumptions!$Q$16/3,IF(D51=0,0,IF(D48=0,$D$11*0.75/12,IF(AND(D52=0,D54=0),$D$11*0.9/12,$D$11*0.85/12))))) -> 0 | I51: =IF(AND($B51>=EDATE(Assumptions!$E$34,1),$B51<EDATE(Assumptions!$E$34,6)),$D$12/5,0) -> 0
A52: 35 | B52: 2026-04-15 | D52: =IF(AND(B52>='Lease Up'!$D$19,B52<='Lease Up'!$C$60),VLOOKUP(B52,'Lease Up'!$C$25:$G$60,4),0) -> 0 | E52: =IF(AND(B52>=EDATE(Assumptions!$S$42,Assumptions!$R$45),B52<=EDATE(Assumptions!$S$42,SUM(Assumptions!$R$45,'Calc Table'!$D$7))),INDEX('Hard Cost Curves'!$D$48:$AY$48,MATCH(SUM('Calc Table'!A52,-Assumptions!$R$45),'Hard Cost Curves'!$D$8:$AY$8))*$D$8,0) -> 0 | F52: =IF(B52=Assumptions!$E$32,$D$9*0.25,IF(B52-1<Assumptions!$E$34,0,IF(COUNTIF(F$18:F51,">0")>=$D$7+1,0,IF(COUNTIF(F$18:F51,">0")=$D$7,F$18,($D$9*0.5)/($D$7-1))))) -> 0 | G52: 0 | H52: =IF(AND(D55<>0,D53=0),Assumptions!$Q$16/3,IF(AND(D55<>0,D52=0),Assumptions!$Q$16/3,IF(D52=0,0,IF(D49=0,$D$11*0.75/12,IF(AND(D53=0,D55=0),$D$11*0.9/12,$D$11*0.85/12))))) -> 0 | I52: =IF(AND($B52>=EDATE(Assumptions!$E$34,1),$B52<EDATE(Assumptions!$E$34,6)),$D$12/5,0) -> 0
A53: 36 | B53: 2026-05-15 | D53: =IF(AND(B53>='Lease Up'!$D$19,B53<='Lease Up'!$C$60),VLOOKUP(B53,'Lease Up'!$C$25:$G$60,4),0) -> 0 | E53: =IF(AND(B53>=EDATE(Assumptions!$S$42,Assumptions!$R$45),B53<=EDATE(Assumptions!$S$42,SUM(Assumptions!$R$45,'Calc Table'!$D$7))),INDEX('Hard Cost Curves'!$D$48:$AY$48,MATCH(SUM('Calc Table'!A53,-Assumptions!$R$45),'Hard Cost Curves'!$D$8:$AY$8))*$D$8,0) -> 0 | F53: =IF(B53=Assumptions!$E$32,$D$9*0.25,IF(B53-1<Assumptions!$E$34,0,IF(COUNTIF(F$18:F52,">0")>=$D$7+1,0,IF(COUNTIF(F$18:F52,">0")=$D$7,F$18,($D$9*0.5)/($D$7-1))))) -> 0 | G53: 0 | H53: =IF(AND(D56<>0,D54=0),Assumptions!$Q$16/3,IF(AND(D56<>0,D53=0),Assumptions!$Q$16/3,IF(D53=0,0,IF(D50=0,$D$11*0.75/12,IF(AND(D54=0,D56=0),$D$11*0.9/12,$D$11*0.85/12))))) -> 0 | I53: =IF(AND($B53>=EDATE(Assumptions!$E$34,1),$B53<EDATE(Assumptions!$E$34,6)),$D$12/5,0) -> 0
A54: 37 | B54: 2026-06-15 | D54: =IF(AND(B54>='Lease Up'!$D$19,B54<='Lease Up'!$C$60),VLOOKUP(B54,'Lease Up'!$C$25:$G$60,4),0) -> 0 | E54: =IF(AND(B54>=EDATE(Assumptions!$S$42,Assumptions!$R$45),B54<=EDATE(Assumptions!$S$42,SUM(Assumptions!$R$45,'Calc Table'!$D$7))),INDEX('Hard Cost Curves'!$D$48:$AY$48,MATCH(SUM('Calc Table'!A54,-Assumptions!$R$45),'Hard Cost Curves'!$D$8:$AY$8))*$D$8,0) -> 0 | F54: =IF(B54=Assumptions!$E$32,$D$9*0.25,IF(B54-1<Assumptions!$E$34,0,IF(COUNTIF(F$18:F53,">0")>=$D$7+1,0,IF(COUNTIF(F$18:F53,">0")=$D$7,F$18,($D$9*0.5)/($D$7-1))))) -> 0 | G54: 0 | H54: =IF(AND(D57<>0,D55=0),Assumptions!$Q$16/3,IF(AND(D57<>0,D54=0),Assumptions!$Q$16/3,IF(D54=0,0,IF(D51=0,$D$11*0.75/12,IF(AND(D55=0,D57=0),$D$11*0.9/12,$D$11*0.85/12))))) -> 0 | I54: =IF(AND($B54>=EDATE(Assumptions!$E$34,1),$B54<EDATE(Assumptions!$E$34,6)),$D$12/5,0) -> 0
A55: 38 | B55: 2026-07-15 | D55: =IF(AND(B55>='Lease Up'!$D$19,B55<='Lease Up'!$C$60),VLOOKUP(B55,'Lease Up'!$C$25:$G$60,4),0) -> 0 | E55: =IF(AND(B55>=EDATE(Assumptions!$S$42,Assumptions!$R$45),B55<=EDATE(Assumptions!$S$42,SUM(Assumptions!$R$45,'Calc Table'!$D$7))),INDEX('Hard Cost Curves'!$D$48:$AY$48,MATCH(SUM('Calc Table'!A55,-Assumptions!$R$45),'Hard Cost Curves'!$D$8:$AY$8))*$D$8,0) -> 0 | F55: =IF(B55=Assumptions!$E$32,$D$9*0.25,IF(B55-1<Assumptions!$E$34,0,IF(COUNTIF(F$18:F54,">0")>=$D$7+1,0,IF(COUNTIF(F$18:F54,">0")=$D$7,F$18,($D$9*0.5)/($D$7-1))))) -> 0 | G55: 0 | H55: =IF(AND(D58<>0,D56=0),Assumptions!$Q$16/3,IF(AND(D58<>0,D55=0),Assumptions!$Q$16/3,IF(D55=0,0,IF(D52=0,$D$11*0.75/12,IF(AND(D56=0,D58=0),$D$11*0.9/12,$D$11*0.85/12))))) -> 0 | I55: =IF(AND($B55>=EDATE(Assumptions!$E$34,1),$B55<EDATE(Assumptions!$E$34,6)),$D$12/5,0) -> 0
A56: 39 | B56: 2026-08-15 | D56: =IF(AND(B56>='Lease Up'!$D$19,B56<='Lease Up'!$C$60),VLOOKUP(B56,'Lease Up'!$C$25:$G$60,4),0) -> 0 | E56: =IF(AND(B56>=EDATE(Assumptions!$S$42,Assumptions!$R$45),B56<=EDATE(Assumptions!$S$42,SUM(Assumptions!$R$45,'Calc Table'!$D$7))),INDEX('Hard Cost Curves'!$D$48:$AY$48,MATCH(SUM('Calc Table'!A56,-Assumptions!$R$45),'Hard Cost Curves'!$D$8:$AY$8))*$D$8,0) -> 0 | F56: =IF(B56=Assumptions!$E$32,$D$9*0.25,IF(B56-1<Assumptions!$E$34,0,IF(COUNTIF(F$18:F55,">0")>=$D$7+1,0,IF(COUNTIF(F$18:F55,">0")=$D$7,F$18,($D$9*0.5)/($D$7-1))))) -> 0 | G56: 0 | H56: =IF(AND(D59<>0,D57=0),Assumptions!$Q$16/3,IF(AND(D59<>0,D56=0),Assumptions!$Q$16/3,IF(D56=0,0,IF(D53=0,$D$11*0.75/12,IF(AND(D57=0,D59=0),$D$11*0.9/12,$D$11*0.85/12))))) -> 0 | I56: =IF(AND($B56>=EDATE(Assumptions!$E$34,1),$B56<EDATE(Assumptions!$E$34,6)),$D$12/5,0) -> 0
A57: 40 | B57: 2026-09-15 | D57: =IF(AND(B57>='Lease Up'!$D$19,B57<='Lease Up'!$C$60),VLOOKUP(B57,'Lease Up'!$C$25:$G$60,4),0) -> 0 | E57: =IF(AND(B57>=EDATE(Assumptions!$S$42,Assumptions!$R$45),B57<=EDATE(Assumptions!$S$42,SUM(Assumptions!$R$45,'Calc Table'!$D$7))),INDEX('Hard Cost Curves'!$D$48:$AY$48,MATCH(SUM('Calc Table'!A57,-Assumptions!$R$45),'Hard Cost Curves'!$D$8:$AY$8))*$D$8,0) -> 0 | F57: =IF(B57=Assumptions!$E$32,$D$9*0.25,IF(B57-1<Assumptions!$E$34,0,IF(COUNTIF(F$18:F56,">0")>=$D$7+1,0,IF(COUNTIF(F$18:F56,">0")=$D$7,F$18,($D$9*0.5)/($D$7-1))))) -> 0 | G57: 0 | H57: =IF(AND(D60<>0,D58=0),Assumptions!$Q$16/3,IF(AND(D60<>0,D57=0),Assumptions!$Q$16/3,IF(D57=0,0,IF(D54=0,$D$11*0.75/12,IF(AND(D58=0,D60=0),$D$11*0.9/12,$D$11*0.85/12))))) -> 0 | I57: =IF(AND($B57>=EDATE(Assumptions!$E$34,1),$B57<EDATE(Assumptions!$E$34,6)),$D$12/5,0) -> 0
A58: 41 | B58: 2026-10-15 | D58: =IF(AND(B58>='Lease Up'!$D$19,B58<='Lease Up'!$C$60),VLOOKUP(B58,'Lease Up'!$C$25:$G$60,4),0) -> 0 | E58: =IF(AND(B58>=EDATE(Assumptions!$S$42,Assumptions!$R$45),B58<=EDATE(Assumptions!$S$42,SUM(Assumptions!$R$45,'Calc Table'!$D$7))),INDEX('Hard Cost Curves'!$D$48:$AY$48,MATCH(SUM('Calc Table'!A58,-Assumptions!$R$45),'Hard Cost Curves'!$D$8:$AY$8))*$D$8,0) -> 0 | F58: =IF(B58=Assumptions!$E$32,$D$9*0.25,IF(B58-1<Assumptions!$E$34,0,IF(COUNTIF(F$18:F57,">0")>=$D$7+1,0,IF(COUNTIF(F$18:F57,">0")=$D$7,F$18,($D$9*0.5)/($D$7-1))))) -> 0 | G58: 0 | H58: =IF(AND(D61<>0,D59=0),Assumptions!$Q$16/3,IF(AND(D61<>0,D58=0),Assumptions!$Q$16/3,IF(D58=0,0,IF(D55=0,$D$11*0.75/12,IF(AND(D59=0,D61=0),$D$11*0.9/12,$D$11*0.85/12))))) -> 0 | I58: =IF(AND($B58>=EDATE(Assumptions!$E$34,1),$B58<EDATE(Assumptions!$E$34,6)),$D$12/5,0) -> 0
